Workbook

Sheet Homepage
B2: Rekentool 5.0 voor voedselbossen | H2: Invoer voor basisgebruiker | L2: Invoer voor expertgebruiker | P2: Uitkomst | U2: Motor
B4: Dit is rekentool 5.0 voor voedselbossen. Een tool waarbij de financiële haalbaarheid van een (agrarisch) voedselbos inzichtelijk wordt gemaakt. Gebruik de knoppen op deze pagina en het home icoontje om je door de verschillende invoer pagina's te leiden. Voor meer gebruiksinformatie, zie de handleiding voor rekentool versie 4.0. Disclaimer: zodat een gebruiker in korte tijd een eerste orde berekening kan maken zijn sommige velden reeds voorzien van getallen. Deze getallen zijn zo goed mogelijk gebaseerd op literatuur en kennis uit bestaande voedselbosbouw. Gebruikers worden in hun berekeningen aangemoedigd velden in te vullen naar eigen inzicht. Voor de ontwikkeling van toekomstige rekentools kunnen gebruikers hun feedback sturen naar nicolaasgeijer@voedselbosbouw.org.
B14: Naam VB:
B15: Naam contact persoon:
B16: Locatie:
B17: Aantal hectare totaal:
B18: Aantal hectare productief VB:
B19: Jaar 1:
B20: Eerst jaar productieve aanplant:
B22: Rekentool 5.0 ingevuld door:
B24: Project Informatie Ecologie:
B25: Grondsoort:
B26: Organisch stofgehalte jaar 1 (%):
B27: Grondwaterstand Hoog (GHG in cm):
B28: Grondwaterstand Laag (GLG in cm):
B29: USDA hardiness zone:
B30: Voormalig landgebruik:
B31: Bestaande windhagen
B32: Nabijgelegen natuur:
B33: Wildafrastering:
B34: Anders:
P35: Stijn Heijs | T35: Nicolaas Geijer
B36: Project Informatie Economie:
B37: Bedrijfsnaam:
B38: Grondstatus: | P38: Stichting Voedselbosbouw NL | T38: Voedselbos Baarle-Nassau
B39: Nevenactiviteiten: | P39: Shefff Management B.V. | T39: Mandius B.V.
B40: SKAL certificaat of ander keurmerk:
B41: Ontwerper:
B42: Eigen opslag: | H42: Versielijst
B43: Eigen verwerking: | H43: Bewerker | N43: Opmerkingen | T43: Versie | V43: Datum
B44: Faciliteiten: | H44: Nicolaas Geijer | T44: 5 | V44: Aug. 2024
B45: Voertuigen intern:
B46: Voertuigen extern:
B47: Irrigatie:
B48: Anders:

Sheet Plantenlijst
J1: jaar 1 = | AJ1: Index: | AK1: Conversie factor: | AL1: Conversie factor:
J2: =Homepage!C19 -> 0 | U2: Productie in kg per jaar per plant of m2 | X2: Jaar 1 = | Y2: =J2 -> 0 | AJ2: 1 | AL2: 2.2
A3: Productie Categorie | B3: Wetenschappelijke naam | C3: Nederlandse naam | D3: Variateit | E3: Oogstweek begin | F3: Oogstweek eind | G3: Functie | H3: Eenheid | I3: Aantal | J3: Jaar van aanplant | K3: Additionele vertraging* | L3: Plukprestatie handpluk (kg/uur) | M3: Mechanisatie ja/nee | N3: Plukprestatie bij mechanisatie (kg/uur) | O3: Bron & Opmerkingen | P3: 1 | Q3: 2 | R3: 3 | S3: 4 | T3: 5 | U3: 6 | V3: 7 | W3: 8 | X3: 9 | Y3: 10 | Z3: 11 | AA3: 12 | AB3: 13 | AC3: 14 | AD3: 15 | AE3: 16 | AF3: 17 | AG3: 18 | AH3: 19 | AI3: 20 | AJ3: Prijs naar supermarkt per kg* | AK3: Prijs naar catering per kg | AL3: Prijs direct naar consument per kg | AN3: Basis plantlijst 1ha*
A4: 1 Zacht fruit | B4: Actinidia arguta | C4: Kiwibes | D4: Issai 15 | E4: 35 | F4: 44 | G4: kiwibes | H4: plant | I4: 0 | J4: 1 | K4: 0 | L4: 16 | M4: nee | N4: 0 | P4: 0 | Q4: 0 | R4: 0 | S4: 2 | T4: 4 | U4: 6 | V4: 15 | W4: 20 | X4: 25 | Y4: 30 | Z4: 30 | AA4: 30 | AB4: 30 | AC4: 30 | AD4: 30 | AE4: 30 | AF4: 30 | AG4: 30 | AH4: 30 | AI4: 30 | AJ4: 3.6456 | AL4: =AJ4*$AL$2 -> 8.02032 | AN4: 0
A5: 1 Zacht fruit | B5: Actinidia deliciosa | C5: Zelf bestuivende kiwi | E5: 35 | F5: 44 | G5: kiwibes | H5: plant | I5: 0 | J5: 1 | K5: 0 | L5: 16 | M5: nee | N5: 0 | P5: 0 | Q5: 0 | R5: 0 | S5: 2 | T5: 4 | U5: 6 | V5: 15 | W5: 20 | X5: 25 | Y5: 30 | Z5: 30 | AA5: 30 | AB5: 30 | AC5: 30 | AD5: 30 | AE5: 30 | AF5: 30 | AG5: 30 | AH5: 30 | AI5: 30 | AJ5: 3.6456 | AL5: 8.02032 | AN5: 0
A6: 1 Zacht fruit | B6: Actinidia komikta | C6: Arctisch | E6: 35 | F6: 44 | G6: kiwibes | H6: plant | I6: 0 | J6: 1 | K6: 0 | L6: 16 | M6: nee | N6: 0 | P6: 0 | Q6: 0 | R6: 0 | S6: 2 | T6: 4 | U6: 6 | V6: 15 | W6: 20 | X6: 25 | Y6: 30 | Z6: 30 | AA6: 30 | AB6: 30 | AC6: 30 | AD6: 30 | AE6: 30 | AF6: 30 | AG6: 30 | AH6: 30 | AI6: 30 | AJ6: 3.6456 | AL6: 8.02032 | AN6: 0
A7: 1 Zacht fruit | B7: Akebia quinata | C7: Schijnaugurk | E7: 40 | F7: 43 | G7: vrucht | H7: plant | I7: 0 | J7: 1 | K7: 0 | L7: 4 | M7: nee | N7: 0 | P7: 0 | Q7: 1 | R7: 2.985074627 | S7: 7.380073801 | T7: 13.21877065 | U7: 17.33252448 | V7: 19.11735186 | W7: 19.72676458 | X7: 19.9172379 | Y7: 19.97509924 | Z7: 19.97509924 | AA7: 19.97509924 | AB7: 19.97509924 | AC7: 19.97509924 | AD7: 19.97509924 | AE7: 19.97509924 | AF7: 19.97509924 | AG7: 19.97509924 | AH7: 19.97509924 | AI7: 20 | AJ7: 8.06 | AL7: 17.732 | AN7: 0
A8: 1 Zacht fruit | B8: Amelanchier alnifolia | C8: Krentenboompje | E8: 26 | F8: 30 | G8: vrucht | H8: plant | I8: 0 | J8: 1 | K8: 0 | L8: 5 | M8: nee | N8: 10 | O8: Bessenplukker, c. 2-4x sneller dan handpluk. Extra tijd nodig voor sorteren is niet meegenomen hier. (Huw Richards) | P8: 0 | Q8: 0 | R8: 0 | S8: 2 | T8: 12 | U8: 17 | V8: 22 | W8: 35 | X8: 45 | Y8: 45 | Z8: 45 | AA8: 45 | AB8: 45 | AC8: 45 | AD8: 45 | AE8: 45 | AF8: 45 | AG8: 45 | AH8: 45 | AI8: 45 | AJ8: 12.4744 | AL8: 27.44368 | AN8: 7
A9: 1 Zacht fruit | B9: Amelanchier laevis | C9: Krentenboompje | E9: 26 | F9: 30 | G9: vrucht | H9: plant | I9: 0 | J9: 1 | K9: 0 | L9: 5 | M9: nee | N9: 10 | O9: Bessenplukker, c. 2-4x sneller dan handpluk. Extra tijd nodig voor sorteren is niet meegenomen hier. (Huw Richards) | P9: 0 | Q9: 0.5 | R9: 0.9900990099 | S9: 1.771479185 | T9: 2.747064075 | U9: 3.652150889 | V9: 4.287887709 | W9: 4.652314441 | X9: 4.837319725 | Y9: 4.925459995 | Z9: 4.987904226 | AA9: 4.987904226 | AB9: 4.987904226 | AC9: 4.987904226 | AD9: 4.987904226 | AE9: 4.987904226 | AF9: 4.987904226 | AG9: 4.987904226 | AH9: 4.987904226 | AI9: 5 | AJ9: 12.4744 | AL9: 27.44368 | AN9: 0
A10: 1 Zacht fruit | B10: Amelanchier lamarckii | C10: Krentenboompje | E10: 26 | F10: 30 | G10: krenten bes | H10: plant | I10: 0 | J10: 1 | K10: 0 | L10: 5 | M10: nee | N10: 10 | O10: Bessenplukker, c. 2-4x sneller dan handpluk. Extra tijd nodig voor sorteren is niet meegenomen hier. (Huw Richards) | P10: 0 | Q10: 0.5 | R10: 0.9900990099 | S10: 1.771479185 | T10: 2.747064075 | U10: 3.652150889 | V10: 4.287887709 | W10: 4.652314441 | X10: 4.837319725 | Y10: 4.925459995 | Z10: 4.987904226 | AA10: 4.987904226 | AB10: 4.987904226 | AC10: 4.987904226 | AD10: 4.987904226 | AE10: 4.987904226 | AF10: 4.987904226 | AG10: 4.987904226 | AH10: 4.987904226 | AI10: 5 | AJ10: 12.4744 | AL10: 27.44368 | AN10: 0
A11: 1 Zacht fruit | B11: Arbutus unedo | C11: Aardbei boom | E11: 40 | F11: 52 | G11: vrucht | H11: plant | I11: 0 | J11: 1 | K11: 0 | L11: 12.25 | M11: nee | N11: 0 | P11: 0 | Q11: 1 | R11: 2.884615385 | S11: 6.637168142 | T11: 10.88534107 | U11: 13.47224717 | V11: 14.50648924 | W11: 14.84845665 | X11: 14.95421319 | Y11: 14.98623454 | Z11: 14.99882214 | AA11: 14.99882214 | AB11: 14.99882214 | AC11: 14.99882214 | AD11: 14.99882214 | AE11: 14.99882214 | AF11: 14.99882214 | AG11: 14.99882214 | AH11: 14.99882214 | AI11: 14.99882214 | AJ11: 16.7524 | AL11: 36.85528 | AN11: 0
A12: 1 Zacht fruit | B12: Aronia arbutifolia | C12: Appelbes | E12: 29 | F12: 35 | G12: appelbes | H12: plant | I12: 0 | J12: 1 | K12: 0 | L12: 5 | M12: nee | N12: 10 | O12: Bessenplukker, c. 2-4x sneller dan handpluk. Extra tijd nodig voor sorteren is niet meegenomen hier. (Huw Richards) | P12: 0 | Q12: 1 | R12: 2 | S12: 3 | T12: 4 | U12: 5 | V12: 6 | W12: 7 | X12: 8 | Y12: 10 | Z12: 10 | AA12: 10 | AB12: 10 | AC12: 10 | AD12: 10 | AE12: 10 | AF12: 10 | AG12: 10 | AH12: 10 | AI12: 10 | AJ12: 9.548 | AL12: 21.0056 | AN12: 10
A13: 1 Zacht fruit | B13: Aronia melanocarpa | C13: Appelbes | E13: 29 | F13: 35 | G13: appelbes | H13: plant | I13: 0 | J13: 1 | K13: 0 | L13: 5 | M13: nee | N13: 10 | O13: Bessenplukker, c. 2-4x sneller dan handpluk. Extra tijd nodig voor sorteren is niet meegenomen hier. (Huw Richards) | P13: 0 | Q13: 1 | R13: 2 | S13: 3 | T13: 4 | U13: 5 | V13: 6 | W13: 7 | X13: 8 | Y13: 10 | Z13: 10 | AA13: 10 | AB13: 10 | AC13: 10 | AD13: 10 | AE13: 10 | AF13: 10 | AG13: 10 | AH13: 10 | AI13: 10 | AJ13: 9.548 | AL13: 21.0056 | AN13: 26
A14: 1 Zacht fruit | B14: Aronia prunifolia | C14: Appelbes | E14: 29 | F14: 35 | G14: appelbes | H14: plant | I14: 0 | J14: 1 | K14: 0 | L14: 5 | M14: nee | N14: 10 | O14: Bessenplukker, c. 2-4x sneller dan handpluk. Extra tijd nodig voor sorteren is niet meegenomen hier. (Huw Richards) | P14: 0 | Q14: 1 | R14: 2 | S14: 3 | T14: 4 | U14: 5 | V14: 6 | W14: 7 | X14: 8 | Y14: 10 | Z14: 10 | AA14: 10 | AB14: 10 | AC14: 10 | AD14: 10 | AE14: 10 | AF14: 10 | AG14: 10 | AH14: 10 | AI14: 10 | AJ14: 9.548 | AL14: 21.0056 | AN14: 4
A15: 1 Zacht fruit | B15: Asimina triloba | C15: Pawpaw | E15: 36 | F15: 39 | G15: vrucht | H15: plant | I15: 0 | J15: 1 | K15: 0 | L15: 4 | M15: nee | N15: 0 | P15: 0 | Q15: 0 | R15: 0 | S15: 0 | T15: 0 | U15: 1 | V15: 2 | W15: 3 | X15: 4 | Y15: 5 | Z15: 6 | AA15: 6 | AB15: 6 | AC15: 6 | AD15: 6 | AE15: 6 | AF15: 6 | AG15: 6 | AH15: 6 | AI15: 6 | AJ15: 6.2 | AL15: 13.64 | AN15: 5
A16: 1 Zacht fruit | B16: Berberis aristata | C16: Chitra | E16: 35 | F16: 47 | G16: vrucht | H16: plant | I16: 0 | J16: 1 | K16: 0 | L16: 5 | M16: nee | N16: 0 | P16: 0 | Q16: 0 | R16: 0 | S16: 0 | T16: 0 | U16: 0 | V16: 0 | W16: 0 | X16: 0 | Y16: 0 | Z16: 0 | AA16: 0 | AB16: 0 | AC16: 0 | AD16: 0 | AE16: 0 | AF16: 0 | AG16: 0 | AH16: 0 | AI16: 0 | AJ16: 9.548 | AL16: 21.0056 | AN16: 7
A17: 1 Zacht fruit | B17: Berberis vulgaris | C17: Zuurbes | E17: 35 | F17: 47 | G17: bessen | H17: plant | I17: 0 | J17: 1 | K17: 0 | L17: 5 | M17: nee | N17: 0 | P17: 0 | Q17: 0 | R17: 0 | S17: 0 | T17: 0 | U17: 0 | V17: 0 | W17: 0 | X17: 0 | Y17: 0 | Z17: 0 | AA17: 0 | AB17: 0 | AC17: 0 | AD17: 0 | AE17: 0 | AF17: 0 | AG17: 0 | AH17: 0 | AI17: 0 | AJ17: 9.548 | AL17: 21.0056 | AN17: 3
A18: 1 Zacht fruit | B18: Cornus kousa | C18: Chinese kornoelje | D18: Big apple | E18: 40 | F18: 43 | G18: vrucht | H18: plant | I18: 0 | J18: 1 | K18: 0 | L18: 16 | M18: nee | N18: 0 | P18: 0 | Q18: 0 | R18: 0 | S18: 0 | T18: 0 | U18: 0 | V18: 0 | W18: 0 | X18: 1 | Y18: 3 | Z18: 5 | AA18: 7 | AB18: 9 | AC18: 10 | AD18: 10 | AE18: 11 | AF18: 12 | AG18: 13 | AH18: 14 | AI18: 15 | AJ18: 8.4568 | AL18: 18.60496 | AN18: 0
A19: 1 Zacht fruit | B19: Cornus mas | C19: Gele kornoelje | D19: Jolico | E19: 31 | F19: 34 | G19: vrucht | H19: plant | I19: 0 | J19: 1 | K19: 0 | L19: 9 | M19: nee | N19: 0 | P19: 0 | Q19: 0 | R19: 0 | S19: 0 | T19: 0 | U19: 0 | V19: 0 | W19: 0 | X19: 1 | Y19: 3 | Z19: 5 | AA19: 7 | AB19: 9 | AC19: 10 | AD19: 10 | AE19: 11 | AF19: 12 | AG19: 13 | AH19: 14 | AI19: 15 | AJ19: 1.4136 | AL19: 3.10992 | AN19: 6
A20: 1 Zacht fruit | B20: Cornus sanguinea | C20: Rode kornoelje | E20: 35 | F20: 38 | G20: vrucht | H20: plant | I20: 0 | J20: 1 | K20: 0 | L20: 4 | M20: nee | N20: 0 | P20: 0 | Q20: 0 | R20: 0 | S20: 0 | T20: 0 | U20: 0 | V20: 0 | W20: 0 | X20: 1 | Y20: 3 | Z20: 5 | AA20: 7 | AB20: 9 | AC20: 10 | AD20: 10 | AE20: 11 | AF20: 12 | AG20: 13 | AH20: 14 | AI20: 15 | AJ20: 10.8624 | AL20: 23.89728 | AN20: 0
A21: 1 Zacht fruit | B21: Decaisnea fargesii | C21: Augurkenstruik | E21: 40 | F21: 43 | G21: vrucht | H21: plant | I21: 0 | J21: 1 | K21: 0 | L21: 122.5 | M21: nee | N21: 0 | P21: 0 | Q21: 0 | R21: 0 | S21: 0 | T21: 0 | U21: 0 | V21: 0 | W21: 0 | X21: 0 | Y21: 0 | Z21: 0 | AA21: 0 | AB21: 0 | AC21: 0 | AD21: 0 | AE21: 0 | AF21: 0 | AG21: 0 | AH21: 0 | AI21: 10 | AJ21: 10.5648 | AL21: 23.24256 | AN21: 0
A22: 1 Zacht fruit | B22: Elaeagnus umbellata | C22: Herfstolijfwilg | E22: 36 | F22: 37 | G22: olijfwilgbes | H22: plant | I22: 0 | J22: 1 | K22: 0 | L22: 4 | M22: nee | N22: 0 | P22: 0 | Q22: 0 | R22: 0 | S22: 2 | T22: 4 | U22: 6 | V22: 8 | W22: 10 | X22: 10 | Y22: 10 | Z22: 10 | AA22: 10 | AB22: 10 | AC22: 10 | AD22: 10 | AE22: 10 | AF22: 10 | AG22: 10 | AH22: 10 | AI22: 10 | AJ22: 6.2 | AL22: 13.64 | AN22: 18
A23: 1 Zacht fruit | B23: Elaeagnus x ebbingei | C23: Zilverbes | D23: Limelight | E23: 15 | F23: 19 | G23: bessen | H23: plant | I23: 0 | J23: 1 | K23: 0 | L23: 4 | M23: nee | N23: 0 | P23: 0 | Q23: 0 | R23: 0 | S23: 2 | T23: 4 | U23: 6 | V23: 8 | W23: 10 | X23: 10 | Y23: 10 | Z23: 10 | AA23: 10 | AB23: 10 | AC23: 10 | AD23: 10 | AE23: 10 | AF23: 10 | AG23: 10 | AH23: 10 | AI23: 10 | AJ23: 0 | AL23: 0 | AN23: 18
A24: 1 Zacht fruit | B24: Feijoa sellowiana | C24: Ananas Guave | E24: 40 | F24: 4 | G24: vrucht | H24: plant | I24: 0 | J24: 1 | K24: 0 | L24: 4 | M24: nee | N24: 0 | P24: 0 | Q24: 0 | R24: 0 | S24: 3 | T24: 5 | U24: 8 | V24: 10 | W24: 12 | X24: 15 | Y24: 20 | Z24: 20 | AA24: 20 | AB24: 20 | AC24: 20 | AD24: 20 | AE24: 20 | AF24: 20 | AG24: 20 | AH24: 20 | AI24: 20 | AJ24: 16.244 | AL24: 35.7368 | AN24: 0
A25: 1 Zacht fruit | B25: Ficus carica | C25: Vijg | D25: Brown Turkey | E25: 33 | F25: 34 | G25: vijgen | H25: plant | I25: 0 | J25: 1 | K25: 0 | L25: 4 | M25: nee | N25: 0 | P25: 0 | Q25: 0 | R25: 0 | S25: 3 | T25: 5 | U25: 8 | V25: 10 | W25: 12 | X25: 15 | Y25: 20 | Z25: 20 | AA25: 20 | AB25: 20 | AC25: 20 | AD25: 20 | AE25: 20 | AF25: 20 | AG25: 20 | AH25: 20 | AI25: 20 | AJ25: 3.6828 | AL25: 8.10216 | AN25: 5
A26: 1 Zacht fruit | B26: Hippophae rhamnoides | C26: Duindoorn | D26: Pollmix (M) | E26: 26 | F26: 41 | G26: bessen | H26: plant | I26: 0 | J26: 1 | K26: 0 | L26: 4 | M26: nee | N26: 0 | P26: 0 | Q26: 0 | R26: 0 | S26: 0 | T26: 1 | U26: 2 | V26: 4 | W26: 6 | X26: 8 | Y26: 11 | Z26: 12 | AA26: 13 | AB26: 13 | AC26: 13 | AD26: 13 | AE26: 13 | AF26: 13 | AG26: 13 | AH26: 13 | AI26: 13 | AJ26: 12.4 | AL26: 27.28 | AN26: 13
A27: 1 Zacht fruit | B27: Ilex aquifolium | C27: Hulst | E27: 44 | F27: 12 | G27: blad en bes | H27: plant | I27: 0 | J27: 1 | K27: 0 | L27: 4 | M27: nee | N27: 0 | P27: 0 | Q27: 0 | R27: 0 | S27: 0 | T27: 2.3 | U27: 5 | V27: 9 | W27: 12 | X27: 18 | Y27: 23 | Z27: 24 | AA27: 25 | AB27: 26 | AC27: 27 | AD27: 28 | AE27: 29 | AF27: 30 | AG27: 30 | AH27: 30 | AI27: 30 | AJ27: 6.35033388 | AL27: 13.97073454 | AN27: 12
A28: 1 Zacht fruit | B28: Lonicera caerulea | C28: Honingbes | D28: Kamtschatica | E28: 23 | F28: 26 | G28: honingbes | H28: plant | I28: 0 | J28: 1 | K28: 0 | L28: 5 | M28: nee | N28: 10 | O28: Bessenplukker, c. 2-4x sneller dan handpluk. Extra tijd nodig voor sorteren is niet meegenomen hier. (Huw Richards) | P28: 0 | Q28: 0 | R28: 0.1 | S28: 0.2 | T28: 0.4 | U28: 0.6 | V28: 0.8 | W28: 1 | X28: 1.2 | Y28: 3 | Z28: 3 | AA28: 3 | AB28: 3 | AC28: 3 | AD28: 3 | AE28: 3 | AF28: 3 | AG28: 3 | AH28: 3 | AI28: 3 | AJ28: 12.4744 | AL28: 27.44368 | AN28: 55
A29: 1 Zacht fruit | B29: lonicera caerulea (juli) | C29: Honingbes | D29: Blue Velvet | E29: 23 | F29: 26 | G29: honingbes | H29: plant | I29: 0 | J29: 1 | K29: 0 | L29: 5 | M29: nee | N29: 10 | O29: Bessenplukker, c. 2-4x sneller dan handpluk. Extra tijd nodig voor sorteren is niet meegenomen hier. (Huw Richards) | P29: 0 | Q29: 0 | R29: 0.1 | S29: 0.2 | T29: 0.4 | U29: 0.6 | V29: 0.8 | W29: 1 | X29: 1.2 | Y29: 3 | Z29: 3 | AA29: 3 | AB29: 3 | AC29: 3 | AD29: 3 | AE29: 3 | AF29: 3 | AG29: 3 | AH29: 3 | AI29: 3 | AJ29: 12.4 | AL29: 27.28 | AN29: 0
A30: 1 Zacht fruit | B30: Lycium barbarum | C30: Gojibes | E30: 31 | F30: 43 | G30: gojibes | H30: plant | I30: 0 | J30: 1 | K30: 0 | L30: 4 | M30: nee | N30: 8 | O30: Bessenplukker, c. 2-4x sneller dan handpluk. Extra tijd nodig voor sorteren is niet meegenomen hier. (Huw Richards) | P30: 0 | Q30: 0 | R30: 2 | S30: 3 | T30: 4 | U30: 5 | V30: 6 | W30: 7 | X30: 8 | Y30: 8 | Z30: 8 | AA30: 8 | AB30: 8 | AC30: 8 | AD30: 8 | AE30: 8 | AF30: 8 | AG30: 8 | AH30: 8 | AI30: 8 | AJ30: 24.8 | AL30: 54.56 | AN30: 1
A31: 1 Zacht fruit | B31: Mahonia aquifolium | C31: Mahonie | D31: Smaragd | E31: 26 | F31: 37 | G31: bessen | H31: plant | I31: 0 | J31: 1 | K31: 0 | L31: 6 | M31: nee | N31: 0 | P31: 0 | Q31: 0 | R31: 0 | S31: 0.5 | T31: 4.916666667 | U31: 9.333333333 | V31: 2.5 | W31: 2.5 | X31: 2.5 | Y31: 2.5 | Z31: 2.5 | AA31: 2.5 | AB31: 2.5 | AC31: 2.5 | AD31: 2.5 | AE31: 2.5 | AF31: 2.5 | AG31: 2.5 | AH31: 2.5 | AI31: 2.5 | AJ31: 3.1744 | AL31: 6.98368 | AN31: 22
A32: 1 Zacht fruit | B32: Mespilus germanica | C32: Mispel | D32: Nothingham | E32: 44 | F32: 47 | G32: vrucht | H32: plant | I32: 0 | J32: 1 | K32: 0 | L32: 4 | M32: nee | N32: 0 | P32: 0 | Q32: 0 | R32: 0 | S32: 0 | T32: 0.5 | U32: 1 | V32: 2 | W32: 3 | X32: 4 | Y32: 5 | Z32: 6 | AA32: 7 | AB32: 8 | AC32: 9 | AD32: 10 | AE32: 10 | AF32: 10 | AG32: 10 | AH32: 10 | AI32: 10 | AJ32: 10 | AL32: 22 | AN32: 4
A33: 1 Zacht fruit | B33: Morus alba | C33: Witte moerbei | E33: 32 | F33: 39 | G33: vrucht | H33: plant | I33: 0 | J33: 1 | K33: 0 | L33: 5.5 | M33: nee | N33: 0 | P33: 0 | Q33: 0 | R33: 0 | S33: 0 | T33: 0 | U33: 0 | V33: 0 | W33: 10 | X33: 20 | Y33: 30 | Z33: 40 | AA33: 50 | AB33: 50 | AC33: 50 | AD33: 50 | AE33: 50 | AF33: 50 | AG33: 50 | AH33: 50 | AI33: 50 | AJ33: 13.1812 | AL33: 28.99864 | AN33: 3
A34: 1 Zacht fruit | B34: Morus nigra | C34: Zwarte moerbei | E34: 32 | F34: 39 | G34: vrucht | H34: plant | I34: 0 | J34: 1 | K34: 0 | L34: 4 | M34: nee | N34: 0 | P34: 0 | Q34: 0 | R34: 0 | S34: 0 | T34: 0 | U34: 0 | V34: 0 | W34: 10 | X34: 20 | Y34: 30 | Z34: 40 | AA34: 50 | AB34: 50 | AC34: 50 | AD34: 50 | AE34: 50 | AF34: 50 | AG34: 50 | AH34: 50 | AI34: 50 | AJ34: 13.18 | AL34: 28.996 | AN34: 4
A35: 1 Zacht fruit | B35: Prunus avium | C35: Zoete kers | E35: 24 | F35: 27 | G35: kersen | H35: plant | I35: 0 | J35: 1 | K35: 0 | L35: 24.5 | M35: nee | N35: 0 | P35: 0 | Q35: 0.7 | R35: 2.1 | S35: 4.5 | T35: 7 | U35: 8.5 | V35: 9 | W35: 9 | X35: 9 | Y35: 9 | Z35: 9 | AA35: 9 | AB35: 9 | AC35: 9 | AD35: 9 | AE35: 9 | AF35: 9 | AG35: 9 | AH35: 9 | AI35: 9 | AJ35: 9.92 | AL35: 21.824 | AN35: 0
A36: 1 Zacht fruit | B36: Prunus cerasifera | C36: Kerspruim | E36: 28 | F36: 34 | G36: vrucht | H36: plant | I36: 0 | J36: 1 | K36: 0 | L36: 12 | M36: nee | N36: 0 | P36: 0 | Q36: 0 | R36: 2.297297297 | S36: 5.743243243 | T36: 11.48648649 | U36: 13.78378378 | V36: 16.08108108 | W36: 18.37837838 | X36: 18.37837838 | Y36: 18.37837838 | Z36: 18.37837838 | AA36: 18.37837838 | AB36: 18.37837838 | AC36: 18.37837838 | AD36: 18.37837838 | AE36: 18.37837838 | AF36: 18.37837838 | AG36: 18.37837838 | AH36: 18.37837838 | AI36: 18.37837838 | AJ36: 8.4568 | AL36: =AJ36*$AL$2 -> 18.60496 | AN36: 2
A37: 1 Zacht fruit | B37: Prunus cerasus | C37: Zuurkers | E37: 31 | F37: 39 | G37: vrucht | H37: plant | I37: 0 | J37: 1 | K37: 0 | L37: 24.5 | M37: nee | N37: 0 | P37: 0 | Q37: 0 | R37: 2.297297297 | S37: 5.743243243 | T37: 11.48648649 | U37: 13.78378378 | V37: 16.08108108 | W37: 18.37837838 | X37: 18.37837838 | Y37: 18.37837838 | Z37: 18.37837838 | AA37: 18.37837838 | AB37: 18.37837838 | AC37: 18.37837838 | AD37: 18.37837838 | AE37: 18.37837838 | AF37: 18.37837838 | AG37: 18.37837838 | AH37: 18.37837838 | AI37: 18.37837838 | AJ37: 4.4392 | AL37: 9.76624 | AN37: 4
A38: 1 Zacht fruit | B38: Prunus tomentosa | C38: Struikkers | E38: 26 | F38: 34 | G38: vrucht | H38: plant | I38: 0 | J38: 1 | K38: 0 | L38: 4 | M38: nee | N38: 0 | P38: 0.05 | Q38: 0.05 | R38: 0.05 | S38: 0.05 | T38: 6 | U38: 6 | V38: 6 | W38: 6 | X38: 6 | Y38: 6 | Z38: 6 | AA38: 6 | AB38: 6 | AC38: 6 | AD38: 6 | AE38: 6 | AF38: 6 | AG38: 6 | AH38: 6 | AI38: 6 | AJ38: 5 | AL38: 11 | AN38: 0
A39: 1 Zacht fruit | B39: Rhus glabra | C39: Sumac | E39: 35 | F39: 46 | G39: bessen | H39: plant | I39: 0 | J39: 1 | K39: 0 | L39: 9 | M39: nee | N39: 0 | P39: 0 | Q39: 1 | R39: 2.75862069 | S39: 3.7470726 | T39: 3.959905952 | U39: 3.993934212 | V39: 3.999088958 | W39: 3.999863317 | X39: 3.999979497 | Y39: 5 | Z39: 5 | AA39: 5 | AB39: 5 | AC39: 5 | AD39: 5 | AE39: 5 | AF39: 5 | AG39: 5 | AH39: 5 | AI39: 5 | AJ39: 9.548 | AL39: 21.0056 | AN39: 3
A40: 1 Zacht fruit | B40: Ribes 'Josta' | C40: Jostabes | D40: Jostabes | E40: 26 | F40: 34 | G40: jostabes | H40: plant | I40: 0 | J40: 1 | K40: 0 | L40: 9 | M40: nee | N40: 18 | O40: Bessenplukker, c. 2-4x sneller dan handpluk. Extra tijd nodig voor sorteren is niet meegenomen hier. (Huw Richards) | P40: 0 | Q40: 1 | R40: 2.272727273 | S40: 2.5 | T40: 2.5 | U40: 2.5 | V40: 2.5 | W40: 2.5 | X40: 2.5 | Y40: 2.5 | Z40: 2.5 | AA40: 2.5 | AB40: 2.5 | AC40: 2.5 | AD40: 2.5 | AE40: 2.5 | AF40: 2.5 | AG40: 2.5 | AH40: 2.5 | AI40: 2.5 | AJ40: 9.548 | AL40: 21.0056 | AN40: 13
A41: 1 Zacht fruit | B41: Ribes divaricatum | C41: Worchesterbes | E41: 26 | F41: 34 | G41: worchesterbes | H41: plant | I41: 0 | J41: 1 | K41: 0 | L41: 9 | M41: nee | N41: 18 | O41: Bessenplukker, c. 2-4x sneller dan handpluk. Extra tijd nodig voor sorteren is niet meegenomen hier. (Huw Richards) | P41: 0 | Q41: 0.5 | R41: 1 | S41: 2 | T41: 2.5 | U41: 2.5 | V41: 2.5 | W41: 2.5 | X41: 2.5 | Y41: 2.5 | Z41: 2.5 | AA41: 2.5 | AB41: 2.5 | AC41: 2.5 | AD41: 2.5 | AE41: 2.5 | AF41: 2.5 | AG41: 2.5 | AH41: 2.5 | AI41: 2.5 | AJ41: 9.548 | AL41: 21.0056 | AN41: 37
A42: 1 Zacht fruit | B42: Ribes nigrum | C42: Zwarte bes | E42: 26 | F42: 30 | G42: zwarte bes | H42: plant | I42: 0 | J42: 1 | K42: 0 | L42: 9 | M42: nee | N42: 18 | O42: Bessenplukker, c. 2-4x sneller dan handpluk. Extra tijd nodig voor sorteren is niet meegenomen hier. (Huw Richards) | P42: 0 | Q42: 0.5 | R42: 1 | S42: 2 | T42: 2.5 | U42: 2.5 | V42: 2.5 | W42: 2.5 | X42: 2.5 | Y42: 2.5 | Z42: 2.5 | AA42: 2.5 | AB42: 2.5 | AC42: 2.5 | AD42: 2.5 | AE42: 2.5 | AF42: 2.5 | AG42: 2.5 | AH42: 2.5 | AI42: 2.5 | AJ42: 9.548 | AL42: 21.0056 | AN42: 50
A43: 1 Zacht fruit | B43: Ribes rubrum | C43: Aalbes | E43: 25 | F43: 29 | G43: aalbes | H43: plant | I43: 0 | J43: 1 | K43: 0 | L43: 9 | M43: nee | N43: 18 | O43: Bessenplukker, c. 2-4x sneller dan handpluk. Extra tijd nodig voor sorteren is niet meegenomen hier. (Huw Richards) | P43: 0 | Q43: 0.5 | R43: 1 | S43: 2 | T43: 2.5 | U43: 2.5 | V43: 2.5 | W43: 2.5 | X43: 2.5 | Y43: 2.5 | Z43: 2.5 | AA43: 2.5 | AB43: 2.5 | AC43: 2.5 | AD43: 2.5 | AE43: 2.5 | AF43: 2.5 | AG43: 2.5 | AH43: 2.5 | AI43: 2.5 | AJ43: 9.548 | AL43: 21.0056 | AN43: 65
A44: 1 Zacht fruit | B44: Ribes Uva-Crispa | C44: kruisbes | E44: 25 | F44: 30 | G44: bessen | H44: plant | I44: 0 | J44: 1 | K44: 0 | L44: 6 | M44: nee | N44: 12 | O44: Bessenplukker, c. 2-4x sneller dan handpluk. Extra tijd nodig voor sorteren is niet meegenomen hier. (Huw Richards) | P44: 0 | Q44: 0 | R44: 0.6 | S44: 1.5 | T44: 2.5 | U44: 3.5 | V44: 3.5 | W44: 3.5 | X44: 3.5 | Y44: 3.5 | Z44: 3.5 | AA44: 3.5 | AB44: 3.5 | AC44: 3.5 | AD44: 3.5 | AE44: 3.5 | AF44: 3.5 | AG44: 3.5 | AH44: 3.5 | AI44: 3.5 | AJ44: 9.548 | AL44: 21.0056 | AN44: 27
A45: 1 Zacht fruit | B45: Ribes x. nidigrolaria | C45: Jostabes | E45: 26 | F45: 34 | G45: jostabes | H45: plant | I45: 0 | J45: 1 | K45: 0 | L45: 9 | M45: nee | N45: 18 | O45: Bessenplukker, c. 2-4x sneller dan handpluk. Extra tijd nodig voor sorteren is niet meegenomen hier. (Huw Richards) | P45: 0 | Q45: 1 | R45: 2.272727273 | S45: 2.5 | T45: 2.5 | U45: 2.5 | V45: 2.5 | W45: 2.5 | X45: 2.5 | Y45: 2.5 | Z45: 2.5 | AA45: 2.5 | AB45: 2.5 | AC45: 2.5 | AD45: 2.5 | AE45: 2.5 | AF45: 2.5 | AG45: 2.5 | AH45: 2.5 | AI45: 2.5 | AJ45: 15.5 | AL45: 34.1 | AN45: 0
A46: 1 Zacht fruit | B46: Rubus fruticosus | C46: Braam | E46: 26 | F46: 43 | G46: vrucht | H46: plant | I46: 0 | J46: 1 | K46: 0 | L46: 4.25 | M46: nee | N46: 8 | O46: Bessenplukker, c. 2-4x sneller dan handpluk. Extra tijd nodig voor sorteren is niet meegenomen hier. (Huw Richards) | P46: 0 | Q46: 0.5 | R46: 3 | S46: 5 | T46: 5 | U46: 5 | V46: 5 | W46: 5 | X46: 5 | Y46: 5 | Z46: 5 | AA46: 5 | AB46: 5 | AC46: 5 | AD46: 5 | AE46: 5 | AF46: 5 | AG46: 5 | AH46: 5 | AI46: 5 | AJ46: 9.92 | AL46: 21.824 | AN46: 10
A47: 1 Zacht fruit | B47: Rubus hibrids | C47: Tayberry, braamboos | D47: Lochness | E47: 26 | F47: 43 | G47: vrucht | H47: plant | I47: 0 | J47: 1 | K47: 0 | L47: 3.5 | M47: nee | N47: 8 | O47: Bessenplukker, c. 2-4x sneller dan handpluk. Extra tijd nodig voor sorteren is niet meegenomen hier. (Huw Richards) | P47: 0 | Q47: 0.4 | R47: 1 | S47: 1.2 | T47: 1.2 | U47: 1.2 | V47: 1.2 | W47: 1.2 | X47: 1.2 | Y47: 1.2 | Z47: 1.2 | AA47: 1.2 | AB47: 1.2 | AC47: 1.2 | AD47: 1.2 | AE47: 1.2 | AF47: 1.2 | AG47: 1.2 | AH47: 1.2 | AI47: 1.2 | AJ47: 9.92 | AL47: 21.824 | AN47: 5
A48: 1 Zacht fruit | B48: Rubus idaeus | C48: framboos | D48: Autumn bliss | E48: 25 | F48: 41 | G48: framboos | H48: plant | I48: 0 | J48: 1 | K48: 0 | L48: 4.25 | M48: nee | N48: 8 | O48: Bessenplukker, c. 2-4x sneller dan handpluk. Extra tijd nodig voor sorteren is niet meegenomen hier. (Huw Richards) | P48: 0 | Q48: 0.4 | R48: 1 | S48: 1.2 | T48: 1.2 | U48: 1.2 | V48: 1.2 | W48: 1.2 | X48: 1.2 | Y48: 1.2 | Z48: 1.2 | AA48: 1.2 | AB48: 1.2 | AC48: 1.2 | AD48: 1.2 | AE48: 1.2 | AF48: 1.2 | AG48: 1.2 | AH48: 1.2 | AI48: 1.2 | AJ48: 9.92 | AL48: 21.824 | AN48: 41
A49: 1 Zacht fruit | B49: Rubus loganobaccus | C49: Logan bes | E49: 26 | F49: 43 | G49: vrucht | H49: plant | I49: 0 | J49: 1 | K49: 0 | L49: 4 | M49: nee | N49: 8 | O49: Bessenplukker, c. 2-4x sneller dan handpluk. Extra tijd nodig voor sorteren is niet meegenomen hier. (Huw Richards) | P49: 0 | Q49: 1 | R49: 2.75862069 | S49: 3.7470726 | T49: 3.959905952 | U49: 3.993934212 | V49: 3.999088958 | W49: 3.999863317 | X49: 3.999979497 | Y49: 3.999996925 | Z49: 3.999996925 | AA49: 3.999996925 | AB49: 3.999996925 | AC49: 3.999996925 | AD49: 3.999996925 | AE49: 3.999996925 | AF49: 3.999996925 | AG49: 3.999996925 | AH49: 3.999996925 | AI49: 3.999996925 | AJ49: 9.92 | AL49: 21.824 | AN49: 1
A50: 1 Zacht fruit | B50: Rubus phoenicolasius | C50: Japanse wijnbes | E50: 31 | F50: 34 | G50: vrucht | H50: plant | I50: 0 | J50: 1 | K50: 0 | L50: 4 | M50: nee | N50: 8 | O50: Bessenplukker, c. 2-4x sneller dan handpluk. Extra tijd nodig voor sorteren is niet meegenomen hier. (Huw Richards) | P50: 0 | Q50: 0.5 | R50: 1 | S50: 2 | T50: 2.5 | U50: 2.5 | V50: 2.5 | W50: 2.5 | X50: 2.5 | Y50: 2.5 | Z50: 2.5 | AA50: 2.5 | AB50: 2.5 | AC50: 2.5 | AD50: 2.5 | AE50: 2.5 | AF50: 2.5 | AG50: 2.5 | AH50: 2.5 | AI50: 2.5 | AJ50: 9.92 | AL50: 21.824 | AN50: 1
A51: 1 Zacht fruit | B51: Sorbus aucuparia | C51: Lijserterbes | E51: 31 | F51: 37 | G51: bessen | H51: plant | I51: 0 | J51: 1 | K51: 0 | L51: 9 | M51: nee | N51: 0 | P51: 0 | Q51: 0 | R51: 0 | S51: 0 | T51: 0 | U51: 0 | V51: 0 | W51: 0 | X51: 0 | Y51: 0 | Z51: 2 | AA51: 5 | AB51: 8 | AC51: 11 | AD51: 15 | AE51: 15 | AF51: 15 | AG51: 15 | AH51: 15 | AI51: 15 | AJ51: 3.72 | AL51: 8.184 | AN51: 0
A52: 1 Zacht fruit | B52: Sorbus domestica | C52: Peerlijserbes | E52: 35 | F52: 43 | G52: bessen | H52: plant | I52: 0 | J52: 1 | K52: 0 | L52: 9 | M52: nee | N52: 0 | P52: 0 | Q52: 2 | R52: 5.405405405 | S52: 11.04972376 | T52: 16.09010459 | U52: 18.64106627 | V52: 19.57196121 | W52: 19.86963532 | X52: 19.96071133 | Y52: 19.98819717 | Z52: 19.98819717 | AA52: 19.98819717 | AB52: 19.98819717 | AC52: 19.98819717 | AD52: 19.98819717 | AE52: 19.98819717 | AF52: 19.98819717 | AG52: 19.98819717 | AH52: 19.98819717 | AI52: 19.98819717 | AJ52: 3.72 | AL52: 8.184 | AN52: 7
A53: 1 Zacht fruit | B53: Sorbus torminalis | C53: Elsbes | E53: 35 | F53: 43 | G53: bessen | H53: plant | I53: 0 | J53: 1 | K53: 0 | L53: 4 | M53: nee | N53: 0 | P53: 0 | Q53: 0 | R53: 0 | S53: 0 | T53: 0.1 | U53: 0.2 | V53: 0.25 | W53: 0.3 | X53: 0.4 | Y53: 0.5 | Z53: 0.6 | AA53: 0.7 | AB53: 0.8 | AC53: 0.9 | AD53: 1 | AE53: 1 | AF53: 1 | AG53: 1 | AH53: 1 | AI53: 1 | AJ53: 22.32 | AL53: 49.104 | AN53: 0
A54: 1 Zacht fruit | B54: Ugni Molinae | C54: Chileense guave | E54: 31 | F54: 43 | G54: vrucht | H54: plant | I54: 0 | J54: 1 | K54: 0 | L54: 0 | M54: nee | N54: 0 | P54: 0 | Q54: 0.5 | R54: 1 | S54: 1.5 | T54: 2 | U54: 2 | V54: 2 | W54: 2 | X54: 2 | Y54: 2 | Z54: 2 | AA54: 2 | AB54: 2 | AC54: 2 | AD54: 2 | AE54: 2 | AF54: 2 | AG54: 2 | AH54: 2 | AI54: 2 | AJ54: 9.92 | AL54: 21.824 | AN54: 0
A55: 1 Zacht fruit | B55: Vaccinium Corymbosum | C55: Blauwe bes | E55: 31 | F55: 33 | G55: bessen | H55: plant | I55: 0 | J55: 1 | K55: 0 | L55: 6 | M55: nee | N55: 12 | O55: Bessenplukker, c. 2-4x sneller dan handpluk. Extra tijd nodig voor sorteren is niet meegenomen hier. (Huw Richards) | P55: 0 | Q55: 0.5 | R55: 1 | S55: 1.5 | T55: 2.2 | U55: 2.5 | V55: 3 | W55: 3.5 | X55: 4 | Y55: 4.5 | Z55: 4.5 | AA55: 4.5 | AB55: 4.5 | AC55: 4.5 | AD55: 4.5 | AE55: 4.5 | AF55: 4.5 | AG55: 4.5 | AH55: 4.5 | AI55: 4.5 | AJ55: 9.548 | AL55: 21.0056 | AN55: 0
A56: 1 Zacht fruit | B56: Vaccinium Macrocarpon | C56: Cranberry | E56: 35 | F56: 47 | G56: vrucht | H56: m2 | I56: 0 | J56: 1 | K56: 0 | L56: 35 | M56: nee | N56: 0 | P56: 0 | Q56: 0 | R56: 0 | S56: 0 | T56: 0 | U56: 1 | V56: 1.25 | W56: 1.25 | X56: 1.25 | Y56: 1.25 | Z56: 1.25 | AA56: 1.25 | AB56: 1.25 | AC56: 1.25 | AD56: 1.25 | AE56: 1.25 | AF56: 1.25 | AG56: 1.25 | AH56: 1.25 | AI56: 1.25 | AJ56: 9.55 | AL56: 21.01 | AN56: 0
A57: 1 Zacht fruit | B57: Viburnum Lentago | C57: Schapenbes | E57: 35 | F57: 42 | G57: vrucht | H57: plant | I57: 0 | J57: 1 | K57: 0 | L57: 4 | M57: nee | N57: 0 | P57: 0 | Q57: 0 | R57: 0.5 | S57: 1 | T57: 2 | U57: 3 | V57: 4 | W57: 5 | X57: 5 | Y57: 5 | Z57: 5 | AA57: 5 | AB57: 5 | AC57: 5 | AD57: 5 | AE57: 5 | AF57: 5 | AG57: 5 | AH57: 5 | AI57: 5 | AJ57: 3.3 | AL57: 7.26 | AN57: 1
A58: 1 Zacht fruit | B58: Viburnum setigerum | C58: Sneeuwbal | E58: ? | F58: ? | G58: blad en bes | H58: plant | I58: 0 | J58: 1 | K58: 0 | L58: 4 | M58: nee | N58: 0 | P58: 0 | Q58: 1 | R58: 3 | S58: 5 | T58: 7 | U58: 9 | V58: 11 | W58: 11 | X58: 11 | Y58: 11 | Z58: 11 | AA58: 11 | AB58: 11 | AC58: 11 | AD58: 11 | AE58: 11 | AF58: 11 | AG58: 11 | AH58: 11 | AI58: 11 | AJ58: 3.2984 | AL58: 7.25648 | AN58: 0
A59: 1 Zacht fruit | B59: Vitis vinifera | C59: Druif | E59: 35 | F59: 43 | G59: druif | H59: m2 | I59: 0 | J59: 1 | K59: 0 | L59: 4 | M59: nee | N59: 0 | P59: 0 | Q59: 1 | R59: 3 | S59: 5 | T59: 7 | U59: 9 | V59: 11 | W59: 11 | X59: 11 | Y59: 11 | Z59: 11 | AA59: 11 | AB59: 11 | AC59: 11 | AD59: 11 | AE59: 11 | AF59: 11 | AG59: 11 | AH59: 11 | AI59: 11 | AJ59: 4 | AL59: 8.8 | AN59: 23
A60: 1 Zacht fruit | B60: Ziziphus jujube | C60: Chinese dadelboom | E60: 40 | F60: 43 | G60: dadel | H60: plant | I60: 0 | J60: 1 | K60: 0 | L60: 4 | M60: nee | N60: 0 | P60: 0 | Q60: 0 | R60: 0 | S60: 2 | T60: 4 | U60: 6 | V60: 8 | W60: 10 | X60: 12 | Y60: 15 | Z60: 20 | AA60: 25 | AB60: 30 | AC60: 35 | AD60: 40 | AE60: 45 | AF60: 45 | AG60: 45 | AH60: 45 | AI60: 45 | AJ60: 6.2 | AL60: 13.64 | AN60: 0
A61: 2 Hard fruit | B61: Celtis australis | C61: Europese netelboom | E61: 40 | F61: 43 | G61: vrucht | H61: plant | I61: 0 | J61: 1 | K61: 0 | L61: 4 | M61: nee | N61: 0 | P61: 0 | Q61: 0 | R61: 0 | S61: 0 | T61: 0 | U61: 0 | V61: 0 | W61: 0 | X61: 0 | Y61: 0 | Z61: 0 | AA61: 0 | AB61: 0 | AC61: 0 | AD61: 0 | AE61: 0 | AF61: 0 | AG61: 0 | AH61: 0 | AI61: 0 | AJ61: 0 | AL61: 0 | AN61: 0
A62: 2 Hard fruit | B62: Chaenomeles cathayensis | C62: Chinese kwee | E62: 38 | F62: 41 | G62: kwee vrucht | H62: plant | I62: 0 | J62: 1 | K62: 0 | L62: 116.25 | M62: nee | N62: 0 | P62: 0 | Q62: 0 | R62: 0 | S62: 0 | T62: 1 | U62: 2 | V62: 3 | W62: 4 | X62: 5 | Y62: 6 | Z62: 6 | AA62: 6 | AB62: 6 | AC62: 6 | AD62: 6 | AE62: 6 | AF62: 6 | AG62: 6 | AH62: 6 | AI62: 6 | AJ62: 2.3808 | AL62: 5.23776 | AN62: 25
A63: 2 Hard fruit | B63: Chaenomeles speciosa | C63: Japanse kwee | D63: japonica 60 | E63: 34 | F63: 41 | G63: kwee vrucht | H63: plant | I63: 0 | J63: 1 | K63: 0 | L63: 116.25 | M63: nee | N63: 0 | P63: 0 | Q63: 0 | R63: 0 | S63: 0 | T63: 0.5 | U63: 1 | V63: 2 | W63: 2.5 | X63: 3 | Y63: 3 | Z63: 3 | AA63: 3 | AB63: 3 | AC63: 3 | AD63: 3 | AE63: 3 | AF63: 3 | AG63: 3 | AH63: 3 | AI63: 3 | AJ63: 2.3808 | AL63: 5.23776 | AN63: 35
A64: 2 Hard fruit | B64: Chaenomeles spp. | C64: Kwee | E64: 34 | F64: 41 | G64: kwee vrucht | H64: plant | I64: 0 | J64: 1 | K64: 0 | L64: 116.25 | M64: nee | N64: 0 | P64: 0 | Q64: 0 | R64: 0 | S64: 0 | T64: 0.5 | U64: 1 | V64: 2 | W64: 2.5 | X64: 3 | Y64: 3 | Z64: 3 | AA64: 3 | AB64: 3 | AC64: 3 | AD64: 3 | AE64: 3 | AF64: 3 | AG64: 3 | AH64: 3 | AI64: 3 | AJ64: 2.3808 | AL64: 5.23776 | AN64: 0
A65: 2 Hard fruit | B65: Crataegus persimilis | C65: Grootvruchtmeidoorn | E65: 35 | F65: 43 | G65: meidoornvrucht | H65: plant | I65: 0 | J65: 1 | K65: 0 | L65: 16 | M65: nee | N65: 0 | P65: 0 | Q65: 2 | R65: 5.405405405 | S65: 11.04972376 | T65: 16.09010459 | U65: 18.64106627 | V65: 19.57196121 | W65: 21 | X65: 23 | Y65: 25 | Z65: 25 | AA65: 25 | AB65: 25 | AC65: 25 | AD65: 25 | AE65: 25 | AF65: 25 | AG65: 25 | AH65: 25 | AI65: 25 | AJ65: 4.96 | AL65: 10.912 | AN65: 1
A66: 2 Hard fruit | B66: Crataegus pinnatifida | C66: Grootvruchtmeidoorn | D66: Major | E66: 35 | F66: 43 | G66: meidoornvrucht | H66: plant | I66: 0 | J66: 1 | K66: 0 | L66: 116.25 | M66: nee | N66: 0 | P66: 0 | Q66: 0 | R66: 0 | S66: 3 | T66: 5 | U66: 12 | V66: 18 | W66: 21 | X66: 23 | Y66: 25 | Z66: 25 | AA66: 25 | AB66: 25 | AC66: 25 | AD66: 25 | AE66: 25 | AF66: 25 | AG66: 25 | AH66: 25 | AI66: 25 | AJ66: 2.3808 | AL66: 5.23776 | AN66: 4
A67: 2 Hard fruit | B67: Cydonia oblonga (sept) | C67: Kweepeer (sept) | D67: Ludovich | E67: 36 | F67: 39 | G67: kweepeer | H67: plant | I67: 0 | J67: 1 | K67: 0 | L67: 123 | M67: nee | N67: 0 | P67: 0 | Q67: 0 | R67: 0 | S67: 3 | T67: 5 | U67: 12 | V67: 18 | W67: 18 | X67: 18 | Y67: 18 | Z67: 18 | AA67: 18 | AB67: 18 | AC67: 18 | AD67: 18 | AE67: 18 | AF67: 18 | AG67: 18 | AH67: 18 | AI67: 18 | AJ67: 10.1308 | AL67: 22.28776 | AN67: 10
A68: 2 Hard fruit | B68: Diospyros virginiana | C68: Persimoen, Kaki | E68: 42 | F68: 45 | G68: vrucht | H68: plant | I68: 0 | J68: 1 | K68: 0 | L68: 122.5 | M68: nee | N68: 0 | P68: 0 | Q68: 0 | R68: 0 | S68: 9 | T68: 12 | U68: 15 | V68: 18 | W68: 21 | X68: 25 | Y68: 30 | Z68: 30 | AA68: 30 | AB68: 30 | AC68: 30 | AD68: 30 | AE68: 30 | AF68: 30 | AG68: 30 | AH68: 30 | AI68: 30 | AJ68: 10.5648 | AL68: =AJ68*$AL$2 -> 23.24256 | AN68: 0
A69: 2 Hard fruit | B69: Diospyrus kaki | C69: Persimoen, Kaki | E69: 42 | F69: 45 | G69: vrucht | H69: plant | I69: 0 | J69: 1 | K69: 0 | L69: 122.5 | M69: nee | N69: 0 | P69: 0 | Q69: 0 | R69: 0 | S69: 9 | T69: 12 | U69: 15 | V69: 18 | W69: 21 | X69: 25 | Y69: 30 | Z69: 30 | AA69: 30 | AB69: 30 | AC69: 30 | AD69: 30 | AE69: 30 | AF69: 30 | AG69: 30 | AH69: 30 | AI69: 30 | AJ69: 10.5648 | AL69: 23.24256 | AN69: 5
A70: 2 Hard fruit | B70: Diospyrus virginia | C70: Persimoen, Kaki | E70: 42 | F70: 45 | G70: vrucht | H70: plant | I70: 0 | J70: 1 | K70: 0 | L70: 123 | M70: nee | N70: 0 | P70: 0 | Q70: 0 | R70: 0 | S70: 9 | T70: 12 | U70: 15 | V70: 18 | W70: 21 | X70: 25 | Y70: 30 | Z70: 30 | AA70: 30 | AB70: 30 | AC70: 30 | AD70: 30 | AE70: 30 | AF70: 30 | AG70: 30 | AH70: 30 | AI70: 30 | AJ70: 10.56 | AL70: 23.232 | AN70: 0
A71: 2 Hard fruit | B71: Hovenia Dulcis | C71: Japanse krentenboom | E71: 35 | F71: 43 | G71: vrucht | H71: plant | I71: 0 | J71: 1 | K71: 0 | L71: 4 | M71: nee | N71: 0 | P71: 0 | Q71: 0 | R71: 0 | S71: 2 | T71: 1 | U71: 6 | V71: 11 | W71: 17 | X71: 22 | Y71: 22 | Z71: 22 | AA71: 22 | AB71: 22 | AC71: 22 | AD71: 22 | AE71: 22 | AF71: 22 | AG71: 22 | AH71: 22 | AI71: 22 | AJ71: 15.5 | AL71: 34.1 | AN71: 0
A72: 2 Hard fruit | B72: Malus domestica (Bewaar) | C72: Appel | E72: 29 | F72: 45 | G72: appel | H72: plant | I72: 0 | J72: 1 | K72: 0 | L72: 122.5 | M72: nee | N72: 0 | P72: 0 | Q72: 0 | R72: 0 | S72: 0.5 | T72: 4.9 | U72: 5.9 | V72: 13.8 | W72: 18.2 | X72: 22.6 | Y72: 50 | Z72: 55 | AA72: 60 | AB72: 65 | AC72: 70 | AD72: 75 | AE72: 80 | AF72: 90 | AG72: 100 | AH72: 110 | AI72: 120 | AJ72: 3.1744 | AL72: 6.98368 | AN72: 11
A73: 2 Hard fruit | B73: Malus domestica (Hand) | C73: Appel | E73: 29 | F73: 45 | G73: appel | H73: plant | I73: 0 | J73: 1 | K73: 0 | L73: 122.5 | M73: nee | N73: 0 | P73: 0 | Q73: 0 | R73: 0 | S73: 0.5 | T73: 4.916666667 | U73: 9.333333333 | V73: 13.75 | W73: 18.16666667 | X73: 22.58333333 | Y73: 50 | Z73: 55 | AA73: 60 | AB73: 65 | AC73: 70 | AD73: 75 | AE73: 80 | AF73: 90 | AG73: 100 | AH73: 110 | AI73: 120 | AJ73: 3.1744 | AL73: 6.98368 | AN73: 2
A74: 2 Hard fruit | B74: Malus domestica (Midden) | C74: Appel (midden) | E74: 29 | F74: 45 | G74: appel | H74: plant | I74: 0 | J74: 1 | K74: 0 | L74: 122.5 | M74: nee | N74: 0 | P74: 0 | Q74: 0 | R74: 0 | S74: 0.5 | T74: 4.916666667 | U74: 9.333333333 | V74: 13.75 | W74: 18.16666667 | X74: 22.58333333 | Y74: 50 | Z74: 55 | AA74: 60 | AB74: 65 | AC74: 70 | AD74: 75 | AE74: 80 | AF74: 90 | AG74: 100 | AH74: 110 | AI74: 120 | AJ74: 3.1744 | AL74: 6.98368 | AN74: 1
A75: 2 Hard fruit | B75: Malus domestica (Vroeg) | C75: Appel (vroeg) | E75: 29 | F75: 45 | G75: appel | H75: plant | I75: 0 | J75: 1 | K75: 0 | L75: 122.5 | M75: nee | N75: 0 | P75: 0 | Q75: 0 | R75: 0 | S75: 0.5 | T75: 4.916666667 | U75: 9.333333333 | V75: 13.75 | W75: 18.16666667 | X75: 22.58333333 | Y75: 50 | Z75: 55 | AA75: 60 | AB75: 65 | AC75: 70 | AD75: 75 | AE75: 80 | AF75: 90 | AG75: 100 | AH75: 110 | AI75: 120 | AJ75: 3.1744 | AL75: 6.98368 | AN75: 0
A76: 2 Hard fruit | B76: Malus domestica cider | E76: 29 | F76: 45 | G76: appel | H76: plant | I76: 0 | J76: 1 | K76: 0 | L76: 122.5 | M76: nee | N76: 0 | P76: 0 | Q76: 0 | R76: 0 | S76: 0.5 | T76: 4.916666667 | U76: 9.333333333 | V76: 13.75 | W76: 18.16666667 | X76: 22.58333333 | Y76: 50 | Z76: 55 | AA76: 60 | AB76: 65 | AC76: 70 | AD76: 75 | AE76: 80 | AF76: 90 | AG76: 100 | AH76: 110 | AI76: 120 | AJ76: 3.1744 | AL76: 6.98368 | AN76: 0
A77: 2 Hard fruit | B77: Malus pumila | C77: Appel | E77: ? | F77: ? | G77: appel | H77: plant | I77: 0 | J77: 1 | K77: 0 | L77: 123 | M77: nee | N77: 0 | P77: 0 | Q77: 0 | R77: 0 | S77: 0.5 | T77: 4.916666667 | U77: 9.333333333 | V77: 13.75 | W77: 18.16666667 | X77: 22.58333333 | Y77: 50 | Z77: 55 | AA77: 60 | AB77: 65 | AC77: 70 | AD77: 75 | AE77: 80 | AF77: 90 | AG77: 100 | AH77: 110 | AI77: 120 | AJ77: 3.17 | AL77: 6.974 | AN77: 0
A78: 2 Hard fruit | B78: Myrica gale | C78: Wilde gagel | E78: 35 | F78: 43 | G78: vrucht | H78: plant | I78: 0 | J78: 1 | K78: 0 | L78: 4 | M78: nee | N78: 0 | P78: 0 | Q78: 0 | R78: 0 | S78: 0 | T78: 0 | U78: 0 | V78: 0 | W78: 0 | X78: 0 | Y78: 0 | Z78: 0 | AA78: 0 | AB78: 0 | AC78: 0 | AD78: 0 | AE78: 0 | AF78: 0 | AG78: 0 | AH78: 0 | AI78: 0 | AJ78: 37.2 | AL78: 81.84 | AN78: 0
A79: 2 Hard fruit | B79: Myrica pensylvanica | C79: Wasgagel | E79: 35 | F79: 43 | G79: vrucht | H79: plant | I79: 0 | J79: 1 | K79: 0 | L79: 4 | M79: nee | N79: 0 | P79: 0.05 | Q79: 0.05 | R79: 0.05 | S79: 0.05 | T79: 0.05 | U79: 0.05 | V79: 0.05 | W79: 0.05 | X79: 0.05 | Y79: 0.05 | Z79: 0.05 | AA79: 0.05 | AB79: 0.05 | AC79: 0.05 | AD79: 0.05 | AE79: 0.05 | AF79: 0.05 | AG79: 0.05 | AH79: 0.05 | AI79: 0.05 | AJ79: 37.2 | AL79: 81.84 | AN79: 0
A80: 2 Hard fruit | B80: Poncirus trifoliata | C80: Wilde citroen | E80: 40 | F80: 43 | G80: vrucht | H80: plant | I80: 0 | J80: 1 | K80: 0 | L80: 26 | M80: nee | N80: 0 | P80: 0 | Q80: 0 | R80: 0 | S80: 2 | T80: 4 | U80: 6 | V80: 8 | W80: 10 | X80: 10 | Y80: 10 | Z80: 10 | AA80: 10 | AB80: 10 | AC80: 10 | AD80: 10 | AE80: 10 | AF80: 10 | AG80: 10 | AH80: 10 | AI80: 10 | AJ80: 0 | AL80: 0 | AN80: 0
A81: 2 Hard fruit | B81: Prunus armeniaca | C81: Abrikoos | D81: Goldcot | E81: 28 | F81: 32 | G81: abrikoos | H81: plant | I81: 0 | J81: 1 | K81: 0 | L81: 52 | M81: nee | N81: 0 | P81: 0 | Q81: 0 | R81: 0 | S81: 0 | T81: 0 | U81: 3 | V81: 10 | W81: 17 | X81: 25 | Y81: 25 | Z81: 25 | AA81: 25 | AB81: 25 | AC81: 25 | AD81: 25 | AE81: 25 | AF81: 25 | AG81: 25 | AH81: 25 | AI81: 25 | AJ81: 8.4568 | AL81: 18.60496 | AN81: 6
A82: 2 Hard fruit | B82: Prunus domestica | C82: Pruim | D82: Opal | E82: 30 | F82: 33 | G82: pruim | H82: plant | I82: 0 | J82: 1 | K82: 0 | L82: 26 | M82: nee | N82: 0 | P82: 0 | Q82: 0 | R82: 2.5 | S82: 2.5 | T82: 5 | U82: 7 | V82: 10 | W82: 15 | X82: 23 | Y82: 23 | Z82: 23 | AA82: 23 | AB82: 23 | AC82: 23 | AD82: 23 | AE82: 23 | AF82: 23 | AG82: 23 | AH82: 23 | AI82: 23 | AJ82: 10.788 | AL82: 23.7336 | AN82: 13
A83: 2 Hard fruit | B83: Prunus insititia | C83: Mirabel | E83: 26 | F83: 43 | G83: mirabel | H83: plant | I83: 0 | J83: 1 | K83: 0 | L83: 26 | M83: nee | N83: 0 | P83: 0 | Q83: 0 | R83: 2 | S83: 8 | T83: 15 | U83: 25 | V83: 25 | W83: 25 | X83: 25 | Y83: 25 | Z83: 25 | AA83: 25 | AB83: 25 | AC83: 25 | AD83: 25 | AE83: 25 | AF83: 25 | AG83: 25 | AH83: 25 | AI83: 25 | AJ83: 4.9476 | AL83: 10.88472 | AN83: 4
A84: 2 Hard fruit | B84: Prunus persica | C84: Perzik | E84: 31 | F84: 39 | G84: vrucht | H84: plant | I84: 0 | J84: 1 | K84: 0 | L84: 105 | M84: nee | N84: 0 | P84: 0 | Q84: 0 | R84: 2 | S84: 8 | T84: 15 | U84: 25 | V84: 25 | W84: 25 | X84: 25 | Y84: 25 | Z84: 25 | AA84: 25 | AB84: 25 | AC84: 25 | AD84: 25 | AE84: 25 | AF84: 25 | AG84: 25 | AH84: 25 | AI84: 25 | AJ84: 4.9476 | AL84: 10.88472 | AN84: 6
A85: 2 Hard fruit | B85: Prunus persica nusipersica | C85: Nectarine | E85: 26 | F85: 33 | G85: vrucht | H85: plant | I85: 0 | J85: 1 | K85: 0 | L85: 105 | M85: nee | N85: 0 | P85: 0 | Q85: 0 | R85: 2 | S85: 8 | T85: 12 | U85: 17.5 | V85: 17.5 | W85: 17.5 | X85: 17.5 | Y85: 17.5 | Z85: 17.5 | AA85: 17.5 | AB85: 17.5 | AC85: 17.5 | AD85: 17.5 | AE85: 17.5 | AF85: 17.5 | AG85: 17.5 | AH85: 17.5 | AI85: 17.5 | AJ85: 8.6552 | AL85: 19.04144 | AN85: 0
A86: 2 Hard fruit | B86: Prunus salicina | C86: Perzik | E86: 26 | F86: 39 | G86: vrucht | H86: plant | I86: 0 | J86: 1 | K86: 0 | L86: 38.25 | M86: nee | N86: 0 | P86: 0 | Q86: 0 | R86: 2.5 | S86: 2.5 | T86: 5 | U86: 7 | V86: 10 | W86: 15 | X86: 23 | Y86: 23 | Z86: 23 | AA86: 23 | AB86: 23 | AC86: 23 | AD86: 23 | AE86: 23 | AF86: 23 | AG86: 23 | AH86: 23 | AI86: 23 | AJ86: 8.6552 | AL86: 19.04144 | AN86: 0
A87: 2 Hard fruit | B87: Prunus salicina x Prunus armeniaca | C87: Pruimabrikoos | D87: Pluot | E87: 31 | F87: 32 | G87: pruimabrikoos | H87: plant | I87: 0 | J87: 1 | K87: 0 | L87: 12 | M87: nee | N87: 0 | P87: 0 | Q87: 1 | R87: 2.4 | S87: 4.137931034 | T87: 5.286343612 | U87: 5.766458433 | V87: 5.927975103 | W87: 5.978209427 | X87: 5.993446167 | Y87: 5.998032345 | Z87: 5.999831711 | AA87: 5.999831711 | AB87: 5.999831711 | AC87: 5.999831711 | AD87: 5.999831711 | AE87: 5.999831711 | AF87: 5.999831711 | AG87: 5.999831711 | AH87: 5.999831711 | AI87: 5.999831711 | AJ87: 8.4568 | AL87: 18.60496 | AN87: 3
A88: 2 Hard fruit | B88: Punica granatum | C88: Granaatappel | E88: ? | F88: ? | G88: vrucht | H88: plant | I88: 0 | J88: 1 | K88: 0 | L88: 110 | M88: nee | N88: 0 | P88: 0 | Q88: 0 | R88: 0 | S88: 2.5 | T88: 5 | U88: 7.5 | V88: 10 | W88: 12.5 | X88: 15 | Y88: 20 | Z88: 25 | AA88: 30 | AB88: 35 | AC88: 37.5 | AD88: 40 | AE88: 40 | AF88: 40 | AG88: 40 | AH88: 40 | AI88: 40 | AJ88: 3.72 | AL88: 8.184 | AN88: 0
A89: 2 Hard fruit | B89: Pyrus bretschneideri | C89: Chinapeer | E89: 35 | F89: 43 | G89: vrucht | H89: plant | I89: 0 | J89: 1 | K89: 0 | L89: 110 | M89: nee | N89: 0 | P89: 0 | Q89: 2 | R89: 5 | S89: 11 | T89: 13 | U89: 15 | V89: 20 | W89: 20 | X89: 20 | Y89: 20 | Z89: 20 | AA89: 20 | AB89: 20 | AC89: 20 | AD89: 20 | AE89: 20 | AF89: 20 | AG89: 20 | AH89: 20 | AI89: 20 | AJ89: 2.3808 | AL89: 5.23776 | AN89: 0
A90: 2 Hard fruit | B90: Pyrus communis | C90: Peer | D90: Conference | E90: 34 | F90: 43 | G90: peer | H90: plant | I90: 0 | J90: 1 | K90: 0 | L90: 110 | M90: nee | N90: 0 | P90: 0 | Q90: 2 | R90: 5 | S90: 11 | T90: 13 | U90: 15 | V90: 20 | W90: 20 | X90: 20 | Y90: 20 | Z90: 20 | AA90: 20 | AB90: 20 | AC90: 20 | AD90: 20 | AE90: 20 | AF90: 20 | AG90: 20 | AH90: 20 | AI90: 20 | AJ90: 3.72 | AL90: 8.184 | AN90: 6
A91: 2 Hard fruit | B91: Pyrus pyrifolia | C91: Nashi peer | D91: Nijsseiki 50 | E91: 33 | F91: 42 | G91: nashipeer | H91: plant | I91: 0 | J91: 1 | K91: 0 | L91: 110 | M91: nee | N91: 0 | P91: 0 | Q91: 2 | R91: 5 | S91: 11 | T91: 13 | U91: 15 | V91: 20 | W91: 20 | X91: 20 | Y91: 20 | Z91: 20 | AA91: 20 | AB91: 20 | AC91: 20 | AD91: 20 | AE91: 20 | AF91: 20 | AG91: 20 | AH91: 20 | AI91: 20 | AJ91: 0 | AL91: 0 | AN91: 12
A92: 2 Hard fruit | B92: Rosa rugosa | C92: Rimpelroos | E92: 35 | F92: 43 | G92: vrucht | H92: plant | I92: 0 | J92: 1 | K92: 0 | L92: 4 | M92: nee | N92: 0 | P92: 0.05 | Q92: 0.05 | R92: 5 | S92: 10 | T92: 15 | U92: 25 | V92: 25 | W92: 25 | X92: 25 | Y92: 25 | Z92: 25 | AA92: 25 | AB92: 25 | AC92: 25 | AD92: 25 | AE92: 25 | AF92: 25 | AG92: 25 | AH92: 25 | AI92: 25 | AJ92: 15 | AL92: 33 | AN92: 11
A93: 3 Noten | B93: Araucaria araucana | C93: Slangenden | E93: 37 | F93: 41 | G93: zaden | H93: plant | I93: 0 | J93: 1 | K93: 0 | L93: 4 | M93: nee | N93: 0 | P93: 0 | Q93: 0 | R93: 0 | S93: 0 | T93: 0 | U93: 0 | V93: 0 | W93: 0 | X93: 0 | Y93: 0 | Z93: 0 | AA93: 0 | AB93: 0 | AC93: 0 | AD93: 0 | AE93: 0 | AF93: 0 | AG93: 0 | AH93: 0 | AI93: 0 | AJ93: 9.54459 | AL93: 20.998098 | AN93: 0
A94: 3 Noten | B94: Carya illinoiensis | C94: Pecanoot | E94: 40 | F94: 43 | G94: noot | H94: plant | I94: 0 | J94: 1 | K94: 0 | L94: 4 | M94: nee | N94: 25 | O94: nut wizard, c. 200kg/dag/persoon (University Missouri | P94: 0 | Q94: 0 | R94: 0 | S94: 0 | T94: 1 | U94: 2 | V94: 4 | W94: 6 | X94: 8 | Y94: 10 | Z94: 10.5 | AA94: 11 | AB94: 11.5 | AC94: 12 | AD94: 12.5 | AE94: 13 | AF94: 13.5 | AG94: 14 | AH94: 14.5 | AI94: 15 | AJ94: 4.96 | AL94: 10.912 | AN94: 1
A95: 3 Noten | B95: Carya spp | C95: Hickorynoot | E95: 40 | F95: 43 | G95: noot | H95: plant | I95: 0 | J95: 1 | K95: 0 | L95: 4 | M95: nee | N95: 25 | O95: nut wizard, c. 200kg/dag/persoon (University Missouri | P95: 0 | Q95: 0 | R95: 0 | S95: 0 | T95: 1 | U95: 2 | V95: 4 | W95: 6 | X95: 8 | Y95: 10 | Z95: 10.5 | AA95: 11 | AB95: 11.5 | AC95: 12 | AD95: 12.5 | AE95: 13 | AF95: 13.5 | AG95: 14 | AH95: 14.5 | AI95: 15 | AJ95: 4.96 | AL95: 10.912 | AN95: 3
A96: 3 Noten | B96: Castanea mollissima | C96: Chinese kastanje | E96: 36 | F96: 42 | G96: kastanje | H96: plant | I96: 0 | J96: 1 | K96: 0 | L96: 15 | M96: nee | N96: 25 | O96: nut wizard, c. 200kg/dag/persoon (University Missouri | P96: 0 | Q96: 0 | R96: 0 | S96: 0 | T96: 0 | U96: 5 | V96: 6 | W96: 8 | X96: 9 | Y96: 11 | Z96: 13 | AA96: 15 | AB96: 20 | AC96: 25 | AD96: 30 | AE96: 35 | AF96: 40 | AG96: 40 | AH96: 40 | AI96: 40 | AJ96: 2.79 | AL96: 6.138 | AN96: 0
A97: 3 Noten | B97: Castanea sativa | C97: Tamme kastanje | D97: Lyon | E97: 36 | F97: 42 | G97: kastanje | H97: plant | I97: 0 | J97: 1 | K97: 0 | L97: 15 | M97: nee | N97: 25 | O97: nut wizard, c. 200kg/dag/persoon (University Missouri | P97: 0 | Q97: 0 | R97: 0 | S97: 0 | T97: 2.5 | U97: 4 | V97: 5 | W97: 6 | X97: 7 | Y97: 8 | Z97: 9 | AA97: 10 | AB97: 15 | AC97: 21 | AD97: 25 | AE97: 25 | AF97: 25 | AG97: 25 | AH97: 25 | AI97: 25 | AJ97: 2.79 | AL97: 6.138 | AN97: 5
A98: 3 Noten | B98: Casteana Pumiles | C98: Chinkapin | E98: 35 | F98: 43 | G98: kastanje | H98: plant | I98: 0 | J98: 1 | K98: 0 | L98: 15 | M98: nee | N98: 0 | P98: 0 | Q98: 0 | R98: 0 | S98: 2 | T98: 2.5 | U98: 3 | V98: 4 | W98: 4.5 | X98: 5 | Y98: 5.5 | Z98: 6 | AA98: 6 | AB98: 6 | AC98: 6 | AD98: 6 | AE98: 6 | AF98: 6 | AG98: 6 | AH98: 6 | AI98: 6 | AJ98: 4.96 | AL98: 10.912 | AN98: 0
A99: 3 Noten | B99: Chephalotaxus | E99: 44 | F99: 47 | H99: plant | I99: 0 | J99: 1 | K99: 0 | L99: 3.5 | M99: nee | N99: 0 | P99: 0 | Q99: 0 | R99: 0 | S99: 0 | T99: 0 | U99: 0 | V99: 0 | W99: 0 | X99: 0 | Y99: 0.15 | Z99: 0.3 | AA99: 0.4 | AB99: 0.6 | AC99: 0.8 | AD99: 1 | AE99: 1.2 | AF99: 1.4 | AG99: 1.6 | AH99: 1.8 | AI99: 2 | AJ99: 24.8 | AL99: 54.56 | AN99: 1
A100: 3 Noten | B100: Corylus avellana | C100: Hazelaar | D100: Webb's | E100: 36 | F100: 39 | G100: hazelnoot | H100: plant | I100: 0 | J100: 1 | K100: 0 | L100: 16 | M100: nee | N100: 0 | P100: 0 | Q100: 0 | R100: 0 | S100: 0 | T100: 0.2 | U100: 1 | V100: 2 | W100: 3 | X100: 4 | Y100: 4 | Z100: 4 | AA100: 4 | AB100: 4 | AC100: 4 | AD100: 4 | AE100: 4 | AF100: 4 | AG100: 4 | AH100: 4 | AI100: 4 | AJ100: 4.96 | AL100: =AJ100*$AL$2 -> 10.912 | AN100: 40
A101: 3 Noten | B101: Ginkgo Biloba | C101: Ginko noot | E101: 35 | F101: 39 | G101: noot | H101: plant | I101: 0 | J101: 1 | K101: 0 | L101: 4 | M101: nee | N101: 0 | P101: 0 | Q101: 0 | R101: 0 | S101: 0 | T101: 0 | U101: 0 | V101: 0 | W101: 0 | X101: 0 | Y101: 0 | Z101: 0 | AA101: 0 | AB101: 0 | AC101: 0 | AD101: 0 | AE101: 0 | AF101: 0 | AG101: 0 | AH101: 0 | AI101: 0 | AJ101: 4.96 | AL101: 10.912 | AN101: 0
A102: 3 Noten | B102: Juglans ailantifolia | C102: Japanse walnoot (hartnoot) | E102: 37 | F102: 39 | G102: hartnoot | H102: plant | I102: 0 | J102: 1 | K102: 0 | L102: 4 | M102: nee | N102: 25 | O102: nut wizard, c. 200kg/dag/persoon (University Missouri | P102: 0 | Q102: 0 | R102: 0 | S102: 0 | T102: 2.3 | U102: 5 | V102: 9 | W102: 12 | X102: 18 | Y102: 23 | Z102: 24 | AA102: 25 | AB102: 26 | AC102: 28 | AD102: 30 | AE102: 30 | AF102: 30 | AG102: 30 | AH102: 30 | AI102: 30 | AJ102: 6.35033388 | AL102: 13.97073454 | AN102: 4
A103: 3 Noten | B103: Juglans cinerea | C103: Witte walnoot, boternoot | D103: Beckwith | E103: 40 | F103: 46 | G103: boternoot | H103: plant | I103: 0 | J103: 1 | K103: 0 | L103: 4 | M103: nee | N103: 25 | O103: nut wizard, c. 200kg/dag/persoon (University Missouri | P103: 0 | Q103: 0 | R103: 0 | S103: 0 | T103: 0 | U103: 1 | V103: 2.884615385 | W103: 4.769230769 | X103: 6.653846154 | Y103: 8.538461538 | Z103: 10.42307692 | AA103: 12.30769231 | AB103: 14.19230769 | AC103: 16.07692308 | AD103: 17.96153846 | AE103: 19.84615385 | AF103: 21.73076923 | AG103: 23.61538462 | AH103: 25 | AI103: 25 | AJ103: 6.35033388 | AL103: 13.97073454 | AN103: 0
A104: 3 Noten | B104: Juglans nigra | C104: Zwarte walnoot | D104: Bicentennial | E104: 40 | F104: 43 | G104: zwarte walnoot | H104: plant | I104: 0 | J104: 1 | K104: 0 | L104: 4 | M104: nee | N104: 25 | O104: nut wizard, c. 200kg/dag/persoon (University Missouri | P104: 0 | Q104: 0 | R104: 0 | S104: 0 | T104: 0 | U104: 1 | V104: 1.5 | W104: 2 | X104: 2.5 | Y104: 3 | Z104: 4 | AA104: 5 | AB104: 6 | AC104: 7 | AD104: 8 | AE104: 10 | AF104: 12 | AG104: 14 | AH104: 16 | AI104: 18 | AJ104: 6.35033388 | AL104: 13.97073454 | AN104: 0
A105: 3 Noten | B105: Juglans regia | C105: Walnoot | D105: Broadview | E105: 37 | F105: 42 | G105: walnoot | H105: plant | I105: 0 | J105: 1 | K105: 0 | L105: 4 | M105: nee | N105: 25 | O105: nut wizard, c. 200kg/dag/persoon (University Missouri | P105: 0 | Q105: 0 | R105: 0 | S105: 0 | T105: 0 | U105: 1 | V105: 2.884615385 | W105: 4.769230769 | X105: 6.653846154 | Y105: 8.538461538 | Z105: 10.42307692 | AA105: 12.30769231 | AB105: 14.19230769 | AC105: 16.07692308 | AD105: 17.96153846 | AE105: 19.84615385 | AF105: 21.73076923 | AG105: 23.61538462 | AH105: 25.5 | AI105: 27.38461538 | AJ105: 6.5 | AL105: 14.3 | AN105: 5
A106: 3 Noten | B106: Pinus Koraiensis | C106: Koreaanse den | E106: 40 | F106: 52 | G106: pijnboompitten | H106: plant | I106: 0 | J106: 1 | K106: 0 | L106: 4 | M106: nee | N106: 0 | P106: 0 | Q106: 0 | R106: 0 | S106: 0 | T106: 0 | U106: 0 | V106: 0 | W106: 0 | X106: 0 | Y106: 0.5 | Z106: 0.7 | AA106: 1.4 | AB106: 2.1 | AC106: 2.8 | AD106: 3.5 | AE106: 4 | AF106: 5 | AG106: 6 | AH106: 7 | AI106: 8 | AJ106: 12.4 | AL106: 27.28 | AN106: 2
A107: 3 Noten | B107: Prunus dulcis | C107: Amandel | D107: Robijn | E107: 38 | F107: 41 | G107: amandelnoot | H107: plant | I107: 0 | J107: 1 | K107: 0 | L107: 4 | M107: nee | N107: 0 | P107: 0 | Q107: 0 | R107: 0 | S107: 0.5 | T107: 1.5 | U107: 2.5 | V107: 3.5 | W107: 6 | X107: 8 | Y107: 10 | Z107: 12 | AA107: 15 | AB107: 15 | AC107: 15 | AD107: 15 | AE107: 15 | AF107: 15 | AG107: 15 | AH107: 15 | AI107: 15 | AJ107: 8.4568 | AL107: 18.60496 | AN107: 3
A108: 3 Noten | B108: Quercus spp. | C108: Eik | E108: 40 | F108: 47 | G108: eikels | H108: plant | I108: 0 | J108: 1 | K108: 0 | L108: 4 | M108: nee | N108: 25 | O108: nut wizard, c. 200kg/dag/persoon (University Missouri | P108: 0 | Q108: 0 | R108: 0 | S108: 0 | T108: 0 | U108: 0 | V108: 0 | W108: 0 | X108: 0 | Y108: 0 | Z108: 0 | AA108: 0 | AB108: 0 | AC108: 0 | AD108: 5 | AE108: 8 | AF108: 20 | AG108: 12 | AH108: 15 | AI108: 30 | AJ108: 0 | AL108: 0 | AN108: 1
A109: 3 Noten | B109: Staphylea pinnata | C109: Pimpernoot | E109: 35 | F109: 47 | G109: 3 Noten | H109: plant | I109: 0 | J109: 1 | K109: 0 | L109: 4 | M109: nee | N109: 0 | P109: 0 | Q109: 0 | R109: 0 | S109: 0 | T109: 0.1 | U109: 0.2 | V109: 0.25 | W109: 0.3 | X109: 0.4 | Y109: 0.5 | Z109: 0.6 | AA109: 0.7 | AB109: 0.8 | AC109: 0.9 | AD109: 1 | AE109: 1 | AF109: 1 | AG109: 1 | AH109: 1 | AI109: 1 | AJ109: 12.4 | AL109: 27.28 | AN109: 4
A110: 3 Noten | B110: Xanthoceras sorbifolium | C110: Chinesekastanje | E110: 40 | F110: 43 | G110: kastanje | H110: plant | I110: 0 | J110: 1 | K110: 0 | L110: 4 | M110: nee | N110: 0 | P110: 0 | Q110: 0 | R110: 1 | S110: 2 | T110: 3.5 | U110: 5 | V110: 6 | W110: 7 | X110: 8 | Y110: 9 | Z110: 10 | AA110: 10 | AB110: 10 | AC110: 10 | AD110: 10 | AE110: 10 | AF110: 10 | AG110: 10 | AH110: 10 | AI110: 10 | AJ110: 12.4 | AL110: 27.28 | AN110: 0
A111: 4 Groente | B111: Acer saccharum | C111: Suikeresdoorn | E111: 5 | F111: 12 | G111: boomsap | H111: plant | I111: 0 | J111: 1 | K111: 0 | L111: 4 | M111: nee | N111: 0 | P111: 0 | Q111: 0 | R111: 0 | S111: 0 | T111: 0 | U111: 0 | V111: 0 | W111: 0 | X111: 0 | Y111: 0 | Z111: 0.17 | AA111: 0.17 | AB111: 0.17 | AC111: 0.17 | AD111: 0.17 | AE111: 0.17 | AF111: 0.17 | AG111: 0.17 | AH111: 0.17 | AI111: 0.17 | AJ111: 12.6108 | AL111: 27.74376 | AN111: 0
A112: 4 Groente | B112: Achillea millefolium | C112: Duizendblad | E112: ? | F112: ? | G112: blad en bloem | H112: m2 | I112: 0 | J112: 1 | K112: 0 | L112: 4 | M112: nee | N112: 0 | P112: 0 | Q112: 0 | R112: 0.2 | S112: 0.3 | T112: 0.3 | U112: 0.3 | V112: 0.3 | W112: 0.3 | X112: 0.3 | Y112: 0.3 | Z112: 0.3 | AA112: 0.3 | AB112: 0.3 | AC112: 0.3 | AD112: 0.3 | AE112: 0.3 | AF112: 0.3 | AG112: 0.3 | AH112: 0.3 | AI112: 0.3 | AJ112: 74.4 | AL112: 163.68 | AN112: 0
A113: 4 Groente | B113: Agastache foeniculum | C113: Dropplant | E113: 18 | F113: 39 | G113: blad | H113: m2 | I113: 0 | J113: 1 | K113: 0 | L113: 4 | M113: nee | N113: 0 | P113: 0.05 | Q113: 0.05 | R113: 0.05 | S113: 0.05 | T113: 0.05 | U113: 0.05 | V113: 0.05 | W113: 0.05 | X113: 0.05 | Y113: 0.05 | Z113: 0.05 | AA113: 0.05 | AB113: 0.05 | AC113: 0.05 | AD113: 0.05 | AE113: 0.05 | AF113: 0.05 | AG113: 0.05 | AH113: 0.05 | AI113: 0.05 | AJ113: 74.4 | AL113: 163.68 | AN113: 0
A114: 4 Groente | B114: Alcea ficifolia | C114: Vijgenbladstokroos | E114: ? | F114: ? | G114: blad en bloem | H114: m2 | I114: 0 | J114: 1 | K114: 0 | L114: 4 | M114: nee | N114: 0 | P114: 0.05 | Q114: 0.05 | R114: 0.05 | S114: 0.05 | T114: 0.05 | U114: 0.05 | V114: 0.05 | W114: 0.05 | X114: 0.05 | Y114: 0.05 | Z114: 0.05 | AA114: 0.05 | AB114: 0.05 | AC114: 0.05 | AD114: 0.05 | AE114: 0.05 | AF114: 0.05 | AG114: 0.05 | AH114: 0.05 | AI114: 0.05 | AJ114: 74.4 | AL114: 163.68 | AN114: 0
A115: 4 Groente | B115: Alchemilla xanthochlora | C115: Geelgroene vrouwenmantel | E115: ? | F115: ? | G115: blad | H115: m2 | I115: 0 | J115: 1 | K115: 0 | L115: 4 | M115: nee | N115: 0 | P115: 0.05 | Q115: 0.05 | R115: 0.05 | S115: 0.05 | T115: 0.05 | U115: 0.05 | V115: 0.05 | W115: 0.05 | X115: 0.05 | Y115: 0.05 | Z115: 0.05 | AA115: 0.05 | AB115: 0.05 | AC115: 0.05 | AD115: 0.05 | AE115: 0.05 | AF115: 0.05 | AG115: 0.05 | AH115: 0.05 | AI115: 0.05 | AJ115: 74.4 | AL115: 163.68 | AN115: 0
A116: 4 Groente | B116: Allium schoenoprasum | C116: Bieslook | E116: ? | F116: ? | G116: blad | H116: m2 | I116: 0 | J116: 1 | K116: 0 | L116: 4 | M116: nee | N116: 0 | P116: 0.02 | Q116: 0.02 | R116: 0.02 | S116: 0.02 | T116: 0.02 | U116: 0.02 | V116: 0.02 | W116: 0.02 | X116: 0.02 | Y116: 0.02 | Z116: 0.02 | AA116: 0.02 | AB116: 0.02 | AC116: 0.02 | AD116: 0.02 | AE116: 0.02 | AF116: 0.02 | AG116: 0.02 | AH116: 0.02 | AI116: 0.02 | AJ116: 74.4 | AL116: 163.68 | AN116: 0
A117: 4 Groente | B117: Allium Ursinum | C117: Daslook | E117: 5 | F117: 18 | G117: blad | H117: m2 | I117: 0 | J117: 1 | K117: 0 | L117: 4 | M117: nee | N117: 0 | P117: 0.1 | Q117: 0.1 | R117: 0.1 | S117: 0.1 | T117: 0.1 | U117: 0.1 | V117: 0.1 | W117: 0.1 | X117: 0.1 | Y117: 0.1 | Z117: 0.1 | AA117: 0.1 | AB117: 0.1 | AC117: 0.1 | AD117: 0.1 | AE117: 0.1 | AF117: 0.1 | AG117: 0.1 | AH117: 0.1 | AI117: 0.1 | AJ117: 15.5 | AL117: 34.1 | AN117: 0
A118: 4 Groente | B118: Aloysia citrodora | C118: Citroenverbena | E118: ? | F118: ? | G118: vrucht | H118: plant | I118: 0 | J118: 1 | K118: 0 | L118: 4 | M118: nee | N118: 0 | P118: 0.05 | Q118: 0.05 | R118: 0.05 | S118: 0.05 | T118: 0.05 | U118: 0.05 | V118: 0.05 | W118: 0.05 | X118: 0.05 | Y118: 0.05 | Z118: 0.05 | AA118: 0.05 | AB118: 0.05 | AC118: 0.05 | AD118: 0.05 | AE118: 0.05 | AF118: 0.05 | AG118: 0.05 | AH118: 0.05 | AI118: 0.05 | AJ118: 74.4 | AL118: 163.68 | AN118: 0
A119: 4 Groente | B119: Amorpha fruticosa | C119: Indigostruik | E119: ? | F119: ? | G119: ?? | H119: plant | I119: 0 | J119: 1 | K119: 0 | L119: 4 | M119: nee | N119: 0 | P119: 0 | Q119: 0 | R119: 0 | S119: 0 | T119: 0 | U119: 0 | V119: 0 | W119: 0 | X119: 0 | Y119: 0 | Z119: 0 | AA119: 0 | AB119: 0 | AC119: 0 | AD119: 0 | AE119: 0 | AF119: 0 | AG119: 0 | AH119: 0 | AI119: 0 | AJ119: 2.48 | AL119: 5.456 | AN119: 0
A120: 4 Groente | B120: Angelica archangelica | C120: Grote engelwortel | E120: ? | F120: ? | G120: zaad en bloem | H120: m2 | I120: 0 | J120: 1 | K120: 0 | L120: 4 | M120: nee | N120: 0 | P120: 0.05 | Q120: 0.05 | R120: 0.05 | S120: 0.05 | T120: 0.05 | U120: 0.05 | V120: 0.05 | W120: 0.05 | X120: 0.05 | Y120: 0.05 | Z120: 0.05 | AA120: 0.05 | AB120: 0.05 | AC120: 0.05 | AD120: 0.05 | AE120: 0.05 | AF120: 0.05 | AG120: 0.05 | AH120: 0.05 | AI120: 0.05 | AJ120: 74.4 | AL120: 163.68 | AN120: 0
A121: 4 Groente | B121: Aralia elata | C121: Engelenboom | E121: 9 | F121: 15 | G121: blad | H121: plant | I121: 0 | J121: 1 | K121: 0 | L121: 4 | M121: nee | N121: 0 | P121: 0.05 | Q121: 0.05 | R121: 0.05 | S121: 0.05 | T121: 0.05 | U121: 0.05 | V121: 0.05 | W121: 0.05 | X121: 0.05 | Y121: 0.05 | Z121: 0.05 | AA121: 0.05 | AB121: 0.05 | AC121: 0.05 | AD121: 0.05 | AE121: 0.05 | AF121: 0.05 | AG121: 0.05 | AH121: 0.05 | AI121: 0.05 | AJ121: 15.5 | AL121: 34.1 | AN121: 2
A122: 4 Groente | B122: Arnica spp. | C122: Valkruid | E122: ? | F122: ? | G122: ?? | H122: plant | I122: 0 | J122: 1 | K122: 0 | L122: 4 | M122: nee | N122: 0 | P122: 0.05 | Q122: 0.05 | R122: 0.05 | S122: 0.05 | T122: 0.05 | U122: 0.05 | V122: 0.05 | W122: 0.05 | X122: 0.05 | Y122: 0.05 | Z122: 0.05 | AA122: 0.05 | AB122: 0.05 | AC122: 0.05 | AD122: 0.05 | AE122: 0.05 | AF122: 0.05 | AG122: 0.05 | AH122: 0.05 | AI122: 0.05 | AJ122: 74.4 | AL122: 163.68 | AN122: 0
A123: 4 Groente | B123: Artemisia abrotanum | C123: Citroenkruid | E123: ? | F123: ? | G123: blad | H123: m2 | I123: 0 | J123: 1 | K123: 0 | L123: 4 | M123: nee | N123: 0 | P123: 0.05 | Q123: 0.05 | R123: 0.05 | S123: 0.05 | T123: 0.05 | U123: 0.05 | V123: 0.05 | W123: 0.05 | X123: 0.05 | Y123: 0.05 | Z123: 0.05 | AA123: 0.05 | AB123: 0.05 | AC123: 0.05 | AD123: 0.05 | AE123: 0.05 | AF123: 0.05 | AG123: 0.05 | AH123: 0.05 | AI123: 0.05 | AJ123: 74.4 | AL123: 163.68 | AN123: 0
A124: 4 Groente | B124: Artemisia dracunculus | C124: Dragon | E124: ? | F124: ? | G124: blad | H124: m2 | I124: 0 | J124: 1 | K124: 0 | L124: 4 | M124: nee | N124: 0 | P124: 0.05 | Q124: 0.05 | R124: 0.05 | S124: 0.05 | T124: 0.05 | U124: 0.05 | V124: 0.05 | W124: 0.05 | X124: 0.05 | Y124: 0.05 | Z124: 0.05 | AA124: 0.05 | AB124: 0.05 | AC124: 0.05 | AD124: 0.05 | AE124: 0.05 | AF124: 0.05 | AG124: 0.05 | AH124: 0.05 | AI124: 0.05 | AJ124: 63.24 | AL124: 139.128 | AN124: 0
A125: 4 Groente | B125: Artemisia moxa | C125: Bijvoet | E125: ? | F125: ? | G125: ?? | H125: plant | I125: 0 | J125: 1 | K125: 0 | L125: 4 | M125: nee | N125: 0 | P125: 0.05 | Q125: 0.05 | R125: 0.05 | S125: 0.05 | T125: 0.05 | U125: 0.05 | V125: 0.05 | W125: 0.05 | X125: 0.05 | Y125: 0.05 | Z125: 0.05 | AA125: 0.05 | AB125: 0.05 | AC125: 0.05 | AD125: 0.05 | AE125: 0.05 | AF125: 0.05 | AG125: 0.05 | AH125: 0.05 | AI125: 0.05 | AJ125: 74.4 | AL125: 163.68 | AN125: 0
A126: 4 Groente | B126: Bunimum bulbocastanum | C126: Aardkastanje | E126: 13 | F126: 43 | G126: wortels | H126: plant | I126: 0 | J126: 1 | K126: 0 | L126: 4 | M126: nee | N126: 0 | P126: 0.02 | Q126: 0.02 | R126: 0.02 | S126: 0.02 | T126: 0.02 | U126: 0.02 | V126: 0.02 | W126: 0.02 | X126: 0.02 | Y126: 0.02 | Z126: 0.02 | AA126: 0.02 | AB126: 0.02 | AC126: 0.02 | AD126: 0.02 | AE126: 0.02 | AF126: 0.02 | AG126: 0.02 | AH126: 0.02 | AI126: 0.02 | AJ126: 2.48 | AL126: 5.456 | AN126: 0
A127: 4 Groente | B127: Capparis Spinosa | C127: Kappertjes plant | E127: ? | F127: ? | G127: kappertjes | H127: plant | I127: 0 | J127: 1 | K127: 0 | L127: 4 | M127: nee | N127: 0 | P127: 0 | Q127: 0 | R127: 0.5 | S127: 1 | T127: 2 | U127: 3 | V127: 3 | W127: 3 | X127: 3 | Y127: 3 | Z127: 3 | AA127: 3 | AB127: 3 | AC127: 3 | AD127: 3 | AE127: 3 | AF127: 3 | AG127: 3 | AH127: 3 | AI127: 3 | AJ127: 11.3708 | AL127: 25.01576 | AN127: 0
A128: 4 Groente | B128: Caragana arborecens | C128: Chiberische erwtensctruik | E128: 35 | F128: 39 | G128: zaden | H128: plant | I128: 0 | J128: 1 | K128: 0 | L128: 4 | M128: nee | N128: 0 | P128: 0 | Q128: 0 | R128: 0.1 | S128: 0.2 | T128: 0.3 | U128: 0.4 | V128: 0.5 | W128: 0.5 | X128: 0.5 | Y128: 0.5 | Z128: 0.5 | AA128: 0.5 | AB128: 0.5 | AC128: 0.5 | AD128: 0.5 | AE128: 0.5 | AF128: 0.5 | AG128: 0.5 | AH128: 0.5 | AI128: 0.5 | AJ128: 4.96 | AL128: 10.912 | AN128: 0
A129: 4 Groente | B129: Cercis siliquastrum | C129: Judasboom | E129: ? | F129: ? | G129: zaad en bloem | H129: plant | I129: 0 | J129: 1 | K129: 0 | L129: 4 | M129: nee | N129: 0 | P129: 0 | Q129: 0 | R129: 0 | S129: 0 | T129: 0 | U129: 0 | V129: 0 | W129: 0 | X129: 0 | Y129: 0 | Z129: 0 | AA129: 0 | AB129: 0 | AC129: 0 | AD129: 0 | AE129: 0 | AF129: 0 | AG129: 0 | AH129: 0 | AI129: 0 | AJ129: 4.96 | AL129: 10.912 | AN129: 1
A130: 4 Groente | B130: Chelidonium majus | C130: Stinkende gouwe | E130: ? | F130: ? | G130: blad | H130: m2 | I130: 0 | J130: 1 | K130: 0 | L130: 4 | M130: nee | N130: 0 | P130: 0.05 | Q130: 0.05 | R130: 0.05 | S130: 0.05 | T130: 0.05 | U130: 0.05 | V130: 0.05 | W130: 0.05 | X130: 0.05 | Y130: 0.05 | Z130: 0.05 | AA130: 0.05 | AB130: 0.05 | AC130: 0.05 | AD130: 0.05 | AE130: 0.05 | AF130: 0.05 | AG130: 0.05 | AH130: 0.05 | AI130: 0.05 | AJ130: 15.5 | AL130: 34.1 | AN130: 0
A131: 4 Groente | B131: Cynara cardunculus | C131: Kardoen | E131: 13 | F131: 43 | G131: stengel | H131: plant | I131: 0 | J131: 1 | K131: 0 | L131: 4 | M131: nee | N131: 0 | P131: 0 | Q131: 1 | R131: 1 | S131: 1 | T131: 1 | U131: 1 | V131: 1 | W131: 1 | X131: 1 | Y131: 1 | Z131: 1 | AA131: 1 | AB131: 1 | AC131: 1 | AD131: 1 | AE131: 1 | AF131: 1 | AG131: 1 | AH131: 1 | AI131: 1 | AJ131: 12.4 | AL131: 27.28 | AN131: 0
A132: 4 Groente | B132: Echinacea spp. | C132: Zonnehoed | E132: ? | F132: ? | G132: medicinaal | H132: m2 | I132: 0 | J132: 1 | K132: 0 | L132: 9 | M132: nee | N132: 0 | P132: 0 | Q132: 0 | R132: 0 | S132: 2 | T132: 4 | U132: 6 | V132: 8 | W132: 10 | X132: 10 | Y132: 10 | Z132: 10 | AA132: 10 | AB132: 10 | AC132: 10 | AD132: 10 | AE132: 10 | AF132: 10 | AG132: 10 | AH132: 10 | AI132: 10 | AJ132: 12.4 | AL132: =AJ132*$AL$2 -> 27.28 | AN132: 0
A133: 4 Groente | B133: Eleutherococcus Ginseng | C133: Siberische Ginseg | E133: ? | F133: ? | G133: wortels | H133: plant | I133: 0 | J133: 1 | K133: 0 | L133: 4 | M133: nee | N133: 0 | P133: 0 | Q133: 0 | R133: 0 | S133: 0 | T133: 0 | U133: 0 | V133: 0 | W133: 0 | X133: 0 | Y133: 0 | Z133: 0 | AA133: 0 | AB133: 0 | AC133: 0 | AD133: 0 | AE133: 0 | AF133: 0 | AG133: 0 | AH133: 0 | AI133: 0 | AJ133: 9.92 | AL133: 21.824 | AN133: 0
A134: 4 Groente | B134: Fagus spp | C134: Beuk | E134: 18 | F134: 21 | G134: blad | H134: plant | I134: 0 | J134: 1 | K134: 0 | L134: 105 | M134: nee | N134: 0 | P134: 0 | Q134: 0 | R134: 2 | S134: 4 | T134: 5 | U134: 6 | V134: 7 | W134: 8 | X134: 9 | Y134: 10 | Z134: 10 | AA134: 10 | AB134: 10 | AC134: 10 | AD134: 10 | AE134: 10 | AF134: 10 | AG134: 10 | AH134: 10 | AI134: 10 | AJ134: 6.2 | AL134: 13.64 | AN134: 0
A135: 4 Groente | B135: Foeniculum vulgare | C135: Brons venkel | E135: 18 | F135: 43 | G135: blad | H135: m2 | I135: 0 | J135: 1 | K135: 0 | L135: 4 | M135: nee | N135: 0 | P135: 0 | Q135: 0 | R135: 0 | S135: 0 | T135: 0 | U135: 0 | V135: 0 | W135: 0 | X135: 0 | Y135: 0 | Z135: 0 | AA135: 0 | AB135: 0 | AC135: 0 | AD135: 0 | AE135: 0 | AF135: 0 | AG135: 0 | AH135: 0 | AI135: 0 | AJ135: 37.2 | AL135: 81.84 | AN135: 1
A136: 4 Groente | B136: Gaultheria salal | C136: Appeltjes blad | E136: 26 | F136: 34 | G136: blad | H136: m2 | I136: 0 | J136: 1 | K136: 0 | L136: 4 | M136: nee | N136: 0 | P136: 0.05 | Q136: 0.05 | R136: 0.05 | S136: 0.05 | T136: 0.05 | U136: 0.05 | V136: 0.05 | W136: 0.05 | X136: 0.05 | Y136: 0.05 | Z136: 0.05 | AA136: 0.05 | AB136: 0.05 | AC136: 0.05 | AD136: 0.05 | AE136: 0.05 | AF136: 0.05 | AG136: 0.05 | AH136: 0.05 | AI136: 0.05 | AJ136: 74.4 | AL136: 163.68 | AN136: 0
A137: 4 Groente | B137: Geum spp-. | C137: Nagelkruid | E137: ? | F137: ? | G137: wortel | H137: m2 | I137: 0 | J137: 1 | K137: 0 | L137: 4 | M137: nee | N137: 0 | P137: 0 | Q137: 0 | R137: 0 | S137: 0 | T137: 0 | U137: 0 | V137: 0 | W137: 0 | X137: 0 | Y137: 0 | Z137: 0 | AA137: 0 | AB137: 0 | AC137: 0 | AD137: 0 | AE137: 0 | AF137: 0 | AG137: 0 | AH137: 0 | AI137: 0 | AJ137: 6.2 | AL137: 13.64 | AN137: 0
A138: 4 Groente | B138: Gleditsia triacanthos | C138: Valse Christusdoorn | E138: ? | F138: ? | G138: zaden | H138: plant | I138: 0 | J138: 1 | K138: 0 | L138: 4 | M138: nee | N138: 0 | P138: 0 | Q138: 0 | R138: 0 | S138: 0 | T138: 0 | U138: 0 | V138: 0 | W138: 0 | X138: 0 | Y138: 0 | Z138: 0 | AA138: 0 | AB138: 0 | AC138: 0 | AD138: 0 | AE138: 0 | AF138: 0 | AG138: 0 | AH138: 0 | AI138: 0 | AJ138: 62 | AL138: 136.4 | AN138: 0
A139: 4 Groente | B139: Halesia carolina | C139: Sneeuwklokjesboom | E139: 26 | F139: 29 | G139: ?? | H139: plant | I139: 0 | J139: 1 | K139: 0 | L139: 4 | M139: nee | N139: 0 | P139: 0.05 | Q139: 0.05 | R139: 0.05 | S139: 0.05 | T139: 0.05 | U139: 0.05 | V139: 0.05 | W139: 0.05 | X139: 0.05 | Y139: 0.05 | Z139: 0.05 | AA139: 0.05 | AB139: 0.05 | AC139: 0.05 | AD139: 0.05 | AE139: 0.05 | AF139: 0.05 | AG139: 0.05 | AH139: 0.05 | AI139: 0.05 | AJ139: 74.4 | AL139: 163.68 | AN139: 0
A140: 4 Groente | B140: Helichrysum italicum | C140: Kerriekruid | E140: ? | F140: ? | G140: blad | H140: m2 | I140: 0 | J140: 1 | K140: 0 | L140: 4 | M140: nee | N140: 0 | P140: 0 | Q140: 0 | R140: 0 | S140: 0 | T140: 0 | U140: 0 | V140: 0 | W140: 0.2 | X140: 0.2 | Y140: 0.2 | Z140: 0.2 | AA140: 0.2 | AB140: 0.2 | AC140: 0.2 | AD140: 0.2 | AE140: 0.2 | AF140: 0.2 | AG140: 0.2 | AH140: 0.2 | AI140: 0.2 | AJ140: 62 | AL140: 136.4 | AN140: 0
A141: 4 Groente | B141: Hemercallis | C141: Daglelie | E141: 22 | F141: 39 | G141: bloemen | H141: m2 | I141: 0 | J141: 1 | K141: 0 | L141: 4 | M141: nee | N141: 0 | P141: 0 | Q141: 0 | R141: 0 | S141: 0 | T141: 0 | U141: 0 | V141: 0 | W141: 0 | X141: 0 | Y141: 0 | Z141: 0 | AA141: 0 | AB141: 0 | AC141: 0 | AD141: 0 | AE141: 0 | AF141: 0 | AG141: 0 | AH141: 0 | AI141: 0 | AJ141: 37.2 | AL141: 81.84 | AN141: 33
A142: 4 Groente | B142: Hibiscus syriacus | C142: Hibiscus, Altheastruik | D142: Marina | E142: ? | F142: ? | G142: bloemen | H142: plant | I142: 0 | J142: 1 | K142: 0 | L142: 16 | M142: nee | N142: 0 | P142: 0 | Q142: 0 | R142: 0 | S142: 0 | T142: 6 | U142: 10 | V142: 10 | W142: 10 | X142: 10 | Y142: 10 | Z142: 10 | AA142: 10 | AB142: 10 | AC142: 10 | AD142: 10 | AE142: 10 | AF142: 10 | AG142: 10 | AH142: 10 | AI142: 10 | AJ142: 12.4 | AL142: 27.28 | AN142: 2
A143: 4 Groente | B143: Hosta spp. | C143: Hosta | E143: 13 | F143: 21 | G143: jonge scheut | H143: m2 | I143: 0 | J143: 1 | K143: 0 | L143: 5 | M143: nee | N143: 0 | P143: 0 | Q143: 0 | R143: 0.5 | S143: 0.7 | T143: 1 | U143: 1.3 | V143: 1.6 | W143: 1.9 | X143: 2.2 | Y143: 2.5 | Z143: 2.5 | AA143: 2.5 | AB143: 2.5 | AC143: 2.5 | AD143: 2.5 | AE143: 2.5 | AF143: 2.5 | AG143: 2.5 | AH143: 2.5 | AI143: 2.5 | AJ143: 12.4744 | AL143: 27.44368 | AN143: 0
A144: 4 Groente | B144: Humulus Lupulus | C144: Hop | E144: 13 | F144: 17 | G144: vrucht | H144: plant | I144: 0 | J144: 1 | K144: 0 | L144: 4 | M144: nee | N144: 0 | P144: 0 | Q144: 0 | R144: 0 | S144: 0 | T144: 0 | U144: 0 | V144: 0 | W144: 0 | X144: 0 | Y144: 0 | Z144: 0 | AA144: 0 | AB144: 0 | AC144: 0 | AD144: 0 | AE144: 0 | AF144: 0 | AG144: 0 | AH144: 0 | AI144: 0 | AJ144: 37.2 | AL144: 81.84 | AN144: 0
A145: 4 Groente | B145: Hydrangea serrata | C145: Thee hortensia | E145: ? | F145: ? | G145: blad | H145: plant | I145: 0 | J145: 1 | K145: 0 | L145: 4 | M145: nee | N145: 0 | P145: 0.1 | Q145: 0.1 | R145: 0.1 | S145: 0.1 | T145: 0.1 | U145: 0.1 | V145: 0.1 | W145: 0.1 | X145: 0.1 | Y145: 0.1 | Z145: 0.1 | AA145: 0.1 | AB145: 0.1 | AC145: 0.1 | AD145: 0.1 | AE145: 0.1 | AF145: 0.1 | AG145: 0.1 | AH145: 0.1 | AI145: 0.1 | AJ145: 11.284 | AL145: 24.8248 | AN145: 0
A146: 4 Groente | B146: Laurus nobilis | C146: Keukenlaurier | E146: 1 | F146: 52 | G146: blad en vrucht | H146: plant | I146: 0 | J146: 1 | K146: 0 | L146: 4 | M146: nee | N146: 0 | P146: 0.1 | Q146: 0.1 | R146: 0.1 | S146: 0.1 | T146: 0.1 | U146: 0.1 | V146: 0.1 | W146: 0.1 | X146: 0.1 | Y146: 0.1 | Z146: 0.1 | AA146: 0.1 | AB146: 0.1 | AC146: 0.1 | AD146: 0.1 | AE146: 0.1 | AF146: 0.1 | AG146: 0.1 | AH146: 0.1 | AI146: 0.1 | AJ146: 8.68 | AL146: 19.096 | AN146: 0
A147: 4 Groente | B147: Magnolia x soulangeana | C147: Magnolia, beverboom | E147: ? | F147: ? | G147: bloemen | H147: plant | I147: 0 | J147: 1 | K147: 0 | L147: 4 | M147: nee | N147: 0 | P147: 0 | Q147: 0 | R147: 0 | S147: 0 | T147: 0 | U147: 0 | V147: 0 | W147: 0 | X147: 0 | Y147: 0 | Z147: 0 | AA147: 0 | AB147: 0 | AC147: 0 | AD147: 0 | AE147: 0 | AF147: 0 | AG147: 0 | AH147: 0 | AI147: 0 | AJ147: 9.92 | AL147: 21.824 | AN147: 0
A148: 4 Groente | B148: Mellissa off. | C148: Citroenmellise | E148: 13 | F148: 47 | G148: blad | H148: m2 | I148: 0 | J148: 1 | K148: 0 | L148: 4 | M148: nee | N148: 0 | P148: 0 | Q148: 0 | R148: 0.15 | S148: 0.25 | T148: 0.25 | U148: 0.25 | V148: 0.25 | W148: 0.25 | X148: 0.25 | Y148: 0.25 | Z148: 0.25 | AA148: 0.25 | AB148: 0.25 | AC148: 0.25 | AD148: 0.25 | AE148: 0.25 | AF148: 0.25 | AG148: 0.25 | AH148: 0.25 | AI148: 0.25 | AJ148: 74.4 | AL148: 163.68 | AN148: 2
A149: 4 Groente | B149: Mentha spp. | C149: Munt | E149: 13 | F149: 43 | G149: blad | H149: m2 | I149: 0 | J149: 1 | K149: 0 | L149: 4 | M149: nee | N149: 0 | P149: 0 | Q149: 0 | R149: 0.3 | S149: 0.6 | T149: 0.9 | U149: 1.2 | V149: 1.2 | W149: 1.2 | X149: 1.2 | Y149: 1.2 | Z149: 1.2 | AA149: 1.2 | AB149: 1.2 | AC149: 1.2 | AD149: 1.2 | AE149: 1.2 | AF149: 1.2 | AG149: 1.2 | AH149: 1.2 | AI149: 1.2 | AJ149: 12.4 | AL149: 27.28 | AN149: 0
A150: 4 Groente | B150: Monarda didyma | C150: Gewone bergamotplant | E150: ? | F150: ? | G150: blad en bloem | H150: m2 | I150: 0 | J150: 1 | K150: 0 | L150: 5.5 | M150: nee | N150: 0 | P150: 0 | Q150: 0 | R150: 0.2 | S150: 0.2 | T150: 0.2 | U150: 0.2 | V150: 0.2 | W150: 0.2 | X150: 0.2 | Y150: 0.2 | Z150: 0.2 | AA150: 0.2 | AB150: 0.2 | AC150: 0.2 | AD150: 0.2 | AE150: 0.2 | AF150: 0.2 | AG150: 0.2 | AH150: 0.2 | AI150: 0.2 | AJ150: 13.1812 | AL150: 28.99864 | AN150: 0
A151: 4 Groente | B151: Myosotis spp. | C151: Vergeet mij nietje | E151: ? | F151: ? | G151: ?? | H151: plant | I151: 0 | J151: 1 | K151: 0 | L151: 4 | M151: nee | N151: 0 | P151: 0 | Q151: 0 | R151: 0 | S151: 0 | T151: 0 | U151: 0 | V151: 0 | W151: 0 | X151: 0 | Y151: 0 | Z151: 0 | AA151: 0 | AB151: 0 | AC151: 0 | AD151: 0 | AE151: 0 | AF151: 0 | AG151: 0 | AH151: 0 | AI151: 0 | AJ151: 37.2 | AL151: 81.84 | AN151: 0
A152: 4 Groente | B152: Nepeta nervosa | C152: Kattekruid | E152: ? | F152: ? | G152: blad | H152: m2 | I152: 0 | J152: 1 | K152: 0 | L152: 4 | M152: nee | N152: 0 | P152: 0.05 | Q152: 0.05 | R152: 0.05 | S152: 0.05 | T152: 0.05 | U152: 0.05 | V152: 0.05 | W152: 0.05 | X152: 0.05 | Y152: 0.05 | Z152: 0.05 | AA152: 0.05 | AB152: 0.05 | AC152: 0.05 | AD152: 0.05 | AE152: 0.05 | AF152: 0.05 | AG152: 0.05 | AH152: 0.05 | AI152: 0.05 | AJ152: 74.4 | AL152: 163.68 | AN152: 0
A153: 4 Groente | B153: Nepeta x. faassenii | C153: Grijs kattenkruid | E153: ? | F153: ? | G153: blad | H153: m2 | I153: 0 | J153: 1 | K153: 0 | L153: 4 | M153: nee | N153: 0 | P153: 0 | Q153: 0 | R153: 0 | S153: 0 | T153: 0 | U153: 0 | V153: 0 | W153: 0 | X153: 0 | Y153: 0 | Z153: 0 | AA153: 0 | AB153: 0 | AC153: 0 | AD153: 0 | AE153: 0 | AF153: 0 | AG153: 0 | AH153: 0 | AI153: 0 | AJ153: 18.6 | AL153: 40.92 | AN153: 0
A154: 4 Groente | B154: Paulownia tomentosa | C154: Keizersboom | E154: ? | F154: ? | G154: bloemen | H154: plant | I154: 0 | J154: 1 | K154: 0 | L154: 4 | M154: nee | N154: 0 | P154: 0.05 | Q154: 0.05 | R154: 0.05 | S154: 0.05 | T154: 0.05 | U154: 0.05 | V154: 0.05 | W154: 0.05 | X154: 0.05 | Y154: 0.05 | Z154: 0.05 | AA154: 0.05 | AB154: 0.05 | AC154: 0.05 | AD154: 0.05 | AE154: 0.05 | AF154: 0.05 | AG154: 0.05 | AH154: 0.05 | AI154: 0.05 | AJ154: 74.4 | AL154: 163.68 | AN154: 2
A155: 4 Groente | B155: Persicaria odorata | C155: Vietnamese koriander | E155: ? | F155: ? | G155: blad | H155: m2 | I155: 0 | J155: 1 | K155: 0 | L155: 4 | M155: nee | N155: 0 | P155: 0 | Q155: 0 | R155: 0 | S155: 0 | T155: 0.1 | U155: 0.2 | V155: 0.2 | W155: 0.2 | X155: 0.2 | Y155: 0.2 | Z155: 0.2 | AA155: 0.2 | AB155: 0.2 | AC155: 0.2 | AD155: 0.2 | AE155: 0.2 | AF155: 0.2 | AG155: 0.2 | AH155: 0.2 | AI155: 0.2 | AJ155: 15.5 | AL155: 34.1 | AN155: 0
A156: 4 Groente | B156: Phyllostachus bissetii 80 | C156: Eetbare bamboe | D156: Aurea 80 | E156: 15 | F156: 28 | G156: scheuten | H156: plant | I156: 0 | J156: 1 | K156: 0 | L156: 4 | M156: nee | N156: 0 | P156: 0 | Q156: 0 | R156: 0 | S156: 0 | T156: 0 | U156: 0 | V156: 0 | W156: 0 | X156: 0 | Y156: 0.5 | Z156: 1 | AA156: 1.5 | AB156: 2 | AC156: 2.5 | AD156: 3 | AE156: 4 | AF156: 5 | AG156: 6 | AH156: 7 | AI156: 8 | AJ156: 21.7 | AL156: 47.74 | AN156: 4
A157: 4 Groente | B157: Primula vulgaris | C157: Sleutel bloem | E157: 13 | F157: 17 | G157: blad en bloem | H157: m2 | I157: 0 | J157: 1 | K157: 0 | L157: 52.5 | M157: nee | N157: 0 | P157: 0 | Q157: 0 | R157: 0.2 | S157: 0.2 | T157: 0.2 | U157: 0.2 | V157: 0.2 | W157: 0.2 | X157: 0.2 | Y157: 0.2 | Z157: 0.2 | AA157: 0.2 | AB157: 0.2 | AC157: 0.2 | AD157: 0.2 | AE157: 0.2 | AF157: 0.2 | AG157: 0.2 | AH157: 0.2 | AI157: 0.2 | AJ157: 5.0716 | AL157: 11.15752 | AN157: 0
A158: 4 Groente | B158: Pulmonaria off. | C158: Longkruid | E158: ? | F158: ? | G158: blad | H158: m2 | I158: 0 | J158: 1 | K158: 0 | L158: 4 | M158: nee | N158: 0 | P158: 0 | Q158: 0 | R158: 0.2 | S158: 0.2 | T158: 0.2 | U158: 0.2 | V158: 0.2 | W158: 0.2 | X158: 0.2 | Y158: 0.2 | Z158: 0.2 | AA158: 0.2 | AB158: 0.2 | AC158: 0.2 | AD158: 0.2 | AE158: 0.2 | AF158: 0.2 | AG158: 0.2 | AH158: 0.2 | AI158: 0.2 | AJ158: 7.44 | AL158: 16.368 | AN158: 0
A159: 4 Groente | B159: Rheum rabarberum | C159: Rabarber | E159: 5 | F159: 22 | G159: stelen | H159: plant | I159: 0 | J159: 1 | K159: 0 | L159: 4 | M159: nee | N159: 0 | P159: 0 | Q159: 0 | R159: 0 | S159: 0 | T159: 0 | U159: 0 | V159: 0 | W159: 0 | X159: 0 | Y159: 0 | Z159: 0 | AA159: 0 | AB159: 0 | AC159: 0 | AD159: 0 | AE159: 0 | AF159: 0 | AG159: 0 | AH159: 0 | AI159: 0 | AJ159: 37.2 | AL159: 81.84 | AN159: 7
A160: 4 Groente | B160: Rhus aromatica | C160: Sumac, limonadestruik | E160: ? | F160: ? | G160: bloemen | H160: plant | I160: 0 | J160: 1 | K160: 0 | L160: 4 | M160: nee | N160: 0 | P160: 0 | Q160: 0 | R160: 0 | S160: 0 | T160: 0 | U160: 0 | V160: 0 | W160: 0 | X160: 0 | Y160: 0 | Z160: 0 | AA160: 0 | AB160: 0 | AC160: 0 | AD160: 0 | AE160: 0 | AF160: 0 | AG160: 0 | AH160: 0 | AI160: 0 | AJ160: 37.2 | AL160: 81.84 | AN160: 1
A161: 4 Groente | B161: Rosmarinum off. | C161: Rozemarijn | E161: 1 | F161: 52 | G161: blad | H161: m2 | I161: 0 | J161: 1 | K161: 0 | L161: 5.5 | M161: nee | N161: 0 | P161: 0 | Q161: 0.5 | R161: 3 | S161: 5 | T161: 5 | U161: 5 | V161: 5 | W161: 5 | X161: 5 | Y161: 5 | Z161: 5 | AA161: 5 | AB161: 5 | AC161: 5 | AD161: 5 | AE161: 5 | AF161: 5 | AG161: 5 | AH161: 5 | AI161: 5 | AJ161: 9.92 | AL161: 21.824 | AN161: 0
A162: 4 Groente | B162: Ruta graveolens | C162: Wijnruit | E162: ? | F162: ? | G162: blad | H162: m2 | I162: 0 | J162: 1 | K162: 0 | L162: 4 | M162: nee | N162: 0 | P162: 0.05 | Q162: 0.05 | R162: 0.05 | S162: 0.05 | T162: 0.05 | U162: 0.05 | V162: 0.05 | W162: 0.05 | X162: 0.05 | Y162: 0.05 | Z162: 0.05 | AA162: 0.05 | AB162: 0.05 | AC162: 0.05 | AD162: 0.05 | AE162: 0.05 | AF162: 0.05 | AG162: 0.05 | AH162: 0.05 | AI162: 0.05 | AJ162: 74.4 | AL162: 163.68 | AN162: 0
A163: 4 Groente | B163: Salvia off. | C163: Salie | E163: 1 | F163: 52 | G163: blad | H163: m2 | I163: 0 | J163: 1 | K163: 0 | L163: 4 | M163: nee | N163: 0 | P163: 0 | Q163: 0 | R163: 0.1 | S163: 0.2 | T163: 0.2 | U163: 0.2 | V163: 0.2 | W163: 0.2 | X163: 0.2 | Y163: 0.2 | Z163: 0.2 | AA163: 0.2 | AB163: 0.2 | AC163: 0.2 | AD163: 0.2 | AE163: 0.2 | AF163: 0.2 | AG163: 0.2 | AH163: 0.2 | AI163: 0.2 | AJ163: 9.548 | AL163: 21.0056 | AN163: 0
A164: 4 Groente | B164: Sambucus canadiensis | C164: Canadese vlier | E164: 26 | F164: 43 | G164: bloem en bes | H164: plant | I164: 0 | J164: 1 | K164: 0 | L164: 4 | M164: nee | N164: 0 | P164: 0 | Q164: 0 | R164: 0.5 | S164: 1 | T164: 2 | U164: 3 | V164: 3 | W164: 3 | X164: 3 | Y164: 3 | Z164: 3 | AA164: 3 | AB164: 3 | AC164: 3 | AD164: 3 | AE164: 3 | AF164: 3 | AG164: 3 | AH164: 3 | AI164: 3 | AJ164: 9.548 | AL164: =AJ164*$AL$2 -> 21.0056 | AN164: 5
A165: 4 Groente | B165: Sambucus nigra | C165: Gewone vlier | D165: Korsor | E165: 19 | F165: 23 | G165: vrucht | H165: plant | I165: 0 | J165: 1 | K165: 0 | L165: 4 | M165: nee | N165: 0 | P165: 0 | Q165: 0 | R165: 0.5 | S165: 1 | T165: 2 | U165: 3 | V165: 3 | W165: 3 | X165: 3 | Y165: 3 | Z165: 3 | AA165: 3 | AB165: 3 | AC165: 3 | AD165: 3 | AE165: 3 | AF165: 3 | AG165: 3 | AH165: 3 | AI165: 3 | AJ165: 74.4 | AL165: 163.68 | AN165: 7
A166: 4 Groente | B166: Santolina spp. | C166: Heiligbloem | E166: ? | F166: ? | G166: ?? | H166: plant | I166: 0 | J166: 1 | K166: 0 | L166: 4 | M166: nee | N166: 0 | P166: 0 | Q166: 0 | R166: 0 | S166: 0 | T166: 0 | U166: 0 | V166: 0 | W166: 0 | X166: 0 | Y166: 0 | Z166: 0 | AA166: 0 | AB166: 0 | AC166: 0 | AD166: 0 | AE166: 0 | AF166: 0 | AG166: 0 | AH166: 0 | AI166: 0 | AJ166: 15.5 | AL166: 34.1 | AN166: 0
A167: 4 Groente | B167: Sassafras albidum | C167: Sassafras | E167: ? | F167: ? | G167: blad | H167: plant | I167: 0 | J167: 1 | K167: 0 | L167: 4 | M167: nee | N167: 0 | P167: 0 | Q167: 1 | R167: 2.75862069 | S167: 3.7470726 | T167: 3.959905952 | U167: 3.993934212 | V167: 3.999088958 | W167: 3.999863317 | X167: 3.999979497 | Y167: 3.999996925 | Z167: 3.999996925 | AA167: 3.999996925 | AB167: 3.999996925 | AC167: 3.999996925 | AD167: 3.999996925 | AE167: 3.999996925 | AF167: 3.999996925 | AG167: 3.999996925 | AH167: 3.999996925 | AI167: 3.999996925 | AJ167: 15.5 | AL167: 34.1 | AN167: 0
A168: 4 Groente | B168: Schisandra spp. | C168: Schisandra | E168: 40 | F168: 43 | G168: blad | H168: plant | I168: 0 | J168: 1 | K168: 0 | L168: 4 | M168: nee | N168: 0 | P168: 0.05 | Q168: 0.05 | R168: 0.05 | S168: 0.05 | T168: 0.05 | U168: 0.05 | V168: 0.05 | W168: 0.05 | X168: 0.05 | Y168: 0.05 | Z168: 0.05 | AA168: 0.05 | AB168: 0.05 | AC168: 0.05 | AD168: 0.05 | AE168: 0.05 | AF168: 0.05 | AG168: 0.05 | AH168: 0.05 | AI168: 0.05 | AJ168: 74.4 | AL168: 163.68 | AN168: 0
A169: 4 Groente | B169: Scutellaria galericulata | C169: Blauw glidkruid | E169: ? | F169: ? | G169: ?? | H169: plant | I169: 0 | J169: 1 | K169: 0 | L169: 4 | M169: nee | N169: 0 | P169: 0.05 | Q169: 0.05 | R169: 0.05 | S169: 0.05 | T169: 0.05 | U169: 0.05 | V169: 0.05 | W169: 0.05 | X169: 0.05 | Y169: 0.05 | Z169: 0.05 | AA169: 0.05 | AB169: 0.05 | AC169: 0.05 | AD169: 0.05 | AE169: 0.05 | AF169: 0.05 | AG169: 0.05 | AH169: 0.05 | AI169: 0.05 | AJ169: 74.4 | AL169: 163.68 | AN169: 0
A170: 4 Groente | B170: Solidago spp. | C170: Guldenroede | E170: ? | F170: ? | G170: blad | H170: m2 | I170: 0 | J170: 1 | K170: 0 | L170: 9 | M170: nee | N170: 0 | P170: 0 | Q170: 0 | R170: 0 | S170: 0 | T170: 0.1 | U170: 0.1 | V170: 0.1 | W170: 0.1 | X170: 0.1 | Y170: 0.1 | Z170: 0.1 | AA170: 0.1 | AB170: 0.1 | AC170: 0.1 | AD170: 0.1 | AE170: 0.1 | AF170: 0.1 | AG170: 0.1 | AH170: 0.1 | AI170: 0.1 | AJ170: 12.4 | AL170: 27.28 | AN170: 0
A171: 4 Groente | B171: Symphytum officinale | C171: Smeerwortel | E171: ? | F171: ? | G171: blad | H171: m2 | I171: 0 | J171: 1 | K171: 0 | L171: 4 | M171: nee | N171: 0 | P171: 0.05 | Q171: 0.05 | R171: 0.05 | S171: 0.05 | T171: 0.05 | U171: 0.05 | V171: 0.05 | W171: 0.05 | X171: 0.05 | Y171: 0.05 | Z171: 0.05 | AA171: 0.05 | AB171: 0.05 | AC171: 0.05 | AD171: 0.05 | AE171: 0.05 | AF171: 0.05 | AG171: 0.05 | AH171: 0.05 | AI171: 0.05 | AJ171: 74.4 | AL171: 163.68 | AN171: 0
A172: 4 Groente | B172: Tanacetum balsamita | C172: Balsem longkruid | E172: ? | F172: ? | G172: blad | H172: m2 | I172: 0 | J172: 1 | K172: 0 | L172: 4 | M172: nee | N172: 0 | P172: 0.05 | Q172: 0.05 | R172: 0.05 | S172: 0.05 | T172: 0.05 | U172: 0.05 | V172: 0.05 | W172: 0.05 | X172: 0.05 | Y172: 0.05 | Z172: 0.05 | AA172: 0.05 | AB172: 0.05 | AC172: 0.05 | AD172: 0.05 | AE172: 0.05 | AF172: 0.05 | AG172: 0.05 | AH172: 0.05 | AI172: 0.05 | AJ172: 74.4 | AL172: 163.68 | AN172: 0
A173: 4 Groente | B173: Tanacetum parthenium | C173: Moederkruid | E173: ? | F173: ? | G173: blad en bloem | H173: m2 | I173: 0 | J173: 1 | K173: 0 | L173: 4 | M173: nee | N173: 0 | P173: 0.05 | Q173: 0.05 | R173: 0.05 | S173: 0.05 | T173: 0.05 | U173: 0.05 | V173: 0.05 | W173: 0.05 | X173: 0.05 | Y173: 0.05 | Z173: 0.05 | AA173: 0.05 | AB173: 0.05 | AC173: 0.05 | AD173: 0.05 | AE173: 0.05 | AF173: 0.05 | AG173: 0.05 | AH173: 0.05 | AI173: 0.05 | AJ173: 74.4 | AL173: 163.68 | AN173: 0
A174: 4 Groente | B174: Teucrium chamaedrys | C174: Echte gamander | E174: ? | F174: ? | G174: blad | H174: m2 | I174: 0 | J174: 1 | K174: 0 | L174: 4 | M174: nee | N174: 0 | P174: 0 | Q174: 0 | R174: 0 | S174: 0.5 | T174: 0.6 | U174: 0.75 | V174: 0.75 | W174: 0.75 | X174: 0.75 | Y174: 0.75 | Z174: 0.75 | AA174: 0.75 | AB174: 0.75 | AC174: 0.75 | AD174: 0.75 | AE174: 0.75 | AF174: 0.75 | AG174: 0.75 | AH174: 0.75 | AI174: 0.75 | AJ174: 74.4 | AL174: 163.68 | AN174: 0
A175: 4 Groente | B175: Thymus Vulgaris | C175: Thijm | E175: ? | F175: ? | G175: blad | H175: m2 | I175: 0 | J175: 1 | K175: 0 | L175: 4 | M175: nee | N175: 0 | P175: 0 | Q175: 0 | R175: 0 | S175: 0 | T175: 0 | U175: 0 | V175: 0 | W175: 0 | X175: 0 | Y175: 0 | Z175: 0 | AA175: 0 | AB175: 0 | AC175: 0 | AD175: 0 | AE175: 0 | AF175: 0 | AG175: 0 | AH175: 0 | AI175: 0 | AJ175: 7.44 | AL175: 16.368 | AN175: 0
A176: 4 Groente | B176: Tilia cordata | C176: Linde | E176: 18 | F176: 43 | G176: blad | H176: plant | I176: 0 | J176: 1 | K176: 0 | L176: 4 | M176: nee | N176: 0 | P176: 0 | Q176: 0 | R176: 0 | S176: 0.1 | T176: 0.2 | U176: 0.3 | V176: 0.4 | W176: 0.5 | X176: 0.5 | Y176: 0.5 | Z176: 0.5 | AA176: 0.5 | AB176: 0.5 | AC176: 0.5 | AD176: 0.5 | AE176: 0.5 | AF176: 0.5 | AG176: 0.5 | AH176: 0.5 | AI176: 0.5 | AJ176: 23.56 | AL176: 51.832 | AN176: 17
A177: 4 Groente | B177: Toona sinensis | C177: Chinese mahonie | E177: 18 | F177: 25 | G177: blad | H177: plant | I177: 0 | J177: 1 | K177: 0 | L177: 4 | M177: nee | N177: 0 | P177: 0 | Q177: 0.25 | R177: 0.5 | S177: 1 | T177: 2 | U177: 2 | V177: 2 | W177: 2 | X177: 2 | Y177: 2 | Z177: 2 | AA177: 2 | AB177: 2 | AC177: 2 | AD177: 2 | AE177: 2 | AF177: 2 | AG177: 2 | AH177: 2 | AI177: 2 | AJ177: 12.4 | AL177: 27.28 | AN177: 24
A178: 4 Groente | B178: Urtica Dioica | C178: Brandnetel | E178: 9 | F178: 21 | G178: blad | H178: m2 | I178: 0 | J178: 1 | K178: 0 | L178: 5 | M178: nee | N178: 0 | P178: 0 | Q178: 0.5 | R178: 1 | S178: 1.5 | T178: 1.5 | U178: 1.5 | V178: 1.5 | W178: 1.5 | X178: 1.5 | Y178: 1.5 | Z178: 1.5 | AA178: 1.5 | AB178: 1.5 | AC178: 1.5 | AD178: 1.5 | AE178: 1.5 | AF178: 1.5 | AG178: 1.5 | AH178: 1.5 | AI178: 1.5 | AJ178: 7.44 | AL178: 16.368 | AN178: 0
A179: 4 Groente | B179: Valeriana off. | C179: Valeriaan | E179: ? | F179: ? | G179: wortel | H179: m2 | I179: 0 | J179: 1 | K179: 0 | L179: 5 | M179: nee | N179: 0 | P179: 0 | Q179: 0 | R179: 0 | S179: 0 | T179: 0 | U179: 0 | V179: 0 | W179: 0 | X179: 0 | Y179: 0 | Z179: 0 | AA179: 0 | AB179: 0 | AC179: 0 | AD179: 0 | AE179: 0 | AF179: 0 | AG179: 0 | AH179: 0 | AI179: 0 | AJ179: 9.548 | AL179: 21.0056 | AN179: 0
A180: 4 Groente | B180: Zanthoxylum spp | C180: Sechuan peper | D180: simulans | E180: 35 | F180: 36 | G180: bessen | H180: plant | I180: 0 | J180: 1 | K180: 0 | L180: 4 | M180: nee | N180: 0 | P180: 0 | Q180: 0 | R180: 0.5 | S180: 1 | T180: 1.5 | U180: 2 | V180: 2.5 | W180: 3 | X180: 3.5 | Y180: 4 | Z180: 4.5 | AA180: 5 | AB180: 5 | AC180: 5 | AD180: 5 | AE180: 5 | AF180: 5 | AG180: 5 | AH180: 5 | AI180: 5 | AJ180: 12.4 | AL180: 27.28 | AN180: 18
A181: 5 Paddenstoel | B181: Agaricus bisporus | C181: Champignon | E181: ? | F181: ? | G181: 5 Paddenstoel | H181: plant | I181: 0 | J181: 1 | K181: 0 | L181: 4 | M181: nee | N181: 0 | P181: 0.1 | Q181: 0.1 | R181: 0.1 | S181: 0.1 | T181: 0.1 | U181: 0.1 | V181: 0.1 | W181: 0.1 | X181: 0.1 | Y181: 0.1 | Z181: 0.1 | AA181: 0.1 | AB181: 0.1 | AC181: 0.1 | AD181: 0.1 | AE181: 0.1 | AF181: 0.1 | AG181: 0.1 | AH181: 0.1 | AI181: 0.1 | AJ181: 4.03 | AL181: 8.866 | AN181: 0
A182: 5 Paddenstoel | B182: Hypsizygus tessellatus | C182: Beukenzwam | E182: ? | F182: ? | G182: 5 Paddenstoel | H182: plant | I182: 0 | J182: 1 | K182: 0 | L182: 5.5 | M182: nee | N182: 0 | P182: 0 | Q182: 0 | R182: 0 | S182: 0 | T182: 0 | U182: 0 | V182: 0 | W182: 0 | X182: 0 | Y182: 0 | Z182: 0 | AA182: 0 | AB182: 0 | AC182: 0 | AD182: 0 | AE182: 0 | AF182: 0 | AG182: 0 | AH182: 0 | AI182: 0 | AJ182: 0 | AL182: 0 | AN182: 0
A183: 5 Paddenstoel | B183: Lentinula edodes | C183: Shiitake | E183: ? | F183: ? | G183: 5 Paddenstoel | H183: plant | I183: 0 | J183: 1 | K183: 0 | L183: 5 | M183: nee | N183: 0 | P183: 0 | Q183: 0 | R183: 0.1 | S183: 0.2 | T183: 0.4 | U183: 0.6 | V183: 0.8 | W183: 1 | X183: 1.2 | Y183: 1.4 | Z183: 1.4 | AA183: 1.4 | AB183: 1.4 | AC183: 1.4 | AD183: 1.4 | AE183: 1.4 | AF183: 1.4 | AG183: 1.4 | AH183: 1.4 | AI183: 1.4 | AJ183: 12.4744 | AL183: 27.44368 | AN183: 0
A184: 5 Paddenstoel | B184: Pleurotus ostreatus | C184: Oesterzwam | E184: ? | F184: ? | G184: 5 Paddenstoel | H184: plant | I184: 0 | J184: 1 | K184: 0 | L184: 4 | M184: nee | N184: 0 | P184: 0 | Q184: 0 | R184: 0 | S184: 0 | T184: 0 | U184: 0.2 | V184: 0.5 | W184: 1 | X184: 2 | Y184: 3 | Z184: 3 | AA184: 3 | AB184: 3 | AC184: 3 | AD184: 3 | AE184: 3 | AF184: 3 | AG184: 3 | AH184: 3 | AI184: 3 | AJ184: 3.72 | AL184: 8.184 | AN184: 0
A185: 6 Geen oogst | B185: Acer campestre | C185: Veldesdoorn | E185: - | F185: - | G185: klimboom | H185: plant | I185: 0 | J185: 1 | K185: 0 | L185: 0 | M185: nee | N185: 0 | P185: 0 | Q185: 0 | R185: 0 | S185: 0 | T185: 0 | U185: 0 | V185: 0 | W185: 0 | X185: 0 | Y185: 0 | Z185: 0 | AA185: 0 | AB185: 0 | AC185: 0 | AD185: 0 | AE185: 0 | AF185: 0 | AG185: 0 | AH185: 0 | AI185: 0 | AJ185: 12.6108 | AL185: 27.74376 | AN185: 0
A186: 6 Geen oogst | B186: Acer platanoides | C186: Noorse esdoorn | E186: - | F186: - | G186: ?? | H186: plant | I186: 0 | J186: 1 | K186: 0 | L186: 0 | M186: nee | N186: 0 | P186: 0 | Q186: 0 | R186: 0 | S186: 0 | T186: 0 | U186: 0 | V186: 0 | W186: 0 | X186: 0 | Y186: 0 | Z186: 0 | AA186: 0 | AB186: 0 | AC186: 0 | AD186: 0 | AE186: 0 | AF186: 0 | AG186: 0 | AH186: 0 | AI186: 0 | AJ186: 12.61158492 | AL186: 27.74548682 | AN186: 0
A187: 6 Geen oogst | B187: Acer pseudoplatanus | C187: Gewone esdoorn | E187: - | F187: - | G187: ?? | H187: plant | I187: 0 | J187: 1 | K187: 0 | L187: 0 | M187: nee | N187: 0 | P187: 0 | Q187: 0 | R187: 0 | S187: 0 | T187: 0 | U187: 0 | V187: 0 | W187: 0 | X187: 0 | Y187: 0 | Z187: 0 | AA187: 0 | AB187: 0 | AC187: 0 | AD187: 0 | AE187: 0 | AF187: 0 | AG187: 0 | AH187: 0 | AI187: 0 | AJ187: 12.6108 | AL187: 27.74376 | AN187: 0
A188: 6 Geen oogst | B188: Alnus cordata | C188: Harbladige els | E188: - | F188: - | G188: stikstofbinder | H188: plant | I188: 0 | J188: 1 | K188: 0 | L188: 0 | M188: nee | N188: 0 | P188: 0 | Q188: 0 | R188: 0 | S188: 0 | T188: 0 | U188: 0 | V188: 0 | W188: 0 | X188: 0 | Y188: 0 | Z188: 0 | AA188: 0 | AB188: 0 | AC188: 0 | AD188: 0 | AE188: 0 | AF188: 0 | AG188: 0 | AH188: 0 | AI188: 0 | AJ188: 0 | AL188: 0 | AN188: 0
A189: 6 Geen oogst | B189: Alnus glutinosa | C189: Zwarte els | E189: - | F189: - | G189: stikstofbinder | H189: plant | I189: 0 | J189: 1 | K189: 0 | L189: 0 | M189: nee | N189: 0 | P189: 0 | Q189: 0 | R189: 0 | S189: 0 | T189: 0 | U189: 0 | V189: 0 | W189: 0 | X189: 0 | Y189: 0 | Z189: 0 | AA189: 0 | AB189: 0 | AC189: 0 | AD189: 0 | AE189: 0 | AF189: 0 | AG189: 0 | AH189: 0 | AI189: 0 | AJ189: 0 | AL189: 0 | AN189: 0
A190: 6 Geen oogst | B190: Alnus incana | C190: Witte els, grijze els | E190: - | F190: - | G190: stikstofbinder | H190: plant | I190: 0 | J190: 1 | K190: 0 | L190: 0 | M190: nee | N190: 0 | P190: 0 | Q190: 0 | R190: 0 | S190: 0 | T190: 0 | U190: 0 | V190: 0 | W190: 0 | X190: 0 | Y190: 0 | Z190: 0 | AA190: 0 | AB190: 0 | AC190: 0 | AD190: 0 | AE190: 0 | AF190: 0 | AG190: 0 | AH190: 0 | AI190: 0 | AJ190: 0 | AL190: 0 | AN190: 0
A191: 6 Geen oogst | B191: Populus canadensis | C191: Populier | D191: Koster | E191: - | F191: - | G191: ?? | H191: plant | I191: 0 | J191: 1 | K191: 0 | L191: 0 | M191: nee | N191: 0 | P191: 0.02 | Q191: 0.02 | R191: 0.02 | S191: 0.02 | T191: 0.02 | U191: 0.02 | V191: 0.02 | W191: 0.02 | X191: 0.02 | Y191: 0.02 | Z191: 0.02 | AA191: 0.02 | AB191: 0.02 | AC191: 0.02 | AD191: 0.02 | AE191: 0.02 | AF191: 0.02 | AG191: 0.02 | AH191: 0.02 | AI191: 0.02 | AJ191: 74.4 | AL191: 163.68 | AN191: 0
A192: 6 Geen oogst | B192: Rhamnus frangula | C192: Vuilboom, sporkehout | E192: ? | F192: ? | G192: bijen | H192: plant | I192: 0 | J192: 1 | K192: 0 | L192: 0 | M192: nee | N192: 0 | P192: 0 | Q192: 0 | R192: 0 | S192: 0 | T192: 0 | U192: 0 | V192: 0 | W192: 0 | X192: 0 | Y192: 0 | Z192: 0 | AA192: 0 | AB192: 0 | AC192: 0 | AD192: 0 | AE192: 0 | AF192: 0 | AG192: 0 | AH192: 0 | AI192: 0 | AJ192: 2.5296 | AL192: 5.56512 | AN192: 0
A193: 6 Geen oogst | B193: Robinia pseudoacacia | C193: Valse acacia | E193: ? | F193: ? | G193: stikstofbinder | H193: plant | I193: 0 | J193: 1 | K193: 0 | L193: 0 | M193: nee | N193: 0 | P193: 0 | Q193: 0 | R193: 0 | S193: 0 | T193: 0 | U193: 0 | V193: 0 | W193: 0 | X193: 0 | Y193: 0 | Z193: 0 | AA193: 0 | AB193: 0 | AC193: 0 | AD193: 0 | AE193: 0 | AF193: 0 | AG193: 0 | AH193: 0 | AI193: 0 | AJ193: 6.2 | AL193: 13.64 | AN193: 0
A194: 6 Geen oogst | B194: Ulmus laevis | C194: Fladderiep | E194: - | F194: - | G194: ?? | H194: plant | I194: 0 | J194: 1 | K194: 0 | L194: 0 | M194: nee | N194: 0 | P194: 0 | Q194: 0 | R194: 0 | S194: 0 | T194: 0 | U194: 0 | V194: 0 | W194: 0 | X194: 0 | Y194: 0 | Z194: 0 | AA194: 0 | AB194: 0 | AC194: 0 | AD194: 0 | AE194: 0 | AF194: 0 | AG194: 0 | AH194: 0 | AI194: 0 | AJ194: 24.8 | AL194: 54.56 | AN194: 0
B195: ZR overig | H195: plant | I195: 0 | J195: 1 | K195: 0 | L195: 0 | M195: nee | N195: 0 | AJ195: 0 | AL195: 0 | AN195: 0
B196: ZR overig | H196: plant | I196: 0 | J196: 1 | K196: 0 | L196: 0 | M196: nee | N196: 0 | AJ196: 0 | AL196: 0 | AN196: 0
B197: ZR overig | H197: plant | I197: 0 | J197: 1 | K197: 0 | L197: 0 | M197: nee | N197: 0 | AJ197: 0 | AL197: 0 | AN197: 0
B198: ZR overig | H198: plant | I198: 0 | J198: 1 | K198: 0 | L198: 0 | M198: nee | N198: 0 | AJ198: 0 | AL198: 0 | AN198: 0
K199: *Als "Jaar van aanplant" groter is dan "1" en/of "Additionele vertraging" groter is dan "0" verschuift de productie van die plantsoort met zoveel jaren naar de toekomst in het tabblad "Opbrengstenberekening". | AJ199: *Prijzen (index = 1) zijn voor inflatie aangepast naar 2023 | AN199: *Deze plantlijst voor 1ha agrarische voedselbosbouw komt uit het onderzoek Geijer (2023). Het is een gemiddelde plantlijst samengesteld uit 27ha agrarische voedselbosbouw en kan worden gebruikt in deze rekentool (bijvoorbeeld; kopiëren naar kolom I).
B200: Indicatoren: | L200: Categorieën | M200: Aantal planten | N200: Jaar van aanplant (gem.) | O200: Additionele vertraging (gem.) | P200: Plukpres. Hand | Q200: Plukpres. Mechanisatie | R200: Aantal met oogst mechanisatie | S200: Gemiddelde verkoopprijs (index 1)
... 7 more rows

Sheet Investeringen en Financiering
A3: Investeringen | B3: Al in eigendom? | C3: Aankoop | D3: Aanschafjaar | E3: Restwaarde | F3: Levensduur in jaren | H3: Financierende partij | I3: Soort financiering | J3: Rentepercentage | K3: Looptijd | L3: Berekend rentepercentage
A4: Grond | B4: Nee | C4: 0 | D4: 0 | E4: 1 | F4: 0 | I4: Vreemd | J4: 0 | K4: 0 | L4: 0
A5: Gebouwen | B5: Nee | C5: 0 | D5: 0 | E5: 1 | F5: 0 | I5: Vreemd | J5: 0 | K5: 0 | L5: 0
A6: Infrastructuur (paden) | B6: Nee | C6: 0 | D6: 0 | E6: 1 | F6: 0 | I6: Vreemd | J6: 0 | K6: 0 | L6: 0
A7: Machines | B7: Nee | C7: 0 | D7: 0 | E7: 1 | F7: 0 | I7: Vreemd | J7: 0 | K7: 0 | L7: 0
A8: Materiaal | B8: Nee | C8: 0 | D8: 0 | E8: 1 | F8: 0 | I8: Vreemd | J8: 0 | K8: 0 | L8: 0
A9: Teeltondersteunende middelen | B9: Nee | C9: 0 | D9: 0 | E9: 1 | F9: 0 | I9: Vreemd | J9: 0 | K9: 0 | L9: 0
A10: Ontwerp | B10: Nee | C10: 0 | D10: 0 | E10: 1 | F10: 0 | I10: Vreemd | J10: 0 | K10: 0 | L10: 0
A11: Grondverzet | B11: Nee | C11: 0 | D11: 0 | E11: 1 | F11: 0 | I11: Vreemd | J11: 0 | K11: 0 | L11: 0
A12: Marketing | B12: Nee | C12: 0 | D12: 0 | E12: 1 | F12: 0 | I12: Vreemd | J12: 0 | K12: 0 | L12: 0
A13: Plantgoed Productief 1 | B13: Nee | C13: 0 | D13: 0 | E13: 1 | F13: 0 | I13: Vreemd | J13: 0 | K13: 0 | L13: 0
A14: Plantgoed Productief 2 | B14: Nee | C14: 0 | D14: 0 | E14: 1 | F14: 0 | I14: Vreemd | J14: 0 | K14: 0 | L14: 0
A15: Plantgoed Productief 3 | B15: Nee | C15: 0 | D15: 0 | E15: 1 | F15: 0 | I15: Vreemd | J15: 0 | K15: 0 | L15: 0
A16: Plantgoed Productief 4 | B16: Nee | C16: 0 | D16: 0 | E16: 1 | F16: 0 | I16: Vreemd | J16: 0 | K16: 0 | L16: 0
A17: Plantgoed Productief 5 | B17: Nee | C17: 0 | D17: 0 | E17: 1 | F17: 0 | I17: Vreemd | J17: 0 | K17: 0 | L17: 0
A18: Plantgoed Bosplantsoen | B18: Nee | C18: 0 | D18: 0 | E18: 1 | F18: 0 | I18: Vreemd | J18: 0 | K18: 0 | L18: 0
A19: Plantgoed Anders | B19: Nee | C19: 0 | D19: 0 | E19: 1 | F19: 0 | I19: Vreemd | J19: 0 | K19: 0 | L19: 0
A20: Overig | B20: Nee | C20: 0 | D20: 0 | E20: 1 | F20: 0 | I20: Vreemd | J20: 0 | K20: 0 | L20: 0
A21: Totaal | C21: =SUM(C4:C20) -> 0 | H21: =CONCATENATE(IF(ISBLANK(H4),"",H4&CHAR(10)),IF(ISBLANK(H5),"",H5&CHAR(10)),IF(ISBLANK(H6),"",H6&CHAR(10)),IF(ISBLANK(H7),"",H7&CHAR(10)),IF(ISBLANK(H8),"",H8&CHAR(10)),IF(ISBLANK(H9),"",H9&CHAR(10)),IF(ISBLANK(H10),"",H10&CHAR(10)),IF(ISBLANK(H11),"",H11&CHAR(10)),IF(ISBLANK(H12),"",H12&CHAR(10)),IF(ISBLANK(H13),"",H13&CHAR(10)),IF(ISBLANK(H14),"",H14&CHAR(10)),IF(ISBLANK(H15),"",H15&CHAR(10)),IF(ISBLANK(H16),"",H16&CHAR(10)),IF(ISBLANK(H17),"",H17&CHAR(10)),IF(ISBLANK(H18),"",H18&CHAR(10)),IF(ISBLANK(H19),"",H19&CHAR(10)), H20) -> 

Sheet Kosten & Overige invoer
A3: Vaste kosten | E3: Overige invoer:
A4: Pacht | B4: 0 | C4: Per ha | E4: Effecten op het voedselbos
A5: Certificeringen | B5: 0 | C5: Totaal | E5: Oogstpercentage (max.) | F5: 0.8
A6: Website, logo & design | B6: 0 | C6: Totaal | E6: Jaar 1 oogstpercentage | F6: 0.25
A7: Marketing & verkoop | B7: 0.02 | C7: van de omzet | E7: Jaar max. | F7: 10
A8: Nutsvoorzieningen | B8: 0 | C8: Totaal | E8: Verdeling klasse A/B | F8: 0.8
A9: Advies | B9: 0 | C9: Totaal | E9: Analyse prijs A | F9: 1
A10: Opstartkosten | B10: 0 | C10: Totaal | E10: Berekening prijs B | F10: 0.5
A11: Onderhoud | B11: 0.05 | C11: Van de totale afschrijving | E11: Effect grondsoort | F11: 1
A12: Verzekeringen | B12: 0 | C12: Per ha | E12: Effect plukprestaties | F12: 1
A13: Overige kosten | B13: 0 | C13: Totaal
A14: Onvoorziene kosten | B14: 0.1 | C14: van de totale kosten | E14: Opbrengst verdeling per afzetkanaal
E15: Supermarkt | F15: 1
A16: Variabele kosten | E16: Cateraar | F16: 0
A17: Verpakkingsmateriaal | B17: 0.1 | C17: Per kg | E17: Consument | F17: 0
A18: Transport | B18: 0 | C18: Per kg | E18: Totaal | F18: =SUM(F15:F17) -> 1
A19: Externe logistiek | B19: 0 | C19: (verwachte km's x km prijs)
A20: Opslag | B20: 0.1 | C20: Per kg | E20: Privé onttrekkingen
A21: Overige variabele kosten | B21: 0.2 | C21: Per kg | E21: Maandelijks circa | F21: 0
E22: Jaarlijks | F22: =F21*12 -> 0
A23: Betaalde arbeid per ha
A24: Aanleg
A25: Uur per jaar (per ha) eigen arbeid | B25: 0
A26: Uur per jaar (per ha) externe arbeid | B26: 0
A27: Prijs per uur externe arbeid | B27: 25
A28: Duur aanleg periode (jaren) | B28: 5
A29: Schouw en inspectie
A30: Uur per jaar (per ha) eigen arbeid | B30: 0
A31: Uur per jaar (per ha) externe arbeid | B31: 0
A32: Prijs per uur externe arbeid | B32: 25
A33: (groen) Onderhoud
A34: Uur per jaar (per ha) eigen arbeid | B34: 0
A35: Uur per jaar (per ha) externe arbeid | B35: 0
A36: Prijs per uur externe arbeid | B36: 25
A37: Organisatie & logistiek
A38: Uur per jaar eigen arbeid (max.) | B38: 0
A39: Uur per jaar externe arbeid (max.) | B39: 0
A40: Prijs per uur externe arbeid | B40: 25
A41: Jaar aanvang | B41: 0
A42: Jaar max. | B42: 0
A43: Rondleidingen
A44: Uur per jaar eigen arbeid | B44: 0
A45: Uur per jaar externe arbeid | B45: 0
A46: Prijs per uur externe arbeid | B46: 25
A47: Evenementen
A48: Uur per jaar eigen arbeid | B48: 0
A49: Uur per jaar externe arbeid | B49: 0
A50: Prijs per uur externe arbeid | B50: 25
A51: Workshops
A52: Uur per jaar eigen arbeid | B52: 0
A53: Uur per jaar externe arbeid | B53: 0
A54: Prijs per uur externe arbeid | B54: 25
A55: Overige arbeid
A56: Uur per jaar (per ha) eigen arbeid | B56: 0
A57: Uur per jaar (per ha) externe arbeid | B57: 0
A58: Prijs per uur externe arbeid | B58: 25
A60: Oogst arbeid
A61: Percentage eigen arbeid | B61: 1
A62: Percentage externe arbeid | B62: 0
A63: Prijs per uur externe arbeid | B63: 25

Sheet Overige opbrengsten
A3: Vaste opbrengsten
A4: Aantal workshops per jaar | B4: 0 | C4: Totaal
A5: Prijs per persoon per workshop | B5: 0
A6: Gem. personen per workshop | B6: 0 | C6: Totaal
A7: Rondleidingen per jaar | B7: 0 | C7: Totaal
A8: Prijs persoon per rondleiding | B8: 0
A9: Gem. personen per rondleiding | B9: 0 | C9: Totaal
A10: Evenementen per jaar | B10: 0 | C10: Totaal
A11: Gem. prijs per evenement | B11: 0
A12: Overige vaste opbrengsten per jaar | B12: 0 | C12: Totaal
A14: Variabele opbrengsten
A15: Houtopbrengsten | B15: 0 | C15: Per ha
A16: Overige variabele opbrengsten | B16: 0 | C16: Per ha
A17: Afwaardering grond | B17: 0 | C17: Eenmalig per ha
A19: Subsidies en vergoedingen
A20: Biodiversiteit | B20: 0 | C20: Per jaar
A21: Klimaatadaptatie | B21: 0 | C21: Per jaar
A22: Vul hier uw ESD in | B22: 0 | C22: Eenheid
A23: Vul hier uw vergoeding in | B23: 0 | C23: Eenheid
A24: Vul hier uw ESD in | B24: 0 | C24: Eenheid
A25: Vul hier uw vergoeding in | B25: 0 | C25: Eenheid
A26: Overige vergoedingen | B26: 0 | C26: Per jaar
A28: Subsidies en vergoedingen per ha
A29: Vul hier uw vergoeding in | B29: 0 | C29: Per ha
A30: GLB | B30: 0 | C30: Per ha
A31: Organische stof opbouw | B31: 0 | C31: % opbouw per jaar
A32: Organische stof vergoeding | B32: 0 | C32: Per % opbouw per ha
A33: Teeltvrije bufferzone langs alle percelen | B33: 0 | C33: Per ha
A34: Inzaaien akkerranden of FAB randen | B34: 0 | C34: Per ha
A35: Inzaaien groenbemester | B35: 0 | C35: Per ha
A36: Overige vergoedingen | B36: 0 | C36: Per ha

Sheet Kosten expert
A3: Vaste kosten | B3: 1 | C3: 2 | D3: 3 | E3: 4 | F3: 5 | G3: 6 | H3: 7 | I3: 8 | J3: 9 | K3: 10 | L3: 11 | M3: 12 | N3: 13 | O3: 14 | P3: 15 | Q3: 16 | R3: 17 | S3: 18 | T3: 19 | U3: 20
A4: ='Kosten & Overige invoer'!A4 -> Pacht | B4: ='Kosten & Overige invoer'!$B4 -> 0 | C4: ='Kosten & Overige invoer'!$B4 -> 0 | D4: ='Kosten & Overige invoer'!$B4 -> 0 | E4: ='Kosten & Overige invoer'!$B4 -> 0 | F4: ='Kosten & Overige invoer'!$B4 -> 0 | G4: ='Kosten & Overige invoer'!$B4 -> 0 | H4: ='Kosten & Overige invoer'!$B4 -> 0 | I4: ='Kosten & Overige invoer'!$B4 -> 0 | J4: ='Kosten & Overige invoer'!$B4 -> 0 | K4: ='Kosten & Overige invoer'!$B4 -> 0 | L4: ='Kosten & Overige invoer'!$B4 -> 0 | M4: ='Kosten & Overige invoer'!$B4 -> 0 | N4: ='Kosten & Overige invoer'!$B4 -> 0 | O4: ='Kosten & Overige invoer'!$B4 -> 0 | P4: ='Kosten & Overige invoer'!$B4 -> 0 | Q4: ='Kosten & Overige invoer'!$B4 -> 0 | R4: ='Kosten & Overige invoer'!$B4 -> 0 | S4: ='Kosten & Overige invoer'!$B4 -> 0 | T4: ='Kosten & Overige invoer'!$B4 -> 0 | U4: ='Kosten & Overige invoer'!$B4 -> 0
A5: ='Kosten & Overige invoer'!A5 -> Certificeringen | B5: ='Kosten & Overige invoer'!$B5 -> 0 | C5: ='Kosten & Overige invoer'!$B5 -> 0 | D5: ='Kosten & Overige invoer'!$B5 -> 0 | E5: ='Kosten & Overige invoer'!$B5 -> 0 | F5: ='Kosten & Overige invoer'!$B5 -> 0 | G5: ='Kosten & Overige invoer'!$B5 -> 0 | H5: ='Kosten & Overige invoer'!$B5 -> 0 | I5: ='Kosten & Overige invoer'!$B5 -> 0 | J5: ='Kosten & Overige invoer'!$B5 -> 0 | K5: ='Kosten & Overige invoer'!$B5 -> 0 | L5: ='Kosten & Overige invoer'!$B5 -> 0 | M5: ='Kosten & Overige invoer'!$B5 -> 0 | N5: ='Kosten & Overige invoer'!$B5 -> 0 | O5: ='Kosten & Overige invoer'!$B5 -> 0 | P5: ='Kosten & Overige invoer'!$B5 -> 0 | Q5: ='Kosten & Overige invoer'!$B5 -> 0 | R5: ='Kosten & Overige invoer'!$B5 -> 0 | S5: ='Kosten & Overige invoer'!$B5 -> 0 | T5: ='Kosten & Overige invoer'!$B5 -> 0 | U5: ='Kosten & Overige invoer'!$B5 -> 0
A6: ='Kosten & Overige invoer'!A6 -> Website, logo & design | B6: ='Kosten & Overige invoer'!$B6 -> 0 | C6: ='Kosten & Overige invoer'!$B6 -> 0 | D6: ='Kosten & Overige invoer'!$B6 -> 0 | E6: ='Kosten & Overige invoer'!$B6 -> 0 | F6: ='Kosten & Overige invoer'!$B6 -> 0 | G6: ='Kosten & Overige invoer'!$B6 -> 0 | H6: ='Kosten & Overige invoer'!$B6 -> 0 | I6: ='Kosten & Overige invoer'!$B6 -> 0 | J6: ='Kosten & Overige invoer'!$B6 -> 0 | K6: ='Kosten & Overige invoer'!$B6 -> 0 | L6: ='Kosten & Overige invoer'!$B6 -> 0 | M6: ='Kosten & Overige invoer'!$B6 -> 0 | N6: ='Kosten & Overige invoer'!$B6 -> 0 | O6: ='Kosten & Overige invoer'!$B6 -> 0 | P6: ='Kosten & Overige invoer'!$B6 -> 0 | Q6: ='Kosten & Overige invoer'!$B6 -> 0 | R6: ='Kosten & Overige invoer'!$B6 -> 0 | S6: ='Kosten & Overige invoer'!$B6 -> 0 | T6: ='Kosten & Overige invoer'!$B6 -> 0 | U6: ='Kosten & Overige invoer'!$B6 -> 0
A7: ='Kosten & Overige invoer'!A7 -> Marketing & verkoop | B7: ='Kosten & Overige invoer'!$B7 -> 0.02 | C7: ='Kosten & Overige invoer'!$B7 -> 0.02 | D7: ='Kosten & Overige invoer'!$B7 -> 0.02 | E7: ='Kosten & Overige invoer'!$B7 -> 0.02 | F7: ='Kosten & Overige invoer'!$B7 -> 0.02 | G7: ='Kosten & Overige invoer'!$B7 -> 0.02 | H7: ='Kosten & Overige invoer'!$B7 -> 0.02 | I7: ='Kosten & Overige invoer'!$B7 -> 0.02 | J7: ='Kosten & Overige invoer'!$B7 -> 0.02 | K7: ='Kosten & Overige invoer'!$B7 -> 0.02 | L7: ='Kosten & Overige invoer'!$B7 -> 0.02 | M7: ='Kosten & Overige invoer'!$B7 -> 0.02 | N7: ='Kosten & Overige invoer'!$B7 -> 0.02 | O7: ='Kosten & Overige invoer'!$B7 -> 0.02 | P7: ='Kosten & Overige invoer'!$B7 -> 0.02 | Q7: ='Kosten & Overige invoer'!$B7 -> 0.02 | R7: ='Kosten & Overige invoer'!$B7 -> 0.02 | S7: ='Kosten & Overige invoer'!$B7 -> 0.02 | T7: ='Kosten & Overige invoer'!$B7 -> 0.02 | U7: ='Kosten & Overige invoer'!$B7 -> 0.02
A8: ='Kosten & Overige invoer'!A8 -> Nutsvoorzieningen | B8: ='Kosten & Overige invoer'!$B8 -> 0 | C8: ='Kosten & Overige invoer'!$B8 -> 0 | D8: ='Kosten & Overige invoer'!$B8 -> 0 | E8: ='Kosten & Overige invoer'!$B8 -> 0 | F8: ='Kosten & Overige invoer'!$B8 -> 0 | G8: ='Kosten & Overige invoer'!$B8 -> 0 | H8: ='Kosten & Overige invoer'!$B8 -> 0 | I8: ='Kosten & Overige invoer'!$B8 -> 0 | J8: ='Kosten & Overige invoer'!$B8 -> 0 | K8: ='Kosten & Overige invoer'!$B8 -> 0 | L8: ='Kosten & Overige invoer'!$B8 -> 0 | M8: ='Kosten & Overige invoer'!$B8 -> 0 | N8: ='Kosten & Overige invoer'!$B8 -> 0 | O8: ='Kosten & Overige invoer'!$B8 -> 0 | P8: ='Kosten & Overige invoer'!$B8 -> 0 | Q8: ='Kosten & Overige invoer'!$B8 -> 0 | R8: ='Kosten & Overige invoer'!$B8 -> 0 | S8: ='Kosten & Overige invoer'!$B8 -> 0 | T8: ='Kosten & Overige invoer'!$B8 -> 0 | U8: ='Kosten & Overige invoer'!$B8 -> 0
A9: ='Kosten & Overige invoer'!A9 -> Advies | B9: ='Kosten & Overige invoer'!$B9 -> 0 | C9: ='Kosten & Overige invoer'!$B9 -> 0 | D9: ='Kosten & Overige invoer'!$B9 -> 0 | E9: ='Kosten & Overige invoer'!$B9 -> 0 | F9: ='Kosten & Overige invoer'!$B9 -> 0 | G9: ='Kosten & Overige invoer'!$B9 -> 0 | H9: ='Kosten & Overige invoer'!$B9 -> 0 | I9: ='Kosten & Overige invoer'!$B9 -> 0 | J9: ='Kosten & Overige invoer'!$B9 -> 0 | K9: ='Kosten & Overige invoer'!$B9 -> 0 | L9: ='Kosten & Overige invoer'!$B9 -> 0 | M9: ='Kosten & Overige invoer'!$B9 -> 0 | N9: ='Kosten & Overige invoer'!$B9 -> 0 | O9: ='Kosten & Overige invoer'!$B9 -> 0 | P9: ='Kosten & Overige invoer'!$B9 -> 0 | Q9: ='Kosten & Overige invoer'!$B9 -> 0 | R9: ='Kosten & Overige invoer'!$B9 -> 0 | S9: ='Kosten & Overige invoer'!$B9 -> 0 | T9: ='Kosten & Overige invoer'!$B9 -> 0 | U9: ='Kosten & Overige invoer'!$B9 -> 0
A10: ='Kosten & Overige invoer'!A10 -> Opstartkosten | B10: ='Kosten & Overige invoer'!$B10 -> 0 | C10: 0 | D10: 0 | E10: 0 | F10: 0 | G10: 0 | H10: 0 | I10: 0 | J10: 0 | K10: 0 | L10: 0 | M10: 0 | N10: 0 | O10: 0 | P10: 0 | Q10: 0 | R10: 0 | S10: 0 | T10: 0 | U10: 0
A11: ='Kosten & Overige invoer'!A11 -> Onderhoud | B11: ='Kosten & Overige invoer'!$B11 -> 0.05 | C11: ='Kosten & Overige invoer'!$B11 -> 0.05 | D11: ='Kosten & Overige invoer'!$B11 -> 0.05 | E11: ='Kosten & Overige invoer'!$B11 -> 0.05 | F11: ='Kosten & Overige invoer'!$B11 -> 0.05 | G11: ='Kosten & Overige invoer'!$B11 -> 0.05 | H11: ='Kosten & Overige invoer'!$B11 -> 0.05 | I11: ='Kosten & Overige invoer'!$B11 -> 0.05 | J11: ='Kosten & Overige invoer'!$B11 -> 0.05 | K11: ='Kosten & Overige invoer'!$B11 -> 0.05 | L11: ='Kosten & Overige invoer'!$B11 -> 0.05 | M11: ='Kosten & Overige invoer'!$B11 -> 0.05 | N11: ='Kosten & Overige invoer'!$B11 -> 0.05 | O11: ='Kosten & Overige invoer'!$B11 -> 0.05 | P11: ='Kosten & Overige invoer'!$B11 -> 0.05 | Q11: ='Kosten & Overige invoer'!$B11 -> 0.05 | R11: ='Kosten & Overige invoer'!$B11 -> 0.05 | S11: ='Kosten & Overige invoer'!$B11 -> 0.05 | T11: ='Kosten & Overige invoer'!$B11 -> 0.05 | U11: ='Kosten & Overige invoer'!$B11 -> 0.05
A12: ='Kosten & Overige invoer'!A12 -> Verzekeringen | B12: ='Kosten & Overige invoer'!$B12 -> 0 | C12: ='Kosten & Overige invoer'!$B12 -> 0 | D12: ='Kosten & Overige invoer'!$B12 -> 0 | E12: ='Kosten & Overige invoer'!$B12 -> 0 | F12: ='Kosten & Overige invoer'!$B12 -> 0 | G12: ='Kosten & Overige invoer'!$B12 -> 0 | H12: ='Kosten & Overige invoer'!$B12 -> 0 | I12: ='Kosten & Overige invoer'!$B12 -> 0 | J12: ='Kosten & Overige invoer'!$B12 -> 0 | K12: ='Kosten & Overige invoer'!$B12 -> 0 | L12: ='Kosten & Overige invoer'!$B12 -> 0 | M12: ='Kosten & Overige invoer'!$B12 -> 0 | N12: ='Kosten & Overige invoer'!$B12 -> 0 | O12: ='Kosten & Overige invoer'!$B12 -> 0 | P12: ='Kosten & Overige invoer'!$B12 -> 0 | Q12: ='Kosten & Overige invoer'!$B12 -> 0 | R12: ='Kosten & Overige invoer'!$B12 -> 0 | S12: ='Kosten & Overige invoer'!$B12 -> 0 | T12: ='Kosten & Overige invoer'!$B12 -> 0 | U12: ='Kosten & Overige invoer'!$B12 -> 0
A13: ='Kosten & Overige invoer'!A13 -> Overige kosten | B13: 0 | C13: 0 | D13: 0 | E13: 0 | F13: 0 | G13: ='Kosten & Overige invoer'!$B13 -> 0 | H13: ='Kosten & Overige invoer'!$B13 -> 0 | I13: ='Kosten & Overige invoer'!$B13 -> 0 | J13: ='Kosten & Overige invoer'!$B13 -> 0 | K13: ='Kosten & Overige invoer'!$B13 -> 0 | L13: ='Kosten & Overige invoer'!$B13 -> 0 | M13: ='Kosten & Overige invoer'!$B13 -> 0 | N13: ='Kosten & Overige invoer'!$B13 -> 0 | O13: ='Kosten & Overige invoer'!$B13 -> 0 | P13: ='Kosten & Overige invoer'!$B13 -> 0 | Q13: ='Kosten & Overige invoer'!$B13 -> 0 | R13: ='Kosten & Overige invoer'!$B13 -> 0 | S13: ='Kosten & Overige invoer'!$B13 -> 0 | T13: ='Kosten & Overige invoer'!$B13 -> 0 | U13: ='Kosten & Overige invoer'!$B13 -> 0
A14: ='Kosten & Overige invoer'!A14 -> Onvoorziene kosten | B14: ='Kosten & Overige invoer'!$B14 -> 0.1 | C14: ='Kosten & Overige invoer'!$B14 -> 0.1 | D14: ='Kosten & Overige invoer'!$B14 -> 0.1 | E14: ='Kosten & Overige invoer'!$B14 -> 0.1 | F14: ='Kosten & Overige invoer'!$B14 -> 0.1 | G14: ='Kosten & Overige invoer'!$B14 -> 0.1 | H14: ='Kosten & Overige invoer'!$B14 -> 0.1 | I14: ='Kosten & Overige invoer'!$B14 -> 0.1 | J14: ='Kosten & Overige invoer'!$B14 -> 0.1 | K14: ='Kosten & Overige invoer'!$B14 -> 0.1 | L14: ='Kosten & Overige invoer'!$B14 -> 0.1 | M14: ='Kosten & Overige invoer'!$B14 -> 0.1 | N14: ='Kosten & Overige invoer'!$B14 -> 0.1 | O14: ='Kosten & Overige invoer'!$B14 -> 0.1 | P14: ='Kosten & Overige invoer'!$B14 -> 0.1 | Q14: ='Kosten & Overige invoer'!$B14 -> 0.1 | R14: ='Kosten & Overige invoer'!$B14 -> 0.1 | S14: ='Kosten & Overige invoer'!$B14 -> 0.1 | T14: ='Kosten & Overige invoer'!$B14 -> 0.1 | U14: ='Kosten & Overige invoer'!$B14 -> 0.1
A16: Variabele kosten | B16: 1 | C16: 2 | D16: 3 | E16: 4 | F16: 5 | G16: 6 | H16: 7 | I16: 8 | J16: 9 | K16: 10 | L16: 11 | M16: 12 | N16: 13 | O16: 14 | P16: 15 | Q16: 16 | R16: 17 | S16: 18 | T16: 19 | U16: 20
A17: Verpakkingsmateriaal per kg | B17: ='Kosten & Overige invoer'!$B17 -> 0.1 | C17: ='Kosten & Overige invoer'!$B17 -> 0.1 | D17: ='Kosten & Overige invoer'!$B17 -> 0.1 | E17: ='Kosten & Overige invoer'!$B17 -> 0.1 | F17: ='Kosten & Overige invoer'!$B17 -> 0.1 | G17: ='Kosten & Overige invoer'!$B17 -> 0.1 | H17: ='Kosten & Overige invoer'!$B17 -> 0.1 | I17: ='Kosten & Overige invoer'!$B17 -> 0.1 | J17: ='Kosten & Overige invoer'!$B17 -> 0.1 | K17: ='Kosten & Overige invoer'!$B17 -> 0.1 | L17: ='Kosten & Overige invoer'!$B17 -> 0.1 | M17: ='Kosten & Overige invoer'!$B17 -> 0.1 | N17: ='Kosten & Overige invoer'!$B17 -> 0.1 | O17: ='Kosten & Overige invoer'!$B17 -> 0.1 | P17: ='Kosten & Overige invoer'!$B17 -> 0.1 | Q17: ='Kosten & Overige invoer'!$B17 -> 0.1 | R17: ='Kosten & Overige invoer'!$B17 -> 0.1 | S17: ='Kosten & Overige invoer'!$B17 -> 0.1 | T17: ='Kosten & Overige invoer'!$B17 -> 0.1 | U17: ='Kosten & Overige invoer'!$B17 -> 0.1
A18: Transport per kg | B18: ='Kosten & Overige invoer'!$B18 -> 0 | C18: ='Kosten & Overige invoer'!$B18 -> 0 | D18: ='Kosten & Overige invoer'!$B18 -> 0 | E18: ='Kosten & Overige invoer'!$B18 -> 0 | F18: ='Kosten & Overige invoer'!$B18 -> 0 | G18: ='Kosten & Overige invoer'!$B18 -> 0 | H18: ='Kosten & Overige invoer'!$B18 -> 0 | I18: ='Kosten & Overige invoer'!$B18 -> 0 | J18: ='Kosten & Overige invoer'!$B18 -> 0 | K18: ='Kosten & Overige invoer'!$B18 -> 0 | L18: ='Kosten & Overige invoer'!$B18 -> 0 | M18: ='Kosten & Overige invoer'!$B18 -> 0 | N18: ='Kosten & Overige invoer'!$B18 -> 0 | O18: ='Kosten & Overige invoer'!$B18 -> 0 | P18: ='Kosten & Overige invoer'!$B18 -> 0 | Q18: ='Kosten & Overige invoer'!$B18 -> 0 | R18: ='Kosten & Overige invoer'!$B18 -> 0 | S18: ='Kosten & Overige invoer'!$B18 -> 0 | T18: ='Kosten & Overige invoer'!$B18 -> 0 | U18: ='Kosten & Overige invoer'!$B18 -> 0
A19: ='Kosten & Overige invoer'!A19 -> Externe logistiek | B19: ='Kosten & Overige invoer'!$B$19 -> 0 | C19: ='Kosten & Overige invoer'!$B$19 -> 0 | D19: ='Kosten & Overige invoer'!$B$19 -> 0 | E19: ='Kosten & Overige invoer'!$B$19 -> 0 | F19: ='Kosten & Overige invoer'!$B$19 -> 0 | G19: ='Kosten & Overige invoer'!$B$19 -> 0 | H19: ='Kosten & Overige invoer'!$B$19 -> 0 | I19: ='Kosten & Overige invoer'!$B$19 -> 0 | J19: ='Kosten & Overige invoer'!$B$19 -> 0 | K19: ='Kosten & Overige invoer'!$B$19 -> 0 | L19: ='Kosten & Overige invoer'!$B$19 -> 0 | M19: ='Kosten & Overige invoer'!$B$19 -> 0 | N19: ='Kosten & Overige invoer'!$B$19 -> 0 | O19: ='Kosten & Overige invoer'!$B$19 -> 0 | P19: ='Kosten & Overige invoer'!$B$19 -> 0 | Q19: ='Kosten & Overige invoer'!$B$19 -> 0 | R19: ='Kosten & Overige invoer'!$B$19 -> 0 | S19: ='Kosten & Overige invoer'!$B$19 -> 0 | T19: ='Kosten & Overige invoer'!$B$19 -> 0 | U19: ='Kosten & Overige invoer'!$B$19 -> 0
A20: Opslag per kg | B20: ='Kosten & Overige invoer'!$B20 -> 0.1 | C20: ='Kosten & Overige invoer'!$B20 -> 0.1 | D20: ='Kosten & Overige invoer'!$B20 -> 0.1 | E20: ='Kosten & Overige invoer'!$B20 -> 0.1 | F20: ='Kosten & Overige invoer'!$B20 -> 0.1 | G20: ='Kosten & Overige invoer'!$B20 -> 0.1 | H20: ='Kosten & Overige invoer'!$B20 -> 0.1 | I20: ='Kosten & Overige invoer'!$B20 -> 0.1 | J20: ='Kosten & Overige invoer'!$B20 -> 0.1 | K20: ='Kosten & Overige invoer'!$B20 -> 0.1 | L20: ='Kosten & Overige invoer'!$B20 -> 0.1 | M20: ='Kosten & Overige invoer'!$B20 -> 0.1 | N20: ='Kosten & Overige invoer'!$B20 -> 0.1 | O20: ='Kosten & Overige invoer'!$B20 -> 0.1 | P20: ='Kosten & Overige invoer'!$B20 -> 0.1 | Q20: ='Kosten & Overige invoer'!$B20 -> 0.1 | R20: ='Kosten & Overige invoer'!$B20 -> 0.1 | S20: ='Kosten & Overige invoer'!$B20 -> 0.1 | T20: ='Kosten & Overige invoer'!$B20 -> 0.1 | U20: ='Kosten & Overige invoer'!$B20 -> 0.1
A21: Overige variabele kosten per kg | B21: ='Kosten & Overige invoer'!$B21 -> 0.2 | C21: ='Kosten & Overige invoer'!$B21 -> 0.2 | D21: ='Kosten & Overige invoer'!$B21 -> 0.2 | E21: ='Kosten & Overige invoer'!$B21 -> 0.2 | F21: ='Kosten & Overige invoer'!$B21 -> 0.2 | G21: ='Kosten & Overige invoer'!$B21 -> 0.2 | H21: ='Kosten & Overige invoer'!$B21 -> 0.2 | I21: ='Kosten & Overige invoer'!$B21 -> 0.2 | J21: ='Kosten & Overige invoer'!$B21 -> 0.2 | K21: ='Kosten & Overige invoer'!$B21 -> 0.2 | L21: ='Kosten & Overige invoer'!$B21 -> 0.2 | M21: ='Kosten & Overige invoer'!$B21 -> 0.2 | N21: ='Kosten & Overige invoer'!$B21 -> 0.2 | O21: ='Kosten & Overige invoer'!$B21 -> 0.2 | P21: ='Kosten & Overige invoer'!$B21 -> 0.2 | Q21: ='Kosten & Overige invoer'!$B21 -> 0.2 | R21: ='Kosten & Overige invoer'!$B21 -> 0.2 | S21: ='Kosten & Overige invoer'!$B21 -> 0.2 | T21: ='Kosten & Overige invoer'!$B21 -> 0.2 | U21: ='Kosten & Overige invoer'!$B21 -> 0.2
A23: Andere arbeid | B23: 1 | C23: 2 | D23: 3 | E23: 4 | F23: 5 | G23: 6 | H23: 7 | I23: 8 | J23: 9 | K23: 10 | L23: 11 | M23: 12 | N23: 13 | O23: 14 | P23: 15 | Q23: 16 | R23: 17 | S23: 18 | T23: 19 | U23: 20
A24: Aanleg | D24: Aanleg
A25: Uur per jaar (per ha) eigen arbeid | B25: =IF(B23<='Kosten & Overige invoer'!$B$28,'Kosten & Overige invoer'!$B$25*Homepage!$C$17/'Kosten & Overige invoer'!$B$28,0) -> 0 | C25: =IF(C23<='Kosten & Overige invoer'!$B$28,'Kosten & Overige invoer'!$B$25*Homepage!$C$17/'Kosten & Overige invoer'!$B$28,0) -> 0 | D25: =IF(D23<='Kosten & Overige invoer'!$B$28,'Kosten & Overige invoer'!$B$25*Homepage!$C$17/'Kosten & Overige invoer'!$B$28,0) -> 0 | E25: =IF(E23<='Kosten & Overige invoer'!$B$28,'Kosten & Overige invoer'!$B$25*Homepage!$C$17/'Kosten & Overige invoer'!$B$28,0) -> 0 | F25: =IF(F23<='Kosten & Overige invoer'!$B$28,'Kosten & Overige invoer'!$B$25*Homepage!$C$17/'Kosten & Overige invoer'!$B$28,0) -> 0 | G25: =IF(G23<='Kosten & Overige invoer'!$B$28,'Kosten & Overige invoer'!$B$25*Homepage!$C$17/'Kosten & Overige invoer'!$B$28,0) -> 0 | H25: =IF(H23<='Kosten & Overige invoer'!$B$28,'Kosten & Overige invoer'!$B$25*Homepage!$C$17/'Kosten & Overige invoer'!$B$28,0) -> 0 | I25: =IF(I23<='Kosten & Overige invoer'!$B$28,'Kosten & Overige invoer'!$B$25*Homepage!$C$17/'Kosten & Overige invoer'!$B$28,0) -> 0 | J25: =IF(J23<='Kosten & Overige invoer'!$B$28,'Kosten & Overige invoer'!$B$25*Homepage!$C$17/'Kosten & Overige invoer'!$B$28,0) -> 0 | K25: =IF(K23<='Kosten & Overige invoer'!$B$28,'Kosten & Overige invoer'!$B$25*Homepage!$C$17/'Kosten & Overige invoer'!$B$28,0) -> 0 | L25: =IF(L23<='Kosten & Overige invoer'!$B$28,'Kosten & Overige invoer'!$B$25*Homepage!$C$17/'Kosten & Overige invoer'!$B$28,0) -> 0 | M25: =IF(M23<='Kosten & Overige invoer'!$B$28,'Kosten & Overige invoer'!$B$25*Homepage!$C$17/'Kosten & Overige invoer'!$B$28,0) -> 0 | N25: =IF(N23<='Kosten & Overige invoer'!$B$28,'Kosten & Overige invoer'!$B$25*Homepage!$C$17/'Kosten & Overige invoer'!$B$28,0) -> 0 | O25: =IF(O23<='Kosten & Overige invoer'!$B$28,'Kosten & Overige invoer'!$B$25*Homepage!$C$17/'Kosten & Overige invoer'!$B$28,0) -> 0 | P25: =IF(P23<='Kosten & Overige invoer'!$B$28,'Kosten & Overige invoer'!$B$25*Homepage!$C$17/'Kosten & Overige invoer'!$B$28,0) -> 0 | Q25: =IF(Q23<='Kosten & Overige invoer'!$B$28,'Kosten & Overige invoer'!$B$25*Homepage!$C$17/'Kosten & Overige invoer'!$B$28,0) -> 0 | R25: =IF(R23<='Kosten & Overige invoer'!$B$28,'Kosten & Overige invoer'!$B$25*Homepage!$C$17/'Kosten & Overige invoer'!$B$28,0) -> 0 | S25: =IF(S23<='Kosten & Overige invoer'!$B$28,'Kosten & Overige invoer'!$B$25*Homepage!$C$17/'Kosten & Overige invoer'!$B$28,0) -> 0 | T25: =IF(T23<='Kosten & Overige invoer'!$B$28,'Kosten & Overige invoer'!$B$25*Homepage!$C$17/'Kosten & Overige invoer'!$B$28,0) -> 0 | U25: =IF(U23<='Kosten & Overige invoer'!$B$28,'Kosten & Overige invoer'!$B$25*Homepage!$C$17/'Kosten & Overige invoer'!$B$28,0) -> 0
A26: Uur per jaar (per ha) externe arbeid | B26: =IF(B23<='Kosten & Overige invoer'!$B$28,'Kosten & Overige invoer'!$B$26*Homepage!$C$17/'Kosten & Overige invoer'!$B$28,0) -> 0 | C26: =IF(C23<='Kosten & Overige invoer'!$B$28,'Kosten & Overige invoer'!$B$26*Homepage!$C$17/'Kosten & Overige invoer'!$B$28,0) -> 0 | D26: =IF(D23<='Kosten & Overige invoer'!$B$28,'Kosten & Overige invoer'!$B$26*Homepage!$C$17/'Kosten & Overige invoer'!$B$28,0) -> 0 | E26: =IF(E23<='Kosten & Overige invoer'!$B$28,'Kosten & Overige invoer'!$B$26*Homepage!$C$17/'Kosten & Overige invoer'!$B$28,0) -> 0 | F26: =IF(F23<='Kosten & Overige invoer'!$B$28,'Kosten & Overige invoer'!$B$26*Homepage!$C$17/'Kosten & Overige invoer'!$B$28,0) -> 0 | G26: =IF(G23<='Kosten & Overige invoer'!$B$28,'Kosten & Overige invoer'!$B$26*Homepage!$C$17/'Kosten & Overige invoer'!$B$28,0) -> 0 | H26: =IF(H23<='Kosten & Overige invoer'!$B$28,'Kosten & Overige invoer'!$B$26*Homepage!$C$17/'Kosten & Overige invoer'!$B$28,0) -> 0 | I26: =IF(I23<='Kosten & Overige invoer'!$B$28,'Kosten & Overige invoer'!$B$26*Homepage!$C$17/'Kosten & Overige invoer'!$B$28,0) -> 0 | J26: =IF(J23<='Kosten & Overige invoer'!$B$28,'Kosten & Overige invoer'!$B$26*Homepage!$C$17/'Kosten & Overige invoer'!$B$28,0) -> 0 | K26: =IF(K23<='Kosten & Overige invoer'!$B$28,'Kosten & Overige invoer'!$B$26*Homepage!$C$17/'Kosten & Overige invoer'!$B$28,0) -> 0 | L26: =IF(L23<='Kosten & Overige invoer'!$B$28,'Kosten & Overige invoer'!$B$26*Homepage!$C$17/'Kosten & Overige invoer'!$B$28,0) -> 0 | M26: =IF(M23<='Kosten & Overige invoer'!$B$28,'Kosten & Overige invoer'!$B$26*Homepage!$C$17/'Kosten & Overige invoer'!$B$28,0) -> 0 | N26: =IF(N23<='Kosten & Overige invoer'!$B$28,'Kosten & Overige invoer'!$B$26*Homepage!$C$17/'Kosten & Overige invoer'!$B$28,0) -> 0 | O26: =IF(O23<='Kosten & Overige invoer'!$B$28,'Kosten & Overige invoer'!$B$26*Homepage!$C$17/'Kosten & Overige invoer'!$B$28,0) -> 0 | P26: =IF(P23<='Kosten & Overige invoer'!$B$28,'Kosten & Overige invoer'!$B$26*Homepage!$C$17/'Kosten & Overige invoer'!$B$28,0) -> 0 | Q26: =IF(Q23<='Kosten & Overige invoer'!$B$28,'Kosten & Overige invoer'!$B$26*Homepage!$C$17/'Kosten & Overige invoer'!$B$28,0) -> 0 | R26: =IF(R23<='Kosten & Overige invoer'!$B$28,'Kosten & Overige invoer'!$B$26*Homepage!$C$17/'Kosten & Overige invoer'!$B$28,0) -> 0 | S26: =IF(S23<='Kosten & Overige invoer'!$B$28,'Kosten & Overige invoer'!$B$26*Homepage!$C$17/'Kosten & Overige invoer'!$B$28,0) -> 0 | T26: =IF(T23<='Kosten & Overige invoer'!$B$28,'Kosten & Overige invoer'!$B$26*Homepage!$C$17/'Kosten & Overige invoer'!$B$28,0) -> 0 | U26: =IF(U23<='Kosten & Overige invoer'!$B$28,'Kosten & Overige invoer'!$B$26*Homepage!$C$17/'Kosten & Overige invoer'!$B$28,0) -> 0
A27: Prijs per uur externe arbeid | B27: ='Kosten & Overige invoer'!$B27 -> 25 | C27: ='Kosten & Overige invoer'!$B27 -> 25 | D27: ='Kosten & Overige invoer'!$B27 -> 25 | E27: ='Kosten & Overige invoer'!$B27 -> 25 | F27: ='Kosten & Overige invoer'!$B27 -> 25 | G27: ='Kosten & Overige invoer'!$B27 -> 25 | H27: ='Kosten & Overige invoer'!$B27 -> 25 | I27: ='Kosten & Overige invoer'!$B27 -> 25 | J27: ='Kosten & Overige invoer'!$B27 -> 25 | K27: ='Kosten & Overige invoer'!$B27 -> 25 | L27: ='Kosten & Overige invoer'!$B27 -> 25 | M27: ='Kosten & Overige invoer'!$B27 -> 25 | N27: ='Kosten & Overige invoer'!$B27 -> 25 | O27: ='Kosten & Overige invoer'!$B27 -> 25 | P27: ='Kosten & Overige invoer'!$B27 -> 25 | Q27: ='Kosten & Overige invoer'!$B27 -> 25 | R27: ='Kosten & Overige invoer'!$B27 -> 25 | S27: ='Kosten & Overige invoer'!$B27 -> 25 | T27: ='Kosten & Overige invoer'!$B27 -> 25 | U27: ='Kosten & Overige invoer'!$B27 -> 25
A28: Schouw en inspectie | D28: Schouw en inspectie
A29: Uur per jaar (per ha) eigen arbeid | B29: ='Kosten & Overige invoer'!$B30 -> 0 | C29: ='Kosten & Overige invoer'!$B30 -> 0 | D29: ='Kosten & Overige invoer'!$B30 -> 0 | E29: ='Kosten & Overige invoer'!$B30 -> 0 | F29: ='Kosten & Overige invoer'!$B30 -> 0 | G29: ='Kosten & Overige invoer'!$B30 -> 0 | H29: ='Kosten & Overige invoer'!$B30 -> 0 | I29: ='Kosten & Overige invoer'!$B30 -> 0 | J29: ='Kosten & Overige invoer'!$B30 -> 0 | K29: ='Kosten & Overige invoer'!$B30 -> 0 | L29: ='Kosten & Overige invoer'!$B30 -> 0 | M29: ='Kosten & Overige invoer'!$B30 -> 0 | N29: ='Kosten & Overige invoer'!$B30 -> 0 | O29: ='Kosten & Overige invoer'!$B30 -> 0 | P29: ='Kosten & Overige invoer'!$B30 -> 0 | Q29: ='Kosten & Overige invoer'!$B30 -> 0 | R29: ='Kosten & Overige invoer'!$B30 -> 0 | S29: ='Kosten & Overige invoer'!$B30 -> 0 | T29: ='Kosten & Overige invoer'!$B30 -> 0 | U29: ='Kosten & Overige invoer'!$B30 -> 0
A30: Uur per jaar (per ha) externe arbeid | B30: ='Kosten & Overige invoer'!$B31 -> 0 | C30: ='Kosten & Overige invoer'!$B31 -> 0 | D30: ='Kosten & Overige invoer'!$B31 -> 0 | E30: ='Kosten & Overige invoer'!$B31 -> 0 | F30: ='Kosten & Overige invoer'!$B31 -> 0 | G30: ='Kosten & Overige invoer'!$B31 -> 0 | H30: ='Kosten & Overige invoer'!$B31 -> 0 | I30: ='Kosten & Overige invoer'!$B31 -> 0 | J30: ='Kosten & Overige invoer'!$B31 -> 0 | K30: ='Kosten & Overige invoer'!$B31 -> 0 | L30: ='Kosten & Overige invoer'!$B31 -> 0 | M30: ='Kosten & Overige invoer'!$B31 -> 0 | N30: ='Kosten & Overige invoer'!$B31 -> 0 | O30: ='Kosten & Overige invoer'!$B31 -> 0 | P30: ='Kosten & Overige invoer'!$B31 -> 0 | Q30: ='Kosten & Overige invoer'!$B31 -> 0 | R30: ='Kosten & Overige invoer'!$B31 -> 0 | S30: ='Kosten & Overige invoer'!$B31 -> 0 | T30: ='Kosten & Overige invoer'!$B31 -> 0 | U30: ='Kosten & Overige invoer'!$B31 -> 0
A31: Prijs per uur externe arbeid | B31: ='Kosten & Overige invoer'!$B32 -> 25 | C31: ='Kosten & Overige invoer'!$B32 -> 25 | D31: ='Kosten & Overige invoer'!$B32 -> 25 | E31: ='Kosten & Overige invoer'!$B32 -> 25 | F31: ='Kosten & Overige invoer'!$B32 -> 25 | G31: ='Kosten & Overige invoer'!$B32 -> 25 | H31: ='Kosten & Overige invoer'!$B32 -> 25 | I31: ='Kosten & Overige invoer'!$B32 -> 25 | J31: ='Kosten & Overige invoer'!$B32 -> 25 | K31: ='Kosten & Overige invoer'!$B32 -> 25 | L31: ='Kosten & Overige invoer'!$B32 -> 25 | M31: ='Kosten & Overige invoer'!$B32 -> 25 | N31: ='Kosten & Overige invoer'!$B32 -> 25 | O31: ='Kosten & Overige invoer'!$B32 -> 25 | P31: ='Kosten & Overige invoer'!$B32 -> 25 | Q31: ='Kosten & Overige invoer'!$B32 -> 25 | R31: ='Kosten & Overige invoer'!$B32 -> 25 | S31: ='Kosten & Overige invoer'!$B32 -> 25 | T31: ='Kosten & Overige invoer'!$B32 -> 25 | U31: ='Kosten & Overige invoer'!$B32 -> 25
A32: (groen) Onderhoud | D32: (groen) onderhoud
A33: Uur per jaar (per ha) eigen arbeid | B33: ='Kosten & Overige invoer'!$B34 -> 0 | C33: ='Kosten & Overige invoer'!$B34 -> 0 | D33: ='Kosten & Overige invoer'!$B34 -> 0 | E33: ='Kosten & Overige invoer'!$B34 -> 0 | F33: ='Kosten & Overige invoer'!$B34 -> 0 | G33: ='Kosten & Overige invoer'!$B34 -> 0 | H33: ='Kosten & Overige invoer'!$B34 -> 0 | I33: ='Kosten & Overige invoer'!$B34 -> 0 | J33: ='Kosten & Overige invoer'!$B34 -> 0 | K33: ='Kosten & Overige invoer'!$B34 -> 0 | L33: ='Kosten & Overige invoer'!$B34 -> 0 | M33: ='Kosten & Overige invoer'!$B34 -> 0 | N33: ='Kosten & Overige invoer'!$B34 -> 0 | O33: ='Kosten & Overige invoer'!$B34 -> 0 | P33: ='Kosten & Overige invoer'!$B34 -> 0 | Q33: ='Kosten & Overige invoer'!$B34 -> 0 | R33: ='Kosten & Overige invoer'!$B34 -> 0 | S33: ='Kosten & Overige invoer'!$B34 -> 0 | T33: ='Kosten & Overige invoer'!$B34 -> 0 | U33: ='Kosten & Overige invoer'!$B34 -> 0
A34: Uur per jaar (per ha) externe arbeid | B34: ='Kosten & Overige invoer'!$B35 -> 0 | C34: ='Kosten & Overige invoer'!$B35 -> 0 | D34: ='Kosten & Overige invoer'!$B35 -> 0 | E34: ='Kosten & Overige invoer'!$B35 -> 0 | F34: ='Kosten & Overige invoer'!$B35 -> 0 | G34: ='Kosten & Overige invoer'!$B35 -> 0 | H34: ='Kosten & Overige invoer'!$B35 -> 0 | I34: ='Kosten & Overige invoer'!$B35 -> 0 | J34: ='Kosten & Overige invoer'!$B35 -> 0 | K34: ='Kosten & Overige invoer'!$B35 -> 0 | L34: ='Kosten & Overige invoer'!$B35 -> 0 | M34: ='Kosten & Overige invoer'!$B35 -> 0 | N34: ='Kosten & Overige invoer'!$B35 -> 0 | O34: ='Kosten & Overige invoer'!$B35 -> 0 | P34: ='Kosten & Overige invoer'!$B35 -> 0 | Q34: ='Kosten & Overige invoer'!$B35 -> 0 | R34: ='Kosten & Overige invoer'!$B35 -> 0 | S34: ='Kosten & Overige invoer'!$B35 -> 0 | T34: ='Kosten & Overige invoer'!$B35 -> 0 | U34: ='Kosten & Overige invoer'!$B35 -> 0
A35: Prijs per uur externe arbeid | B35: ='Kosten & Overige invoer'!$B36 -> 25 | C35: ='Kosten & Overige invoer'!$B36 -> 25 | D35: ='Kosten & Overige invoer'!$B36 -> 25 | E35: ='Kosten & Overige invoer'!$B36 -> 25 | F35: ='Kosten & Overige invoer'!$B36 -> 25 | G35: ='Kosten & Overige invoer'!$B36 -> 25 | H35: ='Kosten & Overige invoer'!$B36 -> 25 | I35: ='Kosten & Overige invoer'!$B36 -> 25 | J35: ='Kosten & Overige invoer'!$B36 -> 25 | K35: ='Kosten & Overige invoer'!$B36 -> 25 | L35: ='Kosten & Overige invoer'!$B36 -> 25 | M35: ='Kosten & Overige invoer'!$B36 -> 25 | N35: ='Kosten & Overige invoer'!$B36 -> 25 | O35: ='Kosten & Overige invoer'!$B36 -> 25 | P35: ='Kosten & Overige invoer'!$B36 -> 25 | Q35: ='Kosten & Overige invoer'!$B36 -> 25 | R35: ='Kosten & Overige invoer'!$B36 -> 25 | S35: ='Kosten & Overige invoer'!$B36 -> 25 | T35: ='Kosten & Overige invoer'!$B36 -> 25 | U35: ='Kosten & Overige invoer'!$B36 -> 25
A36: Organisatie & logistiek | D36: Organisatie & logistiek
A37: Uur per jaar eigen arbeid | B37: =IF('Kosten & Overige invoer'!$B$41>=(B23+1),0,IF(B23>='Kosten & Overige invoer'!$B$42,'Kosten & Overige invoer'!$B$38,('Kosten & Overige invoer'!$B$38/('Kosten & Overige invoer'!$B$42-'Kosten & Overige invoer'!$B$41)*((B23+1)-'Kosten & Overige invoer'!$B$41)))) -> 0 | C37: =IF('Kosten & Overige invoer'!$B$41>=(C23+1),0,IF(C23>='Kosten & Overige invoer'!$B$42,'Kosten & Overige invoer'!$B$38,('Kosten & Overige invoer'!$B$38/('Kosten & Overige invoer'!$B$42-'Kosten & Overige invoer'!$B$41)*((C23+1)-'Kosten & Overige invoer'!$B$41)))) -> 0 | D37: =IF('Kosten & Overige invoer'!$B$41>=(D23+1),0,IF(D23>='Kosten & Overige invoer'!$B$42,'Kosten & Overige invoer'!$B$38,('Kosten & Overige invoer'!$B$38/('Kosten & Overige invoer'!$B$42-'Kosten & Overige invoer'!$B$41)*((D23+1)-'Kosten & Overige invoer'!$B$41)))) -> 0 | E37: =IF('Kosten & Overige invoer'!$B$41>=(E23+1),0,IF(E23>='Kosten & Overige invoer'!$B$42,'Kosten & Overige invoer'!$B$38,('Kosten & Overige invoer'!$B$38/('Kosten & Overige invoer'!$B$42-'Kosten & Overige invoer'!$B$41)*((E23+1)-'Kosten & Overige invoer'!$B$41)))) -> 0 | F37: =IF('Kosten & Overige invoer'!$B$41>=(F23+1),0,IF(F23>='Kosten & Overige invoer'!$B$42,'Kosten & Overige invoer'!$B$38,('Kosten & Overige invoer'!$B$38/('Kosten & Overige invoer'!$B$42-'Kosten & Overige invoer'!$B$41)*((F23+1)-'Kosten & Overige invoer'!$B$41)))) -> 0 | G37: =IF('Kosten & Overige invoer'!$B$41>=(G23+1),0,IF(G23>='Kosten & Overige invoer'!$B$42,'Kosten & Overige invoer'!$B$38,('Kosten & Overige invoer'!$B$38/('Kosten & Overige invoer'!$B$42-'Kosten & Overige invoer'!$B$41)*((G23+1)-'Kosten & Overige invoer'!$B$41)))) -> 0 | H37: =IF('Kosten & Overige invoer'!$B$41>=(H23+1),0,IF(H23>='Kosten & Overige invoer'!$B$42,'Kosten & Overige invoer'!$B$38,('Kosten & Overige invoer'!$B$38/('Kosten & Overige invoer'!$B$42-'Kosten & Overige invoer'!$B$41)*((H23+1)-'Kosten & Overige invoer'!$B$41)))) -> 0 | I37: =IF('Kosten & Overige invoer'!$B$41>=(I23+1),0,IF(I23>='Kosten & Overige invoer'!$B$42,'Kosten & Overige invoer'!$B$38,('Kosten & Overige invoer'!$B$38/('Kosten & Overige invoer'!$B$42-'Kosten & Overige invoer'!$B$41)*((I23+1)-'Kosten & Overige invoer'!$B$41)))) -> 0 | J37: =IF('Kosten & Overige invoer'!$B$41>=(J23+1),0,IF(J23>='Kosten & Overige invoer'!$B$42,'Kosten & Overige invoer'!$B$38,('Kosten & Overige invoer'!$B$38/('Kosten & Overige invoer'!$B$42-'Kosten & Overige invoer'!$B$41)*((J23+1)-'Kosten & Overige invoer'!$B$41)))) -> 0 | K37: =IF('Kosten & Overige invoer'!$B$41>=(K23+1),0,IF(K23>='Kosten & Overige invoer'!$B$42,'Kosten & Overige invoer'!$B$38,('Kosten & Overige invoer'!$B$38/('Kosten & Overige invoer'!$B$42-'Kosten & Overige invoer'!$B$41)*((K23+1)-'Kosten & Overige invoer'!$B$41)))) -> 0 | L37: =IF('Kosten & Overige invoer'!$B$41>=(L23+1),0,IF(L23>='Kosten & Overige invoer'!$B$42,'Kosten & Overige invoer'!$B$38,('Kosten & Overige invoer'!$B$38/('Kosten & Overige invoer'!$B$42-'Kosten & Overige invoer'!$B$41)*((L23+1)-'Kosten & Overige invoer'!$B$41)))) -> 0 | M37: =IF('Kosten & Overige invoer'!$B$41>=(M23+1),0,IF(M23>='Kosten & Overige invoer'!$B$42,'Kosten & Overige invoer'!$B$38,('Kosten & Overige invoer'!$B$38/('Kosten & Overige invoer'!$B$42-'Kosten & Overige invoer'!$B$41)*((M23+1)-'Kosten & Overige invoer'!$B$41)))) -> 0 | N37: =IF('Kosten & Overige invoer'!$B$41>=(N23+1),0,IF(N23>='Kosten & Overige invoer'!$B$42,'Kosten & Overige invoer'!$B$38,('Kosten & Overige invoer'!$B$38/('Kosten & Overige invoer'!$B$42-'Kosten & Overige invoer'!$B$41)*((N23+1)-'Kosten & Overige invoer'!$B$41)))) -> 0 | O37: =IF('Kosten & Overige invoer'!$B$41>=(O23+1),0,IF(O23>='Kosten & Overige invoer'!$B$42,'Kosten & Overige invoer'!$B$38,('Kosten & Overige invoer'!$B$38/('Kosten & Overige invoer'!$B$42-'Kosten & Overige invoer'!$B$41)*((O23+1)-'Kosten & Overige invoer'!$B$41)))) -> 0 | P37: =IF('Kosten & Overige invoer'!$B$41>=(P23+1),0,IF(P23>='Kosten & Overige invoer'!$B$42,'Kosten & Overige invoer'!$B$38,('Kosten & Overige invoer'!$B$38/('Kosten & Overige invoer'!$B$42-'Kosten & Overige invoer'!$B$41)*((P23+1)-'Kosten & Overige invoer'!$B$41)))) -> 0 | Q37: =IF('Kosten & Overige invoer'!$B$41>=(Q23+1),0,IF(Q23>='Kosten & Overige invoer'!$B$42,'Kosten & Overige invoer'!$B$38,('Kosten & Overige invoer'!$B$38/('Kosten & Overige invoer'!$B$42-'Kosten & Overige invoer'!$B$41)*((Q23+1)-'Kosten & Overige invoer'!$B$41)))) -> 0 | R37: =IF('Kosten & Overige invoer'!$B$41>=(R23+1),0,IF(R23>='Kosten & Overige invoer'!$B$42,'Kosten & Overige invoer'!$B$38,('Kosten & Overige invoer'!$B$38/('Kosten & Overige invoer'!$B$42-'Kosten & Overige invoer'!$B$41)*((R23+1)-'Kosten & Overige invoer'!$B$41)))) -> 0 | S37: =IF('Kosten & Overige invoer'!$B$41>=(S23+1),0,IF(S23>='Kosten & Overige invoer'!$B$42,'Kosten & Overige invoer'!$B$38,('Kosten & Overige invoer'!$B$38/('Kosten & Overige invoer'!$B$42-'Kosten & Overige invoer'!$B$41)*((S23+1)-'Kosten & Overige invoer'!$B$41)))) -> 0 | T37: =IF('Kosten & Overige invoer'!$B$41>=(T23+1),0,IF(T23>='Kosten & Overige invoer'!$B$42,'Kosten & Overige invoer'!$B$38,('Kosten & Overige invoer'!$B$38/('Kosten & Overige invoer'!$B$42-'Kosten & Overige invoer'!$B$41)*((T23+1)-'Kosten & Overige invoer'!$B$41)))) -> 0 | U37: =IF('Kosten & Overige invoer'!$B$41>=(U23+1),0,IF(U23>='Kosten & Overige invoer'!$B$42,'Kosten & Overige invoer'!$B$38,('Kosten & Overige invoer'!$B$38/('Kosten & Overige invoer'!$B$42-'Kosten & Overige invoer'!$B$41)*((U23+1)-'Kosten & Overige invoer'!$B$41)))) -> 0
A38: Uur per jaar externe arbeid | B38: =IF('Kosten & Overige invoer'!$B$41>=(B23+1),0,IF(B23>='Kosten & Overige invoer'!$B$42,'Kosten & Overige invoer'!$B$39,('Kosten & Overige invoer'!$B$39/('Kosten & Overige invoer'!$B$42-'Kosten & Overige invoer'!$B$41)*((B23+1)-'Kosten & Overige invoer'!$B$41)))) -> 0 | C38: =IF('Kosten & Overige invoer'!$B$41>=(C23+1),0,IF(C23>='Kosten & Overige invoer'!$B$42,'Kosten & Overige invoer'!$B$39,('Kosten & Overige invoer'!$B$39/('Kosten & Overige invoer'!$B$42-'Kosten & Overige invoer'!$B$41)*((C23+1)-'Kosten & Overige invoer'!$B$41)))) -> 0 | D38: =IF('Kosten & Overige invoer'!$B$41>=(D23+1),0,IF(D23>='Kosten & Overige invoer'!$B$42,'Kosten & Overige invoer'!$B$39,('Kosten & Overige invoer'!$B$39/('Kosten & Overige invoer'!$B$42-'Kosten & Overige invoer'!$B$41)*((D23+1)-'Kosten & Overige invoer'!$B$41)))) -> 0 | E38: =IF('Kosten & Overige invoer'!$B$41>=(E23+1),0,IF(E23>='Kosten & Overige invoer'!$B$42,'Kosten & Overige invoer'!$B$39,('Kosten & Overige invoer'!$B$39/('Kosten & Overige invoer'!$B$42-'Kosten & Overige invoer'!$B$41)*((E23+1)-'Kosten & Overige invoer'!$B$41)))) -> 0 | F38: =IF('Kosten & Overige invoer'!$B$41>=(F23+1),0,IF(F23>='Kosten & Overige invoer'!$B$42,'Kosten & Overige invoer'!$B$39,('Kosten & Overige invoer'!$B$39/('Kosten & Overige invoer'!$B$42-'Kosten & Overige invoer'!$B$41)*((F23+1)-'Kosten & Overige invoer'!$B$41)))) -> 0 | G38: =IF('Kosten & Overige invoer'!$B$41>=(G23+1),0,IF(G23>='Kosten & Overige invoer'!$B$42,'Kosten & Overige invoer'!$B$39,('Kosten & Overige invoer'!$B$39/('Kosten & Overige invoer'!$B$42-'Kosten & Overige invoer'!$B$41)*((G23+1)-'Kosten & Overige invoer'!$B$41)))) -> 0 | H38: =IF('Kosten & Overige invoer'!$B$41>=(H23+1),0,IF(H23>='Kosten & Overige invoer'!$B$42,'Kosten & Overige invoer'!$B$39,('Kosten & Overige invoer'!$B$39/('Kosten & Overige invoer'!$B$42-'Kosten & Overige invoer'!$B$41)*((H23+1)-'Kosten & Overige invoer'!$B$41)))) -> 0 | I38: =IF('Kosten & Overige invoer'!$B$41>=(I23+1),0,IF(I23>='Kosten & Overige invoer'!$B$42,'Kosten & Overige invoer'!$B$39,('Kosten & Overige invoer'!$B$39/('Kosten & Overige invoer'!$B$42-'Kosten & Overige invoer'!$B$41)*((I23+1)-'Kosten & Overige invoer'!$B$41)))) -> 0 | J38: =IF('Kosten & Overige invoer'!$B$41>=(J23+1),0,IF(J23>='Kosten & Overige invoer'!$B$42,'Kosten & Overige invoer'!$B$39,('Kosten & Overige invoer'!$B$39/('Kosten & Overige invoer'!$B$42-'Kosten & Overige invoer'!$B$41)*((J23+1)-'Kosten & Overige invoer'!$B$41)))) -> 0 | K38: =IF('Kosten & Overige invoer'!$B$41>=(K23+1),0,IF(K23>='Kosten & Overige invoer'!$B$42,'Kosten & Overige invoer'!$B$39,('Kosten & Overige invoer'!$B$39/('Kosten & Overige invoer'!$B$42-'Kosten & Overige invoer'!$B$41)*((K23+1)-'Kosten & Overige invoer'!$B$41)))) -> 0 | L38: =IF('Kosten & Overige invoer'!$B$41>=(L23+1),0,IF(L23>='Kosten & Overige invoer'!$B$42,'Kosten & Overige invoer'!$B$39,('Kosten & Overige invoer'!$B$39/('Kosten & Overige invoer'!$B$42-'Kosten & Overige invoer'!$B$41)*((L23+1)-'Kosten & Overige invoer'!$B$41)))) -> 0 | M38: =IF('Kosten & Overige invoer'!$B$41>=(M23+1),0,IF(M23>='Kosten & Overige invoer'!$B$42,'Kosten & Overige invoer'!$B$39,('Kosten & Overige invoer'!$B$39/('Kosten & Overige invoer'!$B$42-'Kosten & Overige invoer'!$B$41)*((M23+1)-'Kosten & Overige invoer'!$B$41)))) -> 0 | N38: =IF('Kosten & Overige invoer'!$B$41>=(N23+1),0,IF(N23>='Kosten & Overige invoer'!$B$42,'Kosten & Overige invoer'!$B$39,('Kosten & Overige invoer'!$B$39/('Kosten & Overige invoer'!$B$42-'Kosten & Overige invoer'!$B$41)*((N23+1)-'Kosten & Overige invoer'!$B$41)))) -> 0 | O38: =IF('Kosten & Overige invoer'!$B$41>=(O23+1),0,IF(O23>='Kosten & Overige invoer'!$B$42,'Kosten & Overige invoer'!$B$39,('Kosten & Overige invoer'!$B$39/('Kosten & Overige invoer'!$B$42-'Kosten & Overige invoer'!$B$41)*((O23+1)-'Kosten & Overige invoer'!$B$41)))) -> 0 | P38: =IF('Kosten & Overige invoer'!$B$41>=(P23+1),0,IF(P23>='Kosten & Overige invoer'!$B$42,'Kosten & Overige invoer'!$B$39,('Kosten & Overige invoer'!$B$39/('Kosten & Overige invoer'!$B$42-'Kosten & Overige invoer'!$B$41)*((P23+1)-'Kosten & Overige invoer'!$B$41)))) -> 0 | Q38: =IF('Kosten & Overige invoer'!$B$41>=(Q23+1),0,IF(Q23>='Kosten & Overige invoer'!$B$42,'Kosten & Overige invoer'!$B$39,('Kosten & Overige invoer'!$B$39/('Kosten & Overige invoer'!$B$42-'Kosten & Overige invoer'!$B$41)*((Q23+1)-'Kosten & Overige invoer'!$B$41)))) -> 0 | R38: =IF('Kosten & Overige invoer'!$B$41>=(R23+1),0,IF(R23>='Kosten & Overige invoer'!$B$42,'Kosten & Overige invoer'!$B$39,('Kosten & Overige invoer'!$B$39/('Kosten & Overige invoer'!$B$42-'Kosten & Overige invoer'!$B$41)*((R23+1)-'Kosten & Overige invoer'!$B$41)))) -> 0 | S38: =IF('Kosten & Overige invoer'!$B$41>=(S23+1),0,IF(S23>='Kosten & Overige invoer'!$B$42,'Kosten & Overige invoer'!$B$39,('Kosten & Overige invoer'!$B$39/('Kosten & Overige invoer'!$B$42-'Kosten & Overige invoer'!$B$41)*((S23+1)-'Kosten & Overige invoer'!$B$41)))) -> 0 | T38: =IF('Kosten & Overige invoer'!$B$41>=(T23+1),0,IF(T23>='Kosten & Overige invoer'!$B$42,'Kosten & Overige invoer'!$B$39,('Kosten & Overige invoer'!$B$39/('Kosten & Overige invoer'!$B$42-'Kosten & Overige invoer'!$B$41)*((T23+1)-'Kosten & Overige invoer'!$B$41)))) -> 0 | U38: =IF('Kosten & Overige invoer'!$B$41>=(U23+1),0,IF(U23>='Kosten & Overige invoer'!$B$42,'Kosten & Overige invoer'!$B$39,('Kosten & Overige invoer'!$B$39/('Kosten & Overige invoer'!$B$42-'Kosten & Overige invoer'!$B$41)*((U23+1)-'Kosten & Overige invoer'!$B$41)))) -> 0
A39: Prijs per uur externe arbeid | B39: ='Kosten & Overige invoer'!$B40 -> 25 | C39: ='Kosten & Overige invoer'!$B40 -> 25 | D39: ='Kosten & Overige invoer'!$B40 -> 25 | E39: ='Kosten & Overige invoer'!$B40 -> 25 | F39: ='Kosten & Overige invoer'!$B40 -> 25 | G39: ='Kosten & Overige invoer'!$B40 -> 25 | H39: ='Kosten & Overige invoer'!$B40 -> 25 | I39: ='Kosten & Overige invoer'!$B40 -> 25 | J39: ='Kosten & Overige invoer'!$B40 -> 25 | K39: ='Kosten & Overige invoer'!$B40 -> 25 | L39: ='Kosten & Overige invoer'!$B40 -> 25 | M39: ='Kosten & Overige invoer'!$B40 -> 25 | N39: ='Kosten & Overige invoer'!$B40 -> 25 | O39: ='Kosten & Overige invoer'!$B40 -> 25 | P39: ='Kosten & Overige invoer'!$B40 -> 25 | Q39: ='Kosten & Overige invoer'!$B40 -> 25 | R39: ='Kosten & Overige invoer'!$B40 -> 25 | S39: ='Kosten & Overige invoer'!$B40 -> 25 | T39: ='Kosten & Overige invoer'!$B40 -> 25 | U39: ='Kosten & Overige invoer'!$B40 -> 25
A40: Rondleidingen | D40: Rondleidingen
A41: Uur per jaar eigen arbeid | B41: ='Kosten & Overige invoer'!$B44 -> 0 | C41: ='Kosten & Overige invoer'!$B44 -> 0 | D41: ='Kosten & Overige invoer'!$B44 -> 0 | E41: ='Kosten & Overige invoer'!$B44 -> 0 | F41: ='Kosten & Overige invoer'!$B44 -> 0 | G41: ='Kosten & Overige invoer'!$B44 -> 0 | H41: ='Kosten & Overige invoer'!$B44 -> 0 | I41: ='Kosten & Overige invoer'!$B44 -> 0 | J41: ='Kosten & Overige invoer'!$B44 -> 0 | K41: ='Kosten & Overige invoer'!$B44 -> 0 | L41: ='Kosten & Overige invoer'!$B44 -> 0 | M41: ='Kosten & Overige invoer'!$B44 -> 0 | N41: ='Kosten & Overige invoer'!$B44 -> 0 | O41: ='Kosten & Overige invoer'!$B44 -> 0 | P41: ='Kosten & Overige invoer'!$B44 -> 0 | Q41: ='Kosten & Overige invoer'!$B44 -> 0 | R41: ='Kosten & Overige invoer'!$B44 -> 0 | S41: ='Kosten & Overige invoer'!$B44 -> 0 | T41: ='Kosten & Overige invoer'!$B44 -> 0 | U41: ='Kosten & Overige invoer'!$B44 -> 0
A42: Uur per jaar externe arbeid | B42: ='Kosten & Overige invoer'!$B45 -> 0 | C42: ='Kosten & Overige invoer'!$B45 -> 0 | D42: ='Kosten & Overige invoer'!$B45 -> 0 | E42: ='Kosten & Overige invoer'!$B45 -> 0 | F42: ='Kosten & Overige invoer'!$B45 -> 0 | G42: ='Kosten & Overige invoer'!$B45 -> 0 | H42: ='Kosten & Overige invoer'!$B45 -> 0 | I42: ='Kosten & Overige invoer'!$B45 -> 0 | J42: ='Kosten & Overige invoer'!$B45 -> 0 | K42: ='Kosten & Overige invoer'!$B45 -> 0 | L42: ='Kosten & Overige invoer'!$B45 -> 0 | M42: ='Kosten & Overige invoer'!$B45 -> 0 | N42: ='Kosten & Overige invoer'!$B45 -> 0 | O42: ='Kosten & Overige invoer'!$B45 -> 0 | P42: ='Kosten & Overige invoer'!$B45 -> 0 | Q42: ='Kosten & Overige invoer'!$B45 -> 0 | R42: ='Kosten & Overige invoer'!$B45 -> 0 | S42: ='Kosten & Overige invoer'!$B45 -> 0 | T42: ='Kosten & Overige invoer'!$B45 -> 0 | U42: ='Kosten & Overige invoer'!$B45 -> 0
A43: Prijs per uur externe arbeid | B43: ='Kosten & Overige invoer'!$B46 -> 25 | C43: ='Kosten & Overige invoer'!$B46 -> 25 | D43: ='Kosten & Overige invoer'!$B46 -> 25 | E43: ='Kosten & Overige invoer'!$B46 -> 25 | F43: ='Kosten & Overige invoer'!$B46 -> 25 | G43: ='Kosten & Overige invoer'!$B46 -> 25 | H43: ='Kosten & Overige invoer'!$B46 -> 25 | I43: ='Kosten & Overige invoer'!$B46 -> 25 | J43: ='Kosten & Overige invoer'!$B46 -> 25 | K43: ='Kosten & Overige invoer'!$B46 -> 25 | L43: ='Kosten & Overige invoer'!$B46 -> 25 | M43: ='Kosten & Overige invoer'!$B46 -> 25 | N43: ='Kosten & Overige invoer'!$B46 -> 25 | O43: ='Kosten & Overige invoer'!$B46 -> 25 | P43: ='Kosten & Overige invoer'!$B46 -> 25 | Q43: ='Kosten & Overige invoer'!$B46 -> 25 | R43: ='Kosten & Overige invoer'!$B46 -> 25 | S43: ='Kosten & Overige invoer'!$B46 -> 25 | T43: ='Kosten & Overige invoer'!$B46 -> 25 | U43: ='Kosten & Overige invoer'!$B46 -> 25
A44: Evenementen | D44: Evenementen
A45: Uur per jaar eigen arbeid | B45: ='Kosten & Overige invoer'!$B48 -> 0 | C45: ='Kosten & Overige invoer'!$B48 -> 0 | D45: ='Kosten & Overige invoer'!$B48 -> 0 | E45: ='Kosten & Overige invoer'!$B48 -> 0 | F45: ='Kosten & Overige invoer'!$B48 -> 0 | G45: ='Kosten & Overige invoer'!$B48 -> 0 | H45: ='Kosten & Overige invoer'!$B48 -> 0 | I45: ='Kosten & Overige invoer'!$B48 -> 0 | J45: ='Kosten & Overige invoer'!$B48 -> 0 | K45: ='Kosten & Overige invoer'!$B48 -> 0 | L45: ='Kosten & Overige invoer'!$B48 -> 0 | M45: ='Kosten & Overige invoer'!$B48 -> 0 | N45: ='Kosten & Overige invoer'!$B48 -> 0 | O45: ='Kosten & Overige invoer'!$B48 -> 0 | P45: ='Kosten & Overige invoer'!$B48 -> 0 | Q45: ='Kosten & Overige invoer'!$B48 -> 0 | R45: ='Kosten & Overige invoer'!$B48 -> 0 | S45: ='Kosten & Overige invoer'!$B48 -> 0 | T45: ='Kosten & Overige invoer'!$B48 -> 0 | U45: ='Kosten & Overige invoer'!$B48 -> 0
A46: Uur per jaar externe arbeid | B46: ='Kosten & Overige invoer'!$B49 -> 0 | C46: ='Kosten & Overige invoer'!$B49 -> 0 | D46: ='Kosten & Overige invoer'!$B49 -> 0 | E46: ='Kosten & Overige invoer'!$B49 -> 0 | F46: ='Kosten & Overige invoer'!$B49 -> 0 | G46: ='Kosten & Overige invoer'!$B49 -> 0 | H46: ='Kosten & Overige invoer'!$B49 -> 0 | I46: ='Kosten & Overige invoer'!$B49 -> 0 | J46: ='Kosten & Overige invoer'!$B49 -> 0 | K46: ='Kosten & Overige invoer'!$B49 -> 0 | L46: ='Kosten & Overige invoer'!$B49 -> 0 | M46: ='Kosten & Overige invoer'!$B49 -> 0 | N46: ='Kosten & Overige invoer'!$B49 -> 0 | O46: ='Kosten & Overige invoer'!$B49 -> 0 | P46: ='Kosten & Overige invoer'!$B49 -> 0 | Q46: ='Kosten & Overige invoer'!$B49 -> 0 | R46: ='Kosten & Overige invoer'!$B49 -> 0 | S46: ='Kosten & Overige invoer'!$B49 -> 0 | T46: ='Kosten & Overige invoer'!$B49 -> 0 | U46: ='Kosten & Overige invoer'!$B49 -> 0
A47: Prijs per uur externe arbeid | B47: ='Kosten & Overige invoer'!$B50 -> 25 | C47: ='Kosten & Overige invoer'!$B50 -> 25 | D47: ='Kosten & Overige invoer'!$B50 -> 25 | E47: ='Kosten & Overige invoer'!$B50 -> 25 | F47: ='Kosten & Overige invoer'!$B50 -> 25 | G47: ='Kosten & Overige invoer'!$B50 -> 25 | H47: ='Kosten & Overige invoer'!$B50 -> 25 | I47: ='Kosten & Overige invoer'!$B50 -> 25 | J47: ='Kosten & Overige invoer'!$B50 -> 25 | K47: ='Kosten & Overige invoer'!$B50 -> 25 | L47: ='Kosten & Overige invoer'!$B50 -> 25 | M47: ='Kosten & Overige invoer'!$B50 -> 25 | N47: ='Kosten & Overige invoer'!$B50 -> 25 | O47: ='Kosten & Overige invoer'!$B50 -> 25 | P47: ='Kosten & Overige invoer'!$B50 -> 25 | Q47: ='Kosten & Overige invoer'!$B50 -> 25 | R47: ='Kosten & Overige invoer'!$B50 -> 25 | S47: ='Kosten & Overige invoer'!$B50 -> 25 | T47: ='Kosten & Overige invoer'!$B50 -> 25 | U47: ='Kosten & Overige invoer'!$B50 -> 25
A48: Workshops | D48: Workshops
A49: Uur per jaar eigen arbeid | B49: ='Kosten & Overige invoer'!$B52 -> 0 | C49: ='Kosten & Overige invoer'!$B52 -> 0 | D49: ='Kosten & Overige invoer'!$B52 -> 0 | E49: ='Kosten & Overige invoer'!$B52 -> 0 | F49: ='Kosten & Overige invoer'!$B52 -> 0 | G49: ='Kosten & Overige invoer'!$B52 -> 0 | H49: ='Kosten & Overige invoer'!$B52 -> 0 | I49: ='Kosten & Overige invoer'!$B52 -> 0 | J49: ='Kosten & Overige invoer'!$B52 -> 0 | K49: ='Kosten & Overige invoer'!$B52 -> 0 | L49: ='Kosten & Overige invoer'!$B52 -> 0 | M49: ='Kosten & Overige invoer'!$B52 -> 0 | N49: ='Kosten & Overige invoer'!$B52 -> 0 | O49: ='Kosten & Overige invoer'!$B52 -> 0 | P49: ='Kosten & Overige invoer'!$B52 -> 0 | Q49: ='Kosten & Overige invoer'!$B52 -> 0 | R49: ='Kosten & Overige invoer'!$B52 -> 0 | S49: ='Kosten & Overige invoer'!$B52 -> 0 | T49: ='Kosten & Overige invoer'!$B52 -> 0 | U49: ='Kosten & Overige invoer'!$B52 -> 0
A50: Uur per jaar externe arbeid | B50: ='Kosten & Overige invoer'!$B53 -> 0 | C50: ='Kosten & Overige invoer'!$B53 -> 0 | D50: ='Kosten & Overige invoer'!$B53 -> 0 | E50: ='Kosten & Overige invoer'!$B53 -> 0 | F50: ='Kosten & Overige invoer'!$B53 -> 0 | G50: ='Kosten & Overige invoer'!$B53 -> 0 | H50: ='Kosten & Overige invoer'!$B53 -> 0 | I50: ='Kosten & Overige invoer'!$B53 -> 0 | J50: ='Kosten & Overige invoer'!$B53 -> 0 | K50: ='Kosten & Overige invoer'!$B53 -> 0 | L50: ='Kosten & Overige invoer'!$B53 -> 0 | M50: ='Kosten & Overige invoer'!$B53 -> 0 | N50: ='Kosten & Overige invoer'!$B53 -> 0 | O50: ='Kosten & Overige invoer'!$B53 -> 0 | P50: ='Kosten & Overige invoer'!$B53 -> 0 | Q50: ='Kosten & Overige invoer'!$B53 -> 0 | R50: ='Kosten & Overige invoer'!$B53 -> 0 | S50: ='Kosten & Overige invoer'!$B53 -> 0 | T50: ='Kosten & Overige invoer'!$B53 -> 0 | U50: ='Kosten & Overige invoer'!$B53 -> 0
A51: Prijs per uur externe arbeid | B51: ='Kosten & Overige invoer'!$B54 -> 25 | C51: ='Kosten & Overige invoer'!$B54 -> 25 | D51: ='Kosten & Overige invoer'!$B54 -> 25 | E51: ='Kosten & Overige invoer'!$B54 -> 25 | F51: ='Kosten & Overige invoer'!$B54 -> 25 | G51: ='Kosten & Overige invoer'!$B54 -> 25 | H51: ='Kosten & Overige invoer'!$B54 -> 25 | I51: ='Kosten & Overige invoer'!$B54 -> 25 | J51: ='Kosten & Overige invoer'!$B54 -> 25 | K51: ='Kosten & Overige invoer'!$B54 -> 25 | L51: ='Kosten & Overige invoer'!$B54 -> 25 | M51: ='Kosten & Overige invoer'!$B54 -> 25 | N51: ='Kosten & Overige invoer'!$B54 -> 25 | O51: ='Kosten & Overige invoer'!$B54 -> 25 | P51: ='Kosten & Overige invoer'!$B54 -> 25 | Q51: ='Kosten & Overige invoer'!$B54 -> 25 | R51: ='Kosten & Overige invoer'!$B54 -> 25 | S51: ='Kosten & Overige invoer'!$B54 -> 25 | T51: ='Kosten & Overige invoer'!$B54 -> 25 | U51: ='Kosten & Overige invoer'!$B54 -> 25
A52: Overige arbeid | D52: Overig
A53: Uur per jaar (per ha) eigen arbeid | B53: ='Kosten & Overige invoer'!$B56 -> 0 | C53: ='Kosten & Overige invoer'!$B56 -> 0 | D53: ='Kosten & Overige invoer'!$B56 -> 0 | E53: ='Kosten & Overige invoer'!$B56 -> 0 | F53: ='Kosten & Overige invoer'!$B56 -> 0 | G53: ='Kosten & Overige invoer'!$B56 -> 0 | H53: ='Kosten & Overige invoer'!$B56 -> 0 | I53: ='Kosten & Overige invoer'!$B56 -> 0 | J53: ='Kosten & Overige invoer'!$B56 -> 0 | K53: ='Kosten & Overige invoer'!$B56 -> 0 | L53: ='Kosten & Overige invoer'!$B56 -> 0 | M53: ='Kosten & Overige invoer'!$B56 -> 0 | N53: ='Kosten & Overige invoer'!$B56 -> 0 | O53: ='Kosten & Overige invoer'!$B56 -> 0 | P53: ='Kosten & Overige invoer'!$B56 -> 0 | Q53: ='Kosten & Overige invoer'!$B56 -> 0 | R53: ='Kosten & Overige invoer'!$B56 -> 0 | S53: ='Kosten & Overige invoer'!$B56 -> 0 | T53: ='Kosten & Overige invoer'!$B56 -> 0 | U53: ='Kosten & Overige invoer'!$B56 -> 0
A54: Uur per jaar (per ha) externe arbeid | B54: ='Kosten & Overige invoer'!$B57 -> 0 | C54: ='Kosten & Overige invoer'!$B57 -> 0 | D54: ='Kosten & Overige invoer'!$B57 -> 0 | E54: ='Kosten & Overige invoer'!$B57 -> 0 | F54: ='Kosten & Overige invoer'!$B57 -> 0 | G54: ='Kosten & Overige invoer'!$B57 -> 0 | H54: ='Kosten & Overige invoer'!$B57 -> 0 | I54: ='Kosten & Overige invoer'!$B57 -> 0 | J54: ='Kosten & Overige invoer'!$B57 -> 0 | K54: ='Kosten & Overige invoer'!$B57 -> 0 | L54: ='Kosten & Overige invoer'!$B57 -> 0 | M54: ='Kosten & Overige invoer'!$B57 -> 0 | N54: ='Kosten & Overige invoer'!$B57 -> 0 | O54: ='Kosten & Overige invoer'!$B57 -> 0 | P54: ='Kosten & Overige invoer'!$B57 -> 0 | Q54: ='Kosten & Overige invoer'!$B57 -> 0 | R54: ='Kosten & Overige invoer'!$B57 -> 0 | S54: ='Kosten & Overige invoer'!$B57 -> 0 | T54: ='Kosten & Overige invoer'!$B57 -> 0 | U54: ='Kosten & Overige invoer'!$B57 -> 0
A55: Prijs per uur externe arbeid | B55: ='Kosten & Overige invoer'!$B58 -> 25 | C55: ='Kosten & Overige invoer'!$B58 -> 25 | D55: ='Kosten & Overige invoer'!$B58 -> 25 | E55: ='Kosten & Overige invoer'!$B58 -> 25 | F55: ='Kosten & Overige invoer'!$B58 -> 25 | G55: ='Kosten & Overige invoer'!$B58 -> 25 | H55: ='Kosten & Overige invoer'!$B58 -> 25 | I55: ='Kosten & Overige invoer'!$B58 -> 25 | J55: ='Kosten & Overige invoer'!$B58 -> 25 | K55: ='Kosten & Overige invoer'!$B58 -> 25 | L55: ='Kosten & Overige invoer'!$B58 -> 25 | M55: ='Kosten & Overige invoer'!$B58 -> 25 | N55: ='Kosten & Overige invoer'!$B58 -> 25 | O55: ='Kosten & Overige invoer'!$B58 -> 25 | P55: ='Kosten & Overige invoer'!$B58 -> 25 | Q55: ='Kosten & Overige invoer'!$B58 -> 25 | R55: ='Kosten & Overige invoer'!$B58 -> 25 | S55: ='Kosten & Overige invoer'!$B58 -> 25 | T55: ='Kosten & Overige invoer'!$B58 -> 25 | U55: ='Kosten & Overige invoer'!$B58 -> 25
A57: Totaal Andere Arbeid:
A58: Eigen uren | B58: =(B25+B29+B33+B53)*Homepage!$C$17+'Kosten expert'!B37+'Kosten expert'!B41+'Kosten expert'!B45+'Kosten expert'!B49 -> 0 | C58: =(C25+C29+C33+C53)*Homepage!$C$17+'Kosten expert'!C37+'Kosten expert'!C41+'Kosten expert'!C45+'Kosten expert'!C49 -> 0 | D58: =(D25+D29+D33+D53)*Homepage!$C$17+'Kosten expert'!D37+'Kosten expert'!D41+'Kosten expert'!D45+'Kosten expert'!D49 -> 0 | E58: =(E25+E29+E33+E53)*Homepage!$C$17+'Kosten expert'!E37+'Kosten expert'!E41+'Kosten expert'!E45+'Kosten expert'!E49 -> 0 | F58: =(F25+F29+F33+F53)*Homepage!$C$17+'Kosten expert'!F37+'Kosten expert'!F41+'Kosten expert'!F45+'Kosten expert'!F49 -> 0 | G58: =(G25+G29+G33+G53)*Homepage!$C$17+'Kosten expert'!G37+'Kosten expert'!G41+'Kosten expert'!G45+'Kosten expert'!G49 -> 0 | H58: =(H25+H29+H33+H53)*Homepage!$C$17+'Kosten expert'!H37+'Kosten expert'!H41+'Kosten expert'!H45+'Kosten expert'!H49 -> 0 | I58: =(I25+I29+I33+I53)*Homepage!$C$17+'Kosten expert'!I37+'Kosten expert'!I41+'Kosten expert'!I45+'Kosten expert'!I49 -> 0 | J58: =(J25+J29+J33+J53)*Homepage!$C$17+'Kosten expert'!J37+'Kosten expert'!J41+'Kosten expert'!J45+'Kosten expert'!J49 -> 0 | K58: =(K25+K29+K33+K53)*Homepage!$C$17+'Kosten expert'!K37+'Kosten expert'!K41+'Kosten expert'!K45+'Kosten expert'!K49 -> 0 | L58: =(L25+L29+L33+L53)*Homepage!$C$17+'Kosten expert'!L37+'Kosten expert'!L41+'Kosten expert'!L45+'Kosten expert'!L49 -> 0 | M58: =(M25+M29+M33+M53)*Homepage!$C$17+'Kosten expert'!M37+'Kosten expert'!M41+'Kosten expert'!M45+'Kosten expert'!M49 -> 0 | N58: =(N25+N29+N33+N53)*Homepage!$C$17+'Kosten expert'!N37+'Kosten expert'!N41+'Kosten expert'!N45+'Kosten expert'!N49 -> 0 | O58: =(O25+O29+O33+O53)*Homepage!$C$17+'Kosten expert'!O37+'Kosten expert'!O41+'Kosten expert'!O45+'Kosten expert'!O49 -> 0 | P58: =(P25+P29+P33+P53)*Homepage!$C$17+'Kosten expert'!P37+'Kosten expert'!P41+'Kosten expert'!P45+'Kosten expert'!P49 -> 0 | Q58: =(Q25+Q29+Q33+Q53)*Homepage!$C$17+'Kosten expert'!Q37+'Kosten expert'!Q41+'Kosten expert'!Q45+'Kosten expert'!Q49 -> 0 | R58: =(R25+R29+R33+R53)*Homepage!$C$17+'Kosten expert'!R37+'Kosten expert'!R41+'Kosten expert'!R45+'Kosten expert'!R49 -> 0 | S58: =(S25+S29+S33+S53)*Homepage!$C$17+'Kosten expert'!S37+'Kosten expert'!S41+'Kosten expert'!S45+'Kosten expert'!S49 -> 0 | T58: =(T25+T29+T33+T53)*Homepage!$C$17+'Kosten expert'!T37+'Kosten expert'!T41+'Kosten expert'!T45+'Kosten expert'!T49 -> 0 | U58: =(U25+U29+U33+U53)*Homepage!$C$17+'Kosten expert'!U37+'Kosten expert'!U41+'Kosten expert'!U45+'Kosten expert'!U49 -> 0
A59: Externe uren | B59: =(B26+B30+B34+B54)*Homepage!$C$17+'Kosten expert'!B38+'Kosten expert'!B42+'Kosten expert'!B46+'Kosten expert'!B50 -> 0 | C59: =(C26+C30+C34+C54)*Homepage!$C$17+'Kosten expert'!C38+'Kosten expert'!C42+'Kosten expert'!C46+'Kosten expert'!C50 -> 0 | D59: =(D26+D30+D34+D54)*Homepage!$C$17+'Kosten expert'!D38+'Kosten expert'!D42+'Kosten expert'!D46+'Kosten expert'!D50 -> 0 | E59: =(E26+E30+E34+E54)*Homepage!$C$17+'Kosten expert'!E38+'Kosten expert'!E42+'Kosten expert'!E46+'Kosten expert'!E50 -> 0 | F59: =(F26+F30+F34+F54)*Homepage!$C$17+'Kosten expert'!F38+'Kosten expert'!F42+'Kosten expert'!F46+'Kosten expert'!F50 -> 0 | G59: =(G26+G30+G34+G54)*Homepage!$C$17+'Kosten expert'!G38+'Kosten expert'!G42+'Kosten expert'!G46+'Kosten expert'!G50 -> 0 | H59: =(H26+H30+H34+H54)*Homepage!$C$17+'Kosten expert'!H38+'Kosten expert'!H42+'Kosten expert'!H46+'Kosten expert'!H50 -> 0 | I59: =(I26+I30+I34+I54)*Homepage!$C$17+'Kosten expert'!I38+'Kosten expert'!I42+'Kosten expert'!I46+'Kosten expert'!I50 -> 0 | J59: =(J26+J30+J34+J54)*Homepage!$C$17+'Kosten expert'!J38+'Kosten expert'!J42+'Kosten expert'!J46+'Kosten expert'!J50 -> 0 | K59: =(K26+K30+K34+K54)*Homepage!$C$17+'Kosten expert'!K38+'Kosten expert'!K42+'Kosten expert'!K46+'Kosten expert'!K50 -> 0 | L59: =(L26+L30+L34+L54)*Homepage!$C$17+'Kosten expert'!L38+'Kosten expert'!L42+'Kosten expert'!L46+'Kosten expert'!L50 -> 0 | M59: =(M26+M30+M34+M54)*Homepage!$C$17+'Kosten expert'!M38+'Kosten expert'!M42+'Kosten expert'!M46+'Kosten expert'!M50 -> 0 | N59: =(N26+N30+N34+N54)*Homepage!$C$17+'Kosten expert'!N38+'Kosten expert'!N42+'Kosten expert'!N46+'Kosten expert'!N50 -> 0 | O59: =(O26+O30+O34+O54)*Homepage!$C$17+'Kosten expert'!O38+'Kosten expert'!O42+'Kosten expert'!O46+'Kosten expert'!O50 -> 0 | P59: =(P26+P30+P34+P54)*Homepage!$C$17+'Kosten expert'!P38+'Kosten expert'!P42+'Kosten expert'!P46+'Kosten expert'!P50 -> 0 | Q59: =(Q26+Q30+Q34+Q54)*Homepage!$C$17+'Kosten expert'!Q38+'Kosten expert'!Q42+'Kosten expert'!Q46+'Kosten expert'!Q50 -> 0 | R59: =(R26+R30+R34+R54)*Homepage!$C$17+'Kosten expert'!R38+'Kosten expert'!R42+'Kosten expert'!R46+'Kosten expert'!R50 -> 0 | S59: =(S26+S30+S34+S54)*Homepage!$C$17+'Kosten expert'!S38+'Kosten expert'!S42+'Kosten expert'!S46+'Kosten expert'!S50 -> 0 | T59: =(T26+T30+T34+T54)*Homepage!$C$17+'Kosten expert'!T38+'Kosten expert'!T42+'Kosten expert'!T46+'Kosten expert'!T50 -> 0 | U59: =(U26+U30+U34+U54)*Homepage!$C$17+'Kosten expert'!U38+'Kosten expert'!U42+'Kosten expert'!U46+'Kosten expert'!U50 -> 0
A61: Oogst arbeid | B61: 1 | C61: 2 | D61: 3 | E61: 4 | F61: 5 | G61: 6 | H61: 7 | I61: 8 | J61: 9 | K61: 10 | L61: 11 | M61: 12 | N61: 13 | O61: 14 | P61: 15 | Q61: 16 | R61: 17 | S61: 18 | T61: 19 | U61: 20
A62: Totaal in te vullen oogst uren | B62: =Oogstarbeidberekening!D207 -> 0 | C62: =Oogstarbeidberekening!E207 -> 0 | D62: =Oogstarbeidberekening!F207 -> 0 | E62: =Oogstarbeidberekening!G207 -> 0 | F62: =Oogstarbeidberekening!H207 -> 0 | G62: =Oogstarbeidberekening!I207 -> 0 | H62: =Oogstarbeidberekening!J207 -> 0 | I62: =Oogstarbeidberekening!K207 -> 0 | J62: =Oogstarbeidberekening!L207 -> 0 | K62: =Oogstarbeidberekening!M207 -> 0 | L62: =Oogstarbeidberekening!N207 -> 0 | M62: =Oogstarbeidberekening!O207 -> 0 | N62: =Oogstarbeidberekening!P207 -> 0 | O62: =Oogstarbeidberekening!Q207 -> 0 | P62: =Oogstarbeidberekening!R207 -> 0 | Q62: =Oogstarbeidberekening!S207 -> 0 | R62: =Oogstarbeidberekening!T207 -> 0 | S62: =Oogstarbeidberekening!U207 -> 0 | T62: =Oogstarbeidberekening!V207 -> 0 | U62: =Oogstarbeidberekening!W207 -> 0
A63: Eigen uren | B63: =B$62*'Kosten & Overige invoer'!$B61 -> 0 | C63: =C$62*'Kosten & Overige invoer'!$B61 -> 0 | D63: =D$62*'Kosten & Overige invoer'!$B61 -> 0 | E63: =E$62*'Kosten & Overige invoer'!$B61 -> 0 | F63: =F$62*'Kosten & Overige invoer'!$B61 -> 0 | G63: =G$62*'Kosten & Overige invoer'!$B61 -> 0 | H63: =H$62*'Kosten & Overige invoer'!$B61 -> 0 | I63: =I$62*'Kosten & Overige invoer'!$B61 -> 0 | J63: =J$62*'Kosten & Overige invoer'!$B61 -> 0 | K63: =K$62*'Kosten & Overige invoer'!$B61 -> 0 | L63: =L$62*'Kosten & Overige invoer'!$B61 -> 0 | M63: =M$62*'Kosten & Overige invoer'!$B61 -> 0 | N63: =N$62*'Kosten & Overige invoer'!$B61 -> 0 | O63: =O$62*'Kosten & Overige invoer'!$B61 -> 0 | P63: =P$62*'Kosten & Overige invoer'!$B61 -> 0 | Q63: =Q$62*'Kosten & Overige invoer'!$B61 -> 0 | R63: =R$62*'Kosten & Overige invoer'!$B61 -> 0 | S63: =S$62*'Kosten & Overige invoer'!$B61 -> 0 | T63: =T$62*'Kosten & Overige invoer'!$B61 -> 0 | U63: =U$62*'Kosten & Overige invoer'!$B61 -> 0
A64: Externe uren | B64: =B$62*'Kosten & Overige invoer'!$B62 -> 0 | C64: =C$62*'Kosten & Overige invoer'!$B62 -> 0 | D64: =D$62*'Kosten & Overige invoer'!$B62 -> 0 | E64: =E$62*'Kosten & Overige invoer'!$B62 -> 0 | F64: =F$62*'Kosten & Overige invoer'!$B62 -> 0 | G64: =G$62*'Kosten & Overige invoer'!$B62 -> 0 | H64: =H$62*'Kosten & Overige invoer'!$B62 -> 0 | I64: =I$62*'Kosten & Overige invoer'!$B62 -> 0 | J64: =J$62*'Kosten & Overige invoer'!$B62 -> 0 | K64: =K$62*'Kosten & Overige invoer'!$B62 -> 0 | L64: =L$62*'Kosten & Overige invoer'!$B62 -> 0 | M64: =M$62*'Kosten & Overige invoer'!$B62 -> 0 | N64: =N$62*'Kosten & Overige invoer'!$B62 -> 0 | O64: =O$62*'Kosten & Overige invoer'!$B62 -> 0 | P64: =P$62*'Kosten & Overige invoer'!$B62 -> 0 | Q64: =Q$62*'Kosten & Overige invoer'!$B62 -> 0 | R64: =R$62*'Kosten & Overige invoer'!$B62 -> 0 | S64: =S$62*'Kosten & Overige invoer'!$B62 -> 0 | T64: =T$62*'Kosten & Overige invoer'!$B62 -> 0 | U64: =U$62*'Kosten & Overige invoer'!$B62 -> 0
A65: Prijs per uur externe arbeid | B65: ='Kosten & Overige invoer'!$B$63 -> 25 | C65: ='Kosten & Overige invoer'!$B$63 -> 25 | D65: ='Kosten & Overige invoer'!$B$63 -> 25 | E65: ='Kosten & Overige invoer'!$B$63 -> 25 | F65: ='Kosten & Overige invoer'!$B$63 -> 25 | G65: ='Kosten & Overige invoer'!$B$63 -> 25 | H65: ='Kosten & Overige invoer'!$B$63 -> 25 | I65: ='Kosten & Overige invoer'!$B$63 -> 25 | J65: ='Kosten & Overige invoer'!$B$63 -> 25 | K65: ='Kosten & Overige invoer'!$B$63 -> 25 | L65: ='Kosten & Overige invoer'!$B$63 -> 25 | M65: ='Kosten & Overige invoer'!$B$63 -> 25 | N65: ='Kosten & Overige invoer'!$B$63 -> 25 | O65: ='Kosten & Overige invoer'!$B$63 -> 25 | P65: ='Kosten & Overige invoer'!$B$63 -> 25 | Q65: ='Kosten & Overige invoer'!$B$63 -> 25 | R65: ='Kosten & Overige invoer'!$B$63 -> 25 | S65: ='Kosten & Overige invoer'!$B$63 -> 25 | T65: ='Kosten & Overige invoer'!$B$63 -> 25 | U65: ='Kosten & Overige invoer'!$B$63 -> 25
A67: Berekende arbeid van de ondernemer met een uurloon van : | D67: 25
A88: Overzicht arbeid behoefte | B88: 1 | C88: 2 | D88: 3 | E88: 4 | F88: 5 | G88: 6 | H88: 7 | I88: 8 | J88: 9 | K88: 10 | L88: 11 | M88: 12 | N88: 13 | O88: 14 | P88: 15 | Q88: 16 | R88: 17 | S88: 18 | T88: 19 | U88: 20
A89: Aanleg | B89: =SUM(B104:B105) -> 0 | C89: =SUM(C104:C105) -> 0 | D89: 0 | E89: 0 | F89: 0 | G89: 0 | H89: 0 | I89: 0 | J89: 0 | K89: 0 | L89: 0 | M89: 0 | N89: 0 | O89: 0 | P89: 0 | Q89: 0 | R89: 0 | S89: 0 | T89: 0 | U89: 0
A90: Schouw en inspectie | B90: =B106+B107 -> 0 | C90: =C106+C107 -> 0 | D90: 0 | E90: 0 | F90: 0 | G90: 0 | H90: 0 | I90: 0 | J90: 0 | K90: 0 | L90: 0 | M90: 0 | N90: 0 | O90: 0 | P90: 0 | Q90: 0 | R90: 0 | S90: 0 | T90: 0 | U90: 0
A91: (groen) Onderhoud | B91: =B108+B109 -> 0 | C91: =C108+C109 -> 0 | D91: 0 | E91: 0 | F91: 0 | G91: 0 | H91: 0 | I91: 0 | J91: 0 | K91: 0 | L91: 0 | M91: 0 | N91: 0 | O91: 0 | P91: 0 | Q91: 0 | R91: 0 | S91: 0 | T91: 0 | U91: 0
A92: Organisatie & Logistiek | B92: =B110+B111 -> 0 | C92: =C110+C111 -> 0 | D92: 0 | E92: 0 | F92: 0 | G92: 0 | H92: 0 | I92: 0 | J92: 0 | K92: 0 | L92: 0 | M92: 0 | N92: 0 | O92: 0 | P92: 0 | Q92: 0 | R92: 0 | S92: 0 | T92: 0 | U92: 0
A93: Rondleidingen | B93: =B112+B113 -> 0 | C93: =C112+C113 -> 0 | D93: 0 | E93: 0 | F93: 0 | G93: 0 | H93: 0 | I93: 0 | J93: 0 | K93: 0 | L93: 0 | M93: 0 | N93: 0 | O93: 0 | P93: 0 | Q93: 0 | R93: 0 | S93: 0 | T93: 0 | U93: 0
A94: Evenementen | B94: =B114+B115 -> 0 | C94: =C114+C115 -> 0 | D94: 0 | E94: 0 | F94: 0 | G94: 0 | H94: 0 | I94: 0 | J94: 0 | K94: 0 | L94: 0 | M94: 0 | N94: 0 | O94: 0 | P94: 0 | Q94: 0 | R94: 0 | S94: 0 | T94: 0 | U94: 0
A95: Workshops | B95: =B116+B117 -> 0 | C95: =C116+C117 -> 0 | D95: 0 | E95: 0 | F95: 0 | G95: 0 | H95: 0 | I95: 0 | J95: 0 | K95: 0 | L95: 0 | M95: 0 | N95: 0 | O95: 0 | P95: 0 | Q95: 0 | R95: 0 | S95: 0 | T95: 0 | U95: 0
A96: Overige arbeid | B96: =B118+B119 -> 0 | C96: =C118+C119 -> 0 | D96: 0 | E96: 0 | F96: 0 | G96: 0 | H96: 0 | I96: 0 | J96: 0 | K96: 0 | L96: 0 | M96: 0 | N96: 0 | O96: 0 | P96: 0 | Q96: 0 | R96: 0 | S96: 0 | T96: 0 | U96: 0
A97: Oogstarbeid | B97: =B120+B121 -> 0 | C97: =C120+C121 -> 0 | D97: 0 | E97: 0 | F97: 0 | G97: 0 | H97: 0 | I97: 0 | J97: 0 | K97: 0 | L97: 0 | M97: 0 | N97: 0 | O97: 0 | P97: 0 | Q97: 0 | R97: 0 | S97: 0 | T97: 0 | U97: 0
A99: Totale arbeid | B99: =SUM(B104:B121) -> 0 | C99: 0 | D99: 0 | E99: 0 | F99: 0 | G99: 0 | H99: 0 | I99: 0 | J99: 0 | K99: 0 | L99: 0 | M99: 0 | N99: 0 | O99: 0 | P99: 0 | Q99: 0 | R99: 0 | S99: 0 | T99: 0 | U99: 0
A100: Totaal eigen arbied | B100: =B104+B106+B108+B110+B112+B114+B116+B118+B120 -> 0 | C100: 0 | D100: 0 | E100: 0 | F100: 0 | G100: 0 | H100: 0 | I100: 0 | J100: 0 | K100: 0 | L100: 0 | M100: 0 | N100: 0 | O100: 0 | P100: 0 | Q100: 0 | R100: 0 | S100: 0 | T100: 0 | U100: 0
A101: Totaal externe arbied | B101: =B105+B107+B109+B111+B113+B115+B117+B119+B121 -> 0 | C101: 0 | D101: 0 | E101: 0 | F101: 0 | G101: 0 | H101: 0 | I101: 0 | J101: 0 | K101: 0 | L101: 0 | M101: 0 | N101: 0 | O101: 0 | P101: 0 | Q101: 0 | R101: 0 | S101: 0 | T101: 0 | U101: 0
A104: Aanleg eigen | B104: =B25*Homepage!$C$17 -> 0 | C104: =C25*Homepage!$C$17 -> 0 | D104: =D25*Homepage!$C$17 -> 0 | E104: =E25*Homepage!$C$17 -> 0 | F104: =F25*Homepage!$C$17 -> 0 | G104: =G25*Homepage!$C$17 -> 0 | H104: =H25*Homepage!$C$17 -> 0 | I104: =I25*Homepage!$C$17 -> 0 | J104: =J25*Homepage!$C$17 -> 0 | K104: =K25*Homepage!$C$17 -> 0 | L104: =L25*Homepage!$C$17 -> 0 | M104: =M25*Homepage!$C$17 -> 0 | N104: =N25*Homepage!$C$17 -> 0 | O104: =O25*Homepage!$C$17 -> 0 | P104: =P25*Homepage!$C$17 -> 0 | Q104: =Q25*Homepage!$C$17 -> 0 | R104: =R25*Homepage!$C$17 -> 0 | S104: =S25*Homepage!$C$17 -> 0 | T104: =T25*Homepage!$C$17 -> 0 | U104: =U25*Homepage!$C$17 -> 0
A105: Aanleg extern | B105: =B26*Homepage!$C$17 -> 0 | C105: =C26*Homepage!$C$17 -> 0 | D105: =D26*Homepage!$C$17 -> 0 | E105: =E26*Homepage!$C$17 -> 0 | F105: =F26*Homepage!$C$17 -> 0 | G105: =G26*Homepage!$C$17 -> 0 | H105: =H26*Homepage!$C$17 -> 0 | I105: =I26*Homepage!$C$17 -> 0 | J105: =J26*Homepage!$C$17 -> 0 | K105: =K26*Homepage!$C$17 -> 0 | L105: =L26*Homepage!$C$17 -> 0 | M105: =M26*Homepage!$C$17 -> 0 | N105: =N26*Homepage!$C$17 -> 0 | O105: =O26*Homepage!$C$17 -> 0 | P105: =P26*Homepage!$C$17 -> 0 | Q105: =Q26*Homepage!$C$17 -> 0 | R105: =R26*Homepage!$C$17 -> 0 | S105: =S26*Homepage!$C$17 -> 0 | T105: =T26*Homepage!$C$17 -> 0 | U105: =U26*Homepage!$C$17 -> 0
A106: Schouw en inspectie eigen | B106: =B29*Homepage!$C$17 -> 0 | C106: =C29*Homepage!$C$17 -> 0 | D106: =D29*Homepage!$C$17 -> 0 | E106: =E29*Homepage!$C$17 -> 0 | F106: =F29*Homepage!$C$17 -> 0 | G106: =G29*Homepage!$C$17 -> 0 | H106: =H29*Homepage!$C$17 -> 0 | I106: =I29*Homepage!$C$17 -> 0 | J106: =J29*Homepage!$C$17 -> 0 | K106: =K29*Homepage!$C$17 -> 0 | L106: =L29*Homepage!$C$17 -> 0 | M106: =M29*Homepage!$C$17 -> 0 | N106: =N29*Homepage!$C$17 -> 0 | O106: =O29*Homepage!$C$17 -> 0 | P106: =P29*Homepage!$C$17 -> 0 | Q106: =Q29*Homepage!$C$17 -> 0 | R106: =R29*Homepage!$C$17 -> 0 | S106: =S29*Homepage!$C$17 -> 0 | T106: =T29*Homepage!$C$17 -> 0 | U106: =U29*Homepage!$C$17 -> 0
A107: Schouw en inspectie extern | B107: =B30*Homepage!$C$17 -> 0 | C107: =C30*Homepage!$C$17 -> 0 | D107: =D30*Homepage!$C$17 -> 0 | E107: =E30*Homepage!$C$17 -> 0 | F107: =F30*Homepage!$C$17 -> 0 | G107: =G30*Homepage!$C$17 -> 0 | H107: =H30*Homepage!$C$17 -> 0 | I107: =I30*Homepage!$C$17 -> 0 | J107: =J30*Homepage!$C$17 -> 0 | K107: =K30*Homepage!$C$17 -> 0 | L107: =L30*Homepage!$C$17 -> 0 | M107: =M30*Homepage!$C$17 -> 0 | N107: =N30*Homepage!$C$17 -> 0 | O107: =O30*Homepage!$C$17 -> 0 | P107: =P30*Homepage!$C$17 -> 0 | Q107: =Q30*Homepage!$C$17 -> 0 | R107: =R30*Homepage!$C$17 -> 0 | S107: =S30*Homepage!$C$17 -> 0 | T107: =T30*Homepage!$C$17 -> 0 | U107: =U30*Homepage!$C$17 -> 0
A108: (groen) Onderhoud eigen | B108: =B33*Homepage!$C$17 -> 0 | C108: =C33*Homepage!$C$17 -> 0 | D108: =D33*Homepage!$C$17 -> 0 | E108: =E33*Homepage!$C$17 -> 0 | F108: =F33*Homepage!$C$17 -> 0 | G108: =G33*Homepage!$C$17 -> 0 | H108: =H33*Homepage!$C$17 -> 0 | I108: =I33*Homepage!$C$17 -> 0 | J108: =J33*Homepage!$C$17 -> 0 | K108: =K33*Homepage!$C$17 -> 0 | L108: =L33*Homepage!$C$17 -> 0 | M108: =M33*Homepage!$C$17 -> 0 | N108: =N33*Homepage!$C$17 -> 0 | O108: =O33*Homepage!$C$17 -> 0 | P108: =P33*Homepage!$C$17 -> 0 | Q108: =Q33*Homepage!$C$17 -> 0 | R108: =R33*Homepage!$C$17 -> 0 | S108: =S33*Homepage!$C$17 -> 0 | T108: =T33*Homepage!$C$17 -> 0 | U108: =U33*Homepage!$C$17 -> 0
A109: (groen) Onderhoud extern | B109: =B34*Homepage!$C$17 -> 0 | C109: =C34*Homepage!$C$17 -> 0 | D109: =D34*Homepage!$C$17 -> 0 | E109: =E34*Homepage!$C$17 -> 0 | F109: =F34*Homepage!$C$17 -> 0 | G109: =G34*Homepage!$C$17 -> 0 | H109: =H34*Homepage!$C$17 -> 0 | I109: =I34*Homepage!$C$17 -> 0 | J109: =J34*Homepage!$C$17 -> 0 | K109: =K34*Homepage!$C$17 -> 0 | L109: =L34*Homepage!$C$17 -> 0 | M109: =M34*Homepage!$C$17 -> 0 | N109: =N34*Homepage!$C$17 -> 0 | O109: =O34*Homepage!$C$17 -> 0 | P109: =P34*Homepage!$C$17 -> 0 | Q109: =Q34*Homepage!$C$17 -> 0 | R109: =R34*Homepage!$C$17 -> 0 | S109: =S34*Homepage!$C$17 -> 0 | T109: =T34*Homepage!$C$17 -> 0 | U109: =U34*Homepage!$C$17 -> 0
A110: Organisatie & logistiek eigen | B110: =B37 -> 0 | C110: =C37 -> 0 | D110: 0 | E110: 0 | F110: 0 | G110: 0 | H110: 0 | I110: 0 | J110: 0 | K110: 0 | L110: 0 | M110: 0 | N110: 0 | O110: 0 | P110: 0 | Q110: 0 | R110: 0 | S110: 0 | T110: 0 | U110: 0
A111: Organisatie & logistiek extern | B111: =B38 -> 0 | C111: =C38 -> 0 | D111: 0 | E111: 0 | F111: 0 | G111: 0 | H111: 0 | I111: 0 | J111: 0 | K111: 0 | L111: 0 | M111: 0 | N111: 0 | O111: 0 | P111: 0 | Q111: 0 | R111: 0 | S111: 0 | T111: 0 | U111: 0
A112: Rondleidingen eigen | B112: =B41 -> 0 | C112: =C41 -> 0 | D112: 0 | E112: 0 | F112: 0 | G112: 0 | H112: 0 | I112: 0 | J112: 0 | K112: 0 | L112: 0 | M112: 0 | N112: 0 | O112: 0 | P112: 0 | Q112: 0 | R112: 0 | S112: 0 | T112: 0 | U112: 0
A113: Rondleidingen extern | B113: =B42 -> 0 | C113: =C42 -> 0 | D113: 0 | E113: 0 | F113: 0 | G113: 0 | H113: 0 | I113: 0 | J113: 0 | K113: 0 | L113: 0 | M113: 0 | N113: 0 | O113: 0 | P113: 0 | Q113: 0 | R113: 0 | S113: 0 | T113: 0 | U113: 0
A114: Evenementen eigen | B114: =B45 -> 0 | C114: =C45 -> 0 | D114: 0 | E114: 0 | F114: 0 | G114: 0 | H114: 0 | I114: 0 | J114: 0 | K114: 0 | L114: 0 | M114: 0 | N114: 0 | O114: 0 | P114: 0 | Q114: 0 | R114: 0 | S114: 0 | T114: 0 | U114: 0
A115: Evenementen extern | B115: =B46 -> 0 | C115: =C46 -> 0 | D115: 0 | E115: 0 | F115: 0 | G115: 0 | H115: 0 | I115: 0 | J115: 0 | K115: 0 | L115: 0 | M115: 0 | N115: 0 | O115: 0 | P115: 0 | Q115: 0 | R115: 0 | S115: 0 | T115: 0 | U115: 0
A116: Workshops eigen | B116: =B49 -> 0 | C116: =C49 -> 0 | D116: 0 | E116: 0 | F116: 0 | G116: 0 | H116: 0 | I116: 0 | J116: 0 | K116: 0 | L116: 0 | M116: 0 | N116: 0 | O116: 0 | P116: 0 | Q116: 0 | R116: 0 | S116: 0 | T116: 0 | U116: 0
A117: Workshops extern | B117: =B50 -> 0 | C117: =C50 -> 0 | D117: 0 | E117: 0 | F117: 0 | G117: 0 | H117: 0 | I117: 0 | J117: 0 | K117: 0 | L117: 0 | M117: 0 | N117: 0 | O117: 0 | P117: 0 | Q117: 0 | R117: 0 | S117: 0 | T117: 0 | U117: 0
A118: Overige arbeid eigen | B118: =B53*Homepage!$C$17 -> 0 | C118: =C53*Homepage!$C$17 -> 0 | D118: =D53*Homepage!$C$17 -> 0 | E118: =E53*Homepage!$C$17 -> 0 | F118: =F53*Homepage!$C$17 -> 0 | G118: =G53*Homepage!$C$17 -> 0 | H118: =H53*Homepage!$C$17 -> 0 | I118: =I53*Homepage!$C$17 -> 0 | J118: =J53*Homepage!$C$17 -> 0 | K118: =K53*Homepage!$C$17 -> 0 | L118: =L53*Homepage!$C$17 -> 0 | M118: =M53*Homepage!$C$17 -> 0 | N118: =N53*Homepage!$C$17 -> 0 | O118: =O53*Homepage!$C$17 -> 0 | P118: =P53*Homepage!$C$17 -> 0 | Q118: =Q53*Homepage!$C$17 -> 0 | R118: =R53*Homepage!$C$17 -> 0 | S118: =S53*Homepage!$C$17 -> 0 | T118: =T53*Homepage!$C$17 -> 0 | U118: =U53*Homepage!$C$17 -> 0
A119: Overige arbeid extern | B119: =B54*Homepage!$C$17 -> 0 | C119: =C54*Homepage!$C$17 -> 0 | D119: =D54*Homepage!$C$17 -> 0 | E119: =E54*Homepage!$C$17 -> 0 | F119: =F54*Homepage!$C$17 -> 0 | G119: =G54*Homepage!$C$17 -> 0 | H119: =H54*Homepage!$C$17 -> 0 | I119: =I54*Homepage!$C$17 -> 0 | J119: =J54*Homepage!$C$17 -> 0 | K119: =K54*Homepage!$C$17 -> 0 | L119: =L54*Homepage!$C$17 -> 0 | M119: =M54*Homepage!$C$17 -> 0 | N119: =N54*Homepage!$C$17 -> 0 | O119: =O54*Homepage!$C$17 -> 0 | P119: =P54*Homepage!$C$17 -> 0 | Q119: =Q54*Homepage!$C$17 -> 0 | R119: =R54*Homepage!$C$17 -> 0 | S119: =S54*Homepage!$C$17 -> 0 | T119: =T54*Homepage!$C$17 -> 0 | U119: =U54*Homepage!$C$17 -> 0
A120: Oogstarbeid eigen | B120: =B63 -> 0 | C120: =C63 -> 0 | D120: 0 | E120: 0 | F120: 0 | G120: 0 | H120: 0 | I120: 0 | J120: 0 | K120: 0 | L120: 0 | M120: 0 | N120: 0 | O120: 0 | P120: 0 | Q120: 0 | R120: 0 | S120: 0 | T120: 0 | U120: 0
A121: Oogstarbeid extern | B121: =B64 -> 0 | C121: =C64 -> 0 | D121: 0 | E121: 0 | F121: 0 | G121: 0 | H121: 0 | I121: 0 | J121: 0 | K121: 0 | L121: 0 | M121: 0 | N121: 0 | O121: 0 | P121: 0 | Q121: 0 | R121: 0 | S121: 0 | T121: 0 | U121: 0

Sheet Overige opbrengsten expert
A3: Vaste opbrengsten | B3: 1 | C3: 2 | D3: 3 | E3: 4 | F3: 5 | G3: 6 | H3: 7 | I3: 8 | J3: 9 | K3: 10 | L3: 11 | M3: 12 | N3: 13 | O3: 14 | P3: 15 | Q3: 16 | R3: 17 | S3: 18 | T3: 19 | U3: 20
A4: Nevenactiviteiten
A5: Workshops | B5: Workshops
A6: Aantal workshops per jaar | B6: ='Overige opbrengsten'!$B4 -> 0 | C6: ='Overige opbrengsten'!$B4 -> 0 | D6: ='Overige opbrengsten'!$B4 -> 0 | E6: ='Overige opbrengsten'!$B4 -> 0 | F6: ='Overige opbrengsten'!$B4 -> 0 | G6: ='Overige opbrengsten'!$B4 -> 0 | H6: ='Overige opbrengsten'!$B4 -> 0 | I6: ='Overige opbrengsten'!$B4 -> 0 | J6: ='Overige opbrengsten'!$B4 -> 0 | K6: ='Overige opbrengsten'!$B4 -> 0 | L6: ='Overige opbrengsten'!$B4 -> 0 | M6: ='Overige opbrengsten'!$B4 -> 0 | N6: ='Overige opbrengsten'!$B4 -> 0 | O6: ='Overige opbrengsten'!$B4 -> 0 | P6: ='Overige opbrengsten'!$B4 -> 0 | Q6: ='Overige opbrengsten'!$B4 -> 0 | R6: ='Overige opbrengsten'!$B4 -> 0 | S6: ='Overige opbrengsten'!$B4 -> 0 | T6: ='Overige opbrengsten'!$B4 -> 0 | U6: ='Overige opbrengsten'!$B4 -> 0
A7: Prijs per persoon per workshop | B7: ='Overige opbrengsten'!$B5 -> 0 | C7: ='Overige opbrengsten'!$B5 -> 0 | D7: ='Overige opbrengsten'!$B5 -> 0 | E7: ='Overige opbrengsten'!$B5 -> 0 | F7: ='Overige opbrengsten'!$B5 -> 0 | G7: ='Overige opbrengsten'!$B5 -> 0 | H7: ='Overige opbrengsten'!$B5 -> 0 | I7: ='Overige opbrengsten'!$B5 -> 0 | J7: ='Overige opbrengsten'!$B5 -> 0 | K7: ='Overige opbrengsten'!$B5 -> 0 | L7: ='Overige opbrengsten'!$B5 -> 0 | M7: ='Overige opbrengsten'!$B5 -> 0 | N7: ='Overige opbrengsten'!$B5 -> 0 | O7: ='Overige opbrengsten'!$B5 -> 0 | P7: ='Overige opbrengsten'!$B5 -> 0 | Q7: ='Overige opbrengsten'!$B5 -> 0 | R7: ='Overige opbrengsten'!$B5 -> 0 | S7: ='Overige opbrengsten'!$B5 -> 0 | T7: ='Overige opbrengsten'!$B5 -> 0 | U7: ='Overige opbrengsten'!$B5 -> 0
A8: Gem. personen per workshop | B8: ='Overige opbrengsten'!$B6 -> 0 | C8: ='Overige opbrengsten'!$B6 -> 0 | D8: ='Overige opbrengsten'!$B6 -> 0 | E8: ='Overige opbrengsten'!$B6 -> 0 | F8: ='Overige opbrengsten'!$B6 -> 0 | G8: ='Overige opbrengsten'!$B6 -> 0 | H8: ='Overige opbrengsten'!$B6 -> 0 | I8: ='Overige opbrengsten'!$B6 -> 0 | J8: ='Overige opbrengsten'!$B6 -> 0 | K8: ='Overige opbrengsten'!$B6 -> 0 | L8: ='Overige opbrengsten'!$B6 -> 0 | M8: ='Overige opbrengsten'!$B6 -> 0 | N8: ='Overige opbrengsten'!$B6 -> 0 | O8: ='Overige opbrengsten'!$B6 -> 0 | P8: ='Overige opbrengsten'!$B6 -> 0 | Q8: ='Overige opbrengsten'!$B6 -> 0 | R8: ='Overige opbrengsten'!$B6 -> 0 | S8: ='Overige opbrengsten'!$B6 -> 0 | T8: ='Overige opbrengsten'!$B6 -> 0 | U8: ='Overige opbrengsten'!$B6 -> 0
A9: Rondleidingen | B9: Rondleidingen
A10: Rondleidingen per jaar | B10: ='Overige opbrengsten'!$B7 -> 0 | C10: ='Overige opbrengsten'!$B7 -> 0 | D10: ='Overige opbrengsten'!$B7 -> 0 | E10: ='Overige opbrengsten'!$B7 -> 0 | F10: ='Overige opbrengsten'!$B7 -> 0 | G10: ='Overige opbrengsten'!$B7 -> 0 | H10: ='Overige opbrengsten'!$B7 -> 0 | I10: ='Overige opbrengsten'!$B7 -> 0 | J10: ='Overige opbrengsten'!$B7 -> 0 | K10: ='Overige opbrengsten'!$B7 -> 0 | L10: ='Overige opbrengsten'!$B7 -> 0 | M10: ='Overige opbrengsten'!$B7 -> 0 | N10: ='Overige opbrengsten'!$B7 -> 0 | O10: ='Overige opbrengsten'!$B7 -> 0 | P10: ='Overige opbrengsten'!$B7 -> 0 | Q10: ='Overige opbrengsten'!$B7 -> 0 | R10: ='Overige opbrengsten'!$B7 -> 0 | S10: ='Overige opbrengsten'!$B7 -> 0 | T10: ='Overige opbrengsten'!$B7 -> 0 | U10: ='Overige opbrengsten'!$B7 -> 0
A11: Prijs persoon per rondleiding | B11: ='Overige opbrengsten'!$B8 -> 0 | C11: ='Overige opbrengsten'!$B8 -> 0 | D11: ='Overige opbrengsten'!$B8 -> 0 | E11: ='Overige opbrengsten'!$B8 -> 0 | F11: ='Overige opbrengsten'!$B8 -> 0 | G11: ='Overige opbrengsten'!$B8 -> 0 | H11: ='Overige opbrengsten'!$B8 -> 0 | I11: ='Overige opbrengsten'!$B8 -> 0 | J11: ='Overige opbrengsten'!$B8 -> 0 | K11: ='Overige opbrengsten'!$B8 -> 0 | L11: ='Overige opbrengsten'!$B8 -> 0 | M11: ='Overige opbrengsten'!$B8 -> 0 | N11: ='Overige opbrengsten'!$B8 -> 0 | O11: ='Overige opbrengsten'!$B8 -> 0 | P11: ='Overige opbrengsten'!$B8 -> 0 | Q11: ='Overige opbrengsten'!$B8 -> 0 | R11: ='Overige opbrengsten'!$B8 -> 0 | S11: ='Overige opbrengsten'!$B8 -> 0 | T11: ='Overige opbrengsten'!$B8 -> 0 | U11: ='Overige opbrengsten'!$B8 -> 0
A12: Gem. personen per rondleiding | B12: ='Overige opbrengsten'!$B9 -> 0 | C12: ='Overige opbrengsten'!$B9 -> 0 | D12: ='Overige opbrengsten'!$B9 -> 0 | E12: ='Overige opbrengsten'!$B9 -> 0 | F12: ='Overige opbrengsten'!$B9 -> 0 | G12: ='Overige opbrengsten'!$B9 -> 0 | H12: ='Overige opbrengsten'!$B9 -> 0 | I12: ='Overige opbrengsten'!$B9 -> 0 | J12: ='Overige opbrengsten'!$B9 -> 0 | K12: ='Overige opbrengsten'!$B9 -> 0 | L12: ='Overige opbrengsten'!$B9 -> 0 | M12: ='Overige opbrengsten'!$B9 -> 0 | N12: ='Overige opbrengsten'!$B9 -> 0 | O12: ='Overige opbrengsten'!$B9 -> 0 | P12: ='Overige opbrengsten'!$B9 -> 0 | Q12: ='Overige opbrengsten'!$B9 -> 0 | R12: ='Overige opbrengsten'!$B9 -> 0 | S12: ='Overige opbrengsten'!$B9 -> 0 | T12: ='Overige opbrengsten'!$B9 -> 0 | U12: ='Overige opbrengsten'!$B9 -> 0
A13: Evenementen | B13: Evenementen
A14: Evenementen per jaar | B14: ='Overige opbrengsten'!$B10 -> 0 | C14: ='Overige opbrengsten'!$B10 -> 0 | D14: ='Overige opbrengsten'!$B10 -> 0 | E14: ='Overige opbrengsten'!$B10 -> 0 | F14: ='Overige opbrengsten'!$B10 -> 0 | G14: ='Overige opbrengsten'!$B10 -> 0 | H14: ='Overige opbrengsten'!$B10 -> 0 | I14: ='Overige opbrengsten'!$B10 -> 0 | J14: ='Overige opbrengsten'!$B10 -> 0 | K14: ='Overige opbrengsten'!$B10 -> 0 | L14: ='Overige opbrengsten'!$B10 -> 0 | M14: ='Overige opbrengsten'!$B10 -> 0 | N14: ='Overige opbrengsten'!$B10 -> 0 | O14: ='Overige opbrengsten'!$B10 -> 0 | P14: ='Overige opbrengsten'!$B10 -> 0 | Q14: ='Overige opbrengsten'!$B10 -> 0 | R14: ='Overige opbrengsten'!$B10 -> 0 | S14: ='Overige opbrengsten'!$B10 -> 0 | T14: ='Overige opbrengsten'!$B10 -> 0 | U14: ='Overige opbrengsten'!$B10 -> 0
A15: Gem. prijs per evenement | B15: ='Overige opbrengsten'!$B11 -> 0 | C15: ='Overige opbrengsten'!$B11 -> 0 | D15: ='Overige opbrengsten'!$B11 -> 0 | E15: ='Overige opbrengsten'!$B11 -> 0 | F15: ='Overige opbrengsten'!$B11 -> 0 | G15: ='Overige opbrengsten'!$B11 -> 0 | H15: ='Overige opbrengsten'!$B11 -> 0 | I15: ='Overige opbrengsten'!$B11 -> 0 | J15: ='Overige opbrengsten'!$B11 -> 0 | K15: ='Overige opbrengsten'!$B11 -> 0 | L15: ='Overige opbrengsten'!$B11 -> 0 | M15: ='Overige opbrengsten'!$B11 -> 0 | N15: ='Overige opbrengsten'!$B11 -> 0 | O15: ='Overige opbrengsten'!$B11 -> 0 | P15: ='Overige opbrengsten'!$B11 -> 0 | Q15: ='Overige opbrengsten'!$B11 -> 0 | R15: ='Overige opbrengsten'!$B11 -> 0 | S15: ='Overige opbrengsten'!$B11 -> 0 | T15: ='Overige opbrengsten'!$B11 -> 0 | U15: ='Overige opbrengsten'!$B11 -> 0
A16: Overige vaste opbrengsten per jaar | B16: ='Overige opbrengsten'!$B12 -> 0 | C16: ='Overige opbrengsten'!$B12 -> 0 | D16: ='Overige opbrengsten'!$B12 -> 0 | E16: ='Overige opbrengsten'!$B12 -> 0 | F16: ='Overige opbrengsten'!$B12 -> 0 | G16: ='Overige opbrengsten'!$B12 -> 0 | H16: ='Overige opbrengsten'!$B12 -> 0 | I16: ='Overige opbrengsten'!$B12 -> 0 | J16: ='Overige opbrengsten'!$B12 -> 0 | K16: ='Overige opbrengsten'!$B12 -> 0 | L16: ='Overige opbrengsten'!$B12 -> 0 | M16: ='Overige opbrengsten'!$B12 -> 0 | N16: ='Overige opbrengsten'!$B12 -> 0 | O16: ='Overige opbrengsten'!$B12 -> 0 | P16: ='Overige opbrengsten'!$B12 -> 0 | Q16: ='Overige opbrengsten'!$B12 -> 0 | R16: ='Overige opbrengsten'!$B12 -> 0 | S16: ='Overige opbrengsten'!$B12 -> 0 | T16: ='Overige opbrengsten'!$B12 -> 0 | U16: ='Overige opbrengsten'!$B12 -> 0
A18: Subsidies en Vergoedingen | B18: 1 | C18: 2 | D18: 3 | E18: 4 | F18: 5 | G18: 6 | H18: 7 | I18: 8 | J18: 9 | K18: 10 | L18: 11 | M18: 12 | N18: 13 | O18: 14 | P18: 15 | Q18: 16 | R18: 17 | S18: 18 | T18: 19 | U18: 20
A19: ='Overige opbrengsten'!A20 -> Biodiversiteit | B19: ='Overige opbrengsten'!$B$20 -> 0 | C19: ='Overige opbrengsten'!$B$20 -> 0 | D19: ='Overige opbrengsten'!$B$20 -> 0 | E19: ='Overige opbrengsten'!$B$20 -> 0 | F19: ='Overige opbrengsten'!$B$20 -> 0 | G19: ='Overige opbrengsten'!$B$20 -> 0 | H19: ='Overige opbrengsten'!$B$20 -> 0 | I19: ='Overige opbrengsten'!$B$20 -> 0 | J19: ='Overige opbrengsten'!$B$20 -> 0 | K19: ='Overige opbrengsten'!$B$20 -> 0 | L19: ='Overige opbrengsten'!$B$20 -> 0 | M19: ='Overige opbrengsten'!$B$20 -> 0 | N19: ='Overige opbrengsten'!$B$20 -> 0 | O19: ='Overige opbrengsten'!$B$20 -> 0 | P19: ='Overige opbrengsten'!$B$20 -> 0 | Q19: ='Overige opbrengsten'!$B$20 -> 0 | R19: ='Overige opbrengsten'!$B$20 -> 0 | S19: ='Overige opbrengsten'!$B$20 -> 0 | T19: ='Overige opbrengsten'!$B$20 -> 0 | U19: ='Overige opbrengsten'!$B$20 -> 0
A20: ='Overige opbrengsten'!A21 -> Klimaatadaptatie | B20: ='Overige opbrengsten'!$B$21 -> 0 | C20: ='Overige opbrengsten'!$B$21 -> 0 | D20: ='Overige opbrengsten'!$B$21 -> 0 | E20: ='Overige opbrengsten'!$B$21 -> 0 | F20: ='Overige opbrengsten'!$B$21 -> 0 | G20: ='Overige opbrengsten'!$B$21 -> 0 | H20: ='Overige opbrengsten'!$B$21 -> 0 | I20: ='Overige opbrengsten'!$B$21 -> 0 | J20: ='Overige opbrengsten'!$B$21 -> 0 | K20: ='Overige opbrengsten'!$B$21 -> 0 | L20: ='Overige opbrengsten'!$B$21 -> 0 | M20: ='Overige opbrengsten'!$B$21 -> 0 | N20: ='Overige opbrengsten'!$B$21 -> 0 | O20: ='Overige opbrengsten'!$B$21 -> 0 | P20: ='Overige opbrengsten'!$B$21 -> 0 | Q20: ='Overige opbrengsten'!$B$21 -> 0 | R20: ='Overige opbrengsten'!$B$21 -> 0 | S20: ='Overige opbrengsten'!$B$21 -> 0 | T20: ='Overige opbrengsten'!$B$21 -> 0 | U20: ='Overige opbrengsten'!$B$21 -> 0
A21: ='Overige opbrengsten'!A22 -> Vul hier uw ESD in | B21: ='Overige opbrengsten'!$B$22 -> 0 | C21: ='Overige opbrengsten'!$B$22 -> 0 | D21: ='Overige opbrengsten'!$B$22 -> 0 | E21: ='Overige opbrengsten'!$B$22 -> 0 | F21: ='Overige opbrengsten'!$B$22 -> 0 | G21: ='Overige opbrengsten'!$B$22 -> 0 | H21: ='Overige opbrengsten'!$B$22 -> 0 | I21: ='Overige opbrengsten'!$B$22 -> 0 | J21: ='Overige opbrengsten'!$B$22 -> 0 | K21: ='Overige opbrengsten'!$B$22 -> 0 | L21: ='Overige opbrengsten'!$B$22 -> 0 | M21: ='Overige opbrengsten'!$B$22 -> 0 | N21: ='Overige opbrengsten'!$B$22 -> 0 | O21: ='Overige opbrengsten'!$B$22 -> 0 | P21: ='Overige opbrengsten'!$B$22 -> 0 | Q21: ='Overige opbrengsten'!$B$22 -> 0 | R21: ='Overige opbrengsten'!$B$22 -> 0 | S21: ='Overige opbrengsten'!$B$22 -> 0 | T21: ='Overige opbrengsten'!$B$22 -> 0 | U21: ='Overige opbrengsten'!$B$22 -> 0
A22: ='Overige opbrengsten'!A23 -> Vul hier uw vergoeding in | B22: ='Overige opbrengsten'!$B$23 -> 0 | C22: ='Overige opbrengsten'!$B$23 -> 0 | D22: ='Overige opbrengsten'!$B$23 -> 0 | E22: ='Overige opbrengsten'!$B$23 -> 0 | F22: ='Overige opbrengsten'!$B$23 -> 0 | G22: ='Overige opbrengsten'!$B$23 -> 0 | H22: ='Overige opbrengsten'!$B$23 -> 0 | I22: ='Overige opbrengsten'!$B$23 -> 0 | J22: ='Overige opbrengsten'!$B$23 -> 0 | K22: ='Overige opbrengsten'!$B$23 -> 0 | L22: ='Overige opbrengsten'!$B$23 -> 0 | M22: ='Overige opbrengsten'!$B$23 -> 0 | N22: ='Overige opbrengsten'!$B$23 -> 0 | O22: ='Overige opbrengsten'!$B$23 -> 0 | P22: ='Overige opbrengsten'!$B$23 -> 0 | Q22: ='Overige opbrengsten'!$B$23 -> 0 | R22: ='Overige opbrengsten'!$B$23 -> 0 | S22: ='Overige opbrengsten'!$B$23 -> 0 | T22: ='Overige opbrengsten'!$B$23 -> 0 | U22: ='Overige opbrengsten'!$B$23 -> 0
A23: ='Overige opbrengsten'!A24 -> Vul hier uw ESD in | B23: ='Overige opbrengsten'!$B$24 -> 0 | C23: ='Overige opbrengsten'!$B$24 -> 0 | D23: ='Overige opbrengsten'!$B$24 -> 0 | E23: ='Overige opbrengsten'!$B$24 -> 0 | F23: ='Overige opbrengsten'!$B$24 -> 0 | G23: ='Overige opbrengsten'!$B$24 -> 0 | H23: ='Overige opbrengsten'!$B$24 -> 0 | I23: ='Overige opbrengsten'!$B$24 -> 0 | J23: ='Overige opbrengsten'!$B$24 -> 0 | K23: ='Overige opbrengsten'!$B$24 -> 0 | L23: ='Overige opbrengsten'!$B$24 -> 0 | M23: ='Overige opbrengsten'!$B$24 -> 0 | N23: ='Overige opbrengsten'!$B$24 -> 0 | O23: ='Overige opbrengsten'!$B$24 -> 0 | P23: ='Overige opbrengsten'!$B$24 -> 0 | Q23: ='Overige opbrengsten'!$B$24 -> 0 | R23: ='Overige opbrengsten'!$B$24 -> 0 | S23: ='Overige opbrengsten'!$B$24 -> 0 | T23: ='Overige opbrengsten'!$B$24 -> 0 | U23: ='Overige opbrengsten'!$B$24 -> 0
A24: ='Overige opbrengsten'!A25 -> Vul hier uw vergoeding in | B24: ='Overige opbrengsten'!$B$25 -> 0 | C24: ='Overige opbrengsten'!$B$25 -> 0 | D24: ='Overige opbrengsten'!$B$25 -> 0 | E24: ='Overige opbrengsten'!$B$25 -> 0 | F24: ='Overige opbrengsten'!$B$25 -> 0 | G24: ='Overige opbrengsten'!$B$25 -> 0 | H24: ='Overige opbrengsten'!$B$25 -> 0 | I24: ='Overige opbrengsten'!$B$25 -> 0 | J24: ='Overige opbrengsten'!$B$25 -> 0 | K24: ='Overige opbrengsten'!$B$25 -> 0 | L24: ='Overige opbrengsten'!$B$25 -> 0 | M24: ='Overige opbrengsten'!$B$25 -> 0 | N24: ='Overige opbrengsten'!$B$25 -> 0 | O24: ='Overige opbrengsten'!$B$25 -> 0 | P24: ='Overige opbrengsten'!$B$25 -> 0 | Q24: ='Overige opbrengsten'!$B$25 -> 0 | R24: ='Overige opbrengsten'!$B$25 -> 0 | S24: ='Overige opbrengsten'!$B$25 -> 0 | T24: ='Overige opbrengsten'!$B$25 -> 0 | U24: ='Overige opbrengsten'!$B$25 -> 0
A25: ='Overige opbrengsten'!A26 -> Overige vergoedingen | B25: ='Overige opbrengsten'!$B$26 -> 0 | C25: ='Overige opbrengsten'!$B$26 -> 0 | D25: ='Overige opbrengsten'!$B$26 -> 0 | E25: ='Overige opbrengsten'!$B$26 -> 0 | F25: ='Overige opbrengsten'!$B$26 -> 0 | G25: ='Overige opbrengsten'!$B$26 -> 0 | H25: ='Overige opbrengsten'!$B$26 -> 0 | I25: ='Overige opbrengsten'!$B$26 -> 0 | J25: ='Overige opbrengsten'!$B$26 -> 0 | K25: ='Overige opbrengsten'!$B$26 -> 0 | L25: ='Overige opbrengsten'!$B$26 -> 0 | M25: ='Overige opbrengsten'!$B$26 -> 0 | N25: ='Overige opbrengsten'!$B$26 -> 0 | O25: ='Overige opbrengsten'!$B$26 -> 0 | P25: ='Overige opbrengsten'!$B$26 -> 0 | Q25: ='Overige opbrengsten'!$B$26 -> 0 | R25: ='Overige opbrengsten'!$B$26 -> 0 | S25: ='Overige opbrengsten'!$B$26 -> 0 | T25: ='Overige opbrengsten'!$B$26 -> 0 | U25: ='Overige opbrengsten'!$B$26 -> 0
A26: Subsidies en Vergoedingen per ha
A27: ='Overige opbrengsten'!A29 -> Vul hier uw vergoeding in | B27: ='Overige opbrengsten'!$B29 -> 0 | C27: ='Overige opbrengsten'!$B29 -> 0 | D27: ='Overige opbrengsten'!$B29 -> 0 | E27: ='Overige opbrengsten'!$B29 -> 0 | F27: ='Overige opbrengsten'!$B29 -> 0 | G27: ='Overige opbrengsten'!$B29 -> 0 | H27: ='Overige opbrengsten'!$B29 -> 0 | I27: ='Overige opbrengsten'!$B29 -> 0 | J27: ='Overige opbrengsten'!$B29 -> 0 | K27: ='Overige opbrengsten'!$B29 -> 0 | L27: ='Overige opbrengsten'!$B29 -> 0 | M27: ='Overige opbrengsten'!$B29 -> 0 | N27: ='Overige opbrengsten'!$B29 -> 0 | O27: ='Overige opbrengsten'!$B29 -> 0 | P27: ='Overige opbrengsten'!$B29 -> 0 | Q27: ='Overige opbrengsten'!$B29 -> 0 | R27: ='Overige opbrengsten'!$B29 -> 0 | S27: ='Overige opbrengsten'!$B29 -> 0 | T27: ='Overige opbrengsten'!$B29 -> 0 | U27: ='Overige opbrengsten'!$B29 -> 0
A28: ='Overige opbrengsten'!A30 -> GLB | B28: ='Overige opbrengsten'!$B$30 -> 0 | C28: ='Overige opbrengsten'!$B$30 -> 0 | D28: ='Overige opbrengsten'!$B$30 -> 0 | E28: ='Overige opbrengsten'!$B$30 -> 0 | F28: ='Overige opbrengsten'!$B$30 -> 0 | G28: ='Overige opbrengsten'!$B$30 -> 0 | H28: ='Overige opbrengsten'!$B$30 -> 0 | I28: ='Overige opbrengsten'!$B$30 -> 0 | J28: ='Overige opbrengsten'!$B$30 -> 0 | K28: ='Overige opbrengsten'!$B$30 -> 0 | L28: ='Overige opbrengsten'!$B$30 -> 0 | M28: ='Overige opbrengsten'!$B$30 -> 0 | N28: ='Overige opbrengsten'!$B$30 -> 0 | O28: ='Overige opbrengsten'!$B$30 -> 0 | P28: ='Overige opbrengsten'!$B$30 -> 0 | Q28: ='Overige opbrengsten'!$B$30 -> 0 | R28: ='Overige opbrengsten'!$B$30 -> 0 | S28: ='Overige opbrengsten'!$B$30 -> 0 | T28: ='Overige opbrengsten'!$B$30 -> 0 | U28: ='Overige opbrengsten'!$B$30 -> 0
A29: ='Overige opbrengsten'!A31 -> Organische stof opbouw | B29: ='Overige opbrengsten'!$B$31 -> 0 | C29: ='Overige opbrengsten'!$B$31 -> 0 | D29: ='Overige opbrengsten'!$B$31 -> 0 | E29: ='Overige opbrengsten'!$B$31 -> 0 | F29: ='Overige opbrengsten'!$B$31 -> 0 | G29: ='Overige opbrengsten'!$B$31 -> 0 | H29: ='Overige opbrengsten'!$B$31 -> 0 | I29: ='Overige opbrengsten'!$B$31 -> 0 | J29: ='Overige opbrengsten'!$B$31 -> 0 | K29: ='Overige opbrengsten'!$B$31 -> 0 | L29: ='Overige opbrengsten'!$B$31 -> 0 | M29: ='Overige opbrengsten'!$B$31 -> 0 | N29: ='Overige opbrengsten'!$B$31 -> 0 | O29: ='Overige opbrengsten'!$B$31 -> 0 | P29: ='Overige opbrengsten'!$B$31 -> 0 | Q29: ='Overige opbrengsten'!$B$31 -> 0 | R29: ='Overige opbrengsten'!$B$31 -> 0 | S29: ='Overige opbrengsten'!$B$31 -> 0 | T29: ='Overige opbrengsten'!$B$31 -> 0 | U29: ='Overige opbrengsten'!$B$31 -> 0
A30: ='Overige opbrengsten'!A32 -> Organische stof vergoeding | B30: ='Overige opbrengsten'!$B$32 -> 0 | C30: ='Overige opbrengsten'!$B$32 -> 0 | D30: ='Overige opbrengsten'!$B$32 -> 0 | E30: ='Overige opbrengsten'!$B$32 -> 0 | F30: ='Overige opbrengsten'!$B$32 -> 0 | G30: ='Overige opbrengsten'!$B$32 -> 0 | H30: ='Overige opbrengsten'!$B$32 -> 0 | I30: ='Overige opbrengsten'!$B$32 -> 0 | J30: ='Overige opbrengsten'!$B$32 -> 0 | K30: ='Overige opbrengsten'!$B$32 -> 0 | L30: ='Overige opbrengsten'!$B$32 -> 0 | M30: ='Overige opbrengsten'!$B$32 -> 0 | N30: ='Overige opbrengsten'!$B$32 -> 0 | O30: ='Overige opbrengsten'!$B$32 -> 0 | P30: ='Overige opbrengsten'!$B$32 -> 0 | Q30: ='Overige opbrengsten'!$B$32 -> 0 | R30: ='Overige opbrengsten'!$B$32 -> 0 | S30: ='Overige opbrengsten'!$B$32 -> 0 | T30: ='Overige opbrengsten'!$B$32 -> 0 | U30: ='Overige opbrengsten'!$B$32 -> 0
A31: ='Overige opbrengsten'!A33 -> Teeltvrije bufferzone langs alle percelen | B31: ='Overige opbrengsten'!$B$33 -> 0 | C31: ='Overige opbrengsten'!$B$33 -> 0 | D31: ='Overige opbrengsten'!$B$33 -> 0 | E31: ='Overige opbrengsten'!$B$33 -> 0 | F31: ='Overige opbrengsten'!$B$33 -> 0 | G31: ='Overige opbrengsten'!$B$33 -> 0 | H31: ='Overige opbrengsten'!$B$33 -> 0 | I31: ='Overige opbrengsten'!$B$33 -> 0 | J31: ='Overige opbrengsten'!$B$33 -> 0 | K31: ='Overige opbrengsten'!$B$33 -> 0 | L31: ='Overige opbrengsten'!$B$33 -> 0 | M31: ='Overige opbrengsten'!$B$33 -> 0 | N31: ='Overige opbrengsten'!$B$33 -> 0 | O31: ='Overige opbrengsten'!$B$33 -> 0 | P31: ='Overige opbrengsten'!$B$33 -> 0 | Q31: ='Overige opbrengsten'!$B$33 -> 0 | R31: ='Overige opbrengsten'!$B$33 -> 0 | S31: ='Overige opbrengsten'!$B$33 -> 0 | T31: ='Overige opbrengsten'!$B$33 -> 0 | U31: ='Overige opbrengsten'!$B$33 -> 0
A32: ='Overige opbrengsten'!A34 -> Inzaaien akkerranden of FAB randen | B32: ='Overige opbrengsten'!$B$34 -> 0 | C32: ='Overige opbrengsten'!$B$34 -> 0 | D32: ='Overige opbrengsten'!$B$34 -> 0 | E32: ='Overige opbrengsten'!$B$34 -> 0 | F32: ='Overige opbrengsten'!$B$34 -> 0 | G32: ='Overige opbrengsten'!$B$34 -> 0 | H32: ='Overige opbrengsten'!$B$34 -> 0 | I32: ='Overige opbrengsten'!$B$34 -> 0 | J32: ='Overige opbrengsten'!$B$34 -> 0 | K32: ='Overige opbrengsten'!$B$34 -> 0 | L32: ='Overige opbrengsten'!$B$34 -> 0 | M32: ='Overige opbrengsten'!$B$34 -> 0 | N32: ='Overige opbrengsten'!$B$34 -> 0 | O32: ='Overige opbrengsten'!$B$34 -> 0 | P32: ='Overige opbrengsten'!$B$34 -> 0 | Q32: ='Overige opbrengsten'!$B$34 -> 0 | R32: ='Overige opbrengsten'!$B$34 -> 0 | S32: ='Overige opbrengsten'!$B$34 -> 0 | T32: ='Overige opbrengsten'!$B$34 -> 0 | U32: ='Overige opbrengsten'!$B$34 -> 0
A33: ='Overige opbrengsten'!A35 -> Inzaaien groenbemester | B33: ='Overige opbrengsten'!$B$35 -> 0 | C33: ='Overige opbrengsten'!$B$35 -> 0 | D33: ='Overige opbrengsten'!$B$35 -> 0 | E33: ='Overige opbrengsten'!$B$35 -> 0 | F33: ='Overige opbrengsten'!$B$35 -> 0 | G33: ='Overige opbrengsten'!$B$35 -> 0 | H33: ='Overige opbrengsten'!$B$35 -> 0 | I33: ='Overige opbrengsten'!$B$35 -> 0 | J33: ='Overige opbrengsten'!$B$35 -> 0 | K33: ='Overige opbrengsten'!$B$35 -> 0 | L33: ='Overige opbrengsten'!$B$35 -> 0 | M33: ='Overige opbrengsten'!$B$35 -> 0 | N33: ='Overige opbrengsten'!$B$35 -> 0 | O33: ='Overige opbrengsten'!$B$35 -> 0 | P33: ='Overige opbrengsten'!$B$35 -> 0 | Q33: ='Overige opbrengsten'!$B$35 -> 0 | R33: ='Overige opbrengsten'!$B$35 -> 0 | S33: ='Overige opbrengsten'!$B$35 -> 0 | T33: ='Overige opbrengsten'!$B$35 -> 0 | U33: ='Overige opbrengsten'!$B$35 -> 0
A34: ='Overige opbrengsten'!A36 -> Overige vergoedingen | B34: ='Overige opbrengsten'!$B$36 -> 0 | C34: ='Overige opbrengsten'!$B$36 -> 0 | D34: ='Overige opbrengsten'!$B$36 -> 0 | E34: ='Overige opbrengsten'!$B$36 -> 0 | F34: ='Overige opbrengsten'!$B$36 -> 0 | G34: ='Overige opbrengsten'!$B$36 -> 0 | H34: ='Overige opbrengsten'!$B$36 -> 0 | I34: ='Overige opbrengsten'!$B$36 -> 0 | J34: ='Overige opbrengsten'!$B$36 -> 0 | K34: ='Overige opbrengsten'!$B$36 -> 0 | L34: ='Overige opbrengsten'!$B$36 -> 0 | M34: ='Overige opbrengsten'!$B$36 -> 0 | N34: ='Overige opbrengsten'!$B$36 -> 0 | O34: ='Overige opbrengsten'!$B$36 -> 0 | P34: ='Overige opbrengsten'!$B$36 -> 0 | Q34: ='Overige opbrengsten'!$B$36 -> 0 | R34: ='Overige opbrengsten'!$B$36 -> 0 | S34: ='Overige opbrengsten'!$B$36 -> 0 | T34: ='Overige opbrengsten'!$B$36 -> 0 | U34: ='Overige opbrengsten'!$B$36 -> 0
A36: Variabele opbrengsten | B36: 1 | C36: 2 | D36: 3 | E36: 4 | F36: 5 | G36: 6 | H36: 7 | I36: 8 | J36: 9 | K36: 10 | L36: 11 | M36: 12 | N36: 13 | O36: 14 | P36: 15 | Q36: 16 | R36: 17 | S36: 18 | T36: 19 | U36: 20
A37: Houtopbrengsten | B37: ='Overige opbrengsten'!$B$15 -> 0 | C37: ='Overige opbrengsten'!$B$15 -> 0 | D37: ='Overige opbrengsten'!$B$15 -> 0 | E37: ='Overige opbrengsten'!$B$15 -> 0 | F37: ='Overige opbrengsten'!$B$15 -> 0 | G37: ='Overige opbrengsten'!$B$15 -> 0 | H37: ='Overige opbrengsten'!$B$15 -> 0 | I37: ='Overige opbrengsten'!$B$15 -> 0 | J37: ='Overige opbrengsten'!$B$15 -> 0 | K37: ='Overige opbrengsten'!$B$15 -> 0 | L37: ='Overige opbrengsten'!$B$15 -> 0 | M37: ='Overige opbrengsten'!$B$15 -> 0 | N37: ='Overige opbrengsten'!$B$15 -> 0 | O37: ='Overige opbrengsten'!$B$15 -> 0 | P37: ='Overige opbrengsten'!$B$15 -> 0 | Q37: ='Overige opbrengsten'!$B$15 -> 0 | R37: ='Overige opbrengsten'!$B$15 -> 0 | S37: ='Overige opbrengsten'!$B$15 -> 0 | T37: ='Overige opbrengsten'!$B$15 -> 0 | U37: ='Overige opbrengsten'!$B$15 -> 0
A38: Overige variabele opbrengsten | B38: ='Overige opbrengsten'!$B16 -> 0 | C38: ='Overige opbrengsten'!$B16 -> 0 | D38: ='Overige opbrengsten'!$B16 -> 0 | E38: ='Overige opbrengsten'!$B16 -> 0 | F38: ='Overige opbrengsten'!$B16 -> 0 | G38: ='Overige opbrengsten'!$B16 -> 0 | H38: ='Overige opbrengsten'!$B16 -> 0 | I38: ='Overige opbrengsten'!$B16 -> 0 | J38: ='Overige opbrengsten'!$B16 -> 0 | K38: ='Overige opbrengsten'!$B16 -> 0 | L38: ='Overige opbrengsten'!$B16 -> 0 | M38: ='Overige opbrengsten'!$B16 -> 0 | N38: ='Overige opbrengsten'!$B16 -> 0 | O38: ='Overige opbrengsten'!$B16 -> 0 | P38: ='Overige opbrengsten'!$B16 -> 0 | Q38: ='Overige opbrengsten'!$B16 -> 0 | R38: ='Overige opbrengsten'!$B16 -> 0 | S38: ='Overige opbrengsten'!$B16 -> 0 | T38: ='Overige opbrengsten'!$B16 -> 0 | U38: ='Overige opbrengsten'!$B16 -> 0
A39: Afwaardering grond | B39: ='Overige opbrengsten'!B17 -> 0

Sheet Overige invoer expert
A3: Effecten op het voedselbos | B3: 1 | C3: 2 | D3: 3 | E3: 4 | F3: 5 | G3: 6 | H3: 7 | I3: 8 | J3: 9 | K3: 10 | L3: 11 | M3: 12 | N3: 13 | O3: 14 | P3: 15 | Q3: 16 | R3: 17 | S3: 18 | T3: 19 | U3: 20
A4: Oogstpercentage | B4: =IF(B3<'Kosten & Overige invoer'!$F$7,'Kosten & Overige invoer'!$F$6+(('Kosten & Overige invoer'!$F$5-'Kosten & Overige invoer'!$F$6)/'Kosten & Overige invoer'!$F$7)*('Overige invoer expert'!B3-1),'Kosten & Overige invoer'!$F$5) -> 0.25 | C4: =IF(C3<'Kosten & Overige invoer'!$F$7,'Kosten & Overige invoer'!$F$6+(('Kosten & Overige invoer'!$F$5-'Kosten & Overige invoer'!$F$6)/'Kosten & Overige invoer'!$F$7)*('Overige invoer expert'!C3-1),'Kosten & Overige invoer'!$F$5) -> 0.305 | D4: =IF(D3<'Kosten & Overige invoer'!$F$7,'Kosten & Overige invoer'!$F$6+(('Kosten & Overige invoer'!$F$5-'Kosten & Overige invoer'!$F$6)/'Kosten & Overige invoer'!$F$7)*('Overige invoer expert'!D3-1),'Kosten & Overige invoer'!$F$5) -> 0.36 | E4: =IF(E3<'Kosten & Overige invoer'!$F$7,'Kosten & Overige invoer'!$F$6+(('Kosten & Overige invoer'!$F$5-'Kosten & Overige invoer'!$F$6)/'Kosten & Overige invoer'!$F$7)*('Overige invoer expert'!E3-1),'Kosten & Overige invoer'!$F$5) -> 0.415 | F4: =IF(F3<'Kosten & Overige invoer'!$F$7,'Kosten & Overige invoer'!$F$6+(('Kosten & Overige invoer'!$F$5-'Kosten & Overige invoer'!$F$6)/'Kosten & Overige invoer'!$F$7)*('Overige invoer expert'!F3-1),'Kosten & Overige invoer'!$F$5) -> 0.47 | G4: =IF(G3<'Kosten & Overige invoer'!$F$7,'Kosten & Overige invoer'!$F$6+(('Kosten & Overige invoer'!$F$5-'Kosten & Overige invoer'!$F$6)/'Kosten & Overige invoer'!$F$7)*('Overige invoer expert'!G3-1),'Kosten & Overige invoer'!$F$5) -> 0.525 | H4: =IF(H3<'Kosten & Overige invoer'!$F$7,'Kosten & Overige invoer'!$F$6+(('Kosten & Overige invoer'!$F$5-'Kosten & Overige invoer'!$F$6)/'Kosten & Overige invoer'!$F$7)*('Overige invoer expert'!H3-1),'Kosten & Overige invoer'!$F$5) -> 0.58 | I4: =IF(I3<'Kosten & Overige invoer'!$F$7,'Kosten & Overige invoer'!$F$6+(('Kosten & Overige invoer'!$F$5-'Kosten & Overige invoer'!$F$6)/'Kosten & Overige invoer'!$F$7)*('Overige invoer expert'!I3-1),'Kosten & Overige invoer'!$F$5) -> 0.635 | J4: =IF(J3<'Kosten & Overige invoer'!$F$7,'Kosten & Overige invoer'!$F$6+(('Kosten & Overige invoer'!$F$5-'Kosten & Overige invoer'!$F$6)/'Kosten & Overige invoer'!$F$7)*('Overige invoer expert'!J3-1),'Kosten & Overige invoer'!$F$5) -> 0.69 | K4: =IF(K3<'Kosten & Overige invoer'!$F$7,'Kosten & Overige invoer'!$F$6+(('Kosten & Overige invoer'!$F$5-'Kosten & Overige invoer'!$F$6)/'Kosten & Overige invoer'!$F$7)*('Overige invoer expert'!K3-1),'Kosten & Overige invoer'!$F$5) -> 0.8 | L4: =IF(L3<'Kosten & Overige invoer'!$F$7,'Kosten & Overige invoer'!$F$6+(('Kosten & Overige invoer'!$F$5-'Kosten & Overige invoer'!$F$6)/'Kosten & Overige invoer'!$F$7)*('Overige invoer expert'!L3-1),'Kosten & Overige invoer'!$F$5) -> 0.8 | M4: =IF(M3<'Kosten & Overige invoer'!$F$7,'Kosten & Overige invoer'!$F$6+(('Kosten & Overige invoer'!$F$5-'Kosten & Overige invoer'!$F$6)/'Kosten & Overige invoer'!$F$7)*('Overige invoer expert'!M3-1),'Kosten & Overige invoer'!$F$5) -> 0.8 | N4: =IF(N3<'Kosten & Overige invoer'!$F$7,'Kosten & Overige invoer'!$F$6+(('Kosten & Overige invoer'!$F$5-'Kosten & Overige invoer'!$F$6)/'Kosten & Overige invoer'!$F$7)*('Overige invoer expert'!N3-1),'Kosten & Overige invoer'!$F$5) -> 0.8 | O4: =IF(O3<'Kosten & Overige invoer'!$F$7,'Kosten & Overige invoer'!$F$6+(('Kosten & Overige invoer'!$F$5-'Kosten & Overige invoer'!$F$6)/'Kosten & Overige invoer'!$F$7)*('Overige invoer expert'!O3-1),'Kosten & Overige invoer'!$F$5) -> 0.8 | P4: =IF(P3<'Kosten & Overige invoer'!$F$7,'Kosten & Overige invoer'!$F$6+(('Kosten & Overige invoer'!$F$5-'Kosten & Overige invoer'!$F$6)/'Kosten & Overige invoer'!$F$7)*('Overige invoer expert'!P3-1),'Kosten & Overige invoer'!$F$5) -> 0.8 | Q4: =IF(Q3<'Kosten & Overige invoer'!$F$7,'Kosten & Overige invoer'!$F$6+(('Kosten & Overige invoer'!$F$5-'Kosten & Overige invoer'!$F$6)/'Kosten & Overige invoer'!$F$7)*('Overige invoer expert'!Q3-1),'Kosten & Overige invoer'!$F$5) -> 0.8 | R4: =IF(R3<'Kosten & Overige invoer'!$F$7,'Kosten & Overige invoer'!$F$6+(('Kosten & Overige invoer'!$F$5-'Kosten & Overige invoer'!$F$6)/'Kosten & Overige invoer'!$F$7)*('Overige invoer expert'!R3-1),'Kosten & Overige invoer'!$F$5) -> 0.8 | S4: =IF(S3<'Kosten & Overige invoer'!$F$7,'Kosten & Overige invoer'!$F$6+(('Kosten & Overige invoer'!$F$5-'Kosten & Overige invoer'!$F$6)/'Kosten & Overige invoer'!$F$7)*('Overige invoer expert'!S3-1),'Kosten & Overige invoer'!$F$5) -> 0.8 | T4: =IF(T3<'Kosten & Overige invoer'!$F$7,'Kosten & Overige invoer'!$F$6+(('Kosten & Overige invoer'!$F$5-'Kosten & Overige invoer'!$F$6)/'Kosten & Overige invoer'!$F$7)*('Overige invoer expert'!T3-1),'Kosten & Overige invoer'!$F$5) -> 0.8 | U4: =IF(U3<'Kosten & Overige invoer'!$F$7,'Kosten & Overige invoer'!$F$6+(('Kosten & Overige invoer'!$F$5-'Kosten & Overige invoer'!$F$6)/'Kosten & Overige invoer'!$F$7)*('Overige invoer expert'!U3-1),'Kosten & Overige invoer'!$F$5) -> 0.8
A5: Verdeling klasse A/B | B5: ='Kosten & Overige invoer'!$F8 -> 0.8 | C5: ='Kosten & Overige invoer'!$F8 -> 0.8 | D5: ='Kosten & Overige invoer'!$F8 -> 0.8 | E5: ='Kosten & Overige invoer'!$F8 -> 0.8 | F5: ='Kosten & Overige invoer'!$F8 -> 0.8 | G5: ='Kosten & Overige invoer'!$F8 -> 0.8 | H5: ='Kosten & Overige invoer'!$F8 -> 0.8 | I5: ='Kosten & Overige invoer'!$F8 -> 0.8 | J5: ='Kosten & Overige invoer'!$F8 -> 0.8 | K5: ='Kosten & Overige invoer'!$F8 -> 0.8 | L5: ='Kosten & Overige invoer'!$F8 -> 0.8 | M5: ='Kosten & Overige invoer'!$F8 -> 0.8 | N5: ='Kosten & Overige invoer'!$F8 -> 0.8 | O5: ='Kosten & Overige invoer'!$F8 -> 0.8 | P5: ='Kosten & Overige invoer'!$F8 -> 0.8 | Q5: ='Kosten & Overige invoer'!$F8 -> 0.8 | R5: ='Kosten & Overige invoer'!$F8 -> 0.8 | S5: ='Kosten & Overige invoer'!$F8 -> 0.8 | T5: ='Kosten & Overige invoer'!$F8 -> 0.8 | U5: ='Kosten & Overige invoer'!$F8 -> 0.8
A6: Analyse prijs A | B6: ='Kosten & Overige invoer'!$F9 -> 1 | C6: ='Kosten & Overige invoer'!$F9 -> 1 | D6: ='Kosten & Overige invoer'!$F9 -> 1 | E6: ='Kosten & Overige invoer'!$F9 -> 1 | F6: ='Kosten & Overige invoer'!$F9 -> 1 | G6: ='Kosten & Overige invoer'!$F9 -> 1 | H6: ='Kosten & Overige invoer'!$F9 -> 1 | I6: ='Kosten & Overige invoer'!$F9 -> 1 | J6: ='Kosten & Overige invoer'!$F9 -> 1 | K6: ='Kosten & Overige invoer'!$F9 -> 1 | L6: ='Kosten & Overige invoer'!$F9 -> 1 | M6: ='Kosten & Overige invoer'!$F9 -> 1 | N6: ='Kosten & Overige invoer'!$F9 -> 1 | O6: ='Kosten & Overige invoer'!$F9 -> 1 | P6: ='Kosten & Overige invoer'!$F9 -> 1 | Q6: ='Kosten & Overige invoer'!$F9 -> 1 | R6: ='Kosten & Overige invoer'!$F9 -> 1 | S6: ='Kosten & Overige invoer'!$F9 -> 1 | T6: ='Kosten & Overige invoer'!$F9 -> 1 | U6: ='Kosten & Overige invoer'!$F9 -> 1
A7: Berekening prijs B | B7: ='Kosten & Overige invoer'!$F10 -> 0.5 | C7: ='Kosten & Overige invoer'!$F10 -> 0.5 | D7: ='Kosten & Overige invoer'!$F10 -> 0.5 | E7: ='Kosten & Overige invoer'!$F10 -> 0.5 | F7: ='Kosten & Overige invoer'!$F10 -> 0.5 | G7: ='Kosten & Overige invoer'!$F10 -> 0.5 | H7: ='Kosten & Overige invoer'!$F10 -> 0.5 | I7: ='Kosten & Overige invoer'!$F10 -> 0.5 | J7: ='Kosten & Overige invoer'!$F10 -> 0.5 | K7: ='Kosten & Overige invoer'!$F10 -> 0.5 | L7: ='Kosten & Overige invoer'!$F10 -> 0.5 | M7: ='Kosten & Overige invoer'!$F10 -> 0.5 | N7: ='Kosten & Overige invoer'!$F10 -> 0.5 | O7: ='Kosten & Overige invoer'!$F10 -> 0.5 | P7: ='Kosten & Overige invoer'!$F10 -> 0.5 | Q7: ='Kosten & Overige invoer'!$F10 -> 0.5 | R7: ='Kosten & Overige invoer'!$F10 -> 0.5 | S7: ='Kosten & Overige invoer'!$F10 -> 0.5 | T7: ='Kosten & Overige invoer'!$F10 -> 0.5 | U7: ='Kosten & Overige invoer'!$F10 -> 0.5
A8: Effect grondsoort | B8: ='Kosten & Overige invoer'!$F11 -> 1 | C8: ='Kosten & Overige invoer'!$F11 -> 1 | D8: ='Kosten & Overige invoer'!$F11 -> 1 | E8: ='Kosten & Overige invoer'!$F11 -> 1 | F8: ='Kosten & Overige invoer'!$F11 -> 1 | G8: ='Kosten & Overige invoer'!$F11 -> 1 | H8: ='Kosten & Overige invoer'!$F11 -> 1 | I8: ='Kosten & Overige invoer'!$F11 -> 1 | J8: ='Kosten & Overige invoer'!$F11 -> 1 | K8: ='Kosten & Overige invoer'!$F11 -> 1 | L8: ='Kosten & Overige invoer'!$F11 -> 1 | M8: ='Kosten & Overige invoer'!$F11 -> 1 | N8: ='Kosten & Overige invoer'!$F11 -> 1 | O8: ='Kosten & Overige invoer'!$F11 -> 1 | P8: ='Kosten & Overige invoer'!$F11 -> 1 | Q8: ='Kosten & Overige invoer'!$F11 -> 1 | R8: ='Kosten & Overige invoer'!$F11 -> 1 | S8: ='Kosten & Overige invoer'!$F11 -> 1 | T8: ='Kosten & Overige invoer'!$F11 -> 1 | U8: ='Kosten & Overige invoer'!$F11 -> 1
A9: Effect plukprestaties | B9: ='Kosten & Overige invoer'!$F12 -> 1 | C9: ='Kosten & Overige invoer'!$F12 -> 1 | D9: ='Kosten & Overige invoer'!$F12 -> 1 | E9: ='Kosten & Overige invoer'!$F12 -> 1 | F9: ='Kosten & Overige invoer'!$F12 -> 1 | G9: ='Kosten & Overige invoer'!$F12 -> 1 | H9: ='Kosten & Overige invoer'!$F12 -> 1 | I9: ='Kosten & Overige invoer'!$F12 -> 1 | J9: ='Kosten & Overige invoer'!$F12 -> 1 | K9: ='Kosten & Overige invoer'!$F12 -> 1 | L9: ='Kosten & Overige invoer'!$F12 -> 1 | M9: ='Kosten & Overige invoer'!$F12 -> 1 | N9: ='Kosten & Overige invoer'!$F12 -> 1 | O9: ='Kosten & Overige invoer'!$F12 -> 1 | P9: ='Kosten & Overige invoer'!$F12 -> 1 | Q9: ='Kosten & Overige invoer'!$F12 -> 1 | R9: ='Kosten & Overige invoer'!$F12 -> 1 | S9: ='Kosten & Overige invoer'!$F12 -> 1 | T9: ='Kosten & Overige invoer'!$F12 -> 1 | U9: ='Kosten & Overige invoer'!$F12 -> 1
A11: Opbrengst verdeling per afzetkanaal | B11: 1 | C11: 2 | D11: 3 | E11: 4 | F11: 5 | G11: 6 | H11: 7 | I11: 8 | J11: 9 | K11: 10 | L11: 11 | M11: 12 | N11: 13 | O11: 14 | P11: 15 | Q11: 16 | R11: 17 | S11: 18 | T11: 19 | U11: 20
A12: Supermarkt | B12: ='Kosten & Overige invoer'!$F15 -> 1 | C12: ='Kosten & Overige invoer'!$F15 -> 1 | D12: ='Kosten & Overige invoer'!$F15 -> 1 | E12: ='Kosten & Overige invoer'!$F15 -> 1 | F12: ='Kosten & Overige invoer'!$F15 -> 1 | G12: ='Kosten & Overige invoer'!$F15 -> 1 | H12: ='Kosten & Overige invoer'!$F15 -> 1 | I12: ='Kosten & Overige invoer'!$F15 -> 1 | J12: ='Kosten & Overige invoer'!$F15 -> 1 | K12: ='Kosten & Overige invoer'!$F15 -> 1 | L12: ='Kosten & Overige invoer'!$F15 -> 1 | M12: ='Kosten & Overige invoer'!$F15 -> 1 | N12: ='Kosten & Overige invoer'!$F15 -> 1 | O12: ='Kosten & Overige invoer'!$F15 -> 1 | P12: ='Kosten & Overige invoer'!$F15 -> 1 | Q12: ='Kosten & Overige invoer'!$F15 -> 1 | R12: ='Kosten & Overige invoer'!$F15 -> 1 | S12: ='Kosten & Overige invoer'!$F15 -> 1 | T12: ='Kosten & Overige invoer'!$F15 -> 1 | U12: ='Kosten & Overige invoer'!$F15 -> 1
A13: Cateraar | B13: 0 | C13: ='Kosten & Overige invoer'!$F16 -> 0 | D13: ='Kosten & Overige invoer'!$F16 -> 0 | E13: ='Kosten & Overige invoer'!$F16 -> 0 | F13: ='Kosten & Overige invoer'!$F16 -> 0 | G13: ='Kosten & Overige invoer'!$F16 -> 0 | H13: ='Kosten & Overige invoer'!$F16 -> 0 | I13: ='Kosten & Overige invoer'!$F16 -> 0 | J13: ='Kosten & Overige invoer'!$F16 -> 0 | K13: ='Kosten & Overige invoer'!$F16 -> 0 | L13: ='Kosten & Overige invoer'!$F16 -> 0 | M13: ='Kosten & Overige invoer'!$F16 -> 0 | N13: ='Kosten & Overige invoer'!$F16 -> 0 | O13: ='Kosten & Overige invoer'!$F16 -> 0 | P13: ='Kosten & Overige invoer'!$F16 -> 0 | Q13: ='Kosten & Overige invoer'!$F16 -> 0 | R13: ='Kosten & Overige invoer'!$F16 -> 0 | S13: ='Kosten & Overige invoer'!$F16 -> 0 | T13: ='Kosten & Overige invoer'!$F16 -> 0 | U13: ='Kosten & Overige invoer'!$F16 -> 0
A14: Consument | B14: 0 | C14: ='Kosten & Overige invoer'!$F17 -> 0 | D14: ='Kosten & Overige invoer'!$F17 -> 0 | E14: ='Kosten & Overige invoer'!$F17 -> 0 | F14: ='Kosten & Overige invoer'!$F17 -> 0 | G14: ='Kosten & Overige invoer'!$F17 -> 0 | H14: ='Kosten & Overige invoer'!$F17 -> 0 | I14: ='Kosten & Overige invoer'!$F17 -> 0 | J14: ='Kosten & Overige invoer'!$F17 -> 0 | K14: ='Kosten & Overige invoer'!$F17 -> 0 | L14: ='Kosten & Overige invoer'!$F17 -> 0 | M14: ='Kosten & Overige invoer'!$F17 -> 0 | N14: ='Kosten & Overige invoer'!$F17 -> 0 | O14: ='Kosten & Overige invoer'!$F17 -> 0 | P14: ='Kosten & Overige invoer'!$F17 -> 0 | Q14: ='Kosten & Overige invoer'!$F17 -> 0 | R14: ='Kosten & Overige invoer'!$F17 -> 0 | S14: ='Kosten & Overige invoer'!$F17 -> 0 | T14: ='Kosten & Overige invoer'!$F17 -> 0 | U14: ='Kosten & Overige invoer'!$F17 -> 0
A15: Totaal niet meer dan 100% | B15: =SUM(B12:B14) -> 1 | C15: =SUM(C12:C14) -> 1 | D15: 1 | E15: 1 | F15: 1 | G15: 1 | H15: 1 | I15: 1 | J15: =SUM(J12:J14) -> 1 | K15: 1 | L15: =SUM(L12:L14) -> 1 | M15: 1 | N15: 1 | O15: 1 | P15: 1 | Q15: 1 | R15: 1 | S15: 1 | T15: 1 | U15: 1
A17: Privé ontrekkingen | B17: 1 | C17: 2 | D17: 3 | E17: 4 | F17: 5 | G17: 6 | H17: 7 | I17: 8 | J17: 9 | K17: 10 | L17: 11 | M17: 12 | N17: 13 | O17: 14 | P17: 15 | Q17: 16 | R17: 17 | S17: 18 | T17: 19 | U17: 20
A18: Maandelijks circa | B18: ='Kosten & Overige invoer'!$F21 -> 0 | C18: ='Kosten & Overige invoer'!$F21 -> 0 | D18: ='Kosten & Overige invoer'!$F21 -> 0 | E18: ='Kosten & Overige invoer'!$F21 -> 0 | F18: ='Kosten & Overige invoer'!$F21 -> 0 | G18: ='Kosten & Overige invoer'!$F21 -> 0 | H18: ='Kosten & Overige invoer'!$F21 -> 0 | I18: ='Kosten & Overige invoer'!$F21 -> 0 | J18: ='Kosten & Overige invoer'!$F21 -> 0 | K18: ='Kosten & Overige invoer'!$F21 -> 0 | L18: ='Kosten & Overige invoer'!$F21 -> 0 | M18: ='Kosten & Overige invoer'!$F21 -> 0 | N18: ='Kosten & Overige invoer'!$F21 -> 0 | O18: ='Kosten & Overige invoer'!$F21 -> 0 | P18: ='Kosten & Overige invoer'!$F21 -> 0 | Q18: ='Kosten & Overige invoer'!$F21 -> 0 | R18: ='Kosten & Overige invoer'!$F21 -> 0 | S18: ='Kosten & Overige invoer'!$F21 -> 0 | T18: ='Kosten & Overige invoer'!$F21 -> 0 | U18: ='Kosten & Overige invoer'!$F21 -> 0
A19: Jaarlijks | B19: =B18*12 -> 0 | C19: =C18*12 -> 0 | D19: 0 | E19: 0 | F19: 0 | G19: 0 | H19: 0 | I19: 0 | J19: 0 | K19: =K18*12 -> 0 | L19: =L18*12 -> 0 | M19: 0 | N19: 0 | O19: 0 | P19: 0 | Q19: 0 | R19: 0 | S19: 0 | T19: 0 | U19: 0

Sheet CO2 Opslag en Verwaarding
A3: Invoer
A4: Gemiddelde jaarlijkse CO2 opslag (ton/ha) | B4: 6
A5: Prijs CO2 (€/ton) | B5: 100
A6: Kosten tussenhandelaar (%) | B6: 0.2
A8: CO2 Opslag | B8: 1 | C8: 2 | D8: 3 | E8: 4 | F8: 5 | G8: 6 | H8: 7 | I8: 8 | J8: 9 | K8: 10 | L8: 11 | M8: 12 | N8: 13 | O8: 14 | P8: 15 | Q8: 16 | R8: 17 | S8: 18 | T8: 19 | U8: 20
A9: Gemiddelde jaarlijkse CO2 opslag (ton) voedselbos | B9: =$B$4*Homepage!$C$17 -> 0 | C9: =$B$4*Homepage!$C$17 -> 0 | D9: =$B$4*Homepage!$C$17 -> 0 | E9: =$B$4*Homepage!$C$17 -> 0 | F9: =$B$4*Homepage!$C$17 -> 0 | G9: =$B$4*Homepage!$C$17 -> 0 | H9: =$B$4*Homepage!$C$17 -> 0 | I9: =$B$4*Homepage!$C$17 -> 0 | J9: =$B$4*Homepage!$C$17 -> 0 | K9: =$B$4*Homepage!$C$17 -> 0 | L9: =$B$4*Homepage!$C$17 -> 0 | M9: =$B$4*Homepage!$C$17 -> 0 | N9: =$B$4*Homepage!$C$17 -> 0 | O9: =$B$4*Homepage!$C$17 -> 0 | P9: =$B$4*Homepage!$C$17 -> 0 | Q9: =$B$4*Homepage!$C$17 -> 0 | R9: =$B$4*Homepage!$C$17 -> 0 | S9: =$B$4*Homepage!$C$17 -> 0 | T9: =$B$4*Homepage!$C$17 -> 0 | U9: =$B$4*Homepage!$C$17 -> 0
A10: Cumulatieve CO2 opslag | B10: =B9 -> 0 | C10: =C9+B10 -> 0 | D10: =C10+D9 -> 0 | E10: =D10+E9 -> 0 | F10: 0 | G10: 0 | H10: 0 | I10: 0 | J10: 0 | K10: 0 | L10: 0 | M10: 0 | N10: 0 | O10: =N10+O9 -> 0 | P10: 0 | Q10: 0 | R10: 0 | S10: 0 | T10: 0 | U10: =T10+U9 -> 0
A12: CO2 Verwaarding | B12: 1 | C12: 2 | D12: 3 | E12: 4 | F12: 5 | G12: 6 | H12: 7 | I12: 8 | J12: 9 | K12: 10 | L12: 11 | M12: 12 | N12: 13 | O12: 14 | P12: 15 | Q12: 16 | R12: 17 | S12: 18 | T12: 19 | U12: 20
A13: Prijs CO2 (€/ton) | B13: =$B$5 -> 100 | C13: =$B$5 -> 100 | D13: 100 | E13: 100 | F13: 100 | G13: 100 | H13: 100 | I13: 100 | J13: 100 | K13: 100 | L13: 100 | M13: 100 | N13: 100 | O13: 100 | P13: 100 | Q13: 100 | R13: 100 | S13: 100 | T13: 100 | U13: 100
A14: Waarde CO2 (€) | B14: =B13*B9 -> 0 | C14: =C13*C9 -> 0 | D14: 0 | E14: 0 | F14: 0 | G14: 0 | H14: 0 | I14: 0 | J14: 0 | K14: 0 | L14: 0 | M14: 0 | N14: 0 | O14: 0 | P14: 0 | Q14: 0 | R14: 0 | S14: 0 | T14: 0 | U14: 0
A15: Cumulatieve waarde CO2 | B15: =B14 -> 0 | C15: =B15+C14 -> 0 | D15: =C15+D14 -> 0 | E15: 0 | F15: =E15+F14 -> 0 | G15: 0 | H15: 0 | I15: 0 | J15: 0 | K15: 0 | L15: 0 | M15: 0 | N15: 0 | O15: 0 | P15: 0 | Q15: 0 | R15: 0 | S15: 0 | T15: =S15+T14 -> 0 | U15: =T15+U14 -> 0
A16: Kosten tussenhandelaar (%) | B16: =$B$6 -> 0.2 | C16: =$B$6 -> 0.2 | D16: 0.2 | E16: 0.2 | F16: 0.2 | G16: 0.2 | H16: 0.2 | I16: 0.2 | J16: 0.2 | K16: 0.2 | L16: 0.2 | M16: 0.2 | N16: 0.2 | O16: 0.2 | P16: 0.2 | Q16: 0.2 | R16: 0.2 | S16: 0.2 | T16: 0.2 | U16: 0.2
A17: Kosten tussenhandelaar (€) | B17: =B16*B14 -> 0 | C17: =C16*C14 -> 0 | D17: 0 | E17: 0 | F17: 0 | G17: 0 | H17: 0 | I17: 0 | J17: 0 | K17: 0 | L17: 0 | M17: 0 | N17: 0 | O17: 0 | P17: 0 | Q17: 0 | R17: 0 | S17: 0 | T17: 0 | U17: 0
A18: Inkomsten uit CO2 verwaarding | B18: =B14-B17 -> 0 | C18: =C14-C17 -> 0 | D18: 0 | E18: 0 | F18: 0 | G18: =G14-G17 -> 0 | H18: 0 | I18: 0 | J18: 0 | K18: 0 | L18: 0 | M18: 0 | N18: 0 | O18: 0 | P18: 0 | Q18: 0 | R18: 0 | S18: 0 | T18: 0 | U18: 0

Sheet Investeringsbegroting
I2: 0-1 | J2: 1-2 | K2: 2-3 | L2: 3-4 | M2: 4-5 | N2: 5-6 | O2: 6-7 | P2: 7-8 | Q2: 8-9 | R2: 9-10 | S2: 10-11 | T2: 11-12 | U2: 12-13 | V2: 13-14 | W2: 14-15 | X2: 15-16 | Y2: 16-17 | Z2: 17-18 | AA2: 18-19 | AB2: 19-20
A3: Investeringen | B3: Aankoop | C3: Aankoopjaar | D3: Restwaarde | E3: Levensduur | F3: Afschrijving per jaar | H3: Jaar | I3: 1 | J3: 2 | K3: 3 | L3: 4 | M3: 5 | N3: 6 | O3: 7 | P3: 8 | Q3: 9 | R3: 10 | S3: 11 | T3: 12 | U3: 13 | V3: 14 | W3: 15 | X3: 16 | Y3: 17 | Z3: 18 | AA3: 19 | AB3: 20
A4: =' Investeringen en Financiering'!A4 -> Grond | B4: =' Investeringen en Financiering'!$C4 -> 0 | C4: =' Investeringen en Financiering'!$D4 -> 0 | D4: =' Investeringen en Financiering'!$E4 -> 1 | E4: =' Investeringen en Financiering'!$F4 -> 0 | F4: =(B4-(B4*D4))/E4 ->  | H4: Jaarlijkse afschrijvingen | I4: =IF(AND(I$3-$C4>0,I$3-$C4<=$E4),$F4,0) -> 0 | J4: =IF(AND(J$3-$C4>0,J$3-$C4<=$E4),$F4,0) -> 0 | K4: =IF(AND(K$3-$C4>0,K$3-$C4<=$E4),$F4,0) -> 0 | L4: 0 | M4: 0 | N4: 0 | O4: 0 | P4: 0 | Q4: 0 | R4: 0 | S4: 0 | T4: 0 | U4: 0 | V4: 0 | W4: 0 | X4: 0 | Y4: 0 | Z4: 0 | AA4: 0 | AB4: 0
A5: =' Investeringen en Financiering'!A5 -> Gebouwen | B5: =' Investeringen en Financiering'!$C5 -> 0 | C5: =' Investeringen en Financiering'!$D5 -> 0 | D5: =' Investeringen en Financiering'!$E5 -> 1 | E5: =' Investeringen en Financiering'!$F5 -> 0 | F5: =(B5-(B5*D5))/E5 ->  | I5: =IF(AND(I$3-$C5>0,I$3-$C5<=$E5),$F5,0) -> 0 | J5: =IF(AND(J$3-$C5>0,J$3-$C5<=$E5),$F5,0) -> 0 | K5: =IF(AND(K$3-$C5>0,K$3-$C5<=$E5),$F5,0) -> 0 | L5: 0 | M5: 0 | N5: 0 | O5: 0 | P5: 0 | Q5: 0 | R5: 0 | S5: 0 | T5: 0 | U5: 0 | V5: 0 | W5: 0 | X5: 0 | Y5: 0 | Z5: 0 | AA5: 0 | AB5: 0
A6: =' Investeringen en Financiering'!A6 -> Infrastructuur (paden) | B6: =' Investeringen en Financiering'!$C6 -> 0 | C6: =' Investeringen en Financiering'!$D6 -> 0 | D6: =' Investeringen en Financiering'!$E6 -> 1 | E6: =' Investeringen en Financiering'!$F6 -> 0 | I6: =IF(AND(I$3-$C6>0,I$3-$C6<=$E6),$F6,0) -> 0 | J6: 0 | K6: 0 | L6: 0 | M6: 0 | N6: 0 | O6: 0 | P6: 0 | Q6: 0 | R6: 0 | S6: 0 | T6: 0 | U6: 0 | V6: 0 | W6: 0 | X6: 0 | Y6: 0 | Z6: 0 | AA6: 0 | AB6: 0
A7: =' Investeringen en Financiering'!A7 -> Machines | B7: =' Investeringen en Financiering'!$C7 -> 0 | C7: =' Investeringen en Financiering'!$D7 -> 0 | D7: =' Investeringen en Financiering'!$E7 -> 1 | E7: =' Investeringen en Financiering'!$F7 -> 0 | I7: 0 | J7: 0 | K7: 0 | L7: 0 | M7: 0 | N7: 0 | O7: 0 | P7: 0 | Q7: 0 | R7: 0 | S7: 0 | T7: 0 | U7: 0 | V7: 0 | W7: 0 | X7: 0 | Y7: 0 | Z7: 0 | AA7: 0 | AB7: 0
A8: =' Investeringen en Financiering'!A8 -> Materiaal | B8: =' Investeringen en Financiering'!$C8 -> 0 | C8: =' Investeringen en Financiering'!$D8 -> 0 | D8: =' Investeringen en Financiering'!$E8 -> 1 | E8: =' Investeringen en Financiering'!$F8 -> 0 | I8: 0 | J8: 0 | K8: 0 | L8: 0 | M8: 0 | N8: 0 | O8: 0 | P8: 0 | Q8: 0 | R8: 0 | S8: 0 | T8: 0 | U8: 0 | V8: 0 | W8: 0 | X8: 0 | Y8: 0 | Z8: 0 | AA8: 0 | AB8: 0
A9: =' Investeringen en Financiering'!A9 -> Teeltondersteunende middelen | B9: =' Investeringen en Financiering'!$C9 -> 0 | C9: =' Investeringen en Financiering'!$D9 -> 0 | D9: =' Investeringen en Financiering'!$E9 -> 1 | E9: =' Investeringen en Financiering'!$F9 -> 0 | I9: =IF(AND(I$3-$C9>0,I$3-$C9<=$E9),$F9,0) -> 0 | J9: 0 | K9: 0 | L9: 0 | M9: 0 | N9: 0 | O9: 0 | P9: 0 | Q9: 0 | R9: 0 | S9: 0 | T9: 0 | U9: 0 | V9: 0 | W9: 0 | X9: 0 | Y9: 0 | Z9: 0 | AA9: 0 | AB9: 0
A10: =' Investeringen en Financiering'!A10 -> Ontwerp | B10: =' Investeringen en Financiering'!$C10 -> 0 | C10: =' Investeringen en Financiering'!$D10 -> 0 | D10: =' Investeringen en Financiering'!$E10 -> 1 | E10: =' Investeringen en Financiering'!$F10 -> 0 | I10: 0 | J10: 0 | K10: 0 | L10: 0 | M10: 0 | N10: 0 | O10: 0 | P10: 0 | Q10: 0 | R10: 0 | S10: 0 | T10: 0 | U10: 0 | V10: 0 | W10: 0 | X10: 0 | Y10: 0 | Z10: 0 | AA10: 0 | AB10: 0
A11: =' Investeringen en Financiering'!A11 -> Grondverzet | B11: =' Investeringen en Financiering'!$C11 -> 0 | C11: =' Investeringen en Financiering'!$D11 -> 0 | D11: =' Investeringen en Financiering'!$E11 -> 1 | E11: =' Investeringen en Financiering'!$F11 -> 0 | I11: 0 | J11: 0 | K11: 0 | L11: 0 | M11: 0 | N11: 0 | O11: =IF(AND(O$3-$C11>0,O$3-$C11<=$E11),$F11,0) -> 0 | P11: 0 | Q11: 0 | R11: 0 | S11: 0 | T11: 0 | U11: 0 | V11: 0 | W11: 0 | X11: 0 | Y11: 0 | Z11: 0 | AA11: 0 | AB11: 0
A12: =' Investeringen en Financiering'!A12 -> Marketing | B12: =' Investeringen en Financiering'!$C12 -> 0 | C12: =' Investeringen en Financiering'!$D12 -> 0 | D12: =' Investeringen en Financiering'!$E12 -> 1 | E12: =' Investeringen en Financiering'!$F12 -> 0 | I12: 0 | J12: 0 | K12: 0 | L12: 0 | M12: 0 | N12: 0 | O12: 0 | P12: 0 | Q12: 0 | R12: 0 | S12: 0 | T12: 0 | U12: 0 | V12: 0 | W12: 0 | X12: 0 | Y12: 0 | Z12: 0 | AA12: 0 | AB12: 0
A13: =' Investeringen en Financiering'!A13 -> Plantgoed Productief 1 | B13: =' Investeringen en Financiering'!$C13 -> 0 | C13: =' Investeringen en Financiering'!$D13 -> 0 | D13: =' Investeringen en Financiering'!$E13 -> 1 | E13: =' Investeringen en Financiering'!$F13 -> 0 | I13: 0 | J13: 0 | K13: 0 | L13: 0 | M13: 0 | N13: 0 | O13: 0 | P13: 0 | Q13: 0 | R13: 0 | S13: 0 | T13: 0 | U13: 0 | V13: =IF(AND(V$3-$C13>0,V$3-$C13<=$E13),$F13,0) -> 0 | W13: 0 | X13: 0 | Y13: 0 | Z13: 0 | AA13: 0 | AB13: 0
A14: =' Investeringen en Financiering'!A14 -> Plantgoed Productief 2 | B14: =' Investeringen en Financiering'!$C14 -> 0 | C14: =' Investeringen en Financiering'!$D14 -> 0 | D14: =' Investeringen en Financiering'!$E14 -> 1 | E14: =' Investeringen en Financiering'!$F14 -> 0 | I14: 0 | J14: 0 | K14: 0 | L14: 0 | M14: 0 | N14: 0 | O14: 0 | P14: 0 | Q14: 0 | R14: 0 | S14: 0 | T14: 0 | U14: 0 | V14: 0 | W14: 0 | X14: 0 | Y14: 0 | Z14: 0 | AA14: 0 | AB14: 0
A15: =' Investeringen en Financiering'!A15 -> Plantgoed Productief 3 | B15: =' Investeringen en Financiering'!$C15 -> 0 | C15: =' Investeringen en Financiering'!$D15 -> 0 | D15: =' Investeringen en Financiering'!$E15 -> 1 | E15: =' Investeringen en Financiering'!$F15 -> 0 | I15: 0 | J15: 0 | K15: 0 | L15: 0 | M15: 0 | N15: 0 | O15: 0 | P15: 0 | Q15: 0 | R15: 0 | S15: 0 | T15: 0 | U15: 0 | V15: 0 | W15: 0 | X15: 0 | Y15: 0 | Z15: 0 | AA15: 0 | AB15: 0
A16: =' Investeringen en Financiering'!A16 -> Plantgoed Productief 4 | B16: =' Investeringen en Financiering'!$C16 -> 0 | C16: =' Investeringen en Financiering'!$D16 -> 0 | D16: =' Investeringen en Financiering'!$E16 -> 1 | E16: =' Investeringen en Financiering'!$F16 -> 0 | I16: 0 | J16: 0 | K16: 0 | L16: 0 | M16: 0 | N16: 0 | O16: 0 | P16: 0 | Q16: 0 | R16: 0 | S16: 0 | T16: 0 | U16: 0 | V16: 0 | W16: 0 | X16: 0 | Y16: 0 | Z16: 0 | AA16: 0 | AB16: 0
A17: =' Investeringen en Financiering'!A17 -> Plantgoed Productief 5 | B17: =' Investeringen en Financiering'!$C17 -> 0 | C17: =' Investeringen en Financiering'!$D17 -> 0 | D17: =' Investeringen en Financiering'!$E17 -> 1 | E17: =' Investeringen en Financiering'!$F17 -> 0 | I17: 0 | J17: 0 | K17: 0 | L17: 0 | M17: 0 | N17: 0 | O17: 0 | P17: 0 | Q17: 0 | R17: 0 | S17: 0 | T17: 0 | U17: 0 | V17: 0 | W17: 0 | X17: 0 | Y17: 0 | Z17: 0 | AA17: 0 | AB17: 0
A18: =' Investeringen en Financiering'!A18 -> Plantgoed Bosplantsoen | B18: =' Investeringen en Financiering'!$C18 -> 0 | C18: =' Investeringen en Financiering'!$D18 -> 0 | D18: =' Investeringen en Financiering'!$E18 -> 1 | E18: =' Investeringen en Financiering'!$F18 -> 0 | I18: 0 | J18: 0 | K18: 0 | L18: 0 | M18: 0 | N18: 0 | O18: 0 | P18: 0 | Q18: 0 | R18: 0 | S18: 0 | T18: 0 | U18: 0 | V18: 0 | W18: 0 | X18: 0 | Y18: 0 | Z18: 0 | AA18: 0 | AB18: 0
A19: =' Investeringen en Financiering'!A19 -> Plantgoed Anders | B19: =' Investeringen en Financiering'!$C19 -> 0 | C19: =' Investeringen en Financiering'!$D19 -> 0 | D19: =' Investeringen en Financiering'!$E19 -> 1 | E19: =' Investeringen en Financiering'!$F19 -> 0 | I19: 0 | J19: 0 | K19: 0 | L19: 0 | M19: 0 | N19: 0 | O19: 0 | P19: 0 | Q19: 0 | R19: 0 | S19: 0 | T19: 0 | U19: 0 | V19: 0 | W19: 0 | X19: 0 | Y19: 0 | Z19: 0 | AA19: 0 | AB19: 0
A20: =' Investeringen en Financiering'!A20 -> Overig | B20: =' Investeringen en Financiering'!$C20 -> 0 | C20: =' Investeringen en Financiering'!$D20 -> 0 | D20: =' Investeringen en Financiering'!$E20 -> 1 | E20: =' Investeringen en Financiering'!$F20 -> 0 | I20: =IF(AND(I$3-$C20>0,I$3-$C20<=$E20),$F20,0) -> 0 | J20: 0 | K20: 0 | L20: 0 | M20: 0 | N20: 0 | O20: 0 | P20: 0 | Q20: 0 | R20: 0 | S20: 0 | T20: 0 | U20: 0 | V20: 0 | W20: 0 | X20: 0 | Y20: 0 | Z20: 0 | AA20: 0 | AB20: 0
H21: Totale | I21: =SUM(I4:I20) -> 0 | J21: =SUM(J4:J20) -> 0 | K21: =SUM(K4:K20) -> 0 | L21: 0 | M21: 0 | N21: 0 | O21: 0 | P21: 0 | Q21: 0 | R21: 0 | S21: 0 | T21: 0 | U21: 0 | V21: 0 | W21: 0 | X21: 0 | Y21: 0 | Z21: 0 | AA21: 0 | AB21: 0
H22: jaarlijkse afschrijvingen

Sheet Financieringsbegroting
L2: 0-1 | M2: 1-2 | N2: 2-3 | O2: 3-4 | P2: 4-5 | Q2: 5-6 | R2: 6-7 | S2: 7-8 | T2: 8-9 | U2: 9-10 | V2: 10-11 | W2: 11-12 | X2: 12-13 | Y2: 13-14 | Z2: 14-15 | AA2: 15-16 | AB2: 16-17 | AC2: 17-18 | AD2: 18-19 | AE2: 19-20
A3: Investeringen | B3: Al in eigendom | C3: Aankoop | D3: Aankoopjaar | E3: Soort financiering | F3: Rentepercentage | G3: Berekende rente | H3: Looptijd | I3: Jaarlijkse aflossing | K3: Jaar | L3: 1 | M3: 2 | N3: 3 | O3: 4 | P3: 5 | Q3: 6 | R3: 7 | S3: 8 | T3: 9 | U3: 10 | V3: 11 | W3: 12 | X3: 13 | Y3: 14 | Z3: 15 | AA3: 16 | AB3: 17 | AC3: 18 | AD3: 19 | AE3: 20
A4: =' Investeringen en Financiering'!A4 -> Grond | B4: =' Investeringen en Financiering'!B4 -> Nee | C4: =' Investeringen en Financiering'!C4 -> 0 | D4: =' Investeringen en Financiering'!D4 -> 0 | E4: =' Investeringen en Financiering'!I4 -> Vreemd | F4: =' Investeringen en Financiering'!J4 -> 0 | G4: =' Investeringen en Financiering'!L4 -> 0 | H4: =' Investeringen en Financiering'!K4 -> 0 | I4: =IF(E4="Vreemd",C4/H4,0) ->  | K4: Jaarlijkse aflossing | L4: =IF(AND(L$3-$D4>=0,L$3-$D4<$H4),$I4,0) -> 0 | M4: =IF(AND(M$3-$D4>=0,M$3-$D4<$H4),$I4,0) -> 0 | N4: 0 | O4: 0 | P4: 0 | Q4: 0 | R4: 0 | S4: 0 | T4: 0 | U4: 0 | V4: 0 | W4: =IF(AND(W$3-$D4>=0,W$3-$D4<$H4),$I4,0) -> 0 | X4: 0 | Y4: 0 | Z4: 0 | AA4: 0 | AB4: 0 | AC4: 0 | AD4: 0 | AE4: 0
A5: =' Investeringen en Financiering'!A5 -> Gebouwen | B5: =' Investeringen en Financiering'!B5 -> Nee | C5: =' Investeringen en Financiering'!C5 -> 0 | D5: =' Investeringen en Financiering'!D5 -> 0 | E5: =' Investeringen en Financiering'!I5 -> Vreemd | F5: =' Investeringen en Financiering'!J5 -> 0 | G5: =' Investeringen en Financiering'!L5 -> 0 | H5: =' Investeringen en Financiering'!K5 -> 0 | I5: =IF(E5="Vreemd",C5/H5,0) ->  | L5: =IF(AND(L$3-$D5>=0,L$3-$D5<$H5),$I5,0) -> 0 | M5: 0 | N5: 0 | O5: 0 | P5: 0 | Q5: 0 | R5: 0 | S5: 0 | T5: 0 | U5: 0 | V5: 0 | W5: 0 | X5: 0 | Y5: 0 | Z5: 0 | AA5: 0 | AB5: =IF(AND(AB$3-$D5>=0,AB$3-$D5<$H5),$I5,0) -> 0 | AC5: 0 | AD5: 0 | AE5: 0
A6: =' Investeringen en Financiering'!A6 -> Infrastructuur (paden) | B6: =' Investeringen en Financiering'!B6 -> Nee | C6: =' Investeringen en Financiering'!C6 -> 0 | D6: =' Investeringen en Financiering'!D6 -> 0 | E6: =' Investeringen en Financiering'!I6 -> Vreemd | F6: =' Investeringen en Financiering'!J6 -> 0 | G6: =' Investeringen en Financiering'!L6 -> 0 | H6: =' Investeringen en Financiering'!K6 -> 0 | I6: =IF(E6="Vreemd",C6/H6,0) ->  | L6: 0 | M6: 0 | N6: 0 | O6: 0 | P6: 0 | Q6: 0 | R6: 0 | S6: 0 | T6: 0 | U6: 0 | V6: 0 | W6: 0 | X6: 0 | Y6: 0 | Z6: 0 | AA6: 0 | AB6: 0 | AC6: 0 | AD6: 0 | AE6: 0
A7: =' Investeringen en Financiering'!A7 -> Machines | B7: =' Investeringen en Financiering'!B7 -> Nee | C7: =' Investeringen en Financiering'!C7 -> 0 | D7: =' Investeringen en Financiering'!D7 -> 0 | E7: =' Investeringen en Financiering'!I7 -> Vreemd | F7: =' Investeringen en Financiering'!J7 -> 0 | G7: =' Investeringen en Financiering'!L7 -> 0 | H7: =' Investeringen en Financiering'!K7 -> 0 | L7: 0 | M7: 0 | N7: 0 | O7: 0 | P7: 0 | Q7: 0 | R7: 0 | S7: 0 | T7: 0 | U7: 0 | V7: 0 | W7: 0 | X7: 0 | Y7: 0 | Z7: 0 | AA7: 0 | AB7: 0 | AC7: 0 | AD7: 0 | AE7: 0
A8: =' Investeringen en Financiering'!A8 -> Materiaal | B8: =' Investeringen en Financiering'!B8 -> Nee | C8: =' Investeringen en Financiering'!C8 -> 0 | D8: =' Investeringen en Financiering'!D8 -> 0 | E8: =' Investeringen en Financiering'!I8 -> Vreemd | F8: =' Investeringen en Financiering'!J8 -> 0 | G8: =' Investeringen en Financiering'!L8 -> 0 | H8: =' Investeringen en Financiering'!K8 -> 0 | I8: =IF(E8="Vreemd",C8/H8,0) ->  | L8: 0 | M8: 0 | N8: 0 | O8: 0 | P8: 0 | Q8: 0 | R8: 0 | S8: 0 | T8: 0 | U8: 0 | V8: 0 | W8: 0 | X8: 0 | Y8: 0 | Z8: 0 | AA8: 0 | AB8: 0 | AC8: 0 | AD8: 0 | AE8: 0
A9: =' Investeringen en Financiering'!A9 -> Teeltondersteunende middelen | B9: =' Investeringen en Financiering'!B9 -> Nee | C9: =' Investeringen en Financiering'!C9 -> 0 | D9: =' Investeringen en Financiering'!D9 -> 0 | E9: =' Investeringen en Financiering'!I9 -> Vreemd | F9: =' Investeringen en Financiering'!J9 -> 0 | G9: =' Investeringen en Financiering'!L9 -> 0 | H9: =' Investeringen en Financiering'!K9 -> 0 | L9: 0 | M9: 0 | N9: 0 | O9: 0 | P9: 0 | Q9: 0 | R9: 0 | S9: 0 | T9: 0 | U9: 0 | V9: 0 | W9: 0 | X9: 0 | Y9: 0 | Z9: 0 | AA9: 0 | AB9: 0 | AC9: 0 | AD9: 0 | AE9: 0
A10: =' Investeringen en Financiering'!A10 -> Ontwerp | B10: =' Investeringen en Financiering'!B10 -> Nee | C10: =' Investeringen en Financiering'!C10 -> 0 | D10: =' Investeringen en Financiering'!D10 -> 0 | E10: =' Investeringen en Financiering'!I10 -> Vreemd | F10: =' Investeringen en Financiering'!J10 -> 0 | G10: =' Investeringen en Financiering'!L10 -> 0 | H10: =' Investeringen en Financiering'!K10 -> 0 | L10: 0 | M10: 0 | N10: 0 | O10: 0 | P10: 0 | Q10: 0 | R10: 0 | S10: 0 | T10: 0 | U10: 0 | V10: 0 | W10: 0 | X10: 0 | Y10: 0 | Z10: 0 | AA10: 0 | AB10: 0 | AC10: 0 | AD10: 0 | AE10: 0
A11: =' Investeringen en Financiering'!A11 -> Grondverzet | B11: =' Investeringen en Financiering'!B11 -> Nee | C11: =' Investeringen en Financiering'!C11 -> 0 | D11: =' Investeringen en Financiering'!D11 -> 0 | E11: =' Investeringen en Financiering'!I11 -> Vreemd | F11: =' Investeringen en Financiering'!J11 -> 0 | G11: =' Investeringen en Financiering'!L11 -> 0 | H11: =' Investeringen en Financiering'!K11 -> 0 | L11: 0 | M11: 0 | N11: 0 | O11: 0 | P11: 0 | Q11: 0 | R11: 0 | S11: 0 | T11: 0 | U11: 0 | V11: 0 | W11: 0 | X11: 0 | Y11: 0 | Z11: 0 | AA11: 0 | AB11: 0 | AC11: 0 | AD11: 0 | AE11: 0
A12: =' Investeringen en Financiering'!A12 -> Marketing | B12: =' Investeringen en Financiering'!B12 -> Nee | C12: =' Investeringen en Financiering'!C12 -> 0 | D12: =' Investeringen en Financiering'!D12 -> 0 | E12: =' Investeringen en Financiering'!I12 -> Vreemd | F12: =' Investeringen en Financiering'!J12 -> 0 | G12: =' Investeringen en Financiering'!L12 -> 0 | H12: =' Investeringen en Financiering'!K12 -> 0 | L12: 0 | M12: 0 | N12: 0 | O12: 0 | P12: 0 | Q12: 0 | R12: 0 | S12: 0 | T12: 0 | U12: 0 | V12: 0 | W12: 0 | X12: 0 | Y12: 0 | Z12: 0 | AA12: 0 | AB12: 0 | AC12: 0 | AD12: 0 | AE12: 0
A13: =' Investeringen en Financiering'!A13 -> Plantgoed Productief 1 | B13: =' Investeringen en Financiering'!B13 -> Nee | C13: =' Investeringen en Financiering'!C13 -> 0 | D13: =' Investeringen en Financiering'!D13 -> 0 | E13: =' Investeringen en Financiering'!I13 -> Vreemd | F13: =' Investeringen en Financiering'!J13 -> 0 | G13: =' Investeringen en Financiering'!L13 -> 0 | H13: =' Investeringen en Financiering'!K13 -> 0 | L13: 0 | M13: 0 | N13: 0 | O13: 0 | P13: 0 | Q13: 0 | R13: 0 | S13: 0 | T13: 0 | U13: 0 | V13: 0 | W13: 0 | X13: 0 | Y13: 0 | Z13: 0 | AA13: 0 | AB13: 0 | AC13: 0 | AD13: 0 | AE13: 0
A14: =' Investeringen en Financiering'!A14 -> Plantgoed Productief 2 | B14: =' Investeringen en Financiering'!B14 -> Nee | C14: =' Investeringen en Financiering'!C14 -> 0 | D14: =' Investeringen en Financiering'!D14 -> 0 | E14: =' Investeringen en Financiering'!I14 -> Vreemd | F14: =' Investeringen en Financiering'!J14 -> 0 | G14: =' Investeringen en Financiering'!L14 -> 0 | H14: =' Investeringen en Financiering'!K14 -> 0 | L14: 0 | M14: 0 | N14: 0 | O14: 0 | P14: 0 | Q14: 0 | R14: 0 | S14: 0 | T14: 0 | U14: 0 | V14: 0 | W14: 0 | X14: 0 | Y14: 0 | Z14: 0 | AA14: 0 | AB14: 0 | AC14: 0 | AD14: 0 | AE14: 0
A15: =' Investeringen en Financiering'!A15 -> Plantgoed Productief 3 | B15: =' Investeringen en Financiering'!B15 -> Nee | C15: =' Investeringen en Financiering'!C15 -> 0 | D15: =' Investeringen en Financiering'!D15 -> 0 | E15: =' Investeringen en Financiering'!I15 -> Vreemd | F15: =' Investeringen en Financiering'!J15 -> 0 | G15: =' Investeringen en Financiering'!L15 -> 0 | H15: =' Investeringen en Financiering'!K15 -> 0 | L15: 0 | M15: 0 | N15: 0 | O15: 0 | P15: 0 | Q15: 0 | R15: 0 | S15: 0 | T15: 0 | U15: 0 | V15: 0 | W15: 0 | X15: 0 | Y15: 0 | Z15: 0 | AA15: 0 | AB15: 0 | AC15: 0 | AD15: 0 | AE15: 0
A16: =' Investeringen en Financiering'!A16 -> Plantgoed Productief 4 | B16: =' Investeringen en Financiering'!B16 -> Nee | C16: =' Investeringen en Financiering'!C16 -> 0 | D16: =' Investeringen en Financiering'!D16 -> 0 | E16: =' Investeringen en Financiering'!I16 -> Vreemd | F16: =' Investeringen en Financiering'!J16 -> 0 | G16: =' Investeringen en Financiering'!L16 -> 0 | H16: =' Investeringen en Financiering'!K16 -> 0 | L16: 0 | M16: 0 | N16: 0 | O16: 0 | P16: 0 | Q16: 0 | R16: 0 | S16: 0 | T16: 0 | U16: 0 | V16: 0 | W16: 0 | X16: 0 | Y16: 0 | Z16: 0 | AA16: 0 | AB16: 0 | AC16: 0 | AD16: 0 | AE16: 0
A17: =' Investeringen en Financiering'!A17 -> Plantgoed Productief 5 | B17: =' Investeringen en Financiering'!B17 -> Nee | C17: =' Investeringen en Financiering'!C17 -> 0 | D17: =' Investeringen en Financiering'!D17 -> 0 | E17: =' Investeringen en Financiering'!I17 -> Vreemd | F17: =' Investeringen en Financiering'!J17 -> 0 | G17: =' Investeringen en Financiering'!L17 -> 0 | H17: =' Investeringen en Financiering'!K17 -> 0 | L17: 0 | M17: 0 | N17: 0 | O17: 0 | P17: 0 | Q17: 0 | R17: 0 | S17: 0 | T17: 0 | U17: 0 | V17: 0 | W17: 0 | X17: 0 | Y17: 0 | Z17: 0 | AA17: 0 | AB17: 0 | AC17: 0 | AD17: 0 | AE17: 0
A18: =' Investeringen en Financiering'!A18 -> Plantgoed Bosplantsoen | B18: =' Investeringen en Financiering'!B18 -> Nee | C18: =' Investeringen en Financiering'!C18 -> 0 | D18: =' Investeringen en Financiering'!D18 -> 0 | E18: =' Investeringen en Financiering'!I18 -> Vreemd | F18: =' Investeringen en Financiering'!J18 -> 0 | G18: =' Investeringen en Financiering'!L18 -> 0 | H18: =' Investeringen en Financiering'!K18 -> 0 | L18: 0 | M18: 0 | N18: 0 | O18: 0 | P18: 0 | Q18: 0 | R18: 0 | S18: 0 | T18: 0 | U18: 0 | V18: 0 | W18: 0 | X18: 0 | Y18: 0 | Z18: 0 | AA18: 0 | AB18: 0 | AC18: 0 | AD18: 0 | AE18: 0
A19: =' Investeringen en Financiering'!A19 -> Plantgoed Anders | B19: =' Investeringen en Financiering'!B19 -> Nee | C19: =' Investeringen en Financiering'!C19 -> 0 | D19: =' Investeringen en Financiering'!D19 -> 0 | E19: =' Investeringen en Financiering'!I19 -> Vreemd | F19: =' Investeringen en Financiering'!J19 -> 0 | G19: =' Investeringen en Financiering'!L19 -> 0 | H19: =' Investeringen en Financiering'!K19 -> 0 | L19: 0 | M19: 0 | N19: 0 | O19: 0 | P19: 0 | Q19: 0 | R19: 0 | S19: 0 | T19: 0 | U19: 0 | V19: 0 | W19: 0 | X19: 0 | Y19: 0 | Z19: 0 | AA19: 0 | AB19: 0 | AC19: 0 | AD19: 0 | AE19: 0
A20: =' Investeringen en Financiering'!A20 -> Overig | B20: =' Investeringen en Financiering'!B20 -> Nee | C20: =' Investeringen en Financiering'!C20 -> 0 | D20: =' Investeringen en Financiering'!D20 -> 0 | E20: =' Investeringen en Financiering'!I20 -> Vreemd | F20: =' Investeringen en Financiering'!J20 -> 0 | G20: =' Investeringen en Financiering'!L20 -> 0 | H20: =' Investeringen en Financiering'!K20 -> 0 | L20: 0 | M20: 0 | N20: 0 | O20: 0 | P20: 0 | Q20: 0 | R20: 0 | S20: 0 | T20: 0 | U20: 0 | V20: 0 | W20: 0 | X20: 0 | Y20: 0 | Z20: 0 | AA20: =IF(AND(AA$3-$D20>=0,AA$3-$D20<$H20),$I20,0) -> 0 | AB20: 0 | AC20: 0 | AD20: 0 | AE20: 0
K21: Totale | L21: =SUM(L4:L20) -> 0 | M21: 0 | N21: 0 | O21: 0 | P21: 0 | Q21: 0 | R21: 0 | S21: 0 | T21: 0 | U21: 0 | V21: 0 | W21: 0 | X21: 0 | Y21: 0 | Z21: 0 | AA21: 0 | AB21: 0 | AC21: 0 | AD21: 0 | AE21: 0
K22: jaarlijkse aflossing
K25: Jaar | L25: 1 | M25: 2 | N25: 3 | O25: 4 | P25: 5 | Q25: 6 | R25: 7 | S25: 8 | T25: 9 | U25: 10 | V25: 11 | W25: 12 | X25: 13 | Y25: 14 | Z25: 15 | AA25: 16 | AB25: 17 | AC25: 18 | AD25: 19 | AE25: 20
K26: Jaarlijkse rentekosten | L26: =IF(L4>0,(($C4-((J$3-$D4)*$I4)+($C4-((L$3-$D4)*$I4)))/2)*$F4,0) -> 0 | M26: =IF(M4>0,(($C4-((L$3-$D4)*$I4)+($C4-((M$3-$D4)*$I4)))/2)*$F4,0) -> 0 | N26: 0 | O26: 0 | P26: 0 | Q26: 0 | R26: 0 | S26: 0 | T26: 0 | U26: 0 | V26: 0 | W26: 0 | X26: 0 | Y26: 0 | Z26: 0 | AA26: 0 | AB26: 0 | AC26: 0 | AD26: 0 | AE26: 0
L27: =IF(L5>0,(($C5-((J$3-$D5)*$I5)+($C5-((L$3-$D5)*$I5)))/2)*$F5,0) -> 0 | M27: =IF(M5>0,(($C5-((L$3-$D5)*$I5)+($C5-((M$3-$D5)*$I5)))/2)*$F5,0) -> 0 | N27: 0 | O27: 0 | P27: 0 | Q27: 0 | R27: 0 | S27: 0 | T27: 0 | U27: 0 | V27: 0 | W27: 0 | X27: 0 | Y27: 0 | Z27: 0 | AA27: 0 | AB27: 0 | AC27: 0 | AD27: 0 | AE27: 0
L28: =IF(L6>0,(($C6-((J$3-$D6)*$I6)+($C6-((L$3-$D6)*$I6)))/2)*$F6,0) -> 0 | M28: =IF(M6>0,(($C6-((L$3-$D6)*$I6)+($C6-((M$3-$D6)*$I6)))/2)*$F6,0) -> 0 | N28: 0 | O28: 0 | P28: 0 | Q28: 0 | R28: 0 | S28: 0 | T28: 0 | U28: 0 | V28: 0 | W28: 0 | X28: 0 | Y28: 0 | Z28: 0 | AA28: 0 | AB28: 0 | AC28: 0 | AD28: 0 | AE28: 0
L29: =IF(L7>0,(($C7-((J$3-$D7)*$I7)+($C7-((L$3-$D7)*$I7)))/2)*$F7,0) -> 0 | M29: =IF(M7>0,(($C7-((L$3-$D7)*$I7)+($C7-((M$3-$D7)*$I7)))/2)*$F7,0) -> 0 | N29: 0 | O29: 0 | P29: 0 | Q29: 0 | R29: 0 | S29: 0 | T29: 0 | U29: 0 | V29: 0 | W29: 0 | X29: 0 | Y29: 0 | Z29: 0 | AA29: 0 | AB29: 0 | AC29: 0 | AD29: 0 | AE29: 0
L30: 0 | M30: =IF(M8>0,(($C8-((L$3-$D8)*$I8)+($C8-((M$3-$D8)*$I8)))/2)*$F8,0) -> 0 | N30: 0 | O30: 0 | P30: 0 | Q30: 0 | R30: 0 | S30: 0 | T30: 0 | U30: 0 | V30: 0 | W30: 0 | X30: 0 | Y30: 0 | Z30: 0 | AA30: 0 | AB30: 0 | AC30: 0 | AD30: 0 | AE30: 0
L31: 0 | M31: =IF(M9>0,(($C9-((L$3-$D9)*$I9)+($C9-((M$3-$D9)*$I9)))/2)*$F9,0) -> 0 | N31: 0 | O31: 0 | P31: 0 | Q31: 0 | R31: 0 | S31: 0 | T31: 0 | U31: 0 | V31: 0 | W31: 0 | X31: 0 | Y31: 0 | Z31: 0 | AA31: 0 | AB31: 0 | AC31: 0 | AD31: 0 | AE31: 0
L32: 0 | M32: =IF(M10>0,(($C10-((L$3-$D10)*$I10)+($C10-((M$3-$D10)*$I10)))/2)*$F10,0) -> 0 | N32: 0 | O32: 0 | P32: 0 | Q32: 0 | R32: 0 | S32: 0 | T32: 0 | U32: 0 | V32: 0 | W32: 0 | X32: 0 | Y32: 0 | Z32: 0 | AA32: 0 | AB32: 0 | AC32: 0 | AD32: 0 | AE32: 0
L33: 0 | M33: =IF(M11>0,(($C11-((L$3-$D11)*$I11)+($C11-((M$3-$D11)*$I11)))/2)*$F11,0) -> 0 | N33: 0 | O33: 0 | P33: 0 | Q33: 0 | R33: 0 | S33: 0 | T33: 0 | U33: 0 | V33: 0 | W33: 0 | X33: 0 | Y33: 0 | Z33: 0 | AA33: 0 | AB33: 0 | AC33: 0 | AD33: 0 | AE33: 0
L34: 0 | M34: =IF(M12>0,(($C12-((L$3-$D12)*$I12)+($C12-((M$3-$D12)*$I12)))/2)*$F12,0) -> 0 | N34: 0 | O34: 0 | P34: 0 | Q34: 0 | R34: 0 | S34: 0 | T34: 0 | U34: 0 | V34: 0 | W34: 0 | X34: 0 | Y34: 0 | Z34: 0 | AA34: 0 | AB34: 0 | AC34: 0 | AD34: 0 | AE34: 0
L35: 0 | M35: =IF(M13>0,(($C13-((L$3-$D13)*$I13)+($C13-((M$3-$D13)*$I13)))/2)*$F13,0) -> 0 | N35: 0 | O35: 0 | P35: 0 | Q35: 0 | R35: 0 | S35: 0 | T35: 0 | U35: 0 | V35: 0 | W35: 0 | X35: 0 | Y35: 0 | Z35: 0 | AA35: 0 | AB35: 0 | AC35: 0 | AD35: 0 | AE35: 0
L36: 0 | M36: =IF(M14>0,(($C14-((L$3-$D14)*$I14)+($C14-((M$3-$D14)*$I14)))/2)*$F14,0) -> 0 | N36: 0 | O36: 0 | P36: 0 | Q36: 0 | R36: 0 | S36: 0 | T36: 0 | U36: 0 | V36: 0 | W36: 0 | X36: 0 | Y36: 0 | Z36: 0 | AA36: 0 | AB36: 0 | AC36: 0 | AD36: 0 | AE36: 0
L37: 0 | M37: =IF(M15>0,(($C15-((L$3-$D15)*$I15)+($C15-((M$3-$D15)*$I15)))/2)*$F15,0) -> 0 | N37: 0 | O37: 0 | P37: 0 | Q37: 0 | R37: 0 | S37: 0 | T37: 0 | U37: 0 | V37: 0 | W37: 0 | X37: 0 | Y37: 0 | Z37: 0 | AA37: 0 | AB37: 0 | AC37: 0 | AD37: 0 | AE37: 0
L38: 0 | M38: =IF(M16>0,(($C16-((L$3-$D16)*$I16)+($C16-((M$3-$D16)*$I16)))/2)*$F16,0) -> 0 | N38: 0 | O38: 0 | P38: 0 | Q38: 0 | R38: 0 | S38: 0 | T38: 0 | U38: 0 | V38: 0 | W38: 0 | X38: 0 | Y38: 0 | Z38: 0 | AA38: 0 | AB38: 0 | AC38: 0 | AD38: 0 | AE38: 0
L39: 0 | M39: =IF(M17>0,(($C17-((L$3-$D17)*$I17)+($C17-((M$3-$D17)*$I17)))/2)*$F17,0) -> 0 | N39: 0 | O39: 0 | P39: 0 | Q39: 0 | R39: 0 | S39: 0 | T39: 0 | U39: 0 | V39: 0 | W39: 0 | X39: 0 | Y39: 0 | Z39: 0 | AA39: 0 | AB39: 0 | AC39: 0 | AD39: 0 | AE39: 0
L40: 0 | M40: =IF(M18>0,(($C18-((L$3-$D18)*$I18)+($C18-((M$3-$D18)*$I18)))/2)*$F18,0) -> 0 | N40: 0 | O40: 0 | P40: 0 | Q40: 0 | R40: 0 | S40: 0 | T40: 0 | U40: 0 | V40: 0 | W40: 0 | X40: 0 | Y40: 0 | Z40: 0 | AA40: 0 | AB40: 0 | AC40: 0 | AD40: 0 | AE40: 0
L41: =IF(L19>0,(($C19-((J$3-$D19)*$I19)+($C19-((L$3-$D19)*$I19)))/2)*$F19,0) -> 0 | M41: =IF(M19>0,(($C19-((L$3-$D19)*$I19)+($C19-((M$3-$D19)*$I19)))/2)*$F19,0) -> 0 | N41: 0 | O41: 0 | P41: 0 | Q41: 0 | R41: 0 | S41: 0 | T41: 0 | U41: 0 | V41: 0 | W41: 0 | X41: 0 | Y41: 0 | Z41: 0 | AA41: 0 | AB41: 0 | AC41: 0 | AD41: 0 | AE41: 0
L42: 0 | M42: =IF(M20>0,(($C20-((L$3-$D20)*$I20)+($C20-((M$3-$D20)*$I20)))/2)*$F20,0) -> 0 | N42: 0 | O42: 0 | P42: 0 | Q42: 0 | R42: 0 | S42: 0 | T42: 0 | U42: 0 | V42: 0 | W42: 0 | X42: 0 | Y42: 0 | Z42: 0 | AA42: 0 | AB42: 0 | AC42: 0 | AD42: 0 | AE42: 0
K43: Totaal | L43: =SUM(L26:L42) -> 0 | M43: =SUM(M26:M42) -> 0 | N43: 0 | O43: 0 | P43: 0 | Q43: 0 | R43: 0 | S43: 0 | T43: 0 | U43: 0 | V43: 0 | W43: 0 | X43: 0 | Y43: 0 | Z43: 0 | AA43: 0 | AB43: 0 | AC43: 0 | AD43: 0 | AE43: 0
K44: Jaarlijkse rentekosten
K47: Jaar | L47: 1 | M47: 2 | N47: 3 | O47: 4 | P47: 5 | Q47: 6 | R47: 7 | S47: 8 | T47: 9 | U47: 10 | V47: 11 | W47: 12 | X47: 13 | Y47: 14 | Z47: 15 | AA47: 16 | AB47: 17 | AC47: 18 | AD47: 19 | AE47: 20
K48: Berekende rente | L48: =IF(AND($E4="Eigen", L$47-$D4>=0,L$47-$D4<$H4),$C4*$G4,0) -> 0 | M48: =IF(AND($E4="Eigen", M$47-$D4>=0,M$47-$D4<$H4),$C4*$G4,0) -> 0 | N48: 0 | O48: 0 | P48: 0 | Q48: 0 | R48: 0 | S48: 0 | T48: 0 | U48: 0 | V48: 0 | W48: 0 | X48: 0 | Y48: 0 | Z48: 0 | AA48: 0 | AB48: 0 | AC48: 0 | AD48: 0 | AE48: 0
L49: =IF(AND($E5="Eigen", L$47-$D5>=0,L$47-$D5<$H5),$C5*$G5,0) -> 0 | M49: 0 | N49: 0 | O49: 0 | P49: 0 | Q49: 0 | R49: 0 | S49: 0 | T49: 0 | U49: 0 | V49: 0 | W49: 0 | X49: 0 | Y49: 0 | Z49: 0 | AA49: 0 | AB49: 0 | AC49: 0 | AD49: 0 | AE49: 0
L50: =IF(AND($E6="Eigen", L$47-$D6>=0,L$47-$D6<$H6),$C6*$G6,0) -> 0 | M50: 0 | N50: 0 | O50: 0 | P50: 0 | Q50: 0 | R50: 0 | S50: 0 | T50: 0 | U50: 0 | V50: 0 | W50: 0 | X50: 0 | Y50: 0 | Z50: 0 | AA50: 0 | AB50: 0 | AC50: 0 | AD50: 0 | AE50: 0
L51: =IF(AND($E7="Eigen", L$47-$D7>=0,L$47-$D7<$H7),$C7*$G7,0) -> 0 | M51: 0 | N51: 0 | O51: 0 | P51: 0 | Q51: 0 | R51: 0 | S51: 0 | T51: 0 | U51: 0 | V51: 0 | W51: 0 | X51: 0 | Y51: 0 | Z51: 0 | AA51: 0 | AB51: 0 | AC51: 0 | AD51: 0 | AE51: 0
L52: =IF(AND($E8="Eigen", L$47-$D8>=0,L$47-$D8<$H8),$C8*$G8,0) -> 0 | M52: 0 | N52: 0 | O52: 0 | P52: 0 | Q52: 0 | R52: 0 | S52: 0 | T52: 0 | U52: 0 | V52: 0 | W52: 0 | X52: 0 | Y52: 0 | Z52: 0 | AA52: 0 | AB52: 0 | AC52: 0 | AD52: 0 | AE52: 0
L53: =IF(AND($E9="Eigen", L$47-$D9>=0,L$47-$D9<$H9),$C9*$G9,0) -> 0 | M53: 0 | N53: 0 | O53: 0 | P53: 0 | Q53: 0 | R53: 0 | S53: 0 | T53: 0 | U53: 0 | V53: 0 | W53: 0 | X53: 0 | Y53: 0 | Z53: 0 | AA53: 0 | AB53: 0 | AC53: 0 | AD53: 0 | AE53: 0
L54: =IF(AND($E10="Eigen", L$47-$D10>=0,L$47-$D10<$H10),$C10*$G10,0) -> 0 | M54: 0 | N54: 0 | O54: 0 | P54: 0 | Q54: 0 | R54: 0 | S54: 0 | T54: 0 | U54: 0 | V54: 0 | W54: 0 | X54: 0 | Y54: 0 | Z54: 0 | AA54: 0 | AB54: 0 | AC54: 0 | AD54: 0 | AE54: 0
L55: =IF(AND($E11="Eigen", L$47-$D11>=0,L$47-$D11<$H11),$C11*$G11,0) -> 0 | M55: 0 | N55: 0 | O55: 0 | P55: 0 | Q55: 0 | R55: 0 | S55: 0 | T55: 0 | U55: 0 | V55: 0 | W55: 0 | X55: 0 | Y55: 0 | Z55: 0 | AA55: 0 | AB55: 0 | AC55: 0 | AD55: 0 | AE55: 0
L56: =IF(AND($E12="Eigen", L$47-$D12>=0,L$47-$D12<$H12),$C12*$G12,0) -> 0 | M56: 0 | N56: 0 | O56: 0 | P56: 0 | Q56: 0 | R56: 0 | S56: 0 | T56: 0 | U56: 0 | V56: 0 | W56: 0 | X56: 0 | Y56: 0 | Z56: 0 | AA56: 0 | AB56: 0 | AC56: 0 | AD56: 0 | AE56: 0
L57: =IF(AND($E13="Eigen", L$47-$D13>=0,L$47-$D13<$H13),$C13*$G13,0) -> 0 | M57: 0 | N57: 0 | O57: 0 | P57: 0 | Q57: 0 | R57: 0 | S57: 0 | T57: 0 | U57: 0 | V57: 0 | W57: 0 | X57: 0 | Y57: 0 | Z57: 0 | AA57: 0 | AB57: 0 | AC57: 0 | AD57: 0 | AE57: 0
L58: =IF(AND($E14="Eigen", L$47-$D14>=0,L$47-$D14<$H14),$C14*$G14,0) -> 0 | M58: 0 | N58: 0 | O58: 0 | P58: 0 | Q58: 0 | R58: 0 | S58: 0 | T58: 0 | U58: 0 | V58: 0 | W58: 0 | X58: 0 | Y58: 0 | Z58: 0 | AA58: 0 | AB58: 0 | AC58: 0 | AD58: 0 | AE58: 0
L59: =IF(AND($E15="Eigen", L$47-$D15>=0,L$47-$D15<$H15),$C15*$G15,0) -> 0 | M59: 0 | N59: 0 | O59: 0 | P59: 0 | Q59: 0 | R59: 0 | S59: 0 | T59: 0 | U59: 0 | V59: 0 | W59: 0 | X59: 0 | Y59: 0 | Z59: 0 | AA59: 0 | AB59: 0 | AC59: 0 | AD59: 0 | AE59: 0
L60: =IF(AND($E16="Eigen", L$47-$D16>=0,L$47-$D16<$H16),$C16*$G16,0) -> 0 | M60: 0 | N60: 0 | O60: 0 | P60: 0 | Q60: 0 | R60: 0 | S60: 0 | T60: 0 | U60: 0 | V60: 0 | W60: 0 | X60: 0 | Y60: 0 | Z60: 0 | AA60: 0 | AB60: 0 | AC60: 0 | AD60: 0 | AE60: 0
L61: =IF(AND($E17="Eigen", L$47-$D17>=0,L$47-$D17<$H17),$C17*$G17,0) -> 0 | M61: 0 | N61: 0 | O61: 0 | P61: 0 | Q61: 0 | R61: 0 | S61: 0 | T61: 0 | U61: 0 | V61: 0 | W61: 0 | X61: 0 | Y61: 0 | Z61: 0 | AA61: 0 | AB61: 0 | AC61: 0 | AD61: 0 | AE61: 0
L62: =IF(AND($E18="Eigen", L$47-$D18>=0,L$47-$D18<$H18),$C18*$G18,0) -> 0 | M62: 0 | N62: 0 | O62: 0 | P62: 0 | Q62: 0 | R62: 0 | S62: 0 | T62: 0 | U62: 0 | V62: 0 | W62: 0 | X62: 0 | Y62: 0 | Z62: 0 | AA62: 0 | AB62: 0 | AC62: 0 | AD62: 0 | AE62: 0
L63: =IF(AND($E19="Eigen", L$47-$D19>=0,L$47-$D19<$H19),$C19*$G19,0) -> 0 | M63: 0 | N63: 0 | O63: 0 | P63: 0 | Q63: 0 | R63: 0 | S63: 0 | T63: 0 | U63: 0 | V63: 0 | W63: 0 | X63: 0 | Y63: 0 | Z63: 0 | AA63: 0 | AB63: 0 | AC63: 0 | AD63: 0 | AE63: 0
L64: =IF(AND($E20="Eigen", L$47-$D20>=0,L$47-$D20<$H20),$C20*$G20,0) -> 0 | M64: 0 | N64: 0 | O64: 0 | P64: 0 | Q64: 0 | R64: 0 | S64: 0 | T64: 0 | U64: 0 | V64: 0 | W64: 0 | X64: 0 | Y64: 0 | Z64: 0 | AA64: 0 | AB64: 0 | AC64: 0 | AD64: 0 | AE64: 0
K65: Totaal | L65: =SUM(L48:L64) -> 0 | M65: =SUM(M48:M64) -> 0 | N65: 0 | O65: 0 | P65: 0 | Q65: 0 | R65: 0 | S65: 0 | T65: 0 | U65: 0 | V65: 0 | W65: 0 | X65: 0 | Y65: 0 | Z65: 0 | AA65: 0 | AB65: 0 | AC65: 0 | AD65: 0 | AE65: 0
K66: Berekende rente
K69: Jaar | L69: 1 | M69: 2 | N69: 3 | O69: 4 | P69: 5 | Q69: 6 | R69: 7 | S69: 8 | T69: 9 | U69: 10 | V69: 11 | W69: 12 | X69: 13 | Y69: 14 | Z69: 15 | AA69: 16 | AB69: 17 | AC69: 18 | AD69: 19 | AE69: 20 | AF69: 21
K70: Jaarlijkse investeringsoverzicht (Eigen) | L70: =IF(AND($E4="Eigen",$D4+1=M$69,$B4="Nee"),$C4,0) -> 0 | M70: 0 | N70: 0 | O70: 0 | P70: 0 | Q70: 0 | R70: 0 | S70: 0 | T70: 0 | U70: 0 | V70: 0 | W70: 0 | X70: 0 | Y70: 0 | Z70: 0 | AA70: 0 | AB70: 0 | AC70: 0 | AD70: 0 | AE70: 0
L71: =IF(AND($E5="Eigen",$D5+1=M$69,$B5="Nee"),$C5,0) -> 0 | M71: 0 | N71: 0 | O71: 0 | P71: 0 | Q71: 0 | R71: 0 | S71: 0 | T71: 0 | U71: 0 | V71: 0 | W71: 0 | X71: 0 | Y71: 0 | Z71: 0 | AA71: 0 | AB71: 0 | AC71: 0 | AD71: 0 | AE71: 0
L72: =IF(AND($E6="Eigen",$D6+1=M$69,$B6="Nee"),$C6,0) -> 0 | M72: 0 | N72: 0 | O72: 0 | P72: 0 | Q72: 0 | R72: 0 | S72: 0 | T72: 0 | U72: 0 | V72: 0 | W72: 0 | X72: 0 | Y72: 0 | Z72: 0 | AA72: 0 | AB72: 0 | AC72: 0 | AD72: 0 | AE72: 0
L73: =IF(AND($E7="Eigen",$D7+1=M$69,$B7="Nee"),$C7,0) -> 0 | M73: 0 | N73: 0 | O73: 0 | P73: 0 | Q73: 0 | R73: 0 | S73: 0 | T73: 0 | U73: 0 | V73: 0 | W73: 0 | X73: 0 | Y73: 0 | Z73: 0 | AA73: 0 | AB73: 0 | AC73: 0 | AD73: 0 | AE73: 0
L74: =IF(AND($E8="Eigen",$D8+1=M$69,$B8="Nee"),$C8,0) -> 0 | M74: 0 | N74: 0 | O74: 0 | P74: 0 | Q74: 0 | R74: 0 | S74: 0 | T74: 0 | U74: 0 | V74: 0 | W74: 0 | X74: 0 | Y74: 0 | Z74: 0 | AA74: 0 | AB74: 0 | AC74: 0 | AD74: 0 | AE74: 0
L75: =IF(AND($E9="Eigen",$D9+1=M$69,$B9="Nee"),$C9,0) -> 0 | M75: 0 | N75: 0 | O75: 0 | P75: 0 | Q75: 0 | R75: 0 | S75: 0 | T75: 0 | U75: 0 | V75: 0 | W75: 0 | X75: 0 | Y75: 0 | Z75: 0 | AA75: 0 | AB75: 0 | AC75: 0 | AD75: 0 | AE75: 0
L76: =IF(AND($E10="Eigen",$D10+1=M$69,$B10="Nee"),$C10,0) -> 0 | M76: 0 | N76: 0 | O76: 0 | P76: 0 | Q76: 0 | R76: 0 | S76: 0 | T76: 0 | U76: 0 | V76: 0 | W76: 0 | X76: 0 | Y76: 0 | Z76: 0 | AA76: 0 | AB76: 0 | AC76: 0 | AD76: 0 | AE76: 0
L77: =IF(AND($E11="Eigen",$D11+1=M$69,$B11="Nee"),$C11,0) -> 0 | M77: 0 | N77: 0 | O77: 0 | P77: 0 | Q77: 0 | R77: 0 | S77: 0 | T77: 0 | U77: 0 | V77: 0 | W77: 0 | X77: 0 | Y77: 0 | Z77: 0 | AA77: 0 | AB77: 0 | AC77: 0 | AD77: 0 | AE77: 0
L78: =IF(AND($E12="Eigen",$D12+1=M$69,$B12="Nee"),$C12,0) -> 0 | M78: 0 | N78: 0 | O78: 0 | P78: 0 | Q78: 0 | R78: 0 | S78: 0 | T78: 0 | U78: 0 | V78: 0 | W78: 0 | X78: 0 | Y78: 0 | Z78: 0 | AA78: 0 | AB78: 0 | AC78: 0 | AD78: 0 | AE78: 0
L79: =IF(AND($E13="Eigen",$D13+1=M$69,$B13="Nee"),$C13,0) -> 0 | M79: 0 | N79: 0 | O79: 0 | P79: 0 | Q79: 0 | R79: 0 | S79: 0 | T79: 0 | U79: 0 | V79: 0 | W79: 0 | X79: 0 | Y79: 0 | Z79: 0 | AA79: 0 | AB79: 0 | AC79: 0 | AD79: 0 | AE79: 0
L80: =IF(AND($E14="Eigen",$D14+1=M$69,$B14="Nee"),$C14,0) -> 0 | M80: 0 | N80: 0 | O80: 0 | P80: 0 | Q80: 0 | R80: 0 | S80: 0 | T80: 0 | U80: 0 | V80: 0 | W80: 0 | X80: 0 | Y80: 0 | Z80: 0 | AA80: 0 | AB80: 0 | AC80: 0 | AD80: 0 | AE80: 0
L81: =IF(AND($E15="Eigen",$D15+1=M$69,$B15="Nee"),$C15,0) -> 0 | M81: 0 | N81: 0 | O81: 0 | P81: 0 | Q81: 0 | R81: 0 | S81: 0 | T81: 0 | U81: 0 | V81: 0 | W81: 0 | X81: 0 | Y81: 0 | Z81: 0 | AA81: 0 | AB81: 0 | AC81: 0 | AD81: 0 | AE81: 0
L82: =IF(AND($E16="Eigen",$D16+1=M$69,$B16="Nee"),$C16,0) -> 0 | M82: 0 | N82: 0 | O82: 0 | P82: 0 | Q82: 0 | R82: 0 | S82: 0 | T82: 0 | U82: 0 | V82: 0 | W82: 0 | X82: 0 | Y82: 0 | Z82: 0 | AA82: 0 | AB82: 0 | AC82: 0 | AD82: 0 | AE82: 0
L83: =IF(AND($E17="Eigen",$D17+1=M$69,$B17="Nee"),$C17,0) -> 0 | M83: 0 | N83: 0 | O83: 0 | P83: 0 | Q83: 0 | R83: 0 | S83: 0 | T83: 0 | U83: 0 | V83: 0 | W83: 0 | X83: 0 | Y83: 0 | Z83: 0 | AA83: 0 | AB83: 0 | AC83: 0 | AD83: 0 | AE83: 0
L84: =IF(AND($E18="Eigen",$D18+1=M$69,$B18="Nee"),$C18,0) -> 0 | M84: 0 | N84: 0 | O84: 0 | P84: 0 | Q84: 0 | R84: 0 | S84: 0 | T84: 0 | U84: 0 | V84: 0 | W84: 0 | X84: 0 | Y84: 0 | Z84: 0 | AA84: 0 | AB84: 0 | AC84: 0 | AD84: 0 | AE84: 0
L85: =IF(AND($E19="Eigen",$D19+1=M$69,$B19="Nee"),$C19,0) -> 0 | M85: 0 | N85: 0 | O85: 0 | P85: 0 | Q85: 0 | R85: 0 | S85: 0 | T85: 0 | U85: 0 | V85: 0 | W85: 0 | X85: 0 | Y85: 0 | Z85: 0 | AA85: 0 | AB85: 0 | AC85: 0 | AD85: 0 | AE85: 0
L86: =IF(AND($E20="Eigen",$D20+1=M$69,$B20="Nee"),$C20,0) -> 0 | M86: 0 | N86: 0 | O86: 0 | P86: 0 | Q86: 0 | R86: 0 | S86: 0 | T86: 0 | U86: 0 | V86: 0 | W86: 0 | X86: 0 | Y86: 0 | Z86: 0 | AA86: 0 | AB86: 0 | AC86: 0 | AD86: 0 | AE86: 0
K87: Totaal | L87: =SUM(L70:L86) -> 0 | M87: =SUM(M70:M86) -> 0 | N87: 0 | O87: 0 | P87: 0 | Q87: 0 | R87: 0 | S87: 0 | T87: 0 | U87: 0 | V87: 0 | W87: 0 | X87: 0 | Y87: 0 | Z87: 0 | AA87: 0 | AB87: 0 | AC87: 0 | AD87: 0 | AE87: 0
K88: Jaarlijkse investeringen (Eigen)
L91: 1 | M91: 2 | N91: 3 | O91: 4 | P91: 5 | Q91: 6 | R91: 7 | S91: 8 | T91: 9 | U91: 10 | V91: 11 | W91: 12 | X91: 13 | Y91: 14 | Z91: 15 | AA91: 16 | AB91: 17 | AC91: 18 | AD91: 19 | AE91: 20 | AF91: 21
K92: Jaarlijkse financieringen (Vreemd) | L92: =IF(AND($E4="Vreemd",$D4+1=M$91,$B4="Nee"),$C4,0) -> 0 | M92: 0 | N92: 0 | O92: 0 | P92: 0 | Q92: 0 | R92: 0 | S92: 0 | T92: 0 | U92: 0 | V92: 0 | W92: 0 | X92: 0 | Y92: 0 | Z92: 0 | AA92: 0 | AB92: 0 | AC92: 0 | AD92: 0 | AE92: 0
L93: =IF(AND($E5="Vreemd",$D5+1=M$91,$B5="Nee"),$C5,0) -> 0 | M93: 0 | N93: 0 | O93: 0 | P93: 0 | Q93: 0 | R93: 0 | S93: 0 | T93: 0 | U93: 0 | V93: 0 | W93: 0 | X93: 0 | Y93: 0 | Z93: 0 | AA93: 0 | AB93: 0 | AC93: 0 | AD93: 0 | AE93: 0
L94: =IF(AND($E6="Vreemd",$D6+1=M$91,$B6="Nee"),$C6,0) -> 0 | M94: 0 | N94: 0 | O94: 0 | P94: 0 | Q94: 0 | R94: 0 | S94: 0 | T94: 0 | U94: 0 | V94: 0 | W94: 0 | X94: 0 | Y94: 0 | Z94: 0 | AA94: 0 | AB94: 0 | AC94: 0 | AD94: 0 | AE94: 0
L95: =IF(AND($E7="Vreemd",$D7+1=M$91,$B7="Nee"),$C7,0) -> 0 | M95: 0 | N95: 0 | O95: 0 | P95: 0 | Q95: 0 | R95: 0 | S95: 0 | T95: 0 | U95: 0 | V95: 0 | W95: 0 | X95: 0 | Y95: 0 | Z95: 0 | AA95: 0 | AB95: 0 | AC95: 0 | AD95: 0 | AE95: 0
L96: =IF(AND($E8="Vreemd",$D8+1=M$91,$B8="Nee"),$C8,0) -> 0 | M96: 0 | N96: 0 | O96: 0 | P96: 0 | Q96: 0 | R96: 0 | S96: 0 | T96: 0 | U96: 0 | V96: 0 | W96: 0 | X96: 0 | Y96: 0 | Z96: 0 | AA96: 0 | AB96: 0 | AC96: 0 | AD96: 0 | AE96: 0
L97: =IF(AND($E9="Vreemd",$D9+1=M$91,$B9="Nee"),$C9,0) -> 0 | M97: 0 | N97: 0 | O97: 0 | P97: 0 | Q97: 0 | R97: 0 | S97: 0 | T97: 0 | U97: 0 | V97: 0 | W97: 0 | X97: 0 | Y97: 0 | Z97: 0 | AA97: 0 | AB97: 0 | AC97: 0 | AD97: 0 | AE97: 0
L98: =IF(AND($E10="Vreemd",$D10+1=M$91,$B10="Nee"),$C10,0) -> 0 | M98: 0 | N98: 0 | O98: 0 | P98: 0 | Q98: 0 | R98: 0 | S98: 0 | T98: 0 | U98: 0 | V98: 0 | W98: 0 | X98: 0 | Y98: 0 | Z98: 0 | AA98: 0 | AB98: 0 | AC98: 0 | AD98: 0 | AE98: 0
L99: =IF(AND($E11="Vreemd",$D11+1=M$91,$B11="Nee"),$C11,0) -> 0 | M99: 0 | N99: 0 | O99: 0 | P99: 0 | Q99: 0 | R99: 0 | S99: 0 | T99: 0 | U99: 0 | V99: 0 | W99: 0 | X99: 0 | Y99: 0 | Z99: 0 | AA99: 0 | AB99: 0 | AC99: 0 | AD99: 0 | AE99: 0
L100: =IF(AND($E12="Vreemd",$D12+1=M$91,$B12="Nee"),$C12,0) -> 0 | M100: 0 | N100: 0 | O100: 0 | P100: 0 | Q100: 0 | R100: 0 | S100: 0 | T100: 0 | U100: 0 | V100: 0 | W100: 0 | X100: 0 | Y100: 0 | Z100: 0 | AA100: 0 | AB100: 0 | AC100: 0 | AD100: 0 | AE100: 0
L101: =IF(AND($E13="Vreemd",$D13+1=M$91,$B13="Nee"),$C13,0) -> 0 | M101: 0 | N101: 0 | O101: 0 | P101: 0 | Q101: 0 | R101: 0 | S101: 0 | T101: 0 | U101: 0 | V101: 0 | W101: 0 | X101: 0 | Y101: 0 | Z101: 0 | AA101: 0 | AB101: 0 | AC101: 0 | AD101: 0 | AE101: 0
L102: =IF(AND($E14="Vreemd",$D14+1=M$91,$B14="Nee"),$C14,0) -> 0 | M102: 0 | N102: 0 | O102: 0 | P102: 0 | Q102: 0 | R102: 0 | S102: 0 | T102: 0 | U102: 0 | V102: 0 | W102: 0 | X102: 0 | Y102: 0 | Z102: 0 | AA102: 0 | AB102: 0 | AC102: 0 | AD102: 0 | AE102: 0
L103: =IF(AND($E15="Vreemd",$D15+1=M$91,$B15="Nee"),$C15,0) -> 0 | M103: 0 | N103: 0 | O103: 0 | P103: 0 | Q103: 0 | R103: 0 | S103: 0 | T103: 0 | U103: 0 | V103: 0 | W103: 0 | X103: 0 | Y103: 0 | Z103: 0 | AA103: 0 | AB103: 0 | AC103: 0 | AD103: 0 | AE103: 0
L104: =IF(AND($E16="Vreemd",$D16+1=M$91,$B16="Nee"),$C16,0) -> 0 | M104: 0 | N104: 0 | O104: 0 | P104: 0 | Q104: 0 | R104: 0 | S104: 0 | T104: 0 | U104: 0 | V104: 0 | W104: 0 | X104: 0 | Y104: 0 | Z104: 0 | AA104: 0 | AB104: 0 | AC104: 0 | AD104: 0 | AE104: 0
L105: =IF(AND($E17="Vreemd",$D17+1=M$91,$B17="Nee"),$C17,0) -> 0 | M105: 0 | N105: 0 | O105: 0 | P105: 0 | Q105: 0 | R105: 0 | S105: 0 | T105: 0 | U105: 0 | V105: 0 | W105: 0 | X105: 0 | Y105: 0 | Z105: 0 | AA105: 0 | AB105: 0 | AC105: 0 | AD105: 0 | AE105: 0
L106: =IF(AND($E18="Vreemd",$D18+1=M$91,$B18="Nee"),$C18,0) -> 0 | M106: 0 | N106: 0 | O106: 0 | P106: 0 | Q106: 0 | R106: 0 | S106: 0 | T106: 0 | U106: 0 | V106: 0 | W106: 0 | X106: 0 | Y106: 0 | Z106: 0 | AA106: 0 | AB106: 0 | AC106: 0 | AD106: 0 | AE106: 0
L107: =IF(AND($E19="Vreemd",$D19+1=M$91,$B19="Nee"),$C19,0) -> 0 | M107: 0 | N107: 0 | O107: 0 | P107: 0 | Q107: 0 | R107: 0 | S107: 0 | T107: 0 | U107: 0 | V107: 0 | W107: 0 | X107: 0 | Y107: 0 | Z107: 0 | AA107: 0 | AB107: 0 | AC107: 0 | AD107: 0 | AE107: 0
L108: =IF(AND($E20="Vreemd",$D20+1=M$91,$B20="Nee"),$C20,0) -> 0 | M108: 0 | N108: 0 | O108: 0 | P108: 0 | Q108: 0 | R108: 0 | S108: 0 | T108: 0 | U108: 0 | V108: 0 | W108: 0 | X108: 0 | Y108: 0 | Z108: 0 | AA108: 0 | AB108: 0 | AC108: 0 | AD108: 0 | AE108: 0
K109: Totaal | L109: =SUM(L92:L108) -> 0 | M109: =SUM(M92:M108) -> 0 | N109: 0 | O109: 0 | P109: 0 | Q109: 0 | R109: 0 | S109: 0 | T109: 0 | U109: 0 | V109: 0 | W109: 0 | X109: 0 | Y109: 0 | Z109: 0 | AA109: 0 | AB109: 0 | AC109: 0 | AD109: 0 | AE109: 0
K110: Financieringen (Vreemd)
L113: 1 | M113: 2 | N113: 3 | O113: 4 | P113: 5 | Q113: 6 | R113: 7 | S113: 8 | T113: 9 | U113: 10 | V113: 11 | W113: 12 | X113: 13 | Y113: 14 | Z113: 15 | AA113: 16 | AB113: 17 | AC113: 18 | AD113: 19 | AE113: 20 | AF113: 21
K114: Jaarlijkse investeringen vreemd vermogen | L114: =IF(AND($E4="Vreemd",$D4+1=M$113,$B4="Ja"),$C4,0) -> 0 | M114: 0 | N114: 0 | O114: 0 | P114: 0 | Q114: 0 | R114: 0 | S114: 0 | T114: 0 | U114: 0 | V114: 0 | W114: 0 | X114: 0 | Y114: 0 | Z114: 0 | AA114: 0 | AB114: 0 | AC114: 0 | AD114: 0 | AE114: 0
L115: =IF(AND($E5="Vreemd",$D5+1=M$113,$B5="Ja"),$C5,0) -> 0 | M115: 0 | N115: 0 | O115: 0 | P115: 0 | Q115: 0 | R115: 0 | S115: 0 | T115: 0 | U115: 0 | V115: 0 | W115: 0 | X115: 0 | Y115: 0 | Z115: 0 | AA115: 0 | AB115: 0 | AC115: 0 | AD115: 0 | AE115: 0
L116: =IF(AND($E6="Vreemd",$D6+1=M$113,$B6="Ja"),$C6,0) -> 0 | M116: 0 | N116: 0 | O116: 0 | P116: 0 | Q116: 0 | R116: 0 | S116: 0 | T116: 0 | U116: 0 | V116: 0 | W116: 0 | X116: 0 | Y116: 0 | Z116: 0 | AA116: 0 | AB116: 0 | AC116: 0 | AD116: 0 | AE116: 0
L117: =IF(AND($E7="Vreemd",$D7+1=M$113,$B7="Ja"),$C7,0) -> 0 | M117: 0 | N117: 0 | O117: 0 | P117: 0 | Q117: 0 | R117: 0 | S117: 0 | T117: 0 | U117: 0 | V117: 0 | W117: 0 | X117: 0 | Y117: 0 | Z117: 0 | AA117: 0 | AB117: 0 | AC117: 0 | AD117: 0 | AE117: 0
L118: =IF(AND($E8="Vreemd",$D8+1=M$113,$B8="Ja"),$C8,0) -> 0 | M118: 0 | N118: 0 | O118: 0 | P118: 0 | Q118: 0 | R118: 0 | S118: 0 | T118: 0 | U118: 0 | V118: 0 | W118: 0 | X118: 0 | Y118: 0 | Z118: 0 | AA118: 0 | AB118: 0 | AC118: 0 | AD118: 0 | AE118: 0
L119: =IF(AND($E9="Vreemd",$D9+1=M$113,$B9="Ja"),$C9,0) -> 0 | M119: 0 | N119: 0 | O119: 0 | P119: 0 | Q119: 0 | R119: 0 | S119: 0 | T119: 0 | U119: 0 | V119: 0 | W119: 0 | X119: 0 | Y119: 0 | Z119: 0 | AA119: 0 | AB119: 0 | AC119: 0 | AD119: 0 | AE119: 0
L120: =IF(AND($E10="Vreemd",$D10+1=M$113,$B10="Ja"),$C10,0) -> 0 | M120: 0 | N120: 0 | O120: 0 | P120: 0 | Q120: 0 | R120: 0 | S120: 0 | T120: 0 | U120: 0 | V120: 0 | W120: 0 | X120: 0 | Y120: 0 | Z120: 0 | AA120: 0 | AB120: 0 | AC120: 0 | AD120: 0 | AE120: 0
L121: =IF(AND($E11="Vreemd",$D11+1=M$113,$B11="Ja"),$C11,0) -> 0 | M121: 0 | N121: 0 | O121: 0 | P121: 0 | Q121: 0 | R121: 0 | S121: 0 | T121: 0 | U121: 0 | V121: 0 | W121: 0 | X121: 0 | Y121: 0 | Z121: 0 | AA121: 0 | AB121: 0 | AC121: 0 | AD121: 0 | AE121: 0
L122: =IF(AND($E12="Vreemd",$D12+1=M$113,$B12="Ja"),$C12,0) -> 0 | M122: 0 | N122: 0 | O122: 0 | P122: 0 | Q122: 0 | R122: 0 | S122: 0 | T122: 0 | U122: 0 | V122: 0 | W122: 0 | X122: 0 | Y122: 0 | Z122: 0 | AA122: 0 | AB122: 0 | AC122: 0 | AD122: 0 | AE122: 0
L123: =IF(AND($E13="Vreemd",$D13+1=M$113,$B13="Ja"),$C13,0) -> 0 | M123: 0 | N123: 0 | O123: 0 | P123: 0 | Q123: 0 | R123: 0 | S123: 0 | T123: 0 | U123: 0 | V123: 0 | W123: 0 | X123: 0 | Y123: 0 | Z123: 0 | AA123: 0 | AB123: 0 | AC123: 0 | AD123: 0 | AE123: 0
L124: =IF(AND($E14="Vreemd",$D14+1=M$113,$B14="Ja"),$C14,0) -> 0 | M124: 0 | N124: 0 | O124: 0 | P124: 0 | Q124: 0 | R124: 0 | S124: 0 | T124: 0 | U124: 0 | V124: 0 | W124: 0 | X124: 0 | Y124: 0 | Z124: 0 | AA124: 0 | AB124: 0 | AC124: 0 | AD124: 0 | AE124: 0
L125: =IF(AND($E15="Vreemd",$D15+1=M$113,$B15="Ja"),$C15,0) -> 0 | M125: 0 | N125: 0 | O125: 0 | P125: 0 | Q125: 0 | R125: 0 | S125: 0 | T125: 0 | U125: 0 | V125: 0 | W125: 0 | X125: 0 | Y125: 0 | Z125: 0 | AA125: 0 | AB125: 0 | AC125: 0 | AD125: 0 | AE125: 0
L126: =IF(AND($E16="Vreemd",$D16+1=M$113,$B16="Ja"),$C16,0) -> 0 | M126: 0 | N126: 0 | O126: 0 | P126: 0 | Q126: 0 | R126: 0 | S126: 0 | T126: 0 | U126: 0 | V126: 0 | W126: 0 | X126: 0 | Y126: 0 | Z126: 0 | AA126: 0 | AB126: 0 | AC126: 0 | AD126: 0 | AE126: 0
L127: =IF(AND($E17="Vreemd",$D17+1=M$113,$B17="Ja"),$C17,0) -> 0 | M127: 0 | N127: 0 | O127: 0 | P127: 0 | Q127: 0 | R127: 0 | S127: 0 | T127: 0 | U127: 0 | V127: 0 | W127: 0 | X127: 0 | Y127: 0 | Z127: 0 | AA127: 0 | AB127: 0 | AC127: 0 | AD127: 0 | AE127: 0
L128: =IF(AND($E18="Vreemd",$D18+1=M$113,$B18="Ja"),$C18,0) -> 0 | M128: 0 | N128: 0 | O128: 0 | P128: 0 | Q128: 0 | R128: 0 | S128: 0 | T128: 0 | U128: 0 | V128: 0 | W128: 0 | X128: 0 | Y128: 0 | Z128: 0 | AA128: 0 | AB128: 0 | AC128: 0 | AD128: 0 | AE128: 0
L129: =IF(AND($E19="Vreemd",$D19+1=M$113,$B19="Ja"),$C19,0) -> 0 | M129: 0 | N129: 0 | O129: 0 | P129: 0 | Q129: 0 | R129: 0 | S129: 0 | T129: 0 | U129: 0 | V129: 0 | W129: 0 | X129: 0 | Y129: 0 | Z129: 0 | AA129: 0 | AB129: 0 | AC129: 0 | AD129: 0 | AE129: 0
L130: =IF(AND($E20="Vreemd",$D20+1=M$113,$B20="Ja"),$C20,0) -> 0 | M130: 0 | N130: 0 | O130: 0 | P130: 0 | Q130: 0 | R130: 0 | S130: 0 | T130: 0 | U130: 0 | V130: 0 | W130: 0 | X130: 0 | Y130: 0 | Z130: 0 | AA130: 0 | AB130: 0 | AC130: 0 | AD130: 0 | AE130: 0
K131: Totaal | L131: =SUM(L114:L130) -> 0 | M131: =SUM(M114:M130) -> 0 | N131: 0 | O131: 0 | P131: 0 | Q131: 0 | R131: 0 | S131: 0 | T131: 0 | U131: 0 | V131: 0 | W131: 0 | X131: 0 | Y131: 0 | Z131: 0 | AA131: 0 | AB131: 0 | AC131: 0 | AD131: 0 | AE131: 0
K132: Jaarlijkse investeringen vreemd vermogen
K136: Jaarlijkse investeringen | L136: 1 | M136: 2 | N136: 3 | O136: 4 | P136: 5 | Q136: 6 | R136: 7 | S136: 8 | T136: 9 | U136: 10 | V136: 11 | W136: 12 | X136: 13 | Y136: 14 | Z136: 15 | AA136: 16 | AB136: 17 | AC136: 18 | AD136: 19 | AE136: 20
K137: Eigen middelen: | L137: =Financieringsbegroting!L87 -> 0 | M137: =Financieringsbegroting!M87 -> 0 | N137: =Financieringsbegroting!N87 -> 0 | O137: =Financieringsbegroting!O87 -> 0 | P137: =Financieringsbegroting!P87 -> 0 | Q137: =Financieringsbegroting!Q87 -> 0 | R137: =Financieringsbegroting!R87 -> 0 | S137: =Financieringsbegroting!S87 -> 0 | T137: =Financieringsbegroting!T87 -> 0 | U137: =Financieringsbegroting!U87 -> 0 | V137: =Financieringsbegroting!V87 -> 0 | W137: =Financieringsbegroting!W87 -> 0 | X137: =Financieringsbegroting!X87 -> 0 | Y137: =Financieringsbegroting!Y87 -> 0 | Z137: =Financieringsbegroting!Z87 -> 0 | AA137: =Financieringsbegroting!AA87 -> 0 | AB137: =Financieringsbegroting!AB87 -> 0 | AC137: =Financieringsbegroting!AC87 -> 0 | AD137: =Financieringsbegroting!AD87 -> 0 | AE137: =Financieringsbegroting!AE87 -> 0
K138: Vreemd vermogen: | L138: =Financieringsbegroting!L131 -> 0 | M138: =Financieringsbegroting!M131 -> 0 | N138: =Financieringsbegroting!N131 -> 0 | O138: =Financieringsbegroting!O131 -> 0 | P138: =Financieringsbegroting!P131 -> 0 | Q138: =Financieringsbegroting!Q131 -> 0 | R138: =Financieringsbegroting!R131 -> 0 | S138: =Financieringsbegroting!S131 -> 0 | T138: =Financieringsbegroting!T131 -> 0 | U138: =Financieringsbegroting!U131 -> 0 | V138: =Financieringsbegroting!V131 -> 0 | W138: =Financieringsbegroting!W131 -> 0 | X138: =Financieringsbegroting!X131 -> 0 | Y138: =Financieringsbegroting!Y131 -> 0 | Z138: =Financieringsbegroting!Z131 -> 0 | AA138: =Financieringsbegroting!AA131 -> 0 | AB138: =Financieringsbegroting!AB131 -> 0 | AC138: =Financieringsbegroting!AC131 -> 0 | AD138: =Financieringsbegroting!AD131 -> 0 | AE138: =Financieringsbegroting!AE131 -> 0
K139: Financieringen: | L139: =Financieringsbegroting!L109 -> 0 | M139: =Financieringsbegroting!M109 -> 0 | N139: =Financieringsbegroting!N109 -> 0 | O139: =Financieringsbegroting!O109 -> 0 | P139: =Financieringsbegroting!P109 -> 0 | Q139: =Financieringsbegroting!Q109 -> 0 | R139: =Financieringsbegroting!R109 -> 0 | S139: =Financieringsbegroting!S109 -> 0 | T139: =Financieringsbegroting!T109 -> 0 | U139: =Financieringsbegroting!U109 -> 0 | V139: =Financieringsbegroting!V109 -> 0 | W139: =Financieringsbegroting!W109 -> 0 | X139: =Financieringsbegroting!X109 -> 0 | Y139: =Financieringsbegroting!Y109 -> 0 | Z139: =Financieringsbegroting!Z109 -> 0 | AA139: =Financieringsbegroting!AA109 -> 0 | AB139: =Financieringsbegroting!AB109 -> 0 | AC139: =Financieringsbegroting!AC109 -> 0 | AD139: =Financieringsbegroting!AD109 -> 0 | AE139: =Financieringsbegroting!AE109 -> 0
K140: Totaal per jaar: | L140: =SUM(L137:L139) -> 0 | M140: =SUM(M137:M139) -> 0 | N140: 0 | O140: 0 | P140: 0 | Q140: 0 | R140: 0 | S140: 0 | T140: 0 | U140: 0 | V140: 0 | W140: 0 | X140: 0 | Y140: 0 | Z140: 0 | AA140: 0 | AB140: 0 | AC140: 0 | AD140: 0 | AE140: 0

Sheet Vaste posten
A3: Vaste opbrengsten | B3: 1 | C3: 2 | D3: 3 | E3: 4 | F3: 5 | G3: 6 | H3: 7 | I3: 8 | J3: 9 | K3: 10 | L3: 11 | M3: 12 | N3: 13 | O3: 14 | P3: 15 | Q3: 16 | R3: 17 | S3: 18 | T3: 19 | U3: 20
A4: Subsidies en Vergoedingen
A5: ='Overige opbrengsten'!A20 -> Biodiversiteit | B5: ='Overige opbrengsten expert'!B19 -> 0 | C5: ='Overige opbrengsten expert'!C19 -> 0 | D5: ='Overige opbrengsten expert'!D19 -> 0 | E5: ='Overige opbrengsten expert'!E19 -> 0 | F5: ='Overige opbrengsten expert'!F19 -> 0 | G5: ='Overige opbrengsten expert'!G19 -> 0 | H5: ='Overige opbrengsten expert'!H19 -> 0 | I5: ='Overige opbrengsten expert'!I19 -> 0 | J5: ='Overige opbrengsten expert'!J19 -> 0 | K5: ='Overige opbrengsten expert'!K19 -> 0 | L5: ='Overige opbrengsten expert'!$L19 -> 0 | M5: ='Overige opbrengsten expert'!$L19 -> 0 | N5: ='Overige opbrengsten expert'!$L19 -> 0 | O5: ='Overige opbrengsten expert'!$L19 -> 0 | P5: ='Overige opbrengsten expert'!L19 -> 0 | Q5: ='Overige opbrengsten expert'!$M19 -> 0 | R5: ='Overige opbrengsten expert'!$M19 -> 0 | S5: ='Overige opbrengsten expert'!$M19 -> 0 | T5: ='Overige opbrengsten expert'!$M19 -> 0 | U5: ='Overige opbrengsten expert'!$M19 -> 0
A6: ='Overige opbrengsten'!A21 -> Klimaatadaptatie | B6: ='Overige opbrengsten expert'!B20 -> 0 | C6: ='Overige opbrengsten expert'!C20 -> 0 | D6: ='Overige opbrengsten expert'!D20 -> 0 | E6: ='Overige opbrengsten expert'!E20 -> 0 | F6: ='Overige opbrengsten expert'!F20 -> 0 | G6: ='Overige opbrengsten expert'!G20 -> 0 | H6: ='Overige opbrengsten expert'!H20 -> 0 | I6: ='Overige opbrengsten expert'!I20 -> 0 | J6: ='Overige opbrengsten expert'!J20 -> 0 | K6: ='Overige opbrengsten expert'!K20 -> 0 | L6: ='Overige opbrengsten expert'!$L20 -> 0 | M6: ='Overige opbrengsten expert'!$L20 -> 0 | N6: ='Overige opbrengsten expert'!$L20 -> 0 | O6: ='Overige opbrengsten expert'!$L20 -> 0 | P6: ='Overige opbrengsten expert'!L20 -> 0 | Q6: ='Overige opbrengsten expert'!$M20 -> 0 | R6: ='Overige opbrengsten expert'!$M20 -> 0 | S6: ='Overige opbrengsten expert'!$M20 -> 0 | T6: ='Overige opbrengsten expert'!$M20 -> 0 | U6: ='Overige opbrengsten expert'!$M20 -> 0
A7: CO2 Verwaarding | B7: ='CO2 Opslag en Verwaarding'!B18 -> 0 | C7: ='CO2 Opslag en Verwaarding'!C18 -> 0 | D7: ='CO2 Opslag en Verwaarding'!D18 -> 0 | E7: ='CO2 Opslag en Verwaarding'!E18 -> 0 | F7: ='CO2 Opslag en Verwaarding'!F18 -> 0 | G7: ='CO2 Opslag en Verwaarding'!G18 -> 0 | H7: ='CO2 Opslag en Verwaarding'!H18 -> 0 | I7: ='CO2 Opslag en Verwaarding'!I18 -> 0 | J7: ='CO2 Opslag en Verwaarding'!J18 -> 0 | K7: ='CO2 Opslag en Verwaarding'!K18 -> 0 | L7: ='CO2 Opslag en Verwaarding'!L18 -> 0 | M7: ='CO2 Opslag en Verwaarding'!M18 -> 0 | N7: ='CO2 Opslag en Verwaarding'!N18 -> 0 | O7: ='CO2 Opslag en Verwaarding'!O18 -> 0 | P7: ='CO2 Opslag en Verwaarding'!P18 -> 0 | Q7: ='CO2 Opslag en Verwaarding'!Q18 -> 0 | R7: ='CO2 Opslag en Verwaarding'!R18 -> 0 | S7: ='CO2 Opslag en Verwaarding'!S18 -> 0 | T7: ='CO2 Opslag en Verwaarding'!T18 -> 0 | U7: ='CO2 Opslag en Verwaarding'!U18 -> 0
A8: ='Overige opbrengsten'!A23 -> Vul hier uw vergoeding in | B8: ='Overige opbrengsten expert'!B22*'Overige opbrengsten expert'!B21 -> 0 | C8: ='Overige opbrengsten expert'!C22*'Overige opbrengsten expert'!C21 -> 0 | D8: ='Overige opbrengsten expert'!D22*'Overige opbrengsten expert'!D21 -> 0 | E8: ='Overige opbrengsten expert'!E22*'Overige opbrengsten expert'!E21 -> 0 | F8: ='Overige opbrengsten expert'!F22*'Overige opbrengsten expert'!F21 -> 0 | G8: ='Overige opbrengsten expert'!G22*'Overige opbrengsten expert'!G21 -> 0 | H8: ='Overige opbrengsten expert'!H22*'Overige opbrengsten expert'!H21 -> 0 | I8: ='Overige opbrengsten expert'!I22*'Overige opbrengsten expert'!I21 -> 0 | J8: ='Overige opbrengsten expert'!J22*'Overige opbrengsten expert'!J21 -> 0 | K8: ='Overige opbrengsten expert'!K22*'Overige opbrengsten expert'!K21 -> 0 | L8: ='Overige opbrengsten expert'!$L22*'Overige opbrengsten expert'!$L21 -> 0 | M8: ='Overige opbrengsten expert'!$L22*'Overige opbrengsten expert'!$L21 -> 0 | N8: ='Overige opbrengsten expert'!$L22*'Overige opbrengsten expert'!$L21 -> 0 | O8: ='Overige opbrengsten expert'!$L22*'Overige opbrengsten expert'!$L21 -> 0 | P8: ='Overige opbrengsten expert'!L22*'Overige opbrengsten expert'!L21 -> 0 | Q8: ='Overige opbrengsten expert'!$M22*'Overige opbrengsten expert'!$M21 -> 0 | R8: ='Overige opbrengsten expert'!$M22*'Overige opbrengsten expert'!$M21 -> 0 | S8: ='Overige opbrengsten expert'!$M22*'Overige opbrengsten expert'!$M21 -> 0 | T8: ='Overige opbrengsten expert'!$M22*'Overige opbrengsten expert'!$M21 -> 0 | U8: ='Overige opbrengsten expert'!$M22*'Overige opbrengsten expert'!$M21 -> 0
A9: ='Overige opbrengsten'!A25 -> Vul hier uw vergoeding in | B9: ='Overige opbrengsten expert'!B24*'Overige opbrengsten expert'!B23 -> 0 | C9: ='Overige opbrengsten expert'!C24*'Overige opbrengsten expert'!C23 -> 0 | D9: ='Overige opbrengsten expert'!D24*'Overige opbrengsten expert'!D23 -> 0 | E9: ='Overige opbrengsten expert'!E24*'Overige opbrengsten expert'!E23 -> 0 | F9: ='Overige opbrengsten expert'!F24*'Overige opbrengsten expert'!F23 -> 0 | G9: ='Overige opbrengsten expert'!G24*'Overige opbrengsten expert'!G23 -> 0 | H9: ='Overige opbrengsten expert'!H24*'Overige opbrengsten expert'!H23 -> 0 | I9: ='Overige opbrengsten expert'!I24*'Overige opbrengsten expert'!I23 -> 0 | J9: ='Overige opbrengsten expert'!J24*'Overige opbrengsten expert'!J23 -> 0 | K9: ='Overige opbrengsten expert'!K24*'Overige opbrengsten expert'!K23 -> 0 | L9: ='Overige opbrengsten expert'!$L24*'Overige opbrengsten expert'!$L23 -> 0 | M9: ='Overige opbrengsten expert'!$L24*'Overige opbrengsten expert'!$L23 -> 0 | N9: ='Overige opbrengsten expert'!$L24*'Overige opbrengsten expert'!$L23 -> 0 | O9: ='Overige opbrengsten expert'!$L24*'Overige opbrengsten expert'!$L23 -> 0 | P9: ='Overige opbrengsten expert'!L24*'Overige opbrengsten expert'!L23 -> 0 | Q9: ='Overige opbrengsten expert'!$M24*'Overige opbrengsten expert'!$M23 -> 0 | R9: ='Overige opbrengsten expert'!$M24*'Overige opbrengsten expert'!$M23 -> 0 | S9: ='Overige opbrengsten expert'!$M24*'Overige opbrengsten expert'!$M23 -> 0 | T9: ='Overige opbrengsten expert'!$M24*'Overige opbrengsten expert'!$M23 -> 0 | U9: ='Overige opbrengsten expert'!$M24*'Overige opbrengsten expert'!$M23 -> 0
A10: ='Overige opbrengsten'!A26 -> Overige vergoedingen | B10: ='Overige opbrengsten expert'!B25 -> 0 | C10: ='Overige opbrengsten expert'!C25 -> 0 | D10: ='Overige opbrengsten expert'!D25 -> 0 | E10: ='Overige opbrengsten expert'!E25 -> 0 | F10: ='Overige opbrengsten expert'!F25 -> 0 | G10: ='Overige opbrengsten expert'!G25 -> 0 | H10: ='Overige opbrengsten expert'!H25 -> 0 | I10: ='Overige opbrengsten expert'!I25 -> 0 | J10: ='Overige opbrengsten expert'!J25 -> 0 | K10: ='Overige opbrengsten expert'!K25 -> 0 | L10: ='Overige opbrengsten expert'!$L25 -> 0 | M10: ='Overige opbrengsten expert'!$L25 -> 0 | N10: ='Overige opbrengsten expert'!$L25 -> 0 | O10: ='Overige opbrengsten expert'!$L25 -> 0 | P10: ='Overige opbrengsten expert'!L25 -> 0 | Q10: ='Overige opbrengsten expert'!$M25 -> 0 | R10: ='Overige opbrengsten expert'!$M25 -> 0 | S10: ='Overige opbrengsten expert'!$M25 -> 0 | T10: ='Overige opbrengsten expert'!$M25 -> 0 | U10: ='Overige opbrengsten expert'!$M25 -> 0
A11: ='Overige opbrengsten'!A29 -> Vul hier uw vergoeding in | B11: ='Overige opbrengsten expert'!B27*Homepage!$C$17 -> 0 | C11: ='Overige opbrengsten expert'!C27*Homepage!$C$17 -> 0 | D11: ='Overige opbrengsten expert'!D27*Homepage!$C$17 -> 0 | E11: ='Overige opbrengsten expert'!E27*Homepage!$C$17 -> 0 | F11: ='Overige opbrengsten expert'!F27*Homepage!$C$17 -> 0 | G11: ='Overige opbrengsten expert'!G27*Homepage!$C$17 -> 0 | H11: ='Overige opbrengsten expert'!H27*Homepage!$C$17 -> 0 | I11: ='Overige opbrengsten expert'!I27*Homepage!$C$17 -> 0 | J11: ='Overige opbrengsten expert'!J27*Homepage!$C$17 -> 0 | K11: ='Overige opbrengsten expert'!K27*Homepage!$C$17 -> 0 | L11: ='Overige opbrengsten expert'!L27*Homepage!$C$17 -> 0 | M11: ='Overige opbrengsten expert'!M27*Homepage!$C$17 -> 0 | N11: ='Overige opbrengsten expert'!N27*Homepage!$C$17 -> 0 | O11: ='Overige opbrengsten expert'!O27*Homepage!$C$17 -> 0 | P11: ='Overige opbrengsten expert'!P27*Homepage!$C$17 -> 0 | Q11: ='Overige opbrengsten expert'!Q27*Homepage!$C$17 -> 0 | R11: ='Overige opbrengsten expert'!R27*Homepage!$C$17 -> 0 | S11: ='Overige opbrengsten expert'!S27*Homepage!$C$17 -> 0 | T11: ='Overige opbrengsten expert'!T27*Homepage!$C$17 -> 0 | U11: ='Overige opbrengsten expert'!U27*Homepage!$C$17 -> 0
A12: ='Overige opbrengsten'!A30 -> GLB | B12: ='Overige opbrengsten expert'!B28*Homepage!$C$17 -> 0 | C12: ='Overige opbrengsten expert'!C28*Homepage!$C$17 -> 0 | D12: ='Overige opbrengsten expert'!D28*Homepage!$C$17 -> 0 | E12: ='Overige opbrengsten expert'!E28*Homepage!$C$17 -> 0 | F12: ='Overige opbrengsten expert'!F28*Homepage!$C$17 -> 0 | G12: ='Overige opbrengsten expert'!G28*Homepage!$C$17 -> 0 | H12: ='Overige opbrengsten expert'!H28*Homepage!$C$17 -> 0 | I12: ='Overige opbrengsten expert'!I28*Homepage!$C$17 -> 0 | J12: ='Overige opbrengsten expert'!J28*Homepage!$C$17 -> 0 | K12: ='Overige opbrengsten expert'!K28*Homepage!$C$17 -> 0 | L12: ='Overige opbrengsten expert'!L28*Homepage!$C$17 -> 0 | M12: ='Overige opbrengsten expert'!M28*Homepage!$C$17 -> 0 | N12: ='Overige opbrengsten expert'!N28*Homepage!$C$17 -> 0 | O12: ='Overige opbrengsten expert'!O28*Homepage!$C$17 -> 0 | P12: ='Overige opbrengsten expert'!P28*Homepage!$C$17 -> 0 | Q12: ='Overige opbrengsten expert'!Q28*Homepage!$C$17 -> 0 | R12: ='Overige opbrengsten expert'!R28*Homepage!$C$17 -> 0 | S12: ='Overige opbrengsten expert'!S28*Homepage!$C$17 -> 0 | T12: ='Overige opbrengsten expert'!T28*Homepage!$C$17 -> 0 | U12: ='Overige opbrengsten expert'!U28*Homepage!$C$17 -> 0
A13: ='Overige opbrengsten'!A32 -> Organische stof vergoeding | B13: ='Overige opbrengsten expert'!B30*Homepage!$C$17 -> 0 | C13: ='Overige opbrengsten expert'!C30*Homepage!$C$17 -> 0 | D13: ='Overige opbrengsten expert'!D30*Homepage!$C$17 -> 0 | E13: ='Overige opbrengsten expert'!E30*Homepage!$C$17 -> 0 | F13: ='Overige opbrengsten expert'!F30*Homepage!$C$17 -> 0 | G13: ='Overige opbrengsten expert'!G30*Homepage!$C$17 -> 0 | H13: ='Overige opbrengsten expert'!H30*Homepage!$C$17 -> 0 | I13: ='Overige opbrengsten expert'!I30*Homepage!$C$17 -> 0 | J13: ='Overige opbrengsten expert'!J30*Homepage!$C$17 -> 0 | K13: ='Overige opbrengsten expert'!K30*Homepage!$C$17 -> 0 | L13: ='Overige opbrengsten expert'!L30*Homepage!$C$17 -> 0 | M13: ='Overige opbrengsten expert'!M30*Homepage!$C$17 -> 0 | N13: ='Overige opbrengsten expert'!N30*Homepage!$C$17 -> 0 | O13: ='Overige opbrengsten expert'!O30*Homepage!$C$17 -> 0 | P13: ='Overige opbrengsten expert'!P30*Homepage!$C$17 -> 0 | Q13: ='Overige opbrengsten expert'!Q30*Homepage!$C$17 -> 0 | R13: ='Overige opbrengsten expert'!R30*Homepage!$C$17 -> 0 | S13: ='Overige opbrengsten expert'!S30*Homepage!$C$17 -> 0 | T13: ='Overige opbrengsten expert'!T30*Homepage!$C$17 -> 0 | U13: ='Overige opbrengsten expert'!U30*Homepage!$C$17 -> 0
A14: ='Overige opbrengsten'!A33 -> Teeltvrije bufferzone langs alle percelen | B14: ='Overige opbrengsten expert'!B31*Homepage!$C$17 -> 0 | C14: ='Overige opbrengsten expert'!C31*Homepage!$C$17 -> 0 | D14: ='Overige opbrengsten expert'!D31*Homepage!$C$17 -> 0 | E14: ='Overige opbrengsten expert'!E31*Homepage!$C$17 -> 0 | F14: ='Overige opbrengsten expert'!F31*Homepage!$C$17 -> 0 | G14: ='Overige opbrengsten expert'!G31*Homepage!$C$17 -> 0 | H14: ='Overige opbrengsten expert'!H31*Homepage!$C$17 -> 0 | I14: ='Overige opbrengsten expert'!I31*Homepage!$C$17 -> 0 | J14: ='Overige opbrengsten expert'!J31*Homepage!$C$17 -> 0 | K14: ='Overige opbrengsten expert'!K31*Homepage!$C$17 -> 0 | L14: ='Overige opbrengsten expert'!L31*Homepage!$C$17 -> 0 | M14: ='Overige opbrengsten expert'!M31*Homepage!$C$17 -> 0 | N14: ='Overige opbrengsten expert'!N31*Homepage!$C$17 -> 0 | O14: ='Overige opbrengsten expert'!O31*Homepage!$C$17 -> 0 | P14: ='Overige opbrengsten expert'!P31*Homepage!$C$17 -> 0 | Q14: ='Overige opbrengsten expert'!Q31*Homepage!$C$17 -> 0 | R14: ='Overige opbrengsten expert'!R31*Homepage!$C$17 -> 0 | S14: ='Overige opbrengsten expert'!S31*Homepage!$C$17 -> 0 | T14: ='Overige opbrengsten expert'!T31*Homepage!$C$17 -> 0 | U14: ='Overige opbrengsten expert'!U31*Homepage!$C$17 -> 0
A15: ='Overige opbrengsten'!A34 -> Inzaaien akkerranden of FAB randen | B15: ='Overige opbrengsten expert'!B32*Homepage!$C$17 -> 0 | C15: ='Overige opbrengsten expert'!C32*Homepage!$C$17 -> 0 | D15: ='Overige opbrengsten expert'!D32*Homepage!$C$17 -> 0 | E15: ='Overige opbrengsten expert'!E32*Homepage!$C$17 -> 0 | F15: ='Overige opbrengsten expert'!F32*Homepage!$C$17 -> 0 | G15: ='Overige opbrengsten expert'!G32*Homepage!$C$17 -> 0 | H15: ='Overige opbrengsten expert'!H32*Homepage!$C$17 -> 0 | I15: ='Overige opbrengsten expert'!I32*Homepage!$C$17 -> 0 | J15: ='Overige opbrengsten expert'!J32*Homepage!$C$17 -> 0 | K15: ='Overige opbrengsten expert'!K32*Homepage!$C$17 -> 0 | L15: ='Overige opbrengsten expert'!L32*Homepage!$C$17 -> 0 | M15: ='Overige opbrengsten expert'!M32*Homepage!$C$17 -> 0 | N15: ='Overige opbrengsten expert'!N32*Homepage!$C$17 -> 0 | O15: ='Overige opbrengsten expert'!O32*Homepage!$C$17 -> 0 | P15: ='Overige opbrengsten expert'!P32*Homepage!$C$17 -> 0 | Q15: ='Overige opbrengsten expert'!Q32*Homepage!$C$17 -> 0 | R15: ='Overige opbrengsten expert'!R32*Homepage!$C$17 -> 0 | S15: ='Overige opbrengsten expert'!S32*Homepage!$C$17 -> 0 | T15: ='Overige opbrengsten expert'!T32*Homepage!$C$17 -> 0 | U15: ='Overige opbrengsten expert'!U32*Homepage!$C$17 -> 0
A16: ='Overige opbrengsten'!A35 -> Inzaaien groenbemester | B16: ='Overige opbrengsten expert'!B33*Homepage!$C$17 -> 0 | C16: ='Overige opbrengsten expert'!C33*Homepage!$C$17 -> 0 | D16: ='Overige opbrengsten expert'!D33*Homepage!$C$17 -> 0 | E16: ='Overige opbrengsten expert'!E33*Homepage!$C$17 -> 0 | F16: ='Overige opbrengsten expert'!F33*Homepage!$C$17 -> 0 | G16: ='Overige opbrengsten expert'!G33*Homepage!$C$17 -> 0 | H16: ='Overige opbrengsten expert'!H33*Homepage!$C$17 -> 0 | I16: ='Overige opbrengsten expert'!I33*Homepage!$C$17 -> 0 | J16: ='Overige opbrengsten expert'!J33*Homepage!$C$17 -> 0 | K16: ='Overige opbrengsten expert'!K33*Homepage!$C$17 -> 0 | L16: ='Overige opbrengsten expert'!L33*Homepage!$C$17 -> 0 | M16: ='Overige opbrengsten expert'!M33*Homepage!$C$17 -> 0 | N16: ='Overige opbrengsten expert'!N33*Homepage!$C$17 -> 0 | O16: ='Overige opbrengsten expert'!O33*Homepage!$C$17 -> 0 | P16: ='Overige opbrengsten expert'!P33*Homepage!$C$17 -> 0 | Q16: ='Overige opbrengsten expert'!Q33*Homepage!$C$17 -> 0 | R16: ='Overige opbrengsten expert'!R33*Homepage!$C$17 -> 0 | S16: ='Overige opbrengsten expert'!S33*Homepage!$C$17 -> 0 | T16: ='Overige opbrengsten expert'!T33*Homepage!$C$17 -> 0 | U16: ='Overige opbrengsten expert'!U33*Homepage!$C$17 -> 0
A17: ='Overige opbrengsten'!A36 -> Overige vergoedingen | B17: ='Overige opbrengsten expert'!B34*Homepage!$C$17 -> 0 | C17: ='Overige opbrengsten expert'!C34*Homepage!$C$17 -> 0 | D17: ='Overige opbrengsten expert'!D34*Homepage!$C$17 -> 0 | E17: ='Overige opbrengsten expert'!E34*Homepage!$C$17 -> 0 | F17: ='Overige opbrengsten expert'!F34*Homepage!$C$17 -> 0 | G17: ='Overige opbrengsten expert'!G34*Homepage!$C$17 -> 0 | H17: ='Overige opbrengsten expert'!H34*Homepage!$C$17 -> 0 | I17: ='Overige opbrengsten expert'!I34*Homepage!$C$17 -> 0 | J17: ='Overige opbrengsten expert'!J34*Homepage!$C$17 -> 0 | K17: ='Overige opbrengsten expert'!K34*Homepage!$C$17 -> 0 | L17: ='Overige opbrengsten expert'!L34*Homepage!$C$17 -> 0 | M17: ='Overige opbrengsten expert'!M34*Homepage!$C$17 -> 0 | N17: ='Overige opbrengsten expert'!N34*Homepage!$C$17 -> 0 | O17: ='Overige opbrengsten expert'!O34*Homepage!$C$17 -> 0 | P17: ='Overige opbrengsten expert'!P34*Homepage!$C$17 -> 0 | Q17: ='Overige opbrengsten expert'!Q34*Homepage!$C$17 -> 0 | R17: ='Overige opbrengsten expert'!R34*Homepage!$C$17 -> 0 | S17: ='Overige opbrengsten expert'!S34*Homepage!$C$17 -> 0 | T17: ='Overige opbrengsten expert'!T34*Homepage!$C$17 -> 0 | U17: ='Overige opbrengsten expert'!U34*Homepage!$C$17 -> 0
A18: Nevenactiviteiten
A19: ='Overige opbrengsten expert'!A5 -> Workshops | B19: ='Overige opbrengsten expert'!B6*'Overige opbrengsten expert'!B8*'Overige opbrengsten expert'!B7 -> 0 | C19: ='Overige opbrengsten expert'!C6*'Overige opbrengsten expert'!C8*'Overige opbrengsten expert'!C7 -> 0 | D19: ='Overige opbrengsten expert'!D6*'Overige opbrengsten expert'!D8*'Overige opbrengsten expert'!D7 -> 0 | E19: ='Overige opbrengsten expert'!E6*'Overige opbrengsten expert'!E8*'Overige opbrengsten expert'!E7 -> 0 | F19: ='Overige opbrengsten expert'!F6*'Overige opbrengsten expert'!F8*'Overige opbrengsten expert'!F7 -> 0 | G19: ='Overige opbrengsten expert'!G6*'Overige opbrengsten expert'!G8*'Overige opbrengsten expert'!G7 -> 0 | H19: ='Overige opbrengsten expert'!H6*'Overige opbrengsten expert'!H8*'Overige opbrengsten expert'!H7 -> 0 | I19: ='Overige opbrengsten expert'!I6*'Overige opbrengsten expert'!I8*'Overige opbrengsten expert'!I7 -> 0 | J19: ='Overige opbrengsten expert'!J6*'Overige opbrengsten expert'!J8*'Overige opbrengsten expert'!J7 -> 0 | K19: ='Overige opbrengsten expert'!K6*'Overige opbrengsten expert'!K8*'Overige opbrengsten expert'!K7 -> 0 | L19: ='Overige opbrengsten expert'!$L6*'Overige opbrengsten expert'!$L8*'Overige opbrengsten expert'!$L7 -> 0 | M19: ='Overige opbrengsten expert'!$L6*'Overige opbrengsten expert'!$L8*'Overige opbrengsten expert'!$L7 -> 0 | N19: ='Overige opbrengsten expert'!$L6*'Overige opbrengsten expert'!$L8*'Overige opbrengsten expert'!$L7 -> 0 | O19: ='Overige opbrengsten expert'!$L6*'Overige opbrengsten expert'!$L8*'Overige opbrengsten expert'!$L7 -> 0 | P19: ='Overige opbrengsten expert'!$L6*'Overige opbrengsten expert'!$L8*'Overige opbrengsten expert'!$L7 -> 0 | Q19: ='Overige opbrengsten expert'!$M6*'Overige opbrengsten expert'!$M8*'Overige opbrengsten expert'!$M7 -> 0 | R19: ='Overige opbrengsten expert'!$M6*'Overige opbrengsten expert'!$M8*'Overige opbrengsten expert'!$M7 -> 0 | S19: ='Overige opbrengsten expert'!$M6*'Overige opbrengsten expert'!$M8*'Overige opbrengsten expert'!$M7 -> 0 | T19: ='Overige opbrengsten expert'!$M6*'Overige opbrengsten expert'!$M8*'Overige opbrengsten expert'!$M7 -> 0 | U19: ='Overige opbrengsten expert'!$M6*'Overige opbrengsten expert'!$M8*'Overige opbrengsten expert'!$M7 -> 0
A20: ='Overige opbrengsten expert'!A9 -> Rondleidingen | B20: ='Overige opbrengsten expert'!B11*'Overige opbrengsten expert'!B10*'Overige opbrengsten expert'!B12 -> 0 | C20: ='Overige opbrengsten expert'!C11*'Overige opbrengsten expert'!C10*'Overige opbrengsten expert'!C12 -> 0 | D20: ='Overige opbrengsten expert'!D11*'Overige opbrengsten expert'!D10*'Overige opbrengsten expert'!D12 -> 0 | E20: ='Overige opbrengsten expert'!E11*'Overige opbrengsten expert'!E10*'Overige opbrengsten expert'!E12 -> 0 | F20: ='Overige opbrengsten expert'!F11*'Overige opbrengsten expert'!F10*'Overige opbrengsten expert'!F12 -> 0 | G20: ='Overige opbrengsten expert'!G11*'Overige opbrengsten expert'!G10*'Overige opbrengsten expert'!G12 -> 0 | H20: ='Overige opbrengsten expert'!H11*'Overige opbrengsten expert'!H10*'Overige opbrengsten expert'!H12 -> 0 | I20: ='Overige opbrengsten expert'!I11*'Overige opbrengsten expert'!I10*'Overige opbrengsten expert'!I12 -> 0 | J20: ='Overige opbrengsten expert'!J11*'Overige opbrengsten expert'!J10*'Overige opbrengsten expert'!J12 -> 0 | K20: ='Overige opbrengsten expert'!K11*'Overige opbrengsten expert'!K10*'Overige opbrengsten expert'!K12 -> 0 | L20: ='Overige opbrengsten expert'!L11*'Overige opbrengsten expert'!L10*'Overige opbrengsten expert'!L12 -> 0 | M20: ='Overige opbrengsten expert'!M11*'Overige opbrengsten expert'!M10*'Overige opbrengsten expert'!M12 -> 0 | N20: ='Overige opbrengsten expert'!N11*'Overige opbrengsten expert'!N10*'Overige opbrengsten expert'!N12 -> 0 | O20: ='Overige opbrengsten expert'!O11*'Overige opbrengsten expert'!O10*'Overige opbrengsten expert'!O12 -> 0 | P20: ='Overige opbrengsten expert'!P11*'Overige opbrengsten expert'!P10*'Overige opbrengsten expert'!P12 -> 0 | Q20: ='Overige opbrengsten expert'!Q11*'Overige opbrengsten expert'!Q10*'Overige opbrengsten expert'!Q12 -> 0 | R20: ='Overige opbrengsten expert'!R11*'Overige opbrengsten expert'!R10*'Overige opbrengsten expert'!R12 -> 0 | S20: ='Overige opbrengsten expert'!S11*'Overige opbrengsten expert'!S10*'Overige opbrengsten expert'!S12 -> 0 | T20: ='Overige opbrengsten expert'!T11*'Overige opbrengsten expert'!T10*'Overige opbrengsten expert'!T12 -> 0 | U20: ='Overige opbrengsten expert'!U11*'Overige opbrengsten expert'!U10*'Overige opbrengsten expert'!U12 -> 0
A21: ='Overige opbrengsten expert'!A13 -> Evenementen | B21: ='Overige opbrengsten expert'!B15*'Overige opbrengsten expert'!B38 -> 0 | C21: ='Overige opbrengsten expert'!C15*'Overige opbrengsten expert'!C38 -> 0 | D21: ='Overige opbrengsten expert'!D15*'Overige opbrengsten expert'!D38 -> 0 | E21: ='Overige opbrengsten expert'!E15*'Overige opbrengsten expert'!E38 -> 0 | F21: ='Overige opbrengsten expert'!F15*'Overige opbrengsten expert'!F38 -> 0 | G21: ='Overige opbrengsten expert'!G15*'Overige opbrengsten expert'!G38 -> 0 | H21: ='Overige opbrengsten expert'!H15*'Overige opbrengsten expert'!H38 -> 0 | I21: ='Overige opbrengsten expert'!I15*'Overige opbrengsten expert'!I38 -> 0 | J21: ='Overige opbrengsten expert'!J15*'Overige opbrengsten expert'!J38 -> 0 | K21: ='Overige opbrengsten expert'!K15*'Overige opbrengsten expert'!K38 -> 0 | L21: ='Overige opbrengsten expert'!$L15*'Overige opbrengsten expert'!$L38 -> 0 | M21: ='Overige opbrengsten expert'!$L15*'Overige opbrengsten expert'!$L38 -> 0 | N21: ='Overige opbrengsten expert'!$L15*'Overige opbrengsten expert'!$L38 -> 0 | O21: ='Overige opbrengsten expert'!$L15*'Overige opbrengsten expert'!$L38 -> 0 | P21: ='Overige opbrengsten expert'!$L15*'Overige opbrengsten expert'!$L38 -> 0 | Q21: ='Overige opbrengsten expert'!$M15*'Overige opbrengsten expert'!$M38 -> 0 | R21: ='Overige opbrengsten expert'!$M15*'Overige opbrengsten expert'!$M38 -> 0 | S21: ='Overige opbrengsten expert'!$M15*'Overige opbrengsten expert'!$M38 -> 0 | T21: ='Overige opbrengsten expert'!$M15*'Overige opbrengsten expert'!$M38 -> 0 | U21: ='Overige opbrengsten expert'!$M15*'Overige opbrengsten expert'!$M38 -> 0
A22: ='Overige opbrengsten expert'!A16 -> Overige vaste opbrengsten per jaar | B22: ='Overige opbrengsten expert'!B16 -> 0 | C22: ='Overige opbrengsten expert'!C16 -> 0 | D22: ='Overige opbrengsten expert'!D16 -> 0 | E22: ='Overige opbrengsten expert'!E16 -> 0 | F22: ='Overige opbrengsten expert'!F16 -> 0 | G22: ='Overige opbrengsten expert'!G16 -> 0 | H22: ='Overige opbrengsten expert'!H16 -> 0 | I22: ='Overige opbrengsten expert'!I16 -> 0 | J22: ='Overige opbrengsten expert'!J16 -> 0 | K22: ='Overige opbrengsten expert'!K16 -> 0 | L22: ='Overige opbrengsten expert'!$L$16 -> 0 | M22: ='Overige opbrengsten expert'!$L$16 -> 0 | N22: ='Overige opbrengsten expert'!$L$16 -> 0 | O22: ='Overige opbrengsten expert'!$L$16 -> 0 | P22: ='Overige opbrengsten expert'!L16 -> 0 | Q22: ='Overige opbrengsten expert'!$M$16 -> 0 | R22: ='Overige opbrengsten expert'!$M$16 -> 0 | S22: ='Overige opbrengsten expert'!$M$16 -> 0 | T22: ='Overige opbrengsten expert'!$M$16 -> 0 | U22: ='Overige opbrengsten expert'!$M$16 -> 0
A23: Totale vaste opbrengsten | B23: =SUM(B5:B22) -> 0 | C23: =SUM(C5:C22) -> 0 | D23: 0 | E23: 0 | F23: 0 | G23: 0 | H23: 0 | I23: 0 | J23: 0 | K23: 0 | L23: 0 | M23: 0 | N23: 0 | O23: 0 | P23: 0 | Q23: 0 | R23: 0 | S23: 0 | T23: 0 | U23: 0
A25: Vaste kosten | B25: 1 | C25: 2 | D25: 3 | E25: 4 | F25: 5 | G25: 6 | H25: 7 | I25: 8 | J25: 9 | K25: 10 | L25: 11 | M25: 12 | N25: 13 | O25: 14 | P25: 15 | Q25: 16 | R25: 17 | S25: 18 | T25: 19 | U25: 20
A26: ='Kosten & Overige invoer'!A4 -> Pacht | B26: ='Kosten expert'!B4*Homepage!$C17 -> 0 | C26: ='Kosten expert'!C4*Homepage!$C17 -> 0 | D26: ='Kosten expert'!D4*Homepage!$C17 -> 0 | E26: ='Kosten expert'!E4*Homepage!$C17 -> 0 | F26: ='Kosten expert'!F4*Homepage!$C17 -> 0 | G26: ='Kosten expert'!G4*Homepage!$C17 -> 0 | H26: ='Kosten expert'!H4*Homepage!$C17 -> 0 | I26: ='Kosten expert'!I4*Homepage!$C17 -> 0 | J26: ='Kosten expert'!J4*Homepage!$C17 -> 0 | K26: ='Kosten expert'!K4*Homepage!$C17 -> 0 | L26: ='Kosten expert'!L4*Homepage!$C17 -> 0 | M26: ='Kosten expert'!M4*Homepage!$C17 -> 0 | N26: ='Kosten expert'!N4*Homepage!$C17 -> 0 | O26: ='Kosten expert'!O4*Homepage!$C17 -> 0 | P26: ='Kosten expert'!P4*Homepage!$C17 -> 0 | Q26: ='Kosten expert'!Q4*Homepage!$C17 -> 0 | R26: ='Kosten expert'!R4*Homepage!$C17 -> 0 | S26: ='Kosten expert'!S4*Homepage!$C17 -> 0 | T26: ='Kosten expert'!T4*Homepage!$C17 -> 0 | U26: ='Kosten expert'!U4*Homepage!$C17 -> 0
A27: ='Kosten & Overige invoer'!A5 -> Certificeringen | B27: ='Kosten expert'!B5 -> 0 | C27: ='Kosten expert'!C5 -> 0 | D27: ='Kosten expert'!D5 -> 0 | E27: ='Kosten expert'!E5 -> 0 | F27: ='Kosten expert'!F5 -> 0 | G27: ='Kosten expert'!G5 -> 0 | H27: ='Kosten expert'!H5 -> 0 | I27: ='Kosten expert'!I5 -> 0 | J27: ='Kosten expert'!J5 -> 0 | K27: ='Kosten expert'!K5 -> 0 | L27: ='Kosten expert'!L5 -> 0 | M27: ='Kosten expert'!M5 -> 0 | N27: ='Kosten expert'!N5 -> 0 | O27: ='Kosten expert'!O5 -> 0 | P27: ='Kosten expert'!P5 -> 0 | Q27: ='Kosten expert'!Q5 -> 0 | R27: ='Kosten expert'!R5 -> 0 | S27: ='Kosten expert'!S5 -> 0 | T27: ='Kosten expert'!T5 -> 0 | U27: ='Kosten expert'!U5 -> 0
A28: ='Kosten & Overige invoer'!A6 -> Website, logo & design | B28: ='Kosten expert'!B6 -> 0 | C28: ='Kosten expert'!C6 -> 0 | D28: ='Kosten expert'!D6 -> 0 | E28: ='Kosten expert'!E6 -> 0 | F28: ='Kosten expert'!F6 -> 0 | G28: ='Kosten expert'!G6 -> 0 | H28: ='Kosten expert'!H6 -> 0 | I28: ='Kosten expert'!I6 -> 0 | J28: ='Kosten expert'!J6 -> 0 | K28: ='Kosten expert'!K6 -> 0 | L28: ='Kosten expert'!L6 -> 0 | M28: ='Kosten expert'!M6 -> 0 | N28: ='Kosten expert'!N6 -> 0 | O28: ='Kosten expert'!O6 -> 0 | P28: ='Kosten expert'!P6 -> 0 | Q28: ='Kosten expert'!Q6 -> 0 | R28: ='Kosten expert'!R6 -> 0 | S28: ='Kosten expert'!S6 -> 0 | T28: ='Kosten expert'!T6 -> 0 | U28: ='Kosten expert'!U6 -> 0
A29: ='Kosten & Overige invoer'!A7 -> Marketing & verkoop | B29: ='Kosten expert'!B7*Bedrijfsresultaat!B6 -> 0 | C29: ='Kosten expert'!C7*Bedrijfsresultaat!C6 -> 0 | D29: ='Kosten expert'!D7*Bedrijfsresultaat!D6 -> 0 | E29: ='Kosten expert'!E7*Bedrijfsresultaat!E6 -> 0 | F29: ='Kosten expert'!F7*Bedrijfsresultaat!F6 -> 0 | G29: ='Kosten expert'!G7*Bedrijfsresultaat!G6 -> 0 | H29: ='Kosten expert'!H7*Bedrijfsresultaat!H6 -> 0 | I29: ='Kosten expert'!I7*Bedrijfsresultaat!I6 -> 0 | J29: ='Kosten expert'!J7*Bedrijfsresultaat!J6 -> 0 | K29: ='Kosten expert'!K7*Bedrijfsresultaat!K6 -> 0 | L29: ='Kosten expert'!L7*Bedrijfsresultaat!L6 -> 0 | M29: ='Kosten expert'!M7*Bedrijfsresultaat!M6 -> 0 | N29: ='Kosten expert'!N7*Bedrijfsresultaat!N6 -> 0 | O29: ='Kosten expert'!O7*Bedrijfsresultaat!O6 -> 0 | P29: ='Kosten expert'!P7*Bedrijfsresultaat!P6 -> 0 | Q29: ='Kosten expert'!Q7*Bedrijfsresultaat!Q6 -> 0 | R29: ='Kosten expert'!R7*Bedrijfsresultaat!R6 -> 0 | S29: ='Kosten expert'!S7*Bedrijfsresultaat!S6 -> 0 | T29: ='Kosten expert'!T7*Bedrijfsresultaat!T6 -> 0 | U29: ='Kosten expert'!U7*Bedrijfsresultaat!U6 -> 0
A30: ='Kosten & Overige invoer'!A8 -> Nutsvoorzieningen | B30: ='Kosten expert'!B8 -> 0 | C30: ='Kosten expert'!C8 -> 0 | D30: ='Kosten expert'!D8 -> 0 | E30: ='Kosten expert'!E8 -> 0 | F30: ='Kosten expert'!F8 -> 0 | G30: ='Kosten expert'!G8 -> 0 | H30: ='Kosten expert'!H8 -> 0 | I30: ='Kosten expert'!I8 -> 0 | J30: ='Kosten expert'!J8 -> 0 | K30: ='Kosten expert'!K8 -> 0 | L30: ='Kosten expert'!L8 -> 0 | M30: ='Kosten expert'!M8 -> 0 | N30: ='Kosten expert'!N8 -> 0 | O30: ='Kosten expert'!O8 -> 0 | P30: ='Kosten expert'!P8 -> 0 | Q30: ='Kosten expert'!Q8 -> 0 | R30: ='Kosten expert'!R8 -> 0 | S30: ='Kosten expert'!S8 -> 0 | T30: ='Kosten expert'!T8 -> 0 | U30: ='Kosten expert'!U8 -> 0
A31: ='Kosten & Overige invoer'!A9 -> Advies | B31: ='Kosten expert'!B9 -> 0 | C31: ='Kosten expert'!C9 -> 0 | D31: ='Kosten expert'!D9 -> 0 | E31: ='Kosten expert'!E9 -> 0 | F31: ='Kosten expert'!F9 -> 0 | G31: ='Kosten expert'!G9 -> 0 | H31: ='Kosten expert'!H9 -> 0 | I31: ='Kosten expert'!I9 -> 0 | J31: ='Kosten expert'!J9 -> 0 | K31: ='Kosten expert'!K9 -> 0 | L31: ='Kosten expert'!L9 -> 0 | M31: ='Kosten expert'!M9 -> 0 | N31: ='Kosten expert'!N9 -> 0 | O31: ='Kosten expert'!O9 -> 0 | P31: ='Kosten expert'!P9 -> 0 | Q31: ='Kosten expert'!Q9 -> 0 | R31: ='Kosten expert'!R9 -> 0 | S31: ='Kosten expert'!S9 -> 0 | T31: ='Kosten expert'!T9 -> 0 | U31: ='Kosten expert'!U9 -> 0
A32: ='Kosten & Overige invoer'!A10 -> Opstartkosten | B32: ='Kosten expert'!B10 -> 0 | C32: ='Kosten expert'!C10 -> 0 | D32: ='Kosten expert'!D10 -> 0 | E32: ='Kosten expert'!E10 -> 0 | F32: ='Kosten expert'!F10 -> 0 | G32: ='Kosten expert'!G10 -> 0 | H32: ='Kosten expert'!H10 -> 0 | I32: ='Kosten expert'!I10 -> 0 | J32: ='Kosten expert'!J10 -> 0 | K32: ='Kosten expert'!K10 -> 0 | L32: ='Kosten expert'!L10 -> 0 | M32: ='Kosten expert'!M10 -> 0 | N32: ='Kosten expert'!N10 -> 0 | O32: ='Kosten expert'!O10 -> 0 | P32: ='Kosten expert'!P10 -> 0 | Q32: ='Kosten expert'!Q10 -> 0 | R32: ='Kosten expert'!R10 -> 0 | S32: ='Kosten expert'!S10 -> 0 | T32: ='Kosten expert'!T10 -> 0 | U32: ='Kosten expert'!U10 -> 0
A33: ='Kosten & Overige invoer'!A11 -> Onderhoud | B33: ='Kosten expert'!B11*Investeringsbegroting!I21 -> 0 | C33: ='Kosten expert'!C11*Investeringsbegroting!J21 -> 0 | D33: ='Kosten expert'!D11*Investeringsbegroting!K21 -> 0 | E33: ='Kosten expert'!E11*Investeringsbegroting!L21 -> 0 | F33: ='Kosten expert'!F11*Investeringsbegroting!M21 -> 0 | G33: ='Kosten expert'!G11*Investeringsbegroting!N21 -> 0 | H33: ='Kosten expert'!H11*Investeringsbegroting!O21 -> 0 | I33: ='Kosten expert'!I11*Investeringsbegroting!P21 -> 0 | J33: ='Kosten expert'!J11*Investeringsbegroting!Q21 -> 0 | K33: ='Kosten expert'!K11*Investeringsbegroting!R21 -> 0 | L33: ='Kosten expert'!L11*Investeringsbegroting!S21 -> 0 | M33: ='Kosten expert'!M11*Investeringsbegroting!T21 -> 0 | N33: ='Kosten expert'!N11*Investeringsbegroting!U21 -> 0 | O33: ='Kosten expert'!O11*Investeringsbegroting!V21 -> 0 | P33: ='Kosten expert'!P11*Investeringsbegroting!W21 -> 0 | Q33: ='Kosten expert'!Q11*Investeringsbegroting!X21 -> 0 | R33: ='Kosten expert'!R11*Investeringsbegroting!Y21 -> 0 | S33: ='Kosten expert'!S11*Investeringsbegroting!Z21 -> 0 | T33: ='Kosten expert'!T11*Investeringsbegroting!AA21 -> 0 | U33: ='Kosten expert'!U11*Investeringsbegroting!AB21 -> 0
A34: ='Kosten & Overige invoer'!A12 -> Verzekeringen | B34: ='Kosten expert'!B12*Homepage!$C17 -> 0 | C34: ='Kosten expert'!C12*Homepage!$C17 -> 0 | D34: ='Kosten expert'!D12*Homepage!$C17 -> 0 | E34: ='Kosten expert'!E12*Homepage!$C17 -> 0 | F34: ='Kosten expert'!F12*Homepage!$C17 -> 0 | G34: ='Kosten expert'!G12*Homepage!$C17 -> 0 | H34: ='Kosten expert'!H12*Homepage!$C17 -> 0 | I34: ='Kosten expert'!I12*Homepage!$C17 -> 0 | J34: ='Kosten expert'!J12*Homepage!$C17 -> 0 | K34: ='Kosten expert'!K12*Homepage!$C17 -> 0 | L34: ='Kosten expert'!L12*Homepage!$C17 -> 0 | M34: ='Kosten expert'!M12*Homepage!$C17 -> 0 | N34: ='Kosten expert'!N12*Homepage!$C17 -> 0 | O34: ='Kosten expert'!O12*Homepage!$C17 -> 0 | P34: ='Kosten expert'!P12*Homepage!$C17 -> 0 | Q34: ='Kosten expert'!Q12*Homepage!$C17 -> 0 | R34: ='Kosten expert'!R12*Homepage!$C17 -> 0 | S34: ='Kosten expert'!S12*Homepage!$C17 -> 0 | T34: ='Kosten expert'!T12*Homepage!$C17 -> 0 | U34: ='Kosten expert'!U12*Homepage!$C17 -> 0
A36: Investering eigen middelen | B36: =Financieringsbegroting!L87 -> 0 | C36: =Financieringsbegroting!M87 -> 0 | D36: =Financieringsbegroting!N87 -> 0 | E36: =Financieringsbegroting!O87 -> 0 | F36: =Financieringsbegroting!P87 -> 0 | G36: =Financieringsbegroting!Q87 -> 0 | H36: =Financieringsbegroting!R87 -> 0 | I36: =Financieringsbegroting!S87 -> 0 | J36: =Financieringsbegroting!T87 -> 0 | K36: =Financieringsbegroting!U87 -> 0 | L36: =Financieringsbegroting!V87 -> 0 | M36: =Financieringsbegroting!W87 -> 0 | N36: =Financieringsbegroting!X87 -> 0 | O36: =Financieringsbegroting!Y87 -> 0 | P36: =Financieringsbegroting!Z87 -> 0 | Q36: =Financieringsbegroting!AA87 -> 0 | R36: =Financieringsbegroting!AB87 -> 0 | S36: =Financieringsbegroting!AC87 -> 0 | T36: =Financieringsbegroting!AD87 -> 0 | U36: =Financieringsbegroting!AE87 -> 0
A37: Rente | B37: =Financieringsbegroting!L65+Financieringsbegroting!L43 -> 0 | C37: =Financieringsbegroting!M65+Financieringsbegroting!M43 -> 0 | D37: =Financieringsbegroting!N65+Financieringsbegroting!N43 -> 0 | E37: =Financieringsbegroting!O65+Financieringsbegroting!O43 -> 0 | F37: =Financieringsbegroting!P65+Financieringsbegroting!P43 -> 0 | G37: =Financieringsbegroting!Q65+Financieringsbegroting!Q43 -> 0 | H37: =Financieringsbegroting!R65+Financieringsbegroting!R43 -> 0 | I37: =Financieringsbegroting!S65+Financieringsbegroting!S43 -> 0 | J37: =Financieringsbegroting!T65+Financieringsbegroting!T43 -> 0 | K37: =Financieringsbegroting!U65+Financieringsbegroting!U43 -> 0 | L37: =Financieringsbegroting!V65+Financieringsbegroting!V43 -> 0 | M37: =Financieringsbegroting!W65+Financieringsbegroting!W43 -> 0 | N37: =Financieringsbegroting!X65+Financieringsbegroting!X43 -> 0 | O37: =Financieringsbegroting!Y65+Financieringsbegroting!Y43 -> 0 | P37: =Financieringsbegroting!Z65+Financieringsbegroting!Z43 -> 0 | Q37: =Financieringsbegroting!AA65+Financieringsbegroting!AA43 -> 0 | R37: =Financieringsbegroting!AB65+Financieringsbegroting!AB43 -> 0 | S37: =Financieringsbegroting!AC65+Financieringsbegroting!AC43 -> 0 | T37: =Financieringsbegroting!AD65+Financieringsbegroting!AD43 -> 0 | U37: =Financieringsbegroting!AE65+Financieringsbegroting!AE43 -> 0
A38: Afschrijvingen | B38: =Investeringsbegroting!I21 -> 0 | C38: =Investeringsbegroting!J21 -> 0 | D38: =Investeringsbegroting!K21 -> 0 | E38: =Investeringsbegroting!L21 -> 0 | F38: =Investeringsbegroting!M21 -> 0 | G38: =Investeringsbegroting!N21 -> 0 | H38: =Investeringsbegroting!O21 -> 0 | I38: =Investeringsbegroting!P21 -> 0 | J38: =Investeringsbegroting!Q21 -> 0 | K38: =Investeringsbegroting!R21 -> 0 | L38: =Investeringsbegroting!S21 -> 0 | M38: =Investeringsbegroting!T21 -> 0 | N38: =Investeringsbegroting!U21 -> 0 | O38: =Investeringsbegroting!V21 -> 0 | P38: =Investeringsbegroting!W21 -> 0 | Q38: =Investeringsbegroting!X21 -> 0 | R38: =Investeringsbegroting!Y21 -> 0 | S38: =Investeringsbegroting!Z21 -> 0 | T38: =Investeringsbegroting!AA21 -> 0 | U38: =Investeringsbegroting!AB21 -> 0
A39: Overige kosten | B39: ='Kosten expert'!B13 -> 0 | C39: ='Kosten expert'!C13 -> 0 | D39: ='Kosten expert'!D13 -> 0 | E39: ='Kosten expert'!E13 -> 0 | F39: ='Kosten expert'!F13 -> 0 | G39: ='Kosten expert'!G13 -> 0 | H39: ='Kosten expert'!H13 -> 0 | I39: ='Kosten expert'!I13 -> 0 | J39: ='Kosten expert'!J13 -> 0 | K39: ='Kosten expert'!K13 -> 0 | L39: ='Kosten expert'!$L13 -> 0 | M39: ='Kosten expert'!$L13 -> 0 | N39: ='Kosten expert'!$L13 -> 0 | O39: ='Kosten expert'!$L13 -> 0 | P39: ='Kosten expert'!$L13 -> 0 | Q39: ='Kosten expert'!$M13 -> 0 | R39: ='Kosten expert'!$M13 -> 0 | S39: ='Kosten expert'!$M13 -> 0 | T39: ='Kosten expert'!$M13 -> 0 | U39: ='Kosten expert'!$M13 -> 0
A40: Sub-totaal | B40: =SUM(B26:B39) -> 0 | C40: 0 | D40: 0 | E40: 0 | F40: 0 | G40: 0 | H40: 0 | I40: 0 | J40: 0 | K40: 0 | L40: 0 | M40: 0 | N40: 0 | O40: 0 | P40: 0 | Q40: 0 | R40: 0 | S40: 0 | T40: 0 | U40: 0
A41: Onvoorziene kosten | B41: ='Kosten expert'!B14*B40 -> 0 | C41: ='Kosten expert'!C14*C40 -> 0 | D41: ='Kosten expert'!D14*D40 -> 0 | E41: ='Kosten expert'!E14*E40 -> 0 | F41: ='Kosten expert'!F14*F40 -> 0 | G41: ='Kosten expert'!G14*G40 -> 0 | H41: ='Kosten expert'!H14*H40 -> 0 | I41: ='Kosten expert'!I14*I40 -> 0 | J41: ='Kosten expert'!J14*J40 -> 0 | K41: ='Kosten expert'!K14*K40 -> 0 | L41: ='Kosten expert'!$L$14*L40 -> 0 | M41: ='Kosten expert'!$L$14*M40 -> 0 | N41: ='Kosten expert'!$L$14*N40 -> 0 | O41: ='Kosten expert'!$L$14*O40 -> 0 | P41: ='Kosten expert'!L14*P40 -> 0 | Q41: ='Kosten expert'!$M$14*Q40 -> 0 | R41: ='Kosten expert'!$M$14*R40 -> 0 | S41: ='Kosten expert'!$M$14*S40 -> 0 | T41: ='Kosten expert'!$M$14*T40 -> 0 | U41: ='Kosten expert'!$M$14*U40 -> 0
A42: Totale vaste kosten | B42: =SUM(B26:B39)+B41 -> 0 | C42: 0 | D42: 0 | E42: 0 | F42: 0 | G42: 0 | H42: 0 | I42: 0 | J42: 0 | K42: 0 | L42: 0 | M42: 0 | N42: 0 | O42: 0 | P42: 0 | Q42: 0 | R42: 0 | S42: 0 | T42: 0 | U42: 0

Sheet Opbrengstenberekening
D1: Opbrengst in kg, Totaal | Z1: Opbrengst in kg, Klasse A | AU1: Opbrengst in kg, Klasse B | BP1: Opbrengst in €, Klasse A | CK1: Opbrengst in €, Klasse A | DF1: Opbrengst in €, Klasse A | EA1: Opbrengst in €, Klasse B | EV1: Opbrengst in €, Klasse B | FQ1: Opbrengst in €, Klasse B
D2: Totale productie per plantsoort in kg per jaar (incl. aanplantjaar en vertraging) | Z2: Klasse A | AU2: Klasse B | BP2: Opbrengst Klasse A naar supermarkt | CK2: Opbrengst Klasse A naar cateraar | DF2: Opbrengst Klasse A direct naar consument | EA2: Opbrengst Klasse B naar supermarkt | EV2: Opbrengst Klasse B naar Cateraar | EW2: Opbrengst B-2 | FQ2: Opbrengst Klasse B direct naar consument
A3: Productie Categorie | B3: Wetenschappelijke naam | C3: Nederlandse naam | D3: 1 | E3: 2 | F3: 3 | G3: 4 | H3: 5 | I3: 6 | J3: 7 | K3: 8 | L3: 9 | M3: 10 | N3: 11 | O3: 12 | P3: 13 | Q3: 14 | R3: 15 | S3: 16 | T3: 17 | U3: 18 | V3: 19 | W3: 20 | Z3: 1 | AA3: 2 | AB3: 3 | AC3: 4 | AD3: 5 | AE3: 6 | AF3: 7 | AG3: 8 | AH3: 9 | AI3: 10 | AJ3: 11 | AK3: 12 | AL3: 13 | AM3: 14 | AN3: 15 | AO3: 16 | AP3: 17 | AQ3: 18 | AR3: 19 | AS3: 20 | AU3: 1 | AV3: 2 | AW3: 3 | AX3: 4 | AY3: 5 | AZ3: 6 | BA3: 7 | BB3: 8 | BC3: 9 | BD3: 10 | BE3: 11 | BF3: 12 | BG3: 13 | BH3: 14 | BI3: 15 | BJ3: 16 | BK3: 17 | BL3: 18 | BM3: 19 | BN3: 20 | BP3: 1 | BQ3: 2 | BR3: 3 | BS3: 4 | BT3: 5 | BU3: 6 | BV3: 7 | BW3: 8 | BX3: 9 | BY3: 10 | BZ3: 11 | CA3: 12 | CB3: 13 | CC3: 14 | CD3: 15 | CE3: 16 | CF3: 17 | CG3: 18 | CH3: 19 | CI3: 20 | CK3: 1 | CL3: 2 | CM3: 3 | CN3: 4 | CO3: 5 | CP3: 6 | CQ3: 7 | CR3: 8 | CS3: 9 | CT3: 10 | CU3: 11 | CV3: 12 | CW3: 13 | CX3: 14 | CY3: 15 | CZ3: 16 | DA3: 17 | DB3: 18 | DC3: 19 | DD3: 20 | DF3: 1 | DG3: 2 | DH3: 3 | DI3: 4 | DJ3: 5 | DK3: 6 | DL3: 7 | DM3: 8 | DN3: 9 | DO3: 10 | DP3: 11 | DQ3: 12 | DR3: 13 | DS3: 14 | DT3: 15 | DU3: 16 | DV3: 17 | DW3: 18 | DX3: 19 | DY3: 20 | EA3: 1 | EB3: 2 | EC3: 3 | ED3: 4 | EE3: 5 | EF3: 6 | EG3: 7 | EH3: 8 | EI3: 9 | EJ3: 10 | EK3: 11 | EL3: 12 | EM3: 13 | EN3: 14 | EO3: 15 | EP3: 16 | EQ3: 17 | ER3: 18 | ES3: 19 | ET3: 20 | EV3: 1 | EW3: 2 | EX3: 3 | EY3: 4 | EZ3: 5 | FA3: 6 | FB3: 7 | FC3: 8 | FD3: 9 | FE3: 10 | FF3: 11 | FG3: 12 | FH3: 13 | FI3: 14 | FJ3: 15 | FK3: 16 | FL3: 17 | FM3: 18 | FN3: 19 | FO3: 20 | FQ3: 1 | FR3: 2 | FS3: 3 | FT3: 4 | FU3: 5 | FV3: 6 | FW3: 7 | FX3: 8 | FY3: 9 | FZ3: 10 | GA3: 11 | GB3: 12 | GC3: 13 | GD3: 14 | GE3: 15 | GF3: 16 | GG3: 17 | GH3: 18 | GI3: 19 | GJ3: 20 | GL3: Totale opbrengst in € per afzetkanaal | GM3: 1 | GN3: 2 | GO3: 3 | GP3: 4 | GQ3: 5 | GR3: 6 | GS3: 7 | GT3: 8 | GU3: 9 | GV3: 10 | GW3: 11 | GX3: 12 | GY3: 13 | GZ3: 14 | HA3: 15 | HB3: 16 | HC3: 17 | HD3: 18 | HE3: 19 | HF3: 20
